Workbook

Sheet Welcome
F2: Last Updated: | H2: 45839
A6: 1) Make the selections as appropriate to the project. Contact your RSP Grants Specialist or RCS Contract Manager if you have questions.
A17: 2) Make the selections as appropriate to the cost-sharing portion of the project.
A25: 3) Demographic Information (Assists RSP, RCS and RFS when reviewing the project budget)
A27: Enter the RAPSS Funding Proposal (FP) Number | F27: FPxxxxxxxx
A28: Enter the RAPSS Award Modification Request (AMR) Number | F28: AMRxxxxxxxx
A29: Enter the RAPSS Award (AWD) or Award Modification (AWD_MOD) Number | F29: AWDxxxxxxxx
A30: Enter the Project Title | F30: Enter Project Title
A31: Enter the PD/PI's full name | F31: Enter PD/PI Name
A32: Enter the name of the Direct Sponsor | F32: Enter Direct Sponsor Name
A33: Enter the name of the Prime Sponsor (if applicable) | F33: Enter Prime Sponsor Name (if applicable)
A34: Oracle Award number (if available) | F34: xxxxxx
A35: Oracle Project number (if available) | F35: xxxxxx
A36: Oracle Cost Sharing Project number (if applicable) | F36: xxxxxx
A37: Oracle Program Income Project number (if applicable) | F37: xxxxxx
A38: Budget Preparation Date | F38: mm/dd/yyyy
A40: 4) Select the number of budget periods and enter the dates for each below: | G40: Use Days or Whole Months:
B42: Start Date (mm/dd/yyyy) | C42: End Date (mm/dd/yyyy) | D42: Budget Period Begins in FY1 | E42: Budget Period Ends in FY2 | F42: FY1 F&A Rate | G42: FY2 F&A Rate (if different) | H42: =IF(sDAYMO="Days","Days @ FY 1 Rate","Months @ FY 1 Rate") -> Months @ FY 1 Rate | I42: =IF(sDAYMO="Days","Days @ FY 2 Rate (If Different)","Months @ FY 2 Rate (if different)") -> Months @ FY 2 Rate (if different) | J42: Cost Sharing FY1 F&A Rate | K42: Cost Sharing FY2 F&A Rate (if different) | L42: =IF(sDAYMO="Days","Cost Sharing Days @ FY 1 Rate","Cost Sharing Months @ FY 1 Rate") -> Cost Sharing Months @ FY 1 Rate | M42: =IF(sDAYMO="Days","Cost Sharing Days @ FY 2 Rate (If Different)","Cost Sharing Months @ FY 2 Rate (if different)") -> Cost Sharing Months @ FY 2 Rate (if different) | N42: FY1 Rate | O42: FY2 Rate | P42: Cost Sharing FY1 Rate | Q42: Cost Sharing FY2 Rate | R42: =IF(sDAYMO="Days","Split in Days","Split in Whole Months") -> Split in Whole Months | S42: =IF(sDAYMO="Days","Split in Days","Split in Whole Months") -> Split in Whole Months | T42: FY1 Days | U42: FY2 Days | V42: FY1 Whole Months | W42: FY2 Whole Months | X42: FY1 Start | Y42: FY1 End | Z42: FY2 Start | AA42: FY2 End
A43: Budget Period 1 | B43: Enter Date | C43: Enter Date | D43: =IF(OR(ISBLANK(B43),ISTEXT(B43),B43="Enter Start Date"),"N/A",YEAR(B43)+(IF(MONTH(B43)>=7,1,0))) -> N/A | E43: =IF(OR(ISBLANK(C43),ISTEXT(C43),C43="Enter End Date"),"N/A",YEAR(C43)+(IF(MONTH(C43)>=7,1,0))) -> N/A | F43: =N43 -> N/A | G43: =IF(N43=O43,"N/A",O43) -> N/A | H43: =IF(OR(D43="N/A",E43="N/A"),"N/A",IF(G43="N/A",SUM(R43:S43),R43)) -> N/A | I43: =IF(OR(D43="N/A",E43="N/A"),"N/A",IF(G43="N/A",0,S43)) -> N/A | J43: =P43 -> N/A | K43: =IF(P43=Q43,"N/A",Q43) -> N/A | L43: =IF(OR(D43="N/A",E43="N/A"),"N/A",IF(K43="N/A",SUM(R43:S43),R43)) -> N/A | M43: =IF(OR(D43="N/A",E43="N/A"),"N/A",IF(K43="N/A",0,S43)) -> N/A | N43: =IF(OR(D43="N/A",D43<=2016,sFABC=3),"N/A",IF(sFARC=6,budNSFARABP1,INDEX(FARATES[],MATCH(D43,rngFYC,0),MATCH(sFARCO,rngFARCO,0)))) -> N/A | O43: =IF(OR(E43="N/A",E43<=2016,sFABC=3),"N/A",IF(sFARC=6,"N/A",INDEX(FARATES[],MATCH(E43,rngFYC,0),MATCH(sFARCO,rngFARCO,0)))) -> N/A | P43: =IF(OR(D43="N/A",D43<=2016,sFABCCS=3,sCS=2),"N/A",IF(sFARCCS=6,#REF!,INDEX(FARATES[],MATCH(D43,rngFYC,0),MATCH(sFARCOCS,rngFARCO,0)))) -> N/A | Q43: =IF(OR(E43="N/A",E43<=2016,sFABCCS=3,sCS=2),"N/A",IF(sFARCCS=6,"N/A",INDEX(FARATES[],MATCH(E43,rngFYC,0),MATCH(sFARCOCS,rngFARCO,0)))) -> N/A | R43: =IF(sDAYMO=2,T43,V43) -> N/A | S43: =IF(sDAYMO=2,U43,W43) -> N/A | T43: =IF(OR(D43="N/A",E43="N/A"),"N/A",DATEDIF(MAX(B43,X43),MIN(C43,Y43),"D")+1) -> N/A | U43: =IF(OR(D43="N/A",E43="N/A"),"N/A",IF(D43=E43,0,DATEDIF(MAX(B43,Z43),MIN(C43,AA43),"D")+1)) -> N/A | V43: =IF(OR(D43="N/A",E43="N/A"),"N/A",DATEDIF(MAX(B43,X43),MIN(C43,Y43),"M")+1) -> N/A | W43: =IF(OR(D43="N/A",E43="N/A"),"N/A",IF(D43=E43,0,DATEDIF(MAX(B43,Z43),MIN(C43,AA43),"M")+1)) -> N/A | X43: =IF(D43="N/A","N/A",DATE(D43-1,7,1)) -> N/A | Y43: =IF(D43="N/A","N/A",DATE(D43,6,30)) -> N/A | Z43: =IF(E43="N/A","N/A",DATE(E43-1,7,1)) -> N/A | AA43: =IF(E43="N/A","N/A",DATE(E43,6,30)) -> N/A
A44: Budget Period 2 | B44: Enter Date | C44: Enter Date | D44: =IF(OR(ISBLANK(B44),ISTEXT(B44),B44="Enter Start Date"),"N/A",YEAR(B44)+(IF(MONTH(B44)>=7,1,0))) -> N/A | E44: N/A | F44: =N44 -> N/A | G44: =IF(N44=O44,"N/A",O44) -> N/A | H44: =IF(OR(D44="N/A",E44="N/A"),"N/A",IF(G44="N/A",SUM(R44:S44),R44)) -> N/A | I44: =IF(OR(D44="N/A",E44="N/A"),"N/A",IF(G44="N/A",0,S44)) -> N/A | J44: =P44 -> N/A | K44: =IF(P44=Q44,"N/A",Q44) -> N/A | L44: =IF(OR(D44="N/A",E44="N/A"),"N/A",IF(K44="N/A",SUM(R44:S44),R44)) -> N/A | M44: =IF(OR(D44="N/A",E44="N/A"),"N/A",IF(K44="N/A",0,S44)) -> N/A | N44: =IF(OR(D44="N/A",D44<=2016,sFABC=3),"N/A",IF(sFARC=6,budNSFARABP2,INDEX(FARATES[],MATCH(D44,rngFYC,0),MATCH(sFARCO,rngFARCO,0)))) -> N/A | O44: =IF(OR(E44="N/A",E44<=2016,sFABC=3),"N/A",IF(sFARC=6,"N/A",INDEX(FARATES[],MATCH(E44,rngFYC,0),MATCH(sFARCO,rngFARCO,0)))) -> N/A | P44: =IF(OR(D44="N/A",D44<=2016,sFABCCS=3,sCS=2),"N/A",IF(sFARCCS=6,#REF!,INDEX(FARATES[],MATCH(D44,rngFYC,0),MATCH(sFARCOCS,rngFARCO,0)))) -> N/A | Q44: =IF(OR(E44="N/A",E44<=2016,sFABCCS=3,sCS=2),"N/A",IF(sFARCCS=6,"N/A",INDEX(FARATES[],MATCH(E44,rngFYC,0),MATCH(sFARCOCS,rngFARCO,0)))) -> N/A | R44: N/A | S44: N/A | T44: =IF(OR(D44="N/A",E44="N/A"),"N/A",DATEDIF(MAX(B44,X44),MIN(C44,Y44),"D")+1) -> N/A | U44: N/A | V44: N/A | W44: =IF(OR(D44="N/A",E44="N/A"),"N/A",IF(D44=E44,0,DATEDIF(MAX(B44,Z44),MIN(C44,AA44),"M")+1)) -> N/A | X44: =IF(OR(D44="N/A",B44="Enter Start Date"),"N/A",DATE(D44-1,7,1)) -> N/A | Y44: =IF(OR(D44="N/A",B44="Enter Start Date"),"N/A",DATE(D44,6,30)) -> N/A | Z44: =IF(OR(E44="N/A",C44="Enter End Date"),"N/A",DATE(E44-1,7,1)) -> N/A | AA44: =IF(OR(E44="N/A",C44="Enter End Date"),"N/A",DATE(E44,6,30)) -> N/A
A45: Budget Period 3 | B45: Enter Date | C45: Enter Date | D45: N/A | E45: N/A | F45: =N45 -> N/A | G45: N/A | H45: N/A | I45: N/A | J45: N/A | K45: N/A | L45: =IF(OR(D45="N/A",E45="N/A"),"N/A",IF(K45="N/A",SUM(R45:S45),R45)) -> N/A | M45: N/A | N45: =IF(OR(D45="N/A",D45<=2016,sFABC=3),"N/A",IF(sFARC=6,budNSFARABP3,INDEX(FARATES[],MATCH(D45,rngFYC,0),MATCH(sFARCO,rngFARCO,0)))) -> N/A | O45: =IF(OR(E45="N/A",E45<=2016,sFABC=3),"N/A",IF(sFARC=6,"N/A",INDEX(FARATES[],MATCH(E45,rngFYC,0),MATCH(sFARCO,rngFARCO,0)))) -> N/A | P45: =IF(OR(D45="N/A",D45<=2016,sFABCCS=3,sCS=2),"N/A",IF(sFARCCS=6,#REF!,INDEX(FARATES[],MATCH(D45,rngFYC,0),MATCH(sFARCOCS,rngFARCO,0)))) -> N/A | Q45: =IF(OR(E45="N/A",E45<=2016,sFABCCS=3,sCS=2),"N/A",IF(sFARCCS=6,"N/A",INDEX(FARATES[],MATCH(E45,rngFYC,0),MATCH(sFARCOCS,rngFARCO,0)))) -> N/A | R45: N/A | S45: N/A | T45: N/A | U45: N/A | V45: N/A | W45: N/A | X45: N/A | Y45: N/A | Z45: N/A | AA45: N/A
A46: Budget Period 4 | B46: Enter Date | C46: Enter Date | D46: N/A | E46: N/A | F46: N/A | G46: N/A | H46: N/A | I46: N/A | J46: N/A | K46: N/A | L46: =IF(OR(D46="N/A",E46="N/A"),"N/A",IF(K46="N/A",SUM(R46:S46),R46)) -> N/A | M46: N/A | N46: =IF(OR(D46="N/A",D46<=2016,sFABC=3),"N/A",IF(sFARC=6,budNSFARABP4,INDEX(FARATES[],MATCH(D46,rngFYC,0),MATCH(sFARCO,rngFARCO,0)))) -> N/A | O46: =IF(OR(E46="N/A",E46<=2016,sFABC=3),"N/A",IF(sFARC=6,"N/A",INDEX(FARATES[],MATCH(E46,rngFYC,0),MATCH(sFARCO,rngFARCO,0)))) -> N/A | P46: =IF(OR(D46="N/A",D46<=2016,sFABCCS=3,sCS=2),"N/A",IF(sFARCCS=6,#REF!,INDEX(FARATES[],MATCH(D46,rngFYC,0),MATCH(sFARCOCS,rngFARCO,0)))) -> N/A | Q46: =IF(OR(E46="N/A",E46<=2016,sFABCCS=3,sCS=2),"N/A",IF(sFARCCS=6,"N/A",INDEX(FARATES[],MATCH(E46,rngFYC,0),MATCH(sFARCOCS,rngFARCO,0)))) -> N/A | R46: N/A | S46: N/A | T46: N/A | U46: N/A | V46: N/A | W46: N/A | X46: N/A | Y46: N/A | Z46: N/A | AA46: N/A
A47: Budget Period 5 | B47: Enter Date | C47: Enter Date | D47: N/A | E47: N/A | F47: N/A | G47: N/A | H47: N/A | I47: N/A | J47: N/A | K47: N/A | L47: =IF(OR(D47="N/A",E47="N/A"),"N/A",IF(K47="N/A",SUM(R47:S47),R47)) -> N/A | M47: N/A | N47: =IF(OR(D47="N/A",D47<=2016,sFABC=3),"N/A",IF(sFARC=6,budNSFARABP5,INDEX(FARATES[],MATCH(D47,rngFYC,0),MATCH(sFARCO,rngFARCO,0)))) -> N/A | O47: =IF(OR(E47="N/A",E47<=2016,sFABC=3),"N/A",IF(sFARC=6,"N/A",INDEX(FARATES[],MATCH(E47,rngFYC,0),MATCH(sFARCO,rngFARCO,0)))) -> N/A | P47: =IF(OR(D47="N/A",D47<=2016,sFABCCS=3,sCS=2),"N/A",IF(sFARCCS=6,#REF!,INDEX(FARATES[],MATCH(D47,rngFYC,0),MATCH(sFARCOCS,rngFARCO,0)))) -> N/A | Q47: =IF(OR(E47="N/A",E47<=2016,sFABCCS=3,sCS=2),"N/A",IF(sFARCCS=6,"N/A",INDEX(FARATES[],MATCH(E47,rngFYC,0),MATCH(sFARCOCS,rngFARCO,0)))) -> N/A | R47: N/A | S47: N/A | T47: N/A | U47: N/A | V47: N/A | W47: N/A | X47: N/A | Y47: N/A | Z47: N/A | AA47: N/A
A48: Budget Period 6 | B48: Enter Date | C48: Enter Date | D48: N/A | E48: N/A | F48: N/A | G48: N/A | H48: N/A | I48: N/A | J48: N/A | K48: N/A | L48: N/A | M48: N/A | N48: =IF(OR(D48="N/A",D48<=2016,sFABC=3),"N/A",IF(sFARC=6,budNSFARABP6,INDEX(FARATES[],MATCH(D48,rngFYC,0),MATCH(sFARCO,rngFARCO,0)))) -> N/A | O48: =IF(OR(E48="N/A",E48<=2016,sFABC=3),"N/A",IF(sFARC=6,"N/A",INDEX(FARATES[],MATCH(E48,rngFYC,0),MATCH(sFARCO,rngFARCO,0)))) -> N/A | P48: =IF(OR(D48="N/A",D48<=2016,sFABCCS=3,sCS=2),"N/A",IF(sFARCCS=6,#REF!,INDEX(FARATES[],MATCH(D48,rngFYC,0),MATCH(sFARCOCS,rngFARCO,0)))) -> N/A | Q48: =IF(OR(E48="N/A",E48<=2016,sFABCCS=3,sCS=2),"N/A",IF(sFARCCS=6,"N/A",INDEX(FARATES[],MATCH(E48,rngFYC,0),MATCH(sFARCOCS,rngFARCO,0)))) -> N/A | R48: N/A | S48: N/A | T48: N/A | U48: N/A | V48: N/A | W48: N/A | X48: N/A | Y48: N/A | Z48: N/A | AA48: N/A
A49: Budget Period 7 | B49: Enter Date | C49: Enter Date | D49: N/A | E49: N/A | F49: N/A | G49: N/A | H49: N/A | I49: N/A | J49: N/A | K49: N/A | L49: N/A | M49: N/A | N49: =IF(OR(D49="N/A",D49<=2016,sFABC=3),"N/A",IF(sFARC=6,budNSFARABP7,INDEX(FARATES[],MATCH(D49,rngFYC,0),MATCH(sFARCO,rngFARCO,0)))) -> N/A | O49: =IF(OR(E49="N/A",E49<=2016,sFABC=3),"N/A",IF(sFARC=6,"N/A",INDEX(FARATES[],MATCH(E49,rngFYC,0),MATCH(sFARCO,rngFARCO,0)))) -> N/A | P49: =IF(OR(D49="N/A",D49<=2016,sFABCCS=3,sCS=2),"N/A",IF(sFARCCS=6,#REF!,INDEX(FARATES[],MATCH(D49,rngFYC,0),MATCH(sFARCOCS,rngFARCO,0)))) -> N/A | Q49: =IF(OR(E49="N/A",E49<=2016,sFABCCS=3,sCS=2),"N/A",IF(sFARCCS=6,"N/A",INDEX(FARATES[],MATCH(E49,rngFYC,0),MATCH(sFARCOCS,rngFARCO,0)))) -> N/A | R49: N/A | S49: N/A | T49: N/A | U49: N/A | V49: N/A | W49: N/A | X49: N/A | Y49: N/A | Z49: N/A | AA49: N/A
A50: Budget Period 8 | B50: Enter Date | C50: Enter Date | D50: N/A | E50: N/A | F50: N/A | G50: N/A | H50: N/A | I50: N/A | J50: N/A | K50: N/A | L50: N/A | M50: N/A | N50: =IF(OR(D50="N/A",D50<=2016,sFABC=3),"N/A",IF(sFARC=6,budNSFARABP8,INDEX(FARATES[],MATCH(D50,rngFYC,0),MATCH(sFARCO,rngFARCO,0)))) -> N/A | O50: =IF(OR(E50="N/A",E50<=2016,sFABC=3),"N/A",IF(sFARC=6,"N/A",INDEX(FARATES[],MATCH(E50,rngFYC,0),MATCH(sFARCO,rngFARCO,0)))) -> N/A | P50: =IF(OR(D50="N/A",D50<=2016,sFABCCS=3,sCS=2),"N/A",IF(sFARCCS=6,#REF!,INDEX(FARATES[],MATCH(D50,rngFYC,0),MATCH(sFARCOCS,rngFARCO,0)))) -> N/A | Q50: =IF(OR(E50="N/A",E50<=2016,sFABCCS=3,sCS=2),"N/A",IF(sFARCCS=6,"N/A",INDEX(FARATES[],MATCH(E50,rngFYC,0),MATCH(sFARCOCS,rngFARCO,0)))) -> N/A | R50: N/A | S50: N/A | T50: N/A | U50: N/A | V50: N/A | W50: N/A | X50: N/A | Y50: N/A | Z50: N/A | AA50: N/A
A51: Budget Period 9 | B51: Enter Date | C51: Enter Date | D51: N/A | E51: N/A | F51: N/A | G51: N/A | H51: N/A | I51: N/A | J51: N/A | K51: N/A | L51: N/A | M51: N/A | N51: =IF(OR(D51="N/A",D51<=2016,sFABC=3),"N/A",IF(sFARC=6,budNSFARABP9,INDEX(FARATES[],MATCH(D51,rngFYC,0),MATCH(sFARCO,rngFARCO,0)))) -> N/A | O51: =IF(OR(E51="N/A",E51<=2016,sFABC=3),"N/A",IF(sFARC=6,"N/A",INDEX(FARATES[],MATCH(E51,rngFYC,0),MATCH(sFARCO,rngFARCO,0)))) -> N/A | P51: =IF(OR(D51="N/A",D51<=2016,sFABCCS=3,sCS=2),"N/A",IF(sFARCCS=6,#REF!,INDEX(FARATES[],MATCH(D51,rngFYC,0),MATCH(sFARCOCS,rngFARCO,0)))) -> N/A | Q51: =IF(OR(E51="N/A",E51<=2016,sFABCCS=3,sCS=2),"N/A",IF(sFARCCS=6,"N/A",INDEX(FARATES[],MATCH(E51,rngFYC,0),MATCH(sFARCOCS,rngFARCO,0)))) -> N/A | R51: N/A | S51: N/A | T51: N/A | U51: N/A | V51: N/A | W51: N/A | X51: N/A | Y51: N/A | Z51: N/A | AA51: N/A
A52: Budget Period 10 | B52: Enter Date | C52: Enter Date | D52: N/A | E52: N/A | F52: N/A | G52: N/A | H52: N/A | I52: N/A | J52: N/A | K52: N/A | L52: N/A | M52: N/A | N52: =IF(OR(D52="N/A",D52<=2016,sFABC=3),"N/A",IF(sFARC=6,budNSFARABP10,INDEX(FARATES[],MATCH(D52,rngFYC,0),MATCH(sFARCO,rngFARCO,0)))) -> N/A | O52: =IF(OR(E52="N/A",E52<=2016,sFABC=3),"N/A",IF(sFARC=6,"N/A",INDEX(FARATES[],MATCH(E52,rngFYC,0),MATCH(sFARCO,rngFARCO,0)))) -> N/A | P52: =IF(OR(D52="N/A",D52<=2016,sFABCCS=3,sCS=2),"N/A",IF(sFARCCS=6,#REF!,INDEX(FARATES[],MATCH(D52,rngFYC,0),MATCH(sFARCOCS,rngFARCO,0)))) -> N/A | Q52: =IF(OR(E52="N/A",E52<=2016,sFABCCS=3,sCS=2),"N/A",IF(sFARCCS=6,"N/A",INDEX(FARATES[],MATCH(E52,rngFYC,0),MATCH(sFARCOCS,rngFARCO,0)))) -> N/A | R52: N/A | S52: N/A | T52: N/A | U52: N/A | V52: N/A | W52: N/A | X52: N/A | Y52: N/A | Z52: N/A | AA52: N/A
A54: 5) Go to the Budget sheet and/or Budget (Cost Sharing) sheet to complete the budget for the project.
A56: The Empty Sheet is optional and may be used to enter freeform notes or calculations regardng the budget.
A57: The Effort Calculator is available for use in determining effort in person months.
A58: The F&A Rates and Fringe Rates and MTDC Structure sheets may be used for reference.
A60: Send any questions regarding the budget template to: ru-orsp@research.rutgers.edu

Sheet Budget
A1: BUDGET
AO2: =wsFP -> FPxxxxxxxx | AP2: =wsDirectSPon -> Enter Direct Sponsor Name | AR2: =IF(sFABC=3,budNSFARABP1,_xlfn.CONCAT(wsFA1BP1," | ",wsFA2BP1)) -> N/A | N/A | AS2: =IF(sFABC=3,budNSFARABP2,_xlfn.CONCAT(wsFA1BP2," | ",wsFA2BP2)) -> N/A | N/A | AT2: =IF(sFABC=3,budNSFARABP3,_xlfn.CONCAT(wsFA1BP3," | ",wsFA2BP3)) -> N/A | N/A | AU2: =IF(sFABC=3,budNSFARABP4,_xlfn.CONCAT(wsFA1BP4," | ",wsFA2BP4)) -> N/A | N/A | AV2: =IF(sFABC=3,budNSFARABP5,_xlfn.CONCAT(wsFA1BP5," | ",wsFA2BP5)) -> N/A | N/A | AW2: =IF(sFABC=3,budNSFARABP6,_xlfn.CONCAT(wsFA1BP6," | ",wsFA2BP6)) -> N/A | N/A | AX2: =IF(sFABC=3,budNSFARABP7,_xlfn.CONCAT(wsFA1BP7," | ",wsFA2BP7)) -> N/A | N/A | AY2: =IF(sFABC=3,budNSFARABP8,_xlfn.CONCAT(wsFA1BP8," | ",wsFA2BP8)) -> N/A | N/A | AZ2: =IF(sFABC=3,budNSFARABP9,_xlfn.CONCAT(wsFA1BP9," | ",wsFA2BP9)) -> N/A | N/A | BA2: =IF(sFABC=3,budNSFARABP10,_xlfn.CONCAT(wsFA1BP10," | ",wsFA2BP10)) -> N/A | N/A | BB2: =IF(sFABC=3,"F&A Amount","F&A Rate") -> F&A Rate
E3: 0 | H3: 0 | K3: 0 | N3: 0 | Q3: 0 | T3: 0 | W3: 0 | Z3: 0 | AC3: 0 | AF3: 0 | AO3: =_xlfn.CONCAT(wsAWD," | ",wsAMR) -> AWDxxxxxxxx | AMRxxxxxxxx | AP3: =wsPrimeSpon -> Enter Prime Sponsor Name (if applicable) | AR3: =wsBP1 -> Enter Date | AS3: =wsBP2 -> Enter Date | AT3: =wsBP3 -> Enter Date | AU3: =wsBP4 -> Enter Date | AV3: =wsBP5 -> Enter Date | AW3: =wsBP6 -> Enter Date | AX3: =wsBP7 -> Enter Date | AY3: =wsBP8 -> Enter Date | AZ3: =wsBP9 -> Enter Date | BA3: =wsBP10 -> Enter Date | BB3: Start Date
A4: =IF(COUNTIF(rngCFA1,"Yes")+COUNTIF(rngCFA2,"Yes")>0,"BUDGET PREPARED USING CUSTOM FRINGE RATES",IF(sFBRC=1,"BUDGET PREPARED WITH FEDERAL FRINGE BENEFIT RATES","BUDGET PREPARED WITH NON-FEDERAL FRINGE BENEFIT RATES")) -> BUDGET PREPARED WITH FEDERAL FRINGE BENEFIT RATES | AO4: =_xlfn.CONCAT("Oracle Award: ",wsOracleAward) -> Oracle Award: xxxxxx | AP4: =wsPDPI -> Enter PD/PI Name | AR4: =weBP1 -> Enter Date | AS4: =weBP2 -> Enter Date | AT4: =weBP3 -> Enter Date | AU4: =weBP4 -> Enter Date | AV4: =weBP5 -> Enter Date | AW4: =weBP6 -> Enter Date | AX4: =weBP7 -> Enter Date | AY4: =weBP8 -> Enter Date | AZ4: =weBP9 -> Enter Date | BA4: =weBP10 -> Enter Date | BB4: End Date | BC4: PROJECT
D5: Included in F&A Base | E5: Budget Period 1 | H5: Budget Period 2 | K5: Budget Period 3 | N5: Budget Period 4 | Q5: Budget Period 5 | T5: Budget Period 6 | W5: Budget Period 7 | Z5: Budget Period 8 | AC5: Budget Period 9 | AF5: Budget Period 10 | AI5: Total | AL5: NOTES | AM5: NOTES | AO5: =_xlfn.CONCAT("Oracle Project: ",wsOracleProject) -> Oracle Project: xxxxxx | AP5: =wsTitle -> Enter Project Title | AR5: =wsfyBP1 -> N/A | AS5: =wsfyBP2 -> N/A | AT5: =wsfyBP3 -> N/A | AU5: =wsfyBP4 -> N/A | AV5: =wsfyBP5 -> N/A | AW5: =wsfyBP6 -> N/A | AX5: =wsfyBP7 -> N/A | AY5: =wsfyBP8 -> N/A | AZ5: =wsfyBP9 -> N/A | BA5: =wsfyBP10 -> N/A | BB5: Begin FY | BC5: BUDGET
E6: =IF(ISNUMBER(wsBP1)=TRUE,wsBP1,"N/A") -> N/A | F6: =IF(ISNUMBER(weBP1)=TRUE,weBP1,"N/A") -> N/A | G6: =IF(OR(ISNUMBER(wsBP1)=TRUE,ISNUMBER(weBP1)=TRUE),wsfyBP1,"N/A") -> N/A | H6: =IF(ISNUMBER(wsBP2)=TRUE,wsBP2,"N/A") -> N/A | I6: =IF(ISNUMBER(weBP2)=TRUE,weBP2,"N/A") -> N/A | J6: =IF(AND(ISNUMBER(wsBP2),ISNUMBER(weBP2))=TRUE,wsfyBP2,"N/A") -> N/A | K6: =IF(ISNUMBER(wsBP3),wsBP3,"N/A") -> N/A | L6: =IF(ISNUMBER(weBP3),weBP3,"N/A") -> N/A | M6: =IF(AND(ISNUMBER(wsBP3),ISNUMBER(weBP3))=TRUE,wsfyBP3,"N/A") -> N/A | N6: =IF(ISNUMBER(wsBP4),wsBP4,"N/A") -> N/A | O6: =IF(ISNUMBER(weBP4),weBP4,"N/A") -> N/A | P6: =IF(AND(ISNUMBER(wsBP4),ISNUMBER(weBP4))=TRUE,wsfyBP4,"N/A") -> N/A | Q6: =IF(ISNUMBER(wsBP5),wsBP5,"N/A") -> N/A | R6: =IF(ISNUMBER(weBP5),weBP5,"N/A") -> N/A | S6: =IF(AND(ISNUMBER(wsBP5),ISNUMBER(weBP5))=TRUE,wsfyBP5,"N/A") -> N/A | T6: =IF(ISNUMBER(wsBP6),wsBP6,"N/A") -> N/A | U6: =IF(ISNUMBER(weBP6),weBP6,"N/A") -> N/A | V6: =IF(AND(ISNUMBER(wsBP6),ISNUMBER(weBP6))=TRUE,wsfyBP6,"N/A") -> N/A | W6: =IF(ISNUMBER(wsBP7),wsBP7,"N/A") -> N/A | X6: =IF(ISNUMBER(weBP7),weBP7,"N/A") -> N/A | Y6: =IF(AND(ISNUMBER(wsBP7),ISNUMBER(weBP7))=TRUE,wsfyBP7,"N/A") -> N/A | Z6: =IF(ISNUMBER(wsBP8),wsBP8,"N/A") -> N/A | AA6: =IF(ISNUMBER(weBP8),weBP8,"N/A") -> N/A | AB6: =IF(AND(ISNUMBER(wsBP8),ISNUMBER(weBP8))=TRUE,wsfyBP8,"N/A") -> N/A | AC6: =IF(ISNUMBER(wsBP9),wsBP9,"N/A") -> N/A | AD6: =IF(ISNUMBER(weBP9),weBP9,"N/A") -> N/A | AE6: =IF(AND(ISNUMBER(wsBP9),ISNUMBER(weBP9))=TRUE,wsfyBP9,"N/A") -> N/A | AF6: =IF(ISNUMBER(wsBP10),wsBP10,"N/A") -> N/A | AG6: =IF(ISNUMBER(weBP10),weBP10,"N/A") -> N/A | AH6: =IF(AND(ISNUMBER(wsBP10),ISNUMBER(weBP10))=TRUE,wsfyBP10,"N/A") -> N/A | AO6: =_xlfn.CONCAT(IF(sOOC=1,"On Campus", "Off Campus")," | ",IF(sFABC=1,"MTDC",IF(sFABC=2,"TDC","Cust. F&A Amt."))) -> On Campus | MTDC | AP6: =IF(sFARC=1,"Research",IF(sFARC=2,"Instruction",IF(sFARC=3,"Other Sponsored Programs",IF(sFARC=4,"Special Instruction (Off-Campus only)",IF(sFARC=5,"Industry Sponsored Clinical Trials","Custom F&A Rate"))))) -> Research
A7: A1. SALARIES & WAGES (ADVANCED) | AO7: Account Code | AP7: Description | AQ7: F&A Base | AR7: Budget Period 1 | AS7: Budget Period 2 | AT7: Budget Period 3 | AU7: Budget Period 4 | AV7: Budget Period 5 | AW7: Budget Period 6 | AX7: Budget Period 7 | AY7: Budget Period 8 | AZ7: Budget Period 9 | BA7: Budget Period 10 | BB7: Total | BC7: Notes
D8: Base Salary | E8: % Effort | F8: PM | G8: COLA | H8: % Effort | I8: PM | J8: COLA | K8: % Effort | L8: PM | M8: COLA | N8: % Effort | O8: PM | P8: COLA | Q8: % Effort | R8: PM | S8: COLA | T8: % Effort | U8: PM | V8: COLA | W8: % Effort | X8: PM | Y8: COLA | Z8: % Effort | AA8: PM | AB8: COLA | AC8: % Effort | AD8: PM | AE8: COLA | AF8: % Effort | AG8: PM | AH8: COLA
A9: =_xlfn.XLOOKUP(B9,MTDC[Description],MTDC[VALUE],"N/A",0) -> N/A | B9: Make a selection | D9: 0 | E9: 0 | F9: =IF(OR(ISNUMBER(E9)=FALSE,B12="Make a Selection"),0,_xlfn.XLOOKUP(B12,rngecAT,rngecMonths,"N/A",0)*E9) -> 0 | G9: 0 | H9: 0 | I9: =IF(OR(ISNUMBER(H9)=FALSE,B12="Make a Selection"),0,_xlfn.XLOOKUP(B12,rngecAT,rngecMonths,"N/A",0)*H9) -> 0 | J9: 0 | K9: 0 | L9: =IF(OR(ISNUMBER(K9)=FALSE,B12="Make a Selection"),0,_xlfn.XLOOKUP(B12,rngecAT,rngecMonths,"N/A",0)*K9) -> 0 | M9: 0 | N9: 0 | O9: =IF(OR(ISNUMBER(N9)=FALSE,B12="Make a Selection"),0,_xlfn.XLOOKUP(B12,rngecAT,rngecMonths,"N/A",0)*N9) -> 0 | P9: 0 | Q9: 0 | R9: =IF(OR(ISNUMBER(Q9)=FALSE,B12="Make a Selection"),0,_xlfn.XLOOKUP(B12,rngecAT,rngecMonths,"N/A",0)*Q9) -> 0 | S9: 0 | T9: 0 | U9: =IF(OR(ISNUMBER(T9)=FALSE,B12="Make a Selection"),0,_xlfn.XLOOKUP(B12,rngecAT,rngecMonths,"N/A",0)*T9) -> 0 | V9: 0 | W9: 0 | X9: =IF(OR(ISNUMBER(W9)=FALSE,B12="Make a Selection"),0,_xlfn.XLOOKUP(B12,rngecAT,rngecMonths,"N/A",0)*W9) -> 0 | Y9: 0 | Z9: 0 | AA9: =IF(OR(ISNUMBER(Z9)=FALSE,B12="Make a Selection"),0,_xlfn.XLOOKUP(B12,rngecAT,rngecMonths,"N/A",0)*Z9) -> 0 | AB9: 0 | AC9: 0 | AD9: =IF(OR(ISNUMBER(AC9)=FALSE,B12="Make a Selection"),0,_xlfn.XLOOKUP(B12,rngecAT,rngecMonths,"N/A",0)*AC9) -> 0 | AE9: 0 | AF9: 0 | AG9: =IF(OR(ISNUMBER(AF9)=FALSE,B12="Make a Selection"),0,_xlfn.XLOOKUP(B12,rngecAT,rngecMonths,"N/A",0)*AF9) -> 0 | AH9: 0
A10: =A9 -> N/A | B10: Alison Bernstein | D10: Salary | E10: =IF(OR(ISNUMBER(D9)=FALSE,ISNUMBER(E9)=FALSE,ISNUMBER(G9)=FALSE,$B$9="Make a Selection",B12="Make a Selection",ISNUMBER(wsBP1)=FALSE,ISNUMBER(weBP1)=FALSE,ISNUMBER(wsfyBP1)=FALSE),0,$D$9*F9/_xlfn.XLOOKUP(B12,rngecAT,rngecTerm,"N/A",0)*(1+G9)) -> 0 | H10: =IF(OR(ISNUMBER(D9)=FALSE,ISNUMBER(E9)=FALSE,ISNUMBER(G9)=FALSE,ISNUMBER(H9)=FALSE,ISNUMBER(J9)=FALSE,B9="Make a Selection",B12="Make a Selection",ISNUMBER(wsBP2)=FALSE,ISNUMBER(weBP2)=FALSE,ISNUMBER(wsfyBP2)=FALSE),0,D9*I9/_xlfn.XLOOKUP(B12,rngecAT,rngecTerm,"N/A",0)*(1+G9)*(1+J9)) -> 0 | K10: =IF(OR(ISNUMBER(D9)=FALSE,ISNUMBER(E9)=FALSE,ISNUMBER(G9)=FALSE,ISNUMBER(H9)=FALSE,ISNUMBER(J9)=FALSE,ISNUMBER(K9)=FALSE,ISNUMBER(M9)=FALSE,B9="Make a Selection",B12="Make a Selection",ISNUMBER(wsBP3)=FALSE,ISNUMBER(weBP3)=FALSE,ISNUMBER(wsfyBP3)=FALSE),0,D9*L9/_xlfn.XLOOKUP(B12,rngecAT,rngecTerm,"N/A",0)*(1+G9)*(1+J9)*(1+M9)) -> 0 | N10: =IF(OR(ISNUMBER(D9)=FALSE,ISNUMBER(E9)=FALSE,ISNUMBER(G9)=FALSE,ISNUMBER(H9)=FALSE,ISNUMBER(J9)=FALSE,ISNUMBER(K9)=FALSE,ISNUMBER(M9)=FALSE,ISNUMBER(N9)=FALSE,ISNUMBER(P9)=FALSE,B9="Make a Selection",B12="Make a Selection",ISNUMBER(wsBP4)=FALSE,ISNUMBER(weBP4)=FALSE,ISNUMBER(wsfyBP4)=FALSE),0,D9*O9/_xlfn.XLOOKUP(B12,rngecAT,rngecTerm,"N/A",0)*(1+G9)*(1+J9)*(1+M9)*(1+P9)) -> 0 | Q10: =IF(OR(ISNUMBER(D9)=FALSE,ISNUMBER(E9)=FALSE,ISNUMBER(G9)=FALSE,ISNUMBER(H9)=FALSE,ISNUMBER(J9)=FALSE,ISNUMBER(K9)=FALSE,ISNUMBER(M9)=FALSE,ISNUMBER(N9)=FALSE,ISNUMBER(P9)=FALSE,ISNUMBER(Q9)=FALSE,ISNUMBER(S9)=FALSE,B9="Make a Selection",B12="Make a Selection",ISNUMBER(wsBP5)=FALSE,ISNUMBER(weBP5)=FALSE,ISNUMBER(wsfyBP5)=FALSE),0,D9*R9/_xlfn.XLOOKUP(B12,rngecAT,rngecTerm,"N/A",0)*(1+G9)*(1+J9)*(1+M9)*(1+P9)*(1+S9)) -> 0 | T10: =IF(OR(ISNUMBER(D9)=FALSE,ISNUMBER(E9)=FALSE,ISNUMBER(G9)=FALSE,ISNUMBER(H9)=FALSE,ISNUMBER(J9)=FALSE,ISNUMBER(K9)=FALSE,ISNUMBER(M9)=FALSE,ISNUMBER(N9)=FALSE,ISNUMBER(P9)=FALSE,ISNUMBER(Q9)=FALSE,ISNUMBER(S9)=FALSE,ISNUMBER(T9)=FALSE,ISNUMBER(V9)=FALSE,B9="Make a Selection",B12="Make a Selection",ISNUMBER(wsBP6)=FALSE,ISNUMBER(weBP6)=FALSE,ISNUMBER(wsfyBP6)=FALSE),0,D9*U9/_xlfn.XLOOKUP(B12,rngecAT,rngecTerm,"N/A",0)*(1+G9)*(1+J9)*(1+M9)*(1+P9)*(1+S9)*(1+V9)) -> 0 | W10: =IF(OR(ISNUMBER(D9)=FALSE,ISNUMBER(E9)=FALSE,ISNUMBER(G9)=FALSE,ISNUMBER(H9)=FALSE,ISNUMBER(J9)=FALSE,ISNUMBER(K9)=FALSE,ISNUMBER(M9)=FALSE,ISNUMBER(N9)=FALSE,ISNUMBER(P9)=FALSE,ISNUMBER(Q9)=FALSE,ISNUMBER(S9)=FALSE,ISNUMBER(T9)=FALSE,ISNUMBER(V9)=FALSE,ISNUMBER(W9)=FALSE,ISNUMBER(Y9)=FALSE,B9="Make a Selection",B12="Make Selection",ISNUMBER(wsBP7)=FALSE,ISNUMBER(weBP7)=FALSE,ISNUMBER(wsfyBP7)=FALSE),0,D9*X9/_xlfn.XLOOKUP(B12,rngecAT,rngecTerm,"N/A",0)*(1+G9)*(1+J9)*(1+M9)*(1+P9)*(1+S9)*(1+V9)*(1+Y9)) -> 0 | Z10: =IF(OR(ISNUMBER(D9)=FALSE,ISNUMBER(E9)=FALSE,ISNUMBER(G9)=FALSE,ISNUMBER(H9)=FALSE,ISNUMBER(J9)=FALSE,ISNUMBER(K9)=FALSE,ISNUMBER(M9)=FALSE,ISNUMBER(N9)=FALSE,ISNUMBER(P9)=FALSE,ISNUMBER(Q9)=FALSE,ISNUMBER(S9)=FALSE,ISNUMBER(T9)=FALSE,ISNUMBER(V9)=FALSE,ISNUMBER(W9)=FALSE,ISNUMBER(Y9)=FALSE,ISNUMBER(Z9)=FALSE,ISNUMBER(AB9)=FALSE,B9="Make a Selection",B12="Make a Selection",ISNUMBER(wsBP8)=FALSE,ISNUMBER(weBP8)=FALSE,ISNUMBER(wsfyBP8)=FALSE),0,D9*AA9/_xlfn.XLOOKUP(B12,rngecAT,rngecTerm,"N/A",0)*(1+G9)*(1+J9)*(1+M9)*(1+P9)*(1+S9)*(1+V9)*(1+Y9)*(1+AB9)) -> 0 | AC10: =IF(OR(ISNUMBER(D9)=FALSE,ISNUMBER(E9)=FALSE,ISNUMBER(G9)=FALSE,ISNUMBER(H9)=FALSE,ISNUMBER(J9)=FALSE,ISNUMBER(K9)=FALSE,ISNUMBER(M9)=FALSE,ISNUMBER(N9)=FALSE,ISNUMBER(P9)=FALSE,ISNUMBER(Q9)=FALSE,ISNUMBER(S9)=FALSE,ISNUMBER(T9)=FALSE,ISNUMBER(V9)=FALSE,ISNUMBER(W9)=FALSE,ISNUMBER(Y9)=FALSE,ISNUMBER(Z9)=FALSE,ISNUMBER(AB9)=FALSE,ISNUMBER(Z9)=FALSE,ISNUMBER(AC9)=FALSE,B9="Make a Selection",B12="Make a Selection",ISNUMBER(wsBP9)=FALSE,ISNUMBER(weBP9)=FALSE,ISNUMBER(wsfyBP9)=FALSE),0,D9*AD9/_xlfn.XLOOKUP(B12,rngecAT,rngecTerm,"N/A",0)*(1+G9)*(1+J9)*(1+M9)*(1+P9)*(1+S9)*(1+V9)*(1+Y9)*(1+AB9)*(1+AE9)) -> 0 | AF10: =IF(OR(ISNUMBER(D9)=FALSE,ISNUMBER(E9)=FALSE,ISNUMBER(G9)=FALSE,ISNUMBER(H9)=FALSE,ISNUMBER(J9)=FALSE,ISNUMBER(K9)=FALSE,ISNUMBER(M9)=FALSE,ISNUMBER(N9)=FALSE,ISNUMBER(P9)=FALSE,ISNUMBER(Q9)=FALSE,ISNUMBER(S9)=FALSE,ISNUMBER(T9)=FALSE,ISNUMBER(V9)=FALSE,ISNUMBER(W9)=FALSE,ISNUMBER(Y9)=FALSE,ISNUMBER(Z9)=FALSE,ISNUMBER(AB9)=FALSE,ISNUMBER(Z9)=FALSE,ISNUMBER(AC9)=FALSE,ISNUMBER(AF9)=FALSE,ISNUMBER(AH9)=FALSE,B9="Make a Selection",B12="Make a Selection",ISNUMBER(wsBP10)=FALSE,ISNUMBER(weBP10)=FALSE,ISNUMBER(wsfyBP10)=FALSE),0,D9*AG9/_xlfn.XLOOKUP(B12,rngecAT,rngecTerm,"N/A",0)*(1+G9)*(1+J9)*(1+M9)*(1+P9)*(1+S9)*(1+V9)*(1+Y9)*(1+AB9)*(1+AE9)*(1+AH9)) -> 0 | AI10: =SUM(E10:AH10) -> 0
A11: No | B11: Custom Fringe @ | C11: 0 | D11: Fringe | E11: =IF(OR(B9="Make a Selection",B12="Make a Selection",ISNUMBER(E10)=FALSE,ISNUMBER(C11)=FALSE,ISNUMBER(wsBP1)=FALSE,ISNUMBER(weBP1)=FALSE,ISNUMBER(wsfyBP1)=FALSE),0,IF(A11="Yes",E10*C11,IF(sFBRC=1,E10*_xlfn.XLOOKUP(bpFY1,rngFFRfy,(_xlfn.XLOOKUP(A10,rngFFRc,rngFFR,"N/A",0)),"N/A",0),E10*_xlfn.XLOOKUP(bpFY1,rngnFFRfy,(_xlfn.XLOOKUP(A10,rngnFFRc,rngnFFR,"N/A",0)),"N/A",0)))) -> 0 | H11: =IF(OR(B9="Make a Selection",B12="Make a Selection",ISNUMBER(H10)=FALSE,ISNUMBER(C11)=FALSE,ISNUMBER(wsBP2)=FALSE,ISNUMBER(weBP2)=FALSE,ISNUMBER(wsfyBP2)=FALSE),0,IF(A11="Yes",H10*C11,IF(sFBRC=1,H10*_xlfn.XLOOKUP(bpFY1,rngFFRfy,(_xlfn.XLOOKUP(A10,rngFFRc,rngFFR,"N/A",0)),"N/A",0),H10*_xlfn.XLOOKUP(bpFY1,rngnFFRfy,(_xlfn.XLOOKUP(A10,rngnFFRc,rngnFFR,"N/A",0)),"N/A",0)))) -> 0 | K11: =IF(OR(B9="Make a Selection",B12="Make a Selection",ISNUMBER(K10)=FALSE,ISNUMBER(C11)=FALSE,ISNUMBER(wsBP3)=FALSE,ISNUMBER(weBP3)=FALSE,ISNUMBER(wsfyBP3)=FALSE),0,IF(A11="Yes",K10*C11,IF(sFBRC=1,K10*_xlfn.XLOOKUP(bpFY3,rngFFRfy,(_xlfn.XLOOKUP(A10,rngFFRc,rngFFR,"N/A",0)),"N/A",0),K10*_xlfn.XLOOKUP(bpFY3,rngnFFRfy,(_xlfn.XLOOKUP(A10,rngnFFRc,rngnFFR,"N/A",0)),"N/A",0)))) -> 0 | N11: =IF(OR(B9="Make a Selection",B12="Make a Selection",ISNUMBER(N10)=FALSE,ISNUMBER(C11)=FALSE,ISNUMBER(wsBP4)=FALSE,ISNUMBER(weBP4)=FALSE,ISNUMBER(wsfyBP4)=FALSE),0,IF(A11="Yes",N10*C11,IF(sFBRC=1,N10*_xlfn.XLOOKUP(bpFY4,rngFFRfy,(_xlfn.XLOOKUP(A10,rngFFRc,rngFFR,"N/A",0)),"N/A",0),N10*_xlfn.XLOOKUP(bpFY4,rngnFFRfy,(_xlfn.XLOOKUP(A10,rngnFFRc,rngnFFR,"N/A",0)),"N/A",0)))) -> 0 | Q11: =IF(OR(B9="Make a Selection",B12="Make a Selection",ISNUMBER(Q10)=FALSE,ISNUMBER(C11)=FALSE,ISNUMBER(wsBP5)=FALSE,ISNUMBER(weBP5)=FALSE,ISNUMBER(wsfyBP5)=FALSE),0,IF(A11="Yes",Q10*C11,IF(sFBRC=1,Q10*_xlfn.XLOOKUP(bpFY5,rngFFRfy,(_xlfn.XLOOKUP(A10,rngFFRc,rngFFR,"N/A",0)),"N/A",0),Q10*_xlfn.XLOOKUP(bpFY5,rngnFFRfy,(_xlfn.XLOOKUP(A10,rngnFFRc,rngnFFR,"N/A",0)),"N/A",0)))) -> 0 | T11: =IF(OR(B9="Make a Selection",B12="Make a Selection",ISNUMBER(T10)=FALSE,ISNUMBER(C11)=FALSE,ISNUMBER(wsBP6)=FALSE,ISNUMBER(weBP6)=FALSE,ISNUMBER(wsfyBP6)=FALSE),0,IF(A11="Yes",T10*C11,IF(sFBRC=1,T10*_xlfn.XLOOKUP(bpFY6,rngFFRfy,(_xlfn.XLOOKUP(A10,rngFFRc,rngFFR,"N/A",0)),"N/A",0),T10*_xlfn.XLOOKUP(bpFY6,rngnFFRfy,(_xlfn.XLOOKUP(A10,rngnFFRc,rngnFFR,"N/A",0)),"N/A",0)))) -> 0 | W11: =IF(OR(B9="Make a Selection",B12="Make a Selection",ISNUMBER(W10)=FALSE,ISNUMBER(C11)=FALSE,ISNUMBER(wsBP7)=FALSE,ISNUMBER(weBP7)=FALSE,ISNUMBER(wsfyBP7)=FALSE),0,IF(A11="Yes",W10*C11,IF(sFBRC=1,W10*_xlfn.XLOOKUP(bpFY7,rngFFRfy,(_xlfn.XLOOKUP(A10,rngFFRc,rngFFR,"N/A",0)),"N/A",0),W10*_xlfn.XLOOKUP(bpFY7,rngnFFRfy,(_xlfn.XLOOKUP(A10,rngnFFRc,rngnFFR,"N/A",0)),"N/A",0)))) -> 0 | Z11: =IF(OR(B9="Make a Selection",B12="Make a Selection",ISNUMBER(Z10)=FALSE,ISNUMBER(C11)=FALSE,ISNUMBER(wsBP8)=FALSE,ISNUMBER(weBP8)=FALSE,ISNUMBER(wsfyBP8)=FALSE),0,IF(A11="Yes",Z10*C11,IF(sFBRC=1,Z10*_xlfn.XLOOKUP(bpFY8,rngFFRfy,(_xlfn.XLOOKUP(A10,rngFFRc,rngFFR,"N/A",0)),"N/A",0),Z10*_xlfn.XLOOKUP(bpFY8,rngnFFRfy,(_xlfn.XLOOKUP(A10,rngnFFRc,rngnFFR,"N/A",0)),"N/A",0)))) -> 0 | AC11: =IF(OR(B9="Make a Selection",B12="Make a Selection",ISNUMBER(AC10)=FALSE,ISNUMBER(C11)=FALSE,ISNUMBER(wsBP9)=FALSE,ISNUMBER(weBP9)=FALSE,ISNUMBER(wsfyBP9)=FALSE),0,IF(A11="Yes",AC10*C11,IF(sFBRC=1,AC10*_xlfn.XLOOKUP(bpFY9,rngFFRfy,(_xlfn.XLOOKUP(A10,rngFFRc,rngFFR,"N/A",0)),"N/A",0),AC10*_xlfn.XLOOKUP(bpFY9,rngnFFRfy,(_xlfn.XLOOKUP(A10,rngnFFRc,rngnFFR,"N/A",0)),"N/A",0)))) -> 0 | AF11: =IF(OR(B9="Make a Selection",B12="Make a Selection",ISNUMBER(AF10)=FALSE,ISNUMBER(C11)=FALSE,ISNUMBER(wsBP10)=FALSE,ISNUMBER(weBP10)=FALSE,ISNUMBER(wsfyBP10)=FALSE),0,IF(A11="Yes",AF10*C11,IF(sFBRC=1,AF10*_xlfn.XLOOKUP(bpFY10,rngFFRfy,(_xlfn.XLOOKUP(A10,rngFFRc,rngFFR,"N/A",0)),"N/A",0),AF10*_xlfn.XLOOKUP(bpFY10,rngnFFRfy,(_xlfn.XLOOKUP(A10,rngnFFRc,rngnFFR,"N/A",0)),"N/A",0)))) -> 0 | AI11: =SUM(E11:AH11) -> 0
B12: Make a Selection | D12: Subtotal | E12: =IF(OR(ISNUMBER(E10)=FALSE,ISNUMBER(E11)=FALSE),0,SUM(E10:G11)) -> 0 | H12: =IF(OR(ISNUMBER(H10)=FALSE,ISNUMBER(H11)=FALSE),0,SUM(H10:J11)) -> 0 | K12: =IF(OR(ISNUMBER(K10)=FALSE,ISNUMBER(K11)=FALSE),0,SUM(K10:M11)) -> 0 | N12: =IF(OR(ISNUMBER(N10)=FALSE,ISNUMBER(N11)=FALSE),0,SUM(N10:P11)) -> 0 | Q12: =IF(OR(ISNUMBER(Q10)=FALSE,ISNUMBER(Q11)=FALSE),0,SUM(Q10:S11)) -> 0 | T12: =IF(OR(ISNUMBER(T10)=FALSE,ISNUMBER(T11)=FALSE),0,SUM(T10:V11)) -> 0 | W12: =IF(OR(ISNUMBER(W10)=FALSE,ISNUMBER(W11)=FALSE),0,SUM(W10:Y11)) -> 0 | Z12: =IF(OR(ISNUMBER(Z10)=FALSE,ISNUMBER(Z11)=FALSE),0,SUM(Z10:AB11)) -> 0 | AC12: =IF(OR(ISNUMBER(AC10)=FALSE,ISNUMBER(AC11)=FALSE),0,SUM(AC10:AE11)) -> 0 | AF12: =IF(OR(ISNUMBER(AF10)=FALSE,ISNUMBER(AF11)=FALSE),0,SUM(AF10:AH11)) -> 0 | AI12: 0
A14: =_xlfn.XLOOKUP(B14,MTDC[Description],MTDC[VALUE],"N/A",0) -> 50010 | B14: S&W Staff | D14: =IF(AND(B14="Make a Selection",OR(sFABC=1,sFABC=2,sFABC=3)),"",IF(sFABC=2,"Included",IF(sFABC=3,"Custom F&A Amt",IF(_xlfn.XLOOKUP(B14,MTDC[Description],MTDC[Include in MTDC],"N/A",0)="MTDC","Included","Excluded")))) -> Included | E14: =IF(ISNUMBER(SUMPRODUCT(--ISNUMBER(rngCFA1)*(budA1BP1)*(budA1SF="Salary")*(rngCFA1=$A$14)))=TRUE,SUMPRODUCT(--ISNUMBER(rngCFA1)*(budA1BP1)*(budA1SF="Salary")*(rngCFA1=$A$14)),0) -> 0 | H14: =IF(ISNUMBER(SUMPRODUCT(--ISNUMBER(rngCFA1)*(budA1BP2)*(budA1SF="Salary")*(rngCFA1=$A$14)))=TRUE,SUMPRODUCT(--ISNUMBER(rngCFA1)*(budA1BP2)*(budA1SF="Salary")*(rngCFA1=$A$14)),0) -> 0 | K14: =IF(ISNUMBER(SUMPRODUCT(--ISNUMBER(rngCFA1)*(budA1BP3)*(budA1SF="Salary")*(rngCFA1=$A$14)))=TRUE,SUMPRODUCT(--ISNUMBER(rngCFA1)*(budA1BP3)*(budA1SF="Salary")*(rngCFA1=$A$14)),0) -> 0 | N14: =IF(ISNUMBER(SUMPRODUCT(--ISNUMBER(rngCFA1)*(budA1BP4)*(budA1SF="Salary")*(rngCFA1=$A$14)))=TRUE,SUMPRODUCT(--ISNUMBER(rngCFA1)*(budA1BP4)*(budA1SF="Salary")*(rngCFA1=$A$14)),0) -> 0 | Q14: =IF(ISNUMBER(SUMPRODUCT(--ISNUMBER(rngCFA1)*(budA1BP5)*(budA1SF="Salary")*(rngCFA1=$A$14)))=TRUE,SUMPRODUCT(--ISNUMBER(rngCFA1)*(budA1BP5)*(budA1SF="Salary")*(rngCFA1=$A$14)),0) -> 0 | T14: =IF(ISNUMBER(SUMPRODUCT(--ISNUMBER(rngCFA1)*(budA1BP6)*(budA1SF="Salary")*(rngCFA1=$A$14)))=TRUE,SUMPRODUCT(--ISNUMBER(rngCFA1)*(budA1BP6)*(budA1SF="Salary")*(rngCFA1=$A$14)),0) -> 0 | W14: =IF(ISNUMBER(SUMPRODUCT(--ISNUMBER(rngCFA1)*(budA1BP7)*(budA1SF="Salary")*(rngCFA1=$A$14)))=TRUE,SUMPRODUCT(--ISNUMBER(rngCFA1)*(budA1BP7)*(budA1SF="Salary")*(rngCFA1=$A$14)),0) -> 0 | Z14: =IF(ISNUMBER(SUMPRODUCT(--ISNUMBER(rngCFA1)*(budA1BP8)*(budA1SF="Salary")*(rngCFA1=$A$14)))=TRUE,SUMPRODUCT(--ISNUMBER(rngCFA1)*(budA1BP8)*(budA1SF="Salary")*(rngCFA1=$A$14)),0) -> 0 | AC14: =IF(ISNUMBER(SUMPRODUCT(--ISNUMBER(rngCFA1)*(budA1BP9)*(budA1SF="Salary")*(rngCFA1=$A$14)))=TRUE,SUMPRODUCT(--ISNUMBER(rngCFA1)*(budA1BP9)*(budA1SF="Salary")*(rngCFA1=$A$14)),0) -> 0 | AF14: =IF(ISNUMBER(SUMPRODUCT(--ISNUMBER(rngCFA1)*(budA1BP10)*(budA1SF="Salary")*(rngCFA1=$A$14)))=TRUE,SUMPRODUCT(--ISNUMBER(rngCFA1)*(budA1BP10)*(budA1SF="Salary")*(rngCFA1=$A$14)),0) -> 0 | AI14: =SUM(E14:AH14) -> 0
A15: =_xlfn.XLOOKUP(B15,MTDC[Description],MTDC[VALUE],"N/A",0) -> 50020 | B15: S&W Tenured Faculty | D15: =IF(AND(B15="Make a Selection",OR(sFABC=1,sFABC=2,sFABC=3)),"",IF(sFABC=2,"Included",IF(sFABC=3,"Custom F&A Amt",IF(_xlfn.XLOOKUP(B15,MTDC[Description],MTDC[Include in MTDC],"N/A",0)="MTDC","Included","Excluded")))) -> Included | E15: =IF(ISNUMBER(SUMPRODUCT(--ISNUMBER(rngCFA1)*(budA1BP1)*(budA1SF="Salary")*(rngCFA1=$A$15)))=TRUE,SUMPRODUCT(--ISNUMBER(rngCFA1)*(budA1BP1)*(budA1SF="Salary")*(rngCFA1=$A$15)),0) -> 0 | H15: =IF(ISNUMBER(SUMPRODUCT(--ISNUMBER(rngCFA1)*(budA1BP2)*(budA1SF="Salary")*(rngCFA1=$A$15)))=TRUE,SUMPRODUCT(--ISNUMBER(rngCFA1)*(budA1BP2)*(budA1SF="Salary")*(rngCFA1=$A$15)),0) -> 0 | K15: =IF(ISNUMBER(SUMPRODUCT(--ISNUMBER(rngCFA1)*(budA1BP3)*(budA1SF="Salary")*(rngCFA1=$A$15)))=TRUE,SUMPRODUCT(--ISNUMBER(rngCFA1)*(budA1BP3)*(budA1SF="Salary")*(rngCFA1=$A$15)),0) -> 0 | N15: =IF(ISNUMBER(SUMPRODUCT(--ISNUMBER(rngCFA1)*(budA1BP4)*(budA1SF="Salary")*(rngCFA1=$A$15)))=TRUE,SUMPRODUCT(--ISNUMBER(rngCFA1)*(budA1BP4)*(budA1SF="Salary")*(rngCFA1=$A$15)),0) -> 0 | Q15: =IF(ISNUMBER(SUMPRODUCT(--ISNUMBER(rngCFA1)*(budA1BP5)*(budA1SF="Salary")*(rngCFA1=$A$15)))=TRUE,SUMPRODUCT(--ISNUMBER(rngCFA1)*(budA1BP5)*(budA1SF="Salary")*(rngCFA1=$A$15)),0) -> 0 | T15: =IF(ISNUMBER(SUMPRODUCT(--ISNUMBER(rngCFA1)*(budA1BP6)*(budA1SF="Salary")*(rngCFA1=$A$15)))=TRUE,SUMPRODUCT(--ISNUMBER(rngCFA1)*(budA1BP6)*(budA1SF="Salary")*(rngCFA1=$A$15)),0) -> 0 | W15: =IF(ISNUMBER(SUMPRODUCT(--ISNUMBER(rngCFA1)*(budA1BP7)*(budA1SF="Salary")*(rngCFA1=$A$15)))=TRUE,SUMPRODUCT(--ISNUMBER(rngCFA1)*(budA1BP7)*(budA1SF="Salary")*(rngCFA1=$A$15)),0) -> 0 | Z15: =IF(ISNUMBER(SUMPRODUCT(--ISNUMBER(rngCFA1)*(budA1BP8)*(budA1SF="Salary")*(rngCFA1=$A$15)))=TRUE,SUMPRODUCT(--ISNUMBER(rngCFA1)*(budA1BP8)*(budA1SF="Salary")*(rngCFA1=$A$15)),0) -> 0 | AC15: =IF(ISNUMBER(SUMPRODUCT(--ISNUMBER(rngCFA1)*(budA1BP9)*(budA1SF="Salary")*(rngCFA1=$A$15)))=TRUE,SUMPRODUCT(--ISNUMBER(rngCFA1)*(budA1BP9)*(budA1SF="Salary")*(rngCFA1=$A$15)),0) -> 0 | AF15: =IF(ISNUMBER(SUMPRODUCT(--ISNUMBER(rngCFA1)*(budA1BP10)*(budA1SF="Salary")*(rngCFA1=$A$15)))=TRUE,SUMPRODUCT(--ISNUMBER(rngCFA1)*(budA1BP10)*(budA1SF="Salary")*(rngCFA1=$A$15)),0) -> 0 | AI15: =SUM(E15:AH15) -> 0
A16: =_xlfn.XLOOKUP(B16,MTDC[Description],MTDC[VALUE],"N/A",0) -> 50030 | B16: S&W Tenure Track Faculty | D16: =IF(AND(B16="Make a Selection",OR(sFABC=1,sFABC=2,sFABC=3)),"",IF(sFABC=2,"Included",IF(sFABC=3,"Custom F&A Amt",IF(_xlfn.XLOOKUP(B16,MTDC[Description],MTDC[Include in MTDC],"N/A",0)="MTDC","Included","Excluded")))) -> Included | E16: =IF(ISNUMBER(SUMPRODUCT(--ISNUMBER(rngCFA1)*(budA1BP1)*(budA1SF="Salary")*(rngCFA1=$A$16)))=TRUE,SUMPRODUCT(--ISNUMBER(rngCFA1)*(budA1BP1)*(budA1SF="Salary")*(rngCFA1=$A$16)),0) -> 0 | H16: =IF(ISNUMBER(SUMPRODUCT(--ISNUMBER(rngCFA1)*(budA1BP2)*(budA1SF="Salary")*(rngCFA1=$A$16)))=TRUE,SUMPRODUCT(--ISNUMBER(rngCFA1)*(budA1BP2)*(budA1SF="Salary")*(rngCFA1=$A$16)),0) -> 0 | K16: =IF(ISNUMBER(SUMPRODUCT(--ISNUMBER(rngCFA1)*(budA1BP3)*(budA1SF="Salary")*(rngCFA1=$A$16)))=TRUE,SUMPRODUCT(--ISNUMBER(rngCFA1)*(budA1BP3)*(budA1SF="Salary")*(rngCFA1=$A$16)),0) -> 0 | N16: =IF(ISNUMBER(SUMPRODUCT(--ISNUMBER(rngCFA1)*(budA1BP4)*(budA1SF="Salary")*(rngCFA1=$A$16)))=TRUE,SUMPRODUCT(--ISNUMBER(rngCFA1)*(budA1BP4)*(budA1SF="Salary")*(rngCFA1=$A$16)),0) -> 0 | Q16: =IF(ISNUMBER(SUMPRODUCT(--ISNUMBER(rngCFA1)*(budA1BP5)*(budA1SF="Salary")*(rngCFA1=$A$16)))=TRUE,SUMPRODUCT(--ISNUMBER(rngCFA1)*(budA1BP5)*(budA1SF="Salary")*(rngCFA1=$A$16)),0) -> 0 | T16: =IF(ISNUMBER(SUMPRODUCT(--ISNUMBER(rngCFA1)*(budA1BP6)*(budA1SF="Salary")*(rngCFA1=$A$16)))=TRUE,SUMPRODUCT(--ISNUMBER(rngCFA1)*(budA1BP6)*(budA1SF="Salary")*(rngCFA1=$A$16)),0) -> 0 | W16: =IF(ISNUMBER(SUMPRODUCT(--ISNUMBER(rngCFA1)*(budA1BP7)*(budA1SF="Salary")*(rngCFA1=$A$16)))=TRUE,SUMPRODUCT(--ISNUMBER(rngCFA1)*(budA1BP7)*(budA1SF="Salary")*(rngCFA1=$A$16)),0) -> 0 | Z16: =IF(ISNUMBER(SUMPRODUCT(--ISNUMBER(rngCFA1)*(budA1BP8)*(budA1SF="Salary")*(rngCFA1=$A$16)))=TRUE,SUMPRODUCT(--ISNUMBER(rngCFA1)*(budA1BP8)*(budA1SF="Salary")*(rngCFA1=$A$16)),0) -> 0 | AC16: =IF(ISNUMBER(SUMPRODUCT(--ISNUMBER(rngCFA1)*(budA1BP9)*(budA1SF="Salary")*(rngCFA1=$A$16)))=TRUE,SUMPRODUCT(--ISNUMBER(rngCFA1)*(budA1BP9)*(budA1SF="Salary")*(rngCFA1=$A$16)),0) -> 0 | AF16: =IF(ISNUMBER(SUMPRODUCT(--ISNUMBER(rngCFA1)*(budA1BP10)*(budA1SF="Salary")*(rngCFA1=$A$16)))=TRUE,SUMPRODUCT(--ISNUMBER(rngCFA1)*(budA1BP10)*(budA1SF="Salary")*(rngCFA1=$A$16)),0) -> 0 | AI16: 0
A17: =_xlfn.XLOOKUP(B17,MTDC[Description],MTDC[VALUE],"N/A",0) -> 50040 | B17: S&W NonTenured Faculty | D17: =IF(AND(B17="Make a Selection",OR(sFABC=1,sFABC=2,sFABC=3)),"",IF(sFABC=2,"Included",IF(sFABC=3,"Custom F&A Amt",IF(_xlfn.XLOOKUP(B17,MTDC[Description],MTDC[Include in MTDC],"N/A",0)="MTDC","Included","Excluded")))) -> Included | E17: =IF(ISNUMBER(SUMPRODUCT(--ISNUMBER(rngCFA1)*(budA1BP1)*(budA1SF="Salary")*(rngCFA1=$A$17)))=TRUE,SUMPRODUCT(--ISNUMBER(rngCFA1)*(budA1BP1)*(budA1SF="Salary")*(rngCFA1=$A$17)),0) -> 0 | H17: =IF(ISNUMBER(SUMPRODUCT(--ISNUMBER(rngCFA1)*(budA1BP2)*(budA1SF="Salary")*(rngCFA1=$A$17)))=TRUE,SUMPRODUCT(--ISNUMBER(rngCFA1)*(budA1BP2)*(budA1SF="Salary")*(rngCFA1=$A$17)),0) -> 0 | K17: =IF(ISNUMBER(SUMPRODUCT(--ISNUMBER(rngCFA1)*(budA1BP3)*(budA1SF="Salary")*(rngCFA1=$A$17)))=TRUE,SUMPRODUCT(--ISNUMBER(rngCFA1)*(budA1BP3)*(budA1SF="Salary")*(rngCFA1=$A$17)),0) -> 0 | N17: =IF(ISNUMBER(SUMPRODUCT(--ISNUMBER(rngCFA1)*(budA1BP4)*(budA1SF="Salary")*(rngCFA1=$A$17)))=TRUE,SUMPRODUCT(--ISNUMBER(rngCFA1)*(budA1BP4)*(budA1SF="Salary")*(rngCFA1=$A$17)),0) -> 0 | Q17: =IF(ISNUMBER(SUMPRODUCT(--ISNUMBER(rngCFA1)*(budA1BP5)*(budA1SF="Salary")*(rngCFA1=$A$17)))=TRUE,SUMPRODUCT(--ISNUMBER(rngCFA1)*(budA1BP5)*(budA1SF="Salary")*(rngCFA1=$A$17)),0) -> 0 | T17: =IF(ISNUMBER(SUMPRODUCT(--ISNUMBER(rngCFA1)*(budA1BP6)*(budA1SF="Salary")*(rngCFA1=$A$17)))=TRUE,SUMPRODUCT(--ISNUMBER(rngCFA1)*(budA1BP6)*(budA1SF="Salary")*(rngCFA1=$A$17)),0) -> 0 | W17: =IF(ISNUMBER(SUMPRODUCT(--ISNUMBER(rngCFA1)*(budA1BP7)*(budA1SF="Salary")*(rngCFA1=$A$17)))=TRUE,SUMPRODUCT(--ISNUMBER(rngCFA1)*(budA1BP7)*(budA1SF="Salary")*(rngCFA1=$A$17)),0) -> 0 | Z17: =IF(ISNUMBER(SUMPRODUCT(--ISNUMBER(rngCFA1)*(budA1BP8)*(budA1SF="Salary")*(rngCFA1=$A$17)))=TRUE,SUMPRODUCT(--ISNUMBER(rngCFA1)*(budA1BP8)*(budA1SF="Salary")*(rngCFA1=$A$17)),0) -> 0 | AC17: =IF(ISNUMBER(SUMPRODUCT(--ISNUMBER(rngCFA1)*(budA1BP9)*(budA1SF="Salary")*(rngCFA1=$A$17)))=TRUE,SUMPRODUCT(--ISNUMBER(rngCFA1)*(budA1BP9)*(budA1SF="Salary")*(rngCFA1=$A$17)),0) -> 0 | AF17: =IF(ISNUMBER(SUMPRODUCT(--ISNUMBER(rngCFA1)*(budA1BP10)*(budA1SF="Salary")*(rngCFA1=$A$17)))=TRUE,SUMPRODUCT(--ISNUMBER(rngCFA1)*(budA1BP10)*(budA1SF="Salary")*(rngCFA1=$A$17)),0) -> 0 | AI17: 0
A18: =_xlfn.XLOOKUP(B18,MTDC[Description],MTDC[VALUE],"N/A",0) -> 50050 | B18: S&W TA & GA | D18: =IF(AND(B18="Make a Selection",OR(sFABC=1,sFABC=2,sFABC=3)),"",IF(sFABC=2,"Included",IF(sFABC=3,"Custom F&A Amt",IF(_xlfn.XLOOKUP(B18,MTDC[Description],MTDC[Include in MTDC],"N/A",0)="MTDC","Included","Excluded")))) -> Included | E18: =IF(ISNUMBER(SUMPRODUCT(--ISNUMBER(rngCFA1)*(budA1BP1)*(budA1SF="Salary")*(rngCFA1=$A$18)))=TRUE,SUMPRODUCT(--ISNUMBER(rngCFA1)*(budA1BP1)*(budA1SF="Salary")*(rngCFA1=$A$18)),0) -> 0 | H18: =IF(ISNUMBER(SUMPRODUCT(--ISNUMBER(rngCFA1)*(budA1BP2)*(budA1SF="Salary")*(rngCFA1=$A$18)))=TRUE,SUMPRODUCT(--ISNUMBER(rngCFA1)*(budA1BP2)*(budA1SF="Salary")*(rngCFA1=$A$18)),0) -> 0 | K18: =IF(ISNUMBER(SUMPRODUCT(--ISNUMBER(rngCFA1)*(budA1BP3)*(budA1SF="Salary")*(rngCFA1=$A$18)))=TRUE,SUMPRODUCT(--ISNUMBER(rngCFA1)*(budA1BP3)*(budA1SF="Salary")*(rngCFA1=$A$18)),0) -> 0 | N18: =IF(ISNUMBER(SUMPRODUCT(--ISNUMBER(rngCFA1)*(budA1BP4)*(budA1SF="Salary")*(rngCFA1=$A$18)))=TRUE,SUMPRODUCT(--ISNUMBER(rngCFA1)*(budA1BP4)*(budA1SF="Salary")*(rngCFA1=$A$18)),0) -> 0 | Q18: =IF(ISNUMBER(SUMPRODUCT(--ISNUMBER(rngCFA1)*(budA1BP5)*(budA1SF="Salary")*(rngCFA1=$A$18)))=TRUE,SUMPRODUCT(--ISNUMBER(rngCFA1)*(budA1BP5)*(budA1SF="Salary")*(rngCFA1=$A$18)),0) -> 0 | T18: =IF(ISNUMBER(SUMPRODUCT(--ISNUMBER(rngCFA1)*(budA1BP6)*(budA1SF="Salary")*(rngCFA1=$A$18)))=TRUE,SUMPRODUCT(--ISNUMBER(rngCFA1)*(budA1BP6)*(budA1SF="Salary")*(rngCFA1=$A$18)),0) -> 0 | W18: =IF(ISNUMBER(SUMPRODUCT(--ISNUMBER(rngCFA1)*(budA1BP7)*(budA1SF="Salary")*(rngCFA1=$A$18)))=TRUE,SUMPRODUCT(--ISNUMBER(rngCFA1)*(budA1BP7)*(budA1SF="Salary")*(rngCFA1=$A$18)),0) -> 0 | Z18: =IF(ISNUMBER(SUMPRODUCT(--ISNUMBER(rngCFA1)*(budA1BP8)*(budA1SF="Salary")*(rngCFA1=$A$18)))=TRUE,SUMPRODUCT(--ISNUMBER(rngCFA1)*(budA1BP8)*(budA1SF="Salary")*(rngCFA1=$A$18)),0) -> 0 | AC18: =IF(ISNUMBER(SUMPRODUCT(--ISNUMBER(rngCFA1)*(budA1BP9)*(budA1SF="Salary")*(rngCFA1=$A$18)))=TRUE,SUMPRODUCT(--ISNUMBER(rngCFA1)*(budA1BP9)*(budA1SF="Salary")*(rngCFA1=$A$18)),0) -> 0 | AF18: =IF(ISNUMBER(SUMPRODUCT(--ISNUMBER(rngCFA1)*(budA1BP10)*(budA1SF="Salary")*(rngCFA1=$A$18)))=TRUE,SUMPRODUCT(--ISNUMBER(rngCFA1)*(budA1BP10)*(budA1SF="Salary")*(rngCFA1=$A$18)),0) -> 0 | AI18: 0
A19: =_xlfn.XLOOKUP(B19,MTDC[Description],MTDC[VALUE],"N/A",0) -> 50060 | B19: S&W Post Doctorate & Associates | D19: =IF(AND(B19="Make a Selection",OR(sFABC=1,sFABC=2,sFABC=3)),"",IF(sFABC=2,"Included",IF(sFABC=3,"Custom F&A Amt",IF(_xlfn.XLOOKUP(B19,MTDC[Description],MTDC[Include in MTDC],"N/A",0)="MTDC","Included","Excluded")))) -> Included | E19: =IF(ISNUMBER(SUMPRODUCT(--ISNUMBER(rngCFA1)*(budA1BP1)*(budA1SF="Salary")*(rngCFA1=$A$19)))=TRUE,SUMPRODUCT(--ISNUMBER(rngCFA1)*(budA1BP1)*(budA1SF="Salary")*(rngCFA1=$A$19)),0) -> 0 | H19: =IF(ISNUMBER(SUMPRODUCT(--ISNUMBER(rngCFA1)*(budA1BP2)*(budA1SF="Salary")*(rngCFA1=$A$19)))=TRUE,SUMPRODUCT(--ISNUMBER(rngCFA1)*(budA1BP2)*(budA1SF="Salary")*(rngCFA1=$A$19)),0) -> 0 | K19: =IF(ISNUMBER(SUMPRODUCT(--ISNUMBER(rngCFA1)*(budA1BP3)*(budA1SF="Salary")*(rngCFA1=$A$19)))=TRUE,SUMPRODUCT(--ISNUMBER(rngCFA1)*(budA1BP3)*(budA1SF="Salary")*(rngCFA1=$A$19)),0) -> 0 | N19: =IF(ISNUMBER(SUMPRODUCT(--ISNUMBER(rngCFA1)*(budA1BP4)*(budA1SF="Salary")*(rngCFA1=$A$19)))=TRUE,SUMPRODUCT(--ISNUMBER(rngCFA1)*(budA1BP4)*(budA1SF="Salary")*(rngCFA1=$A$19)),0) -> 0 | Q19: =IF(ISNUMBER(SUMPRODUCT(--ISNUMBER(rngCFA1)*(budA1BP5)*(budA1SF="Salary")*(rngCFA1=$A$19)))=TRUE,SUMPRODUCT(--ISNUMBER(rngCFA1)*(budA1BP5)*(budA1SF="Salary")*(rngCFA1=$A$19)),0) -> 0 | T19: =IF(ISNUMBER(SUMPRODUCT(--ISNUMBER(rngCFA1)*(budA1BP6)*(budA1SF="Salary")*(rngCFA1=$A$19)))=TRUE,SUMPRODUCT(--ISNUMBER(rngCFA1)*(budA1BP6)*(budA1SF="Salary")*(rngCFA1=$A$19)),0) -> 0 | W19: =IF(ISNUMBER(SUMPRODUCT(--ISNUMBER(rngCFA1)*(budA1BP7)*(budA1SF="Salary")*(rngCFA1=$A$19)))=TRUE,SUMPRODUCT(--ISNUMBER(rngCFA1)*(budA1BP7)*(budA1SF="Salary")*(rngCFA1=$A$19)),0) -> 0 | Z19: =IF(ISNUMBER(SUMPRODUCT(--ISNUMBER(rngCFA1)*(budA1BP8)*(budA1SF="Salary")*(rngCFA1=$A$19)))=TRUE,SUMPRODUCT(--ISNUMBER(rngCFA1)*(budA1BP8)*(budA1SF="Salary")*(rngCFA1=$A$19)),0) -> 0 | AC19: =IF(ISNUMBER(SUMPRODUCT(--ISNUMBER(rngCFA1)*(budA1BP9)*(budA1SF="Salary")*(rngCFA1=$A$19)))=TRUE,SUMPRODUCT(--ISNUMBER(rngCFA1)*(budA1BP9)*(budA1SF="Salary")*(rngCFA1=$A$19)),0) -> 0 | AF19: =IF(ISNUMBER(SUMPRODUCT(--ISNUMBER(rngCFA1)*(budA1BP10)*(budA1SF="Salary")*(rngCFA1=$A$19)))=TRUE,SUMPRODUCT(--ISNUMBER(rngCFA1)*(budA1BP10)*(budA1SF="Salary")*(rngCFA1=$A$19)),0) -> 0 | AI19: 0
A20: =_xlfn.XLOOKUP(B20,MTDC[Description],MTDC[VALUE],"N/A",0) -> 50070 | B20: S&W Housestaff | D20: =IF(AND(B20="Make a Selection",OR(sFABC=1,sFABC=2,sFABC=3)),"",IF(sFABC=2,"Included",IF(sFABC=3,"Custom F&A Amt",IF(_xlfn.XLOOKUP(B20,MTDC[Description],MTDC[Include in MTDC],"N/A",0)="MTDC","Included","Excluded")))) -> Included | E20: =IF(ISNUMBER(SUMPRODUCT(--ISNUMBER(rngCFA1)*(budA1BP1)*(budA1SF="Salary")*(rngCFA1=$A$20)))=TRUE,SUMPRODUCT(--ISNUMBER(rngCFA1)*(budA1BP1)*(budA1SF="Salary")*(rngCFA1=$A$20)),0) -> 0 | H20: =IF(ISNUMBER(SUMPRODUCT(--ISNUMBER(rngCFA1)*(budA1BP2)*(budA1SF="Salary")*(rngCFA1=$A$20)))=TRUE,SUMPRODUCT(--ISNUMBER(rngCFA1)*(budA1BP2)*(budA1SF="Salary")*(rngCFA1=$A$20)),0) -> 0 | K20: =IF(ISNUMBER(SUMPRODUCT(--ISNUMBER(rngCFA1)*(budA1BP3)*(budA1SF="Salary")*(rngCFA1=$A$20)))=TRUE,SUMPRODUCT(--ISNUMBER(rngCFA1)*(budA1BP3)*(budA1SF="Salary")*(rngCFA1=$A$20)),0) -> 0 | N20: =IF(ISNUMBER(SUMPRODUCT(--ISNUMBER(rngCFA1)*(budA1BP4)*(budA1SF="Salary")*(rngCFA1=$A$20)))=TRUE,SUMPRODUCT(--ISNUMBER(rngCFA1)*(budA1BP4)*(budA1SF="Salary")*(rngCFA1=$A$20)),0) -> 0 | Q20: =IF(ISNUMBER(SUMPRODUCT(--ISNUMBER(rngCFA1)*(budA1BP5)*(budA1SF="Salary")*(rngCFA1=$A$20)))=TRUE,SUMPRODUCT(--ISNUMBER(rngCFA1)*(budA1BP5)*(budA1SF="Salary")*(rngCFA1=$A$20)),0) -> 0 | T20: =IF(ISNUMBER(SUMPRODUCT(--ISNUMBER(rngCFA1)*(budA1BP6)*(budA1SF="Salary")*(rngCFA1=$A$20)))=TRUE,SUMPRODUCT(--ISNUMBER(rngCFA1)*(budA1BP6)*(budA1SF="Salary")*(rngCFA1=$A$20)),0) -> 0 | W20: =IF(ISNUMBER(SUMPRODUCT(--ISNUMBER(rngCFA1)*(budA1BP7)*(budA1SF="Salary")*(rngCFA1=$A$20)))=TRUE,SUMPRODUCT(--ISNUMBER(rngCFA1)*(budA1BP7)*(budA1SF="Salary")*(rngCFA1=$A$20)),0) -> 0 | Z20: =IF(ISNUMBER(SUMPRODUCT(--ISNUMBER(rngCFA1)*(budA1BP8)*(budA1SF="Salary")*(rngCFA1=$A$20)))=TRUE,SUMPRODUCT(--ISNUMBER(rngCFA1)*(budA1BP8)*(budA1SF="Salary")*(rngCFA1=$A$20)),0) -> 0 | AC20: =IF(ISNUMBER(SUMPRODUCT(--ISNUMBER(rngCFA1)*(budA1BP9)*(budA1SF="Salary")*(rngCFA1=$A$20)))=TRUE,SUMPRODUCT(--ISNUMBER(rngCFA1)*(budA1BP9)*(budA1SF="Salary")*(rngCFA1=$A$20)),0) -> 0 | AF20: =IF(ISNUMBER(SUMPRODUCT(--ISNUMBER(rngCFA1)*(budA1BP10)*(budA1SF="Salary")*(rngCFA1=$A$20)))=TRUE,SUMPRODUCT(--ISNUMBER(rngCFA1)*(budA1BP10)*(budA1SF="Salary")*(rngCFA1=$A$20)),0) -> 0 | AI20: 0
A21: =_xlfn.XLOOKUP(B21,MTDC[Description],MTDC[VALUE],"N/A",0) -> 50080 | B21: S&W Coadjutant NonInstructional | D21: =IF(AND(B21="Make a Selection",OR(sFABC=1,sFABC=2,sFABC=3)),"",IF(sFABC=2,"Included",IF(sFABC=3,"Custom F&A Amt",IF(_xlfn.XLOOKUP(B21,MTDC[Description],MTDC[Include in MTDC],"N/A",0)="MTDC","Included","Excluded")))) -> Included | E21: =IF(ISNUMBER(SUMPRODUCT(--ISNUMBER(rngCFA1)*(budA1BP1)*(budA1SF="Salary")*(rngCFA1=$A$21)))=TRUE,SUMPRODUCT(--ISNUMBER(rngCFA1)*(budA1BP1)*(budA1SF="Salary")*(rngCFA1=$A$21)),0) -> 0 | H21: =IF(ISNUMBER(SUMPRODUCT(--ISNUMBER(rngCFA1)*(budA1BP2)*(budA1SF="Salary")*(rngCFA1=$A$21)))=TRUE,SUMPRODUCT(--ISNUMBER(rngCFA1)*(budA1BP2)*(budA1SF="Salary")*(rngCFA1=$A$21)),0) -> 0 | K21: =IF(ISNUMBER(SUMPRODUCT(--ISNUMBER(rngCFA1)*(budA1BP3)*(budA1SF="Salary")*(rngCFA1=$A$21)))=TRUE,SUMPRODUCT(--ISNUMBER(rngCFA1)*(budA1BP3)*(budA1SF="Salary")*(rngCFA1=$A$21)),0) -> 0 | N21: =IF(ISNUMBER(SUMPRODUCT(--ISNUMBER(rngCFA1)*(budA1BP4)*(budA1SF="Salary")*(rngCFA1=$A$21)))=TRUE,SUMPRODUCT(--ISNUMBER(rngCFA1)*(budA1BP4)*(budA1SF="Salary")*(rngCFA1=$A$21)),0) -> 0 | Q21: =IF(ISNUMBER(SUMPRODUCT(--ISNUMBER(rngCFA1)*(budA1BP5)*(budA1SF="Salary")*(rngCFA1=$A$21)))=TRUE,SUMPRODUCT(--ISNUMBER(rngCFA1)*(budA1BP5)*(budA1SF="Salary")*(rngCFA1=$A$21)),0) -> 0 | T21: =IF(ISNUMBER(SUMPRODUCT(--ISNUMBER(rngCFA1)*(budA1BP6)*(budA1SF="Salary")*(rngCFA1=$A$21)))=TRUE,SUMPRODUCT(--ISNUMBER(rngCFA1)*(budA1BP6)*(budA1SF="Salary")*(rngCFA1=$A$21)),0) -> 0 | W21: =IF(ISNUMBER(SUMPRODUCT(--ISNUMBER(rngCFA1)*(budA1BP7)*(budA1SF="Salary")*(rngCFA1=$A$21)))=TRUE,SUMPRODUCT(--ISNUMBER(rngCFA1)*(budA1BP7)*(budA1SF="Salary")*(rngCFA1=$A$21)),0) -> 0 | Z21: =IF(ISNUMBER(SUMPRODUCT(--ISNUMBER(rngCFA1)*(budA1BP8)*(budA1SF="Salary")*(rngCFA1=$A$21)))=TRUE,SUMPRODUCT(--ISNUMBER(rngCFA1)*(budA1BP8)*(budA1SF="Salary")*(rngCFA1=$A$21)),0) -> 0 | AC21: =IF(ISNUMBER(SUMPRODUCT(--ISNUMBER(rngCFA1)*(budA1BP9)*(budA1SF="Salary")*(rngCFA1=$A$21)))=TRUE,SUMPRODUCT(--ISNUMBER(rngCFA1)*(budA1BP9)*(budA1SF="Salary")*(rngCFA1=$A$21)),0) -> 0 | AF21: =IF(ISNUMBER(SUMPRODUCT(--ISNUMBER(rngCFA1)*(budA1BP10)*(budA1SF="Salary")*(rngCFA1=$A$21)))=TRUE,SUMPRODUCT(--ISNUMBER(rngCFA1)*(budA1BP10)*(budA1SF="Salary")*(rngCFA1=$A$21)),0) -> 0 | AI21: =SUM(E21:AH21) -> 0
A22: =_xlfn.XLOOKUP(B22,MTDC[Description],MTDC[VALUE],"N/A",0) -> 50081 | B22: S&W Coadjutant PTL Instructional | D22: =IF(AND(B22="Make a Selection",OR(sFABC=1,sFABC=2,sFABC=3)),"",IF(sFABC=2,"Included",IF(sFABC=3,"Custom F&A Amt",IF(_xlfn.XLOOKUP(B22,MTDC[Description],MTDC[Include in MTDC],"N/A",0)="MTDC","Included","Excluded")))) -> Included | E22: =IF(ISNUMBER(SUMPRODUCT(--ISNUMBER(rngCFA1)*(budA1BP1)*(budA1SF="Salary")*(rngCFA1=$A$22)))=TRUE,SUMPRODUCT(--ISNUMBER(rngCFA1)*(budA1BP1)*(budA1SF="Salary")*(rngCFA1=$A$22)),0) -> 0 | H22: =IF(ISNUMBER(SUMPRODUCT(--ISNUMBER(rngCFA1)*(budA1BP2)*(budA1SF="Salary")*(rngCFA1=$A$22)))=TRUE,SUMPRODUCT(--ISNUMBER(rngCFA1)*(budA1BP2)*(budA1SF="Salary")*(rngCFA1=$A$22)),0) -> 0 | K22: =IF(ISNUMBER(SUMPRODUCT(--ISNUMBER(rngCFA1)*(budA1BP3)*(budA1SF="Salary")*(rngCFA1=$A$22)))=TRUE,SUMPRODUCT(--ISNUMBER(rngCFA1)*(budA1BP3)*(budA1SF="Salary")*(rngCFA1=$A$22)),0) -> 0 | N22: =IF(ISNUMBER(SUMPRODUCT(--ISNUMBER(rngCFA1)*(budA1BP4)*(budA1SF="Salary")*(rngCFA1=$A$22)))=TRUE,SUMPRODUCT(--ISNUMBER(rngCFA1)*(budA1BP4)*(budA1SF="Salary")*(rngCFA1=$A$22)),0) -> 0 | Q22: =IF(ISNUMBER(SUMPRODUCT(--ISNUMBER(rngCFA1)*(budA1BP5)*(budA1SF="Salary")*(rngCFA1=$A$22)))=TRUE,SUMPRODUCT(--ISNUMBER(rngCFA1)*(budA1BP5)*(budA1SF="Salary")*(rngCFA1=$A$22)),0) -> 0 | T22: =IF(ISNUMBER(SUMPRODUCT(--ISNUMBER(rngCFA1)*(budA1BP6)*(budA1SF="Salary")*(rngCFA1=$A$22)))=TRUE,SUMPRODUCT(--ISNUMBER(rngCFA1)*(budA1BP6)*(budA1SF="Salary")*(rngCFA1=$A$22)),0) -> 0 | W22: =IF(ISNUMBER(SUMPRODUCT(--ISNUMBER(rngCFA1)*(budA1BP7)*(budA1SF="Salary")*(rngCFA1=$A$22)))=TRUE,SUMPRODUCT(--ISNUMBER(rngCFA1)*(budA1BP7)*(budA1SF="Salary")*(rngCFA1=$A$22)),0) -> 0 | Z22: =IF(ISNUMBER(SUMPRODUCT(--ISNUMBER(rngCFA1)*(budA1BP8)*(budA1SF="Salary")*(rngCFA1=$A$22)))=TRUE,SUMPRODUCT(--ISNUMBER(rngCFA1)*(budA1BP8)*(budA1SF="Salary")*(rngCFA1=$A$22)),0) -> 0 | AC22: =IF(ISNUMBER(SUMPRODUCT(--ISNUMBER(rngCFA1)*(budA1BP9)*(budA1SF="Salary")*(rngCFA1=$A$22)))=TRUE,SUMPRODUCT(--ISNUMBER(rngCFA1)*(budA1BP9)*(budA1SF="Salary")*(rngCFA1=$A$22)),0) -> 0 | AF22: =IF(ISNUMBER(SUMPRODUCT(--ISNUMBER(rngCFA1)*(budA1BP10)*(budA1SF="Salary")*(rngCFA1=$A$22)))=TRUE,SUMPRODUCT(--ISNUMBER(rngCFA1)*(budA1BP10)*(budA1SF="Salary")*(rngCFA1=$A$22)),0) -> 0 | AI22: 0
A23: =_xlfn.XLOOKUP(B23,MTDC[Description],MTDC[VALUE],"N/A",0) -> 50090 | B23: S&W Student Employment | D23: =IF(AND(B23="Make a Selection",OR(sFABC=1,sFABC=2,sFABC=3)),"",IF(sFABC=2,"Included",IF(sFABC=3,"Custom F&A Amt",IF(_xlfn.XLOOKUP(B23,MTDC[Description],MTDC[Include in MTDC],"N/A",0)="MTDC","Included","Excluded")))) -> Included | E23: =IF(ISNUMBER(SUMPRODUCT(--ISNUMBER(rngCFA1)*(budA1BP1)*(budA1SF="Salary")*(rngCFA1=$A$23)))=TRUE,SUMPRODUCT(--ISNUMBER(rngCFA1)*(budA1BP1)*(budA1SF="Salary")*(rngCFA1=$A$23)),0) -> 0 | H23: =IF(ISNUMBER(SUMPRODUCT(--ISNUMBER(rngCFA1)*(budA1BP2)*(budA1SF="Salary")*(rngCFA1=$A$23)))=TRUE,SUMPRODUCT(--ISNUMBER(rngCFA1)*(budA1BP2)*(budA1SF="Salary")*(rngCFA1=$A$23)),0) -> 0 | K23: =IF(ISNUMBER(SUMPRODUCT(--ISNUMBER(rngCFA1)*(budA1BP3)*(budA1SF="Salary")*(rngCFA1=$A$23)))=TRUE,SUMPRODUCT(--ISNUMBER(rngCFA1)*(budA1BP3)*(budA1SF="Salary")*(rngCFA1=$A$23)),0) -> 0 | N23: =IF(ISNUMBER(SUMPRODUCT(--ISNUMBER(rngCFA1)*(budA1BP4)*(budA1SF="Salary")*(rngCFA1=$A$23)))=TRUE,SUMPRODUCT(--ISNUMBER(rngCFA1)*(budA1BP4)*(budA1SF="Salary")*(rngCFA1=$A$23)),0) -> 0 | Q23: =IF(ISNUMBER(SUMPRODUCT(--ISNUMBER(rngCFA1)*(budA1BP5)*(budA1SF="Salary")*(rngCFA1=$A$23)))=TRUE,SUMPRODUCT(--ISNUMBER(rngCFA1)*(budA1BP5)*(budA1SF="Salary")*(rngCFA1=$A$23)),0) -> 0 | T23: =IF(ISNUMBER(SUMPRODUCT(--ISNUMBER(rngCFA1)*(budA1BP6)*(budA1SF="Salary")*(rngCFA1=$A$23)))=TRUE,SUMPRODUCT(--ISNUMBER(rngCFA1)*(budA1BP6)*(budA1SF="Salary")*(rngCFA1=$A$23)),0) -> 0 | W23: =IF(ISNUMBER(SUMPRODUCT(--ISNUMBER(rngCFA1)*(budA1BP7)*(budA1SF="Salary")*(rngCFA1=$A$23)))=TRUE,SUMPRODUCT(--ISNUMBER(rngCFA1)*(budA1BP7)*(budA1SF="Salary")*(rngCFA1=$A$23)),0) -> 0 | Z23: =IF(ISNUMBER(SUMPRODUCT(--ISNUMBER(rngCFA1)*(budA1BP8)*(budA1SF="Salary")*(rngCFA1=$A$23)))=TRUE,SUMPRODUCT(--ISNUMBER(rngCFA1)*(budA1BP8)*(budA1SF="Salary")*(rngCFA1=$A$23)),0) -> 0 | AC23: =IF(ISNUMBER(SUMPRODUCT(--ISNUMBER(rngCFA1)*(budA1BP9)*(budA1SF="Salary")*(rngCFA1=$A$23)))=TRUE,SUMPRODUCT(--ISNUMBER(rngCFA1)*(budA1BP9)*(budA1SF="Salary")*(rngCFA1=$A$23)),0) -> 0 | AF23: =IF(ISNUMBER(SUMPRODUCT(--ISNUMBER(rngCFA1)*(budA1BP10)*(budA1SF="Salary")*(rngCFA1=$A$23)))=TRUE,SUMPRODUCT(--ISNUMBER(rngCFA1)*(budA1BP10)*(budA1SF="Salary")*(rngCFA1=$A$23)),0) -> 0 | AI23: 0
A24: =_xlfn.XLOOKUP(B24,MTDC[Description],MTDC[VALUE],"N/A",0) -> 50100 | B24: S&W Contracted | D24: =IF(AND(B24="Make a Selection",OR(sFABC=1,sFABC=2,sFABC=3)),"",IF(sFABC=2,"Included",IF(sFABC=3,"Custom F&A Amt",IF(_xlfn.XLOOKUP(B24,MTDC[Description],MTDC[Include in MTDC],"N/A",0)="MTDC","Included","Excluded")))) -> Included | E24: =IF(ISNUMBER(SUMPRODUCT(--ISNUMBER(rngCFA1)*(budA1BP1)*(budA1SF="Salary")*(rngCFA1=$A$24)))=TRUE,SUMPRODUCT(--ISNUMBER(rngCFA1)*(budA1BP1)*(budA1SF="Salary")*(rngCFA1=$A$24)),0) -> 0 | H24: =IF(ISNUMBER(SUMPRODUCT(--ISNUMBER(rngCFA1)*(budA1BP2)*(budA1SF="Salary")*(rngCFA1=$A$24)))=TRUE,SUMPRODUCT(--ISNUMBER(rngCFA1)*(budA1BP2)*(budA1SF="Salary")*(rngCFA1=$A$24)),0) -> 0 | K24: =IF(ISNUMBER(SUMPRODUCT(--ISNUMBER(rngCFA1)*(budA1BP3)*(budA1SF="Salary")*(rngCFA1=$A$24)))=TRUE,SUMPRODUCT(--ISNUMBER(rngCFA1)*(budA1BP3)*(budA1SF="Salary")*(rngCFA1=$A$24)),0) -> 0 | N24: =IF(ISNUMBER(SUMPRODUCT(--ISNUMBER(rngCFA1)*(budA1BP4)*(budA1SF="Salary")*(rngCFA1=$A$24)))=TRUE,SUMPRODUCT(--ISNUMBER(rngCFA1)*(budA1BP4)*(budA1SF="Salary")*(rngCFA1=$A$24)),0) -> 0 | Q24: =IF(ISNUMBER(SUMPRODUCT(--ISNUMBER(rngCFA1)*(budA1BP5)*(budA1SF="Salary")*(rngCFA1=$A$24)))=TRUE,SUMPRODUCT(--ISNUMBER(rngCFA1)*(budA1BP5)*(budA1SF="Salary")*(rngCFA1=$A$24)),0) -> 0 | T24: =IF(ISNUMBER(SUMPRODUCT(--ISNUMBER(rngCFA1)*(budA1BP6)*(budA1SF="Salary")*(rngCFA1=$A$24)))=TRUE,SUMPRODUCT(--ISNUMBER(rngCFA1)*(budA1BP6)*(budA1SF="Salary")*(rngCFA1=$A$24)),0) -> 0 | W24: =IF(ISNUMBER(SUMPRODUCT(--ISNUMBER(rngCFA1)*(budA1BP7)*(budA1SF="Salary")*(rngCFA1=$A$24)))=TRUE,SUMPRODUCT(--ISNUMBER(rngCFA1)*(budA1BP7)*(budA1SF="Salary")*(rngCFA1=$A$24)),0) -> 0 | Z24: =IF(ISNUMBER(SUMPRODUCT(--ISNUMBER(rngCFA1)*(budA1BP8)*(budA1SF="Salary")*(rngCFA1=$A$24)))=TRUE,SUMPRODUCT(--ISNUMBER(rngCFA1)*(budA1BP8)*(budA1SF="Salary")*(rngCFA1=$A$24)),0) -> 0 | AC24: =IF(ISNUMBER(SUMPRODUCT(--ISNUMBER(rngCFA1)*(budA1BP9)*(budA1SF="Salary")*(rngCFA1=$A$24)))=TRUE,SUMPRODUCT(--ISNUMBER(rngCFA1)*(budA1BP9)*(budA1SF="Salary")*(rngCFA1=$A$24)),0) -> 0 | AF24: =IF(ISNUMBER(SUMPRODUCT(--ISNUMBER(rngCFA1)*(budA1BP10)*(budA1SF="Salary")*(rngCFA1=$A$24)))=TRUE,SUMPRODUCT(--ISNUMBER(rngCFA1)*(budA1BP10)*(budA1SF="Salary")*(rngCFA1=$A$24)),0) -> 0 | AI24: 0
A25: =_xlfn.XLOOKUP(B25,MTDC[Description],MTDC[VALUE],"N/A",0) -> 50110 | B25: Student Aid Student Researcher Stipend | D25: =IF(AND(B25="Make a Selection",OR(sFABC=1,sFABC=2,sFABC=3)),"",IF(sFABC=2,"Included",IF(sFABC=3,"Custom F&A Amt",IF(_xlfn.XLOOKUP(B25,MTDC[Description],MTDC[Include in MTDC],"N/A",0)="MTDC","Included","Excluded")))) -> Included | E25: =IF(ISNUMBER(SUMPRODUCT(--ISNUMBER(rngCFA1)*(budA1BP1)*(budA1SF="Salary")*(rngCFA1=$A$25)))=TRUE,SUMPRODUCT(--ISNUMBER(rngCFA1)*(budA1BP1)*(budA1SF="Salary")*(rngCFA1=$A$25)),0) -> 0 | H25: =IF(ISNUMBER(SUMPRODUCT(--ISNUMBER(rngCFA1)*(budA1BP2)*(budA1SF="Salary")*(rngCFA1=$A$25)))=TRUE,SUMPRODUCT(--ISNUMBER(rngCFA1)*(budA1BP2)*(budA1SF="Salary")*(rngCFA1=$A$25)),0) -> 0 | K25: =IF(ISNUMBER(SUMPRODUCT(--ISNUMBER(rngCFA1)*(budA1BP3)*(budA1SF="Salary")*(rngCFA1=$A$25)))=TRUE,SUMPRODUCT(--ISNUMBER(rngCFA1)*(budA1BP3)*(budA1SF="Salary")*(rngCFA1=$A$25)),0) -> 0 | N25: =IF(ISNUMBER(SUMPRODUCT(--ISNUMBER(rngCFA1)*(budA1BP4)*(budA1SF="Salary")*(rngCFA1=$A$25)))=TRUE,SUMPRODUCT(--ISNUMBER(rngCFA1)*(budA1BP4)*(budA1SF="Salary")*(rngCFA1=$A$25)),0) -> 0 | Q25: =IF(ISNUMBER(SUMPRODUCT(--ISNUMBER(rngCFA1)*(budA1BP5)*(budA1SF="Salary")*(rngCFA1=$A$25)))=TRUE,SUMPRODUCT(--ISNUMBER(rngCFA1)*(budA1BP5)*(budA1SF="Salary")*(rngCFA1=$A$25)),0) -> 0 | T25: =IF(ISNUMBER(SUMPRODUCT(--ISNUMBER(rngCFA1)*(budA1BP6)*(budA1SF="Salary")*(rngCFA1=$A$25)))=TRUE,SUMPRODUCT(--ISNUMBER(rngCFA1)*(budA1BP6)*(budA1SF="Salary")*(rngCFA1=$A$25)),0) -> 0 | W25: =IF(ISNUMBER(SUMPRODUCT(--ISNUMBER(rngCFA1)*(budA1BP7)*(budA1SF="Salary")*(rngCFA1=$A$25)))=TRUE,SUMPRODUCT(--ISNUMBER(rngCFA1)*(budA1BP7)*(budA1SF="Salary")*(rngCFA1=$A$25)),0) -> 0 | Z25: =IF(ISNUMBER(SUMPRODUCT(--ISNUMBER(rngCFA1)*(budA1BP8)*(budA1SF="Salary")*(rngCFA1=$A$25)))=TRUE,SUMPRODUCT(--ISNUMBER(rngCFA1)*(budA1BP8)*(budA1SF="Salary")*(rngCFA1=$A$25)),0) -> 0 | AC25: =IF(ISNUMBER(SUMPRODUCT(--ISNUMBER(rngCFA1)*(budA1BP9)*(budA1SF="Salary")*(rngCFA1=$A$25)))=TRUE,SUMPRODUCT(--ISNUMBER(rngCFA1)*(budA1BP9)*(budA1SF="Salary")*(rngCFA1=$A$25)),0) -> 0 | AF25: =IF(ISNUMBER(SUMPRODUCT(--ISNUMBER(rngCFA1)*(budA1BP10)*(budA1SF="Salary")*(rngCFA1=$A$25)))=TRUE,SUMPRODUCT(--ISNUMBER(rngCFA1)*(budA1BP10)*(budA1SF="Salary")*(rngCFA1=$A$25)),0) -> 0 | AI25: 0
A26: =_xlfn.XLOOKUP(B26,MTDC[Description],MTDC[VALUE],"N/A",0) -> 50115 | B26: Student Aid Pre & Post Fellowship | D26: =IF(AND(B26="Make a Selection",OR(sFABC=1,sFABC=2,sFABC=3)),"",IF(sFABC=2,"Included",IF(sFABC=3,"Custom F&A Amt",IF(_xlfn.XLOOKUP(B26,MTDC[Description],MTDC[Include in MTDC],"N/A",0)="MTDC","Included","Excluded")))) -> Included | E26: =IF(ISNUMBER(SUMPRODUCT(--ISNUMBER(rngCFA1)*(budA1BP1)*(budA1SF="Salary")*(rngCFA1=$A$26)))=TRUE,SUMPRODUCT(--ISNUMBER(rngCFA1)*(budA1BP1)*(budA1SF="Salary")*(rngCFA1=$A$26)),0) -> 0 | H26: =IF(ISNUMBER(SUMPRODUCT(--ISNUMBER(rngCFA1)*(budA1BP2)*(budA1SF="Salary")*(rngCFA1=$A$26)))=TRUE,SUMPRODUCT(--ISNUMBER(rngCFA1)*(budA1BP2)*(budA1SF="Salary")*(rngCFA1=$A$26)),0) -> 0 | K26: =IF(ISNUMBER(SUMPRODUCT(--ISNUMBER(rngCFA1)*(budA1BP3)*(budA1SF="Salary")*(rngCFA1=$A$26)))=TRUE,SUMPRODUCT(--ISNUMBER(rngCFA1)*(budA1BP3)*(budA1SF="Salary")*(rngCFA1=$A$26)),0) -> 0 | N26: =IF(ISNUMBER(SUMPRODUCT(--ISNUMBER(rngCFA1)*(budA1BP4)*(budA1SF="Salary")*(rngCFA1=$A$26)))=TRUE,SUMPRODUCT(--ISNUMBER(rngCFA1)*(budA1BP4)*(budA1SF="Salary")*(rngCFA1=$A$26)),0) -> 0 | Q26: =IF(ISNUMBER(SUMPRODUCT(--ISNUMBER(rngCFA1)*(budA1BP5)*(budA1SF="Salary")*(rngCFA1=$A$26)))=TRUE,SUMPRODUCT(--ISNUMBER(rngCFA1)*(budA1BP5)*(budA1SF="Salary")*(rngCFA1=$A$26)),0) -> 0 | T26: =IF(ISNUMBER(SUMPRODUCT(--ISNUMBER(rngCFA1)*(budA1BP6)*(budA1SF="Salary")*(rngCFA1=$A$26)))=TRUE,SUMPRODUCT(--ISNUMBER(rngCFA1)*(budA1BP6)*(budA1SF="Salary")*(rngCFA1=$A$26)),0) -> 0 | W26: =IF(ISNUMBER(SUMPRODUCT(--ISNUMBER(rngCFA1)*(budA1BP7)*(budA1SF="Salary")*(rngCFA1=$A$26)))=TRUE,SUMPRODUCT(--ISNUMBER(rngCFA1)*(budA1BP7)*(budA1SF="Salary")*(rngCFA1=$A$26)),0) -> 0 | Z26: =IF(ISNUMBER(SUMPRODUCT(--ISNUMBER(rngCFA1)*(budA1BP8)*(budA1SF="Salary")*(rngCFA1=$A$26)))=TRUE,SUMPRODUCT(--ISNUMBER(rngCFA1)*(budA1BP8)*(budA1SF="Salary")*(rngCFA1=$A$26)),0) -> 0 | AC26: =IF(ISNUMBER(SUMPRODUCT(--ISNUMBER(rngCFA1)*(budA1BP9)*(budA1SF="Salary")*(rngCFA1=$A$26)))=TRUE,SUMPRODUCT(--ISNUMBER(rngCFA1)*(budA1BP9)*(budA1SF="Salary")*(rngCFA1=$A$26)),0) -> 0 | AF26: =IF(ISNUMBER(SUMPRODUCT(--ISNUMBER(rngCFA1)*(budA1BP10)*(budA1SF="Salary")*(rngCFA1=$A$26)))=TRUE,SUMPRODUCT(--ISNUMBER(rngCFA1)*(budA1BP10)*(budA1SF="Salary")*(rngCFA1=$A$26)),0) -> 0 | AI26: 0
A27: =_xlfn.XLOOKUP(B27,MTDC[Description],MTDC[VALUE],"N/A",0) -> 50120 | B27: S&W Hourly Employees | D27: =IF(AND(B27="Make a Selection",OR(sFABC=1,sFABC=2,sFABC=3)),"",IF(sFABC=2,"Included",IF(sFABC=3,"Custom F&A Amt",IF(_xlfn.XLOOKUP(B27,MTDC[Description],MTDC[Include in MTDC],"N/A",0)="MTDC","Included","Excluded")))) -> Included | E27: =IF(ISNUMBER(SUMPRODUCT(--ISNUMBER(rngCFA1)*(budA1BP1)*(budA1SF="Salary")*(rngCFA1=$A$27)))=TRUE,SUMPRODUCT(--ISNUMBER(rngCFA1)*(budA1BP1)*(budA1SF="Salary")*(rngCFA1=$A$27)),0) -> 0 | H27: =IF(ISNUMBER(SUMPRODUCT(--ISNUMBER(rngCFA1)*(budA1BP2)*(budA1SF="Salary")*(rngCFA1=$A$27)))=TRUE,SUMPRODUCT(--ISNUMBER(rngCFA1)*(budA1BP2)*(budA1SF="Salary")*(rngCFA1=$A$27)),0) -> 0 | K27: =IF(ISNUMBER(SUMPRODUCT(--ISNUMBER(rngCFA1)*(budA1BP3)*(budA1SF="Salary")*(rngCFA1=$A$27)))=TRUE,SUMPRODUCT(--ISNUMBER(rngCFA1)*(budA1BP3)*(budA1SF="Salary")*(rngCFA1=$A$27)),0) -> 0 | N27: =IF(ISNUMBER(SUMPRODUCT(--ISNUMBER(rngCFA1)*(budA1BP4)*(budA1SF="Salary")*(rngCFA1=$A$27)))=TRUE,SUMPRODUCT(--ISNUMBER(rngCFA1)*(budA1BP4)*(budA1SF="Salary")*(rngCFA1=$A$27)),0) -> 0 | Q27: =IF(ISNUMBER(SUMPRODUCT(--ISNUMBER(rngCFA1)*(budA1BP5)*(budA1SF="Salary")*(rngCFA1=$A$27)))=TRUE,SUMPRODUCT(--ISNUMBER(rngCFA1)*(budA1BP5)*(budA1SF="Salary")*(rngCFA1=$A$27)),0) -> 0 | T27: =IF(ISNUMBER(SUMPRODUCT(--ISNUMBER(rngCFA1)*(budA1BP6)*(budA1SF="Salary")*(rngCFA1=$A$27)))=TRUE,SUMPRODUCT(--ISNUMBER(rngCFA1)*(budA1BP6)*(budA1SF="Salary")*(rngCFA1=$A$27)),0) -> 0 | W27: =IF(ISNUMBER(SUMPRODUCT(--ISNUMBER(rngCFA1)*(budA1BP7)*(budA1SF="Salary")*(rngCFA1=$A$27)))=TRUE,SUMPRODUCT(--ISNUMBER(rngCFA1)*(budA1BP7)*(budA1SF="Salary")*(rngCFA1=$A$27)),0) -> 0 | Z27: =IF(ISNUMBER(SUMPRODUCT(--ISNUMBER(rngCFA1)*(budA1BP8)*(budA1SF="Salary")*(rngCFA1=$A$27)))=TRUE,SUMPRODUCT(--ISNUMBER(rngCFA1)*(budA1BP8)*(budA1SF="Salary")*(rngCFA1=$A$27)),0) -> 0 | AC27: =IF(ISNUMBER(SUMPRODUCT(--ISNUMBER(rngCFA1)*(budA1BP9)*(budA1SF="Salary")*(rngCFA1=$A$27)))=TRUE,SUMPRODUCT(--ISNUMBER(rngCFA1)*(budA1BP9)*(budA1SF="Salary")*(rngCFA1=$A$27)),0) -> 0 | AF27: =IF(ISNUMBER(SUMPRODUCT(--ISNUMBER(rngCFA1)*(budA1BP10)*(budA1SF="Salary")*(rngCFA1=$A$27)))=TRUE,SUMPRODUCT(--ISNUMBER(rngCFA1)*(budA1BP10)*(budA1SF="Salary")*(rngCFA1=$A$27)),0) -> 0 | AI27: 0
A28: =_xlfn.XLOOKUP(B28,MTDC[Description],MTDC[VALUE],"N/A",0) -> 51110 | B28: FB Staff Employees | D28: =IF(sFABC=2,"Included",IF(sFABC=3,"Custom F&A Amt",IF(_xlfn.XLOOKUP(B28,MTDC[Description],MTDC[Include in MTDC],"N/A",0)="MTDC","Included","Excluded"))) -> Included | E28: =SUMPRODUCT((budA1SF="Fringe")*(budA1BP1)) -> 0 | H28: =SUMPRODUCT((budA1SF="Fringe")*(budA1BP2)) -> 0 | K28: =SUMPRODUCT((budA1SF="Fringe")*(budA1BP3)) -> 0 | N28: =SUMPRODUCT((budA1SF="Fringe")*(budA1BP4)) -> 0 | Q28: =SUMPRODUCT((budA1SF="Fringe")*(budA1BP5)) -> 0 | T28: =SUMPRODUCT((budA1SF="Fringe")*(budA1BP6)) -> 0 | W28: =SUMPRODUCT((budA1SF="Fringe")*(budA1BP7)) -> 0 | Z28: =SUMPRODUCT((budA1SF="Fringe")*(budA1BP8)) -> 0 | AC28: =SUMPRODUCT((budA1SF="Fringe")*(budA1BP9)) -> 0 | AF28: =SUMPRODUCT((budA1SF="Fringe")*(budA1BP10)) -> 0 | AI28: =SUM(E28:AH28) -> 0
B30: Salary & Wages (Advanced) | E30: =SUM(E14:G27) -> 0 | H30: =SUM(H14:J27) -> 0 | K30: =SUM(K14:M27) -> 0 | N30: =SUM(N14:P27) -> 0 | Q30: =SUM(Q14:S27) -> 0 | T30: =SUM(T14:V27) -> 0 | W30: =SUM(W14:Y27) -> 0 | Z30: =SUM(Z14:AB27) -> 0 | AC30: =SUM(AC14:AE27) -> 0 | AF30: =SUM(AF14:AH27) -> 0 | AI30: =SUM(E30:AH30) -> 0
B31: Fringe (Advanced) | E31: =SUMPRODUCT((budA1SF="Fringe")*(budA1BP1)) -> 0 | H31: =SUMPRODUCT((budA1SF="Fringe")*(budA1BP2)) -> 0 | K31: =SUMPRODUCT((budA1SF="Fringe")*(budA1BP3)) -> 0 | N31: =SUMPRODUCT((budA1SF="Fringe")*(budA1BP4)) -> 0 | Q31: =SUMPRODUCT((budA1SF="Fringe")*(budA1BP5)) -> 0 | T31: =SUMPRODUCT((budA1SF="Fringe")*(budA1BP6)) -> 0 | W31: =SUMPRODUCT((budA1SF="Fringe")*(budA1BP7)) -> 0 | Z31: =SUMPRODUCT((budA1SF="Fringe")*(budA1BP8)) -> 0 | AC31: =SUMPRODUCT((budA1SF="Fringe")*(budA1BP9)) -> 0 | AF31: =SUMPRODUCT((budA1SF="Fringe")*(budA1BP10)) -> 0 | AI31: =SUM(E31:AH31) -> 0
B32: Total Salary & Wages (Advanced) | E32: =SUM(E30:G31) -> 0 | H32: =SUM(H30:J31) -> 0 | K32: =SUM(K30:M31) -> 0 | N32: =SUM(N30:P31) -> 0 | Q32: =SUM(Q30:S31) -> 0 | T32: =SUM(T30:V31) -> 0 | W32: =SUM(W30:Y31) -> 0 | Z32: =SUM(Z30:AB31) -> 0 | AC32: =SUM(AC30:AE31) -> 0 | AF32: =SUM(AF30:AH31) -> 0 | AI32: =SUM(E32:AH32) -> 0
A34: A2. SALARIES & WAGES (BASIC)
A35: =_xlfn.XLOOKUP(B35,MTDC[Description],MTDC[VALUE],"N/A",0) -> N/A | B35: Make a selection | D35: Salary | E35: 0 | H35: 0 | K35: 0 | N35: 0 | Q35: 0 | T35: 0 | W35: 0 | Z35: 0 | AC35: 0 | AF35: 0 | AI35: =SUM(E35:AH35) -> 0
B36: Enter Staff Name | D36: Fringe | E36: =IF(OR(B35="Make a Selection",ISNUMBER(E35)=FALSE,ISNUMBER(C37)=FALSE,ISNUMBER(wsBP1)=FALSE,ISNUMBER(weBP1)=FALSE,ISNUMBER(wsfyBP1)=FALSE),0,IF(A37="Yes",E35*C37,IF(sFBRC=1,E35*_xlfn.XLOOKUP(bpFY1,rngFFRfy,(_xlfn.XLOOKUP(A35,rngFFRc,rngFFR,"N/A",0)),"N/A",0),E35*_xlfn.XLOOKUP(bpFY1,rngnFFRfy,(_xlfn.XLOOKUP(A35,rngnFFRc,rngnFFR,"N/A",0)),"N/A",0)))) -> 0 | H36: =IF(OR(B35="Make a Selection",ISNUMBER(H35)=FALSE,ISNUMBER(C37)=FALSE,ISNUMBER(wsBP1)=FALSE,ISNUMBER(weBP1)=FALSE,ISNUMBER(wsfyBP1)=FALSE),0,IF(A37="Yes",H35*C37,IF(sFBRC=1,H35*_xlfn.XLOOKUP(bpFY1,rngFFRfy,(_xlfn.XLOOKUP(A35,rngFFRc,rngFFR,"N/A",0)),"N/A",0),H35*_xlfn.XLOOKUP(bpFY1,rngnFFRfy,(_xlfn.XLOOKUP(A35,rngnFFRc,rngnFFR,"N/A",0)),"N/A",0)))) -> 0 | K36: =IF(OR(B35="Make a Selection",ISNUMBER(K35)=FALSE,ISNUMBER(C37)=FALSE,ISNUMBER(wsBP1)=FALSE,ISNUMBER(weBP1)=FALSE,ISNUMBER(wsfyBP1)=FALSE),0,IF(A37="Yes",K35*C37,IF(sFBRC=1,K35*_xlfn.XLOOKUP(bpFY1,rngFFRfy,(_xlfn.XLOOKUP(A35,rngFFRc,rngFFR,"N/A",0)),"N/A",0),K35*_xlfn.XLOOKUP(bpFY1,rngnFFRfy,(_xlfn.XLOOKUP(A35,rngnFFRc,rngnFFR,"N/A",0)),"N/A",0)))) -> 0 | N36: =IF(OR(B35="Make a Selection",ISNUMBER(N35)=FALSE,ISNUMBER(C37)=FALSE,ISNUMBER(wsBP2)=FALSE,ISNUMBER(weBP2)=FALSE,ISNUMBER(wsfyBP2)=FALSE),0,IF(A37="Yes",N35*C37,IF(sFBRC=1,N35*_xlfn.XLOOKUP(bpFY2,rngFFRfy,(_xlfn.XLOOKUP(A35,rngFFRc,rngFFR,"N/A",0)),"N/A",0),N35*_xlfn.XLOOKUP(bpFY2,rngnFFRfy,(_xlfn.XLOOKUP(A35,rngnFFRc,rngnFFR,"N/A",0)),"N/A",0)))) -> 0 | Q36: =IF(OR(B35="Make a Selection",ISNUMBER(Q35)=FALSE,ISNUMBER(C37)=FALSE,ISNUMBER(wsBP3)=FALSE,ISNUMBER(weBP3)=FALSE,ISNUMBER(wsfyBP3)=FALSE),0,IF(A37="Yes",Q35*C37,IF(sFBRC=1,Q35*_xlfn.XLOOKUP(bpFY3,rngFFRfy,(_xlfn.XLOOKUP(A35,rngFFRc,rngFFR,"N/A",0)),"N/A",0),Q35*_xlfn.XLOOKUP(bpFY3,rngnFFRfy,(_xlfn.XLOOKUP(A35,rngnFFRc,rngnFFR,"N/A",0)),"N/A",0)))) -> 0 | T36: =IF(OR(B35="Make a Selection",ISNUMBER(T35)=FALSE,ISNUMBER(C37)=FALSE,ISNUMBER(wsBP4)=FALSE,ISNUMBER(weBP4)=FALSE,ISNUMBER(wsfyBP4)=FALSE),0,IF(A37="Yes",T35*C37,IF(sFBRC=1,T35*_xlfn.XLOOKUP(bpFY4,rngFFRfy,(_xlfn.XLOOKUP(A35,rngFFRc,rngFFR,"N/A",0)),"N/A",0),T35*_xlfn.XLOOKUP(bpFY4,rngnFFRfy,(_xlfn.XLOOKUP(A35,rngnFFRc,rngnFFR,"N/A",0)),"N/A",0)))) -> 0 | W36: =IF(OR(B35="Make a Selection",ISNUMBER(W35)=FALSE,ISNUMBER(C37)=FALSE,ISNUMBER(wsBP5)=FALSE,ISNUMBER(weBP5)=FALSE,ISNUMBER(wsfyBP5)=FALSE),0,IF(A37="Yes",W35*C37,IF(sFBRC=1,W35*_xlfn.XLOOKUP(bpFY5,rngFFRfy,(_xlfn.XLOOKUP(A35,rngFFRc,rngFFR,"N/A",0)),"N/A",0),W35*_xlfn.XLOOKUP(bpFY5,rngnFFRfy,(_xlfn.XLOOKUP(A35,rngnFFRc,rngnFFR,"N/A",0)),"N/A",0)))) -> 0 | Z36: =IF(OR(B35="Make a Selection",ISNUMBER(Z35)=FALSE,ISNUMBER(C37)=FALSE,ISNUMBER(wsBP6)=FALSE,ISNUMBER(weBP6)=FALSE,ISNUMBER(wsfyBP6)=FALSE),0,IF(A37="Yes",Z35*C37,IF(sFBRC=1,Z35*_xlfn.XLOOKUP(bpFY6,rngFFRfy,(_xlfn.XLOOKUP(A35,rngFFRc,rngFFR,"N/A",0)),"N/A",0),Z35*_xlfn.XLOOKUP(bpFY6,rngnFFRfy,(_xlfn.XLOOKUP(A35,rngnFFRc,rngnFFR,"N/A",0)),"N/A",0)))) -> 0 | AC36: =IF(OR(B35="Make a Selection",ISNUMBER(AC35)=FALSE,ISNUMBER(C37)=FALSE,ISNUMBER(wsBP7)=FALSE,ISNUMBER(weBP7)=FALSE,ISNUMBER(wsfyBP7)=FALSE),0,IF(A37="Yes",AC35*C37,IF(sFBRC=1,AC35*_xlfn.XLOOKUP(bpFY7,rngFFRfy,(_xlfn.XLOOKUP(A35,rngFFRc,rngFFR,"N/A",0)),"N/A",0),AC35*_xlfn.XLOOKUP(bpFY7,rngnFFRfy,(_xlfn.XLOOKUP(A35,rngnFFRc,rngnFFR,"N/A",0)),"N/A",0)))) -> 0 | AF36: =IF(OR(B35="Make a Selection",ISNUMBER(AF35)=FALSE,ISNUMBER(C37)=FALSE,ISNUMBER(wsBP8)=FALSE,ISNUMBER(weBP8)=FALSE,ISNUMBER(wsfyBP8)=FALSE),0,IF(A37="Yes",AF35*C37,IF(sFBRC=1,AF35*_xlfn.XLOOKUP(bpFY8,rngFFRfy,(_xlfn.XLOOKUP(A35,rngFFRc,rngFFR,"N/A",0)),"N/A",0),AF35*_xlfn.XLOOKUP(bpFY8,rngnFFRfy,(_xlfn.XLOOKUP(A35,rngnFFRc,rngnFFR,"N/A",0)),"N/A",0)))) -> 0 | AI36: 0
A37: No | B37: Custom Fringe @ | C37: 0 | D37: Subtotal | E37: =IF(ISNUMBER(E35)=FALSE,0,SUM(E35:G36)) -> 0 | H37: =IF(ISNUMBER(H35)=FALSE,0,SUM(H35:J36)) -> 0 | K37: =IF(ISNUMBER(K35)=FALSE,0,SUM(K35:M36)) -> 0 | N37: =IF(ISNUMBER(N35)=FALSE,0,SUM(N35:P36)) -> 0 | Q37: =IF(ISNUMBER(Q35)=FALSE,0,SUM(Q35:S36)) -> 0 | T37: =IF(ISNUMBER(T35)=FALSE,0,SUM(T35:V36)) -> 0 | W37: =IF(ISNUMBER(W35)=FALSE,0,SUM(W35:Y36)) -> 0 | Z37: =IF(ISNUMBER(Z35)=FALSE,0,SUM(Z35:AB36)) -> 0 | AC37: =IF(ISNUMBER(AC35)=FALSE,0,SUM(AC35:AE36)) -> 0 | AF37: =IF(ISNUMBER(AF35)=FALSE,0,SUM(AF35:AH36)) -> 0 | AI37: 0
A39: =_xlfn.XLOOKUP(B39,MTDC[Description],MTDC[VALUE],"N/A",0) -> 50010 | B39: S&W Staff | D39: =IF(AND(B39="Make a Selection",OR(sFABC=1,sFABC=2,sFABC=3)),"",IF(sFABC=2,"Included",IF(sFABC=3,"Custom F&A Amt",IF(_xlfn.XLOOKUP(B39,MTDC[Description],MTDC[Include in MTDC],"N/A",0)="MTDC","Included","Excluded")))) -> Included | E39: =IF(ISNUMBER(SUMPRODUCT(--ISNUMBER(rngCFA2)*(budA2BP1)*(budA2SF="Salary")*(rngCFA2=$A$39)))=TRUE,SUMPRODUCT(--ISNUMBER(rngCFA2)*(budA2BP1)*(budA2SF="Salary")*(rngCFA2=$A$39)),0) -> 0 | H39: =IF(ISNUMBER(SUMPRODUCT(--ISNUMBER(rngCFA2)*(budA2BP2)*(budA2SF="Salary")*(rngCFA2=$A$39)))=TRUE,SUMPRODUCT(--ISNUMBER(rngCFA2)*(budA2BP2)*(budA2SF="Salary")*(rngCFA2=$A$39)),0) -> 0 | K39: =IF(ISNUMBER(SUMPRODUCT(--ISNUMBER(rngCFA2)*(budA2BP3)*(budA2SF="Salary")*(rngCFA2=$A$39)))=TRUE,SUMPRODUCT(--ISNUMBER(rngCFA2)*(budA2BP3)*(budA2SF="Salary")*(rngCFA2=$A$39)),0) -> 0 | N39: =IF(ISNUMBER(SUMPRODUCT(--ISNUMBER(rngCFA2)*(budA2BP4)*(budA2SF="Salary")*(rngCFA2=$A$39)))=TRUE,SUMPRODUCT(--ISNUMBER(rngCFA2)*(budA2BP4)*(budA2SF="Salary")*(rngCFA2=$A$39)),0) -> 0 | Q39: =IF(ISNUMBER(SUMPRODUCT(--ISNUMBER(rngCFA2)*(budA2BP5)*(budA2SF="Salary")*(rngCFA2=$A$39)))=TRUE,SUMPRODUCT(--ISNUMBER(rngCFA2)*(budA2BP5)*(budA2SF="Salary")*(rngCFA2=$A$39)),0) -> 0 | T39: =IF(ISNUMBER(SUMPRODUCT(--ISNUMBER(rngCFA2)*(budA2BP6)*(budA2SF="Salary")*(rngCFA2=$A$39)))=TRUE,SUMPRODUCT(--ISNUMBER(rngCFA2)*(budA2BP6)*(budA2SF="Salary")*(rngCFA2=$A$39)),0) -> 0 | W39: =IF(ISNUMBER(SUMPRODUCT(--ISNUMBER(rngCFA2)*(budA2BP7)*(budA2SF="Salary")*(rngCFA2=$A$39)))=TRUE,SUMPRODUCT(--ISNUMBER(rngCFA2)*(budA2BP7)*(budA2SF="Salary")*(rngCFA2=$A$39)),0) -> 0 | Z39: =IF(ISNUMBER(SUMPRODUCT(--ISNUMBER(rngCFA2)*(budA2BP8)*(budA2SF="Salary")*(rngCFA2=$A$39)))=TRUE,SUMPRODUCT(--ISNUMBER(rngCFA2)*(budA2BP8)*(budA2SF="Salary")*(rngCFA2=$A$39)),0) -> 0 | AC39: =IF(ISNUMBER(SUMPRODUCT(--ISNUMBER(rngCFA2)*(budA2BP9)*(budA2SF="Salary")*(rngCFA2=$A$39)))=TRUE,SUMPRODUCT(--ISNUMBER(rngCFA2)*(budA2BP9)*(budA2SF="Salary")*(rngCFA2=$A$39)),0) -> 0 | AF39: =IF(ISNUMBER(SUMPRODUCT(--ISNUMBER(rngCFA2)*(budA2BP10)*(budA2SF="Salary")*(rngCFA2=$A$39)))=TRUE,SUMPRODUCT(--ISNUMBER(rngCFA2)*(budA2BP10)*(budA2SF="Salary")*(rngCFA2=$A$39)),0) -> 0 | AI39: =SUM(E39:AH39) -> 0
A40: =_xlfn.XLOOKUP(B40,MTDC[Description],MTDC[VALUE],"N/A",0) -> 50020 | B40: S&W Tenured Faculty | D40: =IF(AND(B40="Make a Selection",OR(sFABC=1,sFABC=2,sFABC=3)),"",IF(sFABC=2,"Included",IF(sFABC=3,"Custom F&A Amt",IF(_xlfn.XLOOKUP(B40,MTDC[Description],MTDC[Include in MTDC],"N/A",0)="MTDC","Included","Excluded")))) -> Included | E40: =IF(ISNUMBER(SUMPRODUCT(--ISNUMBER(rngCFA2)*(budA2BP1)*(budA2SF="Salary")*(rngCFA2=$A$40)))=TRUE,SUMPRODUCT(--ISNUMBER(rngCFA2)*(budA2BP1)*(budA2SF="Salary")*(rngCFA2=$A$40)),0) -> 0 | H40: =IF(ISNUMBER(SUMPRODUCT(--ISNUMBER(rngCFA2)*(budA2BP2)*(budA2SF="Salary")*(rngCFA2=$A$40)))=TRUE,SUMPRODUCT(--ISNUMBER(rngCFA2)*(budA2BP2)*(budA2SF="Salary")*(rngCFA2=$A$40)),0) -> 0 | K40: =IF(ISNUMBER(SUMPRODUCT(--ISNUMBER(rngCFA2)*(budA2BP3)*(budA2SF="Salary")*(rngCFA2=$A$40)))=TRUE,SUMPRODUCT(--ISNUMBER(rngCFA2)*(budA2BP3)*(budA2SF="Salary")*(rngCFA2=$A$40)),0) -> 0 | N40: =IF(ISNUMBER(SUMPRODUCT(--ISNUMBER(rngCFA2)*(budA2BP4)*(budA2SF="Salary")*(rngCFA2=$A$40)))=TRUE,SUMPRODUCT(--ISNUMBER(rngCFA2)*(budA2BP4)*(budA2SF="Salary")*(rngCFA2=$A$40)),0) -> 0 | Q40: =IF(ISNUMBER(SUMPRODUCT(--ISNUMBER(rngCFA2)*(budA2BP5)*(budA2SF="Salary")*(rngCFA2=$A$40)))=TRUE,SUMPRODUCT(--ISNUMBER(rngCFA2)*(budA2BP5)*(budA2SF="Salary")*(rngCFA2=$A$40)),0) -> 0 | T40: =IF(ISNUMBER(SUMPRODUCT(--ISNUMBER(rngCFA2)*(budA2BP6)*(budA2SF="Salary")*(rngCFA2=$A$40)))=TRUE,SUMPRODUCT(--ISNUMBER(rngCFA2)*(budA2BP6)*(budA2SF="Salary")*(rngCFA2=$A$40)),0) -> 0 | W40: =IF(ISNUMBER(SUMPRODUCT(--ISNUMBER(rngCFA2)*(budA2BP7)*(budA2SF="Salary")*(rngCFA2=$A$40)))=TRUE,SUMPRODUCT(--ISNUMBER(rngCFA2)*(budA2BP7)*(budA2SF="Salary")*(rngCFA2=$A$40)),0) -> 0 | Z40: =IF(ISNUMBER(SUMPRODUCT(--ISNUMBER(rngCFA2)*(budA2BP8)*(budA2SF="Salary")*(rngCFA2=$A$40)))=TRUE,SUMPRODUCT(--ISNUMBER(rngCFA2)*(budA2BP8)*(budA2SF="Salary")*(rngCFA2=$A$40)),0) -> 0 | AC40: =IF(ISNUMBER(SUMPRODUCT(--ISNUMBER(rngCFA2)*(budA2BP9)*(budA2SF="Salary")*(rngCFA2=$A$40)))=TRUE,SUMPRODUCT(--ISNUMBER(rngCFA2)*(budA2BP9)*(budA2SF="Salary")*(rngCFA2=$A$40)),0) -> 0 | AF40: =IF(ISNUMBER(SUMPRODUCT(--ISNUMBER(rngCFA2)*(budA2BP10)*(budA2SF="Salary")*(rngCFA2=$A$40)))=TRUE,SUMPRODUCT(--ISNUMBER(rngCFA2)*(budA2BP10)*(budA2SF="Salary")*(rngCFA2=$A$40)),0) -> 0 | AI40: =SUM(E40:AH40) -> 0
A41: =_xlfn.XLOOKUP(B41,MTDC[Description],MTDC[VALUE],"N/A",0) -> 50030 | B41: S&W Tenure Track Faculty | D41: =IF(AND(B41="Make a Selection",OR(sFABC=1,sFABC=2,sFABC=3)),"",IF(sFABC=2,"Included",IF(sFABC=3,"Custom F&A Amt",IF(_xlfn.XLOOKUP(B41,MTDC[Description],MTDC[Include in MTDC],"N/A",0)="MTDC","Included","Excluded")))) -> Included | E41: =IF(ISNUMBER(SUMPRODUCT(--ISNUMBER(rngCFA2)*(budA2BP1)*(budA2SF="Salary")*(rngCFA2=$A$41)))=TRUE,SUMPRODUCT(--ISNUMBER(rngCFA2)*(budA2BP1)*(budA2SF="Salary")*(rngCFA2=$A$41)),0) -> 0 | H41: =IF(ISNUMBER(SUMPRODUCT(--ISNUMBER(rngCFA2)*(budA2BP2)*(budA2SF="Salary")*(rngCFA2=$A$41)))=TRUE,SUMPRODUCT(--ISNUMBER(rngCFA2)*(budA2BP2)*(budA2SF="Salary")*(rngCFA2=$A$41)),0) -> 0 | K41: =IF(ISNUMBER(SUMPRODUCT(--ISNUMBER(rngCFA2)*(budA2BP3)*(budA2SF="Salary")*(rngCFA2=$A$41)))=TRUE,SUMPRODUCT(--ISNUMBER(rngCFA2)*(budA2BP3)*(budA2SF="Salary")*(rngCFA2=$A$41)),0) -> 0 | N41: =IF(ISNUMBER(SUMPRODUCT(--ISNUMBER(rngCFA2)*(budA2BP4)*(budA2SF="Salary")*(rngCFA2=$A$41)))=TRUE,SUMPRODUCT(--ISNUMBER(rngCFA2)*(budA2BP4)*(budA2SF="Salary")*(rngCFA2=$A$41)),0) -> 0 | Q41: =IF(ISNUMBER(SUMPRODUCT(--ISNUMBER(rngCFA2)*(budA2BP5)*(budA2SF="Salary")*(rngCFA2=$A$41)))=TRUE,SUMPRODUCT(--ISNUMBER(rngCFA2)*(budA2BP5)*(budA2SF="Salary")*(rngCFA2=$A$41)),0) -> 0 | T41: =IF(ISNUMBER(SUMPRODUCT(--ISNUMBER(rngCFA2)*(budA2BP6)*(budA2SF="Salary")*(rngCFA2=$A$41)))=TRUE,SUMPRODUCT(--ISNUMBER(rngCFA2)*(budA2BP6)*(budA2SF="Salary")*(rngCFA2=$A$41)),0) -> 0 | W41: =IF(ISNUMBER(SUMPRODUCT(--ISNUMBER(rngCFA2)*(budA2BP7)*(budA2SF="Salary")*(rngCFA2=$A$41)))=TRUE,SUMPRODUCT(--ISNUMBER(rngCFA2)*(budA2BP7)*(budA2SF="Salary")*(rngCFA2=$A$41)),0) -> 0 | Z41: =IF(ISNUMBER(SUMPRODUCT(--ISNUMBER(rngCFA2)*(budA2BP8)*(budA2SF="Salary")*(rngCFA2=$A$41)))=TRUE,SUMPRODUCT(--ISNUMBER(rngCFA2)*(budA2BP8)*(budA2SF="Salary")*(rngCFA2=$A$41)),0) -> 0 | AC41: =IF(ISNUMBER(SUMPRODUCT(--ISNUMBER(rngCFA2)*(budA2BP9)*(budA2SF="Salary")*(rngCFA2=$A$41)))=TRUE,SUMPRODUCT(--ISNUMBER(rngCFA2)*(budA2BP9)*(budA2SF="Salary")*(rngCFA2=$A$41)),0) -> 0 | AF41: =IF(ISNUMBER(SUMPRODUCT(--ISNUMBER(rngCFA2)*(budA2BP10)*(budA2SF="Salary")*(rngCFA2=$A$41)))=TRUE,SUMPRODUCT(--ISNUMBER(rngCFA2)*(budA2BP10)*(budA2SF="Salary")*(rngCFA2=$A$41)),0) -> 0 | AI41: 0
A42: =_xlfn.XLOOKUP(B42,MTDC[Description],MTDC[VALUE],"N/A",0) -> 50040 | B42: S&W NonTenured Faculty | D42: =IF(AND(B42="Make a Selection",OR(sFABC=1,sFABC=2,sFABC=3)),"",IF(sFABC=2,"Included",IF(sFABC=3,"Custom F&A Amt",IF(_xlfn.XLOOKUP(B42,MTDC[Description],MTDC[Include in MTDC],"N/A",0)="MTDC","Included","Excluded")))) -> Included | E42: =IF(ISNUMBER(SUMPRODUCT(--ISNUMBER(rngCFA2)*(budA2BP1)*(budA2SF="Salary")*(rngCFA2=$A$42)))=TRUE,SUMPRODUCT(--ISNUMBER(rngCFA2)*(budA2BP1)*(budA2SF="Salary")*(rngCFA2=$A$42)),0) -> 0 | H42: =IF(ISNUMBER(SUMPRODUCT(--ISNUMBER(rngCFA2)*(budA2BP2)*(budA2SF="Salary")*(rngCFA2=$A$42)))=TRUE,SUMPRODUCT(--ISNUMBER(rngCFA2)*(budA2BP2)*(budA2SF="Salary")*(rngCFA2=$A$42)),0) -> 0 | K42: =IF(ISNUMBER(SUMPRODUCT(--ISNUMBER(rngCFA2)*(budA2BP3)*(budA2SF="Salary")*(rngCFA2=$A$42)))=TRUE,SUMPRODUCT(--ISNUMBER(rngCFA2)*(budA2BP3)*(budA2SF="Salary")*(rngCFA2=$A$42)),0) -> 0 | N42: =IF(ISNUMBER(SUMPRODUCT(--ISNUMBER(rngCFA2)*(budA2BP4)*(budA2SF="Salary")*(rngCFA2=$A$42)))=TRUE,SUMPRODUCT(--ISNUMBER(rngCFA2)*(budA2BP4)*(budA2SF="Salary")*(rngCFA2=$A$42)),0) -> 0 | Q42: =IF(ISNUMBER(SUMPRODUCT(--ISNUMBER(rngCFA2)*(budA2BP5)*(budA2SF="Salary")*(rngCFA2=$A$42)))=TRUE,SUMPRODUCT(--ISNUMBER(rngCFA2)*(budA2BP5)*(budA2SF="Salary")*(rngCFA2=$A$42)),0) -> 0 | T42: =IF(ISNUMBER(SUMPRODUCT(--ISNUMBER(rngCFA2)*(budA2BP6)*(budA2SF="Salary")*(rngCFA2=$A$42)))=TRUE,SUMPRODUCT(--ISNUMBER(rngCFA2)*(budA2BP6)*(budA2SF="Salary")*(rngCFA2=$A$42)),0) -> 0 | W42: =IF(ISNUMBER(SUMPRODUCT(--ISNUMBER(rngCFA2)*(budA2BP7)*(budA2SF="Salary")*(rngCFA2=$A$42)))=TRUE,SUMPRODUCT(--ISNUMBER(rngCFA2)*(budA2BP7)*(budA2SF="Salary")*(rngCFA2=$A$42)),0) -> 0 | Z42: =IF(ISNUMBER(SUMPRODUCT(--ISNUMBER(rngCFA2)*(budA2BP8)*(budA2SF="Salary")*(rngCFA2=$A$42)))=TRUE,SUMPRODUCT(--ISNUMBER(rngCFA2)*(budA2BP8)*(budA2SF="Salary")*(rngCFA2=$A$42)),0) -> 0 | AC42: =IF(ISNUMBER(SUMPRODUCT(--ISNUMBER(rngCFA2)*(budA2BP9)*(budA2SF="Salary")*(rngCFA2=$A$42)))=TRUE,SUMPRODUCT(--ISNUMBER(rngCFA2)*(budA2BP9)*(budA2SF="Salary")*(rngCFA2=$A$42)),0) -> 0 | AF42: =IF(ISNUMBER(SUMPRODUCT(--ISNUMBER(rngCFA2)*(budA2BP10)*(budA2SF="Salary")*(rngCFA2=$A$42)))=TRUE,SUMPRODUCT(--ISNUMBER(rngCFA2)*(budA2BP10)*(budA2SF="Salary")*(rngCFA2=$A$42)),0) -> 0 | AI42: 0
A43: =_xlfn.XLOOKUP(B43,MTDC[Description],MTDC[VALUE],"N/A",0) -> 50050 | B43: S&W TA & GA | D43: =IF(AND(B43="Make a Selection",OR(sFABC=1,sFABC=2,sFABC=3)),"",IF(sFABC=2,"Included",IF(sFABC=3,"Custom F&A Amt",IF(_xlfn.XLOOKUP(B43,MTDC[Description],MTDC[Include in MTDC],"N/A",0)="MTDC","Included","Excluded")))) -> Included | E43: =IF(ISNUMBER(SUMPRODUCT(--ISNUMBER(rngCFA2)*(budA2BP1)*(budA2SF="Salary")*(rngCFA2=$A$43)))=TRUE,SUMPRODUCT(--ISNUMBER(rngCFA2)*(budA2BP1)*(budA2SF="Salary")*(rngCFA2=$A$43)),0) -> 0 | H43: =IF(ISNUMBER(SUMPRODUCT(--ISNUMBER(rngCFA2)*(budA2BP2)*(budA2SF="Salary")*(rngCFA2=$A$43)))=TRUE,SUMPRODUCT(--ISNUMBER(rngCFA2)*(budA2BP2)*(budA2SF="Salary")*(rngCFA2=$A$43)),0) -> 0 | K43: =IF(ISNUMBER(SUMPRODUCT(--ISNUMBER(rngCFA2)*(budA2BP3)*(budA2SF="Salary")*(rngCFA2=$A$43)))=TRUE,SUMPRODUCT(--ISNUMBER(rngCFA2)*(budA2BP3)*(budA2SF="Salary")*(rngCFA2=$A$43)),0) -> 0 | N43: =IF(ISNUMBER(SUMPRODUCT(--ISNUMBER(rngCFA2)*(budA2BP4)*(budA2SF="Salary")*(rngCFA2=$A$43)))=TRUE,SUMPRODUCT(--ISNUMBER(rngCFA2)*(budA2BP4)*(budA2SF="Salary")*(rngCFA2=$A$43)),0) -> 0 | Q43: =IF(ISNUMBER(SUMPRODUCT(--ISNUMBER(rngCFA2)*(budA2BP5)*(budA2SF="Salary")*(rngCFA2=$A$43)))=TRUE,SUMPRODUCT(--ISNUMBER(rngCFA2)*(budA2BP5)*(budA2SF="Salary")*(rngCFA2=$A$43)),0) -> 0 | T43: =IF(ISNUMBER(SUMPRODUCT(--ISNUMBER(rngCFA2)*(budA2BP6)*(budA2SF="Salary")*(rngCFA2=$A$43)))=TRUE,SUMPRODUCT(--ISNUMBER(rngCFA2)*(budA2BP6)*(budA2SF="Salary")*(rngCFA2=$A$43)),0) -> 0 | W43: =IF(ISNUMBER(SUMPRODUCT(--ISNUMBER(rngCFA2)*(budA2BP7)*(budA2SF="Salary")*(rngCFA2=$A$43)))=TRUE,SUMPRODUCT(--ISNUMBER(rngCFA2)*(budA2BP7)*(budA2SF="Salary")*(rngCFA2=$A$43)),0) -> 0 | Z43: =IF(ISNUMBER(SUMPRODUCT(--ISNUMBER(rngCFA2)*(budA2BP8)*(budA2SF="Salary")*(rngCFA2=$A$43)))=TRUE,SUMPRODUCT(--ISNUMBER(rngCFA2)*(budA2BP8)*(budA2SF="Salary")*(rngCFA2=$A$43)),0) -> 0 | AC43: =IF(ISNUMBER(SUMPRODUCT(--ISNUMBER(rngCFA2)*(budA2BP9)*(budA2SF="Salary")*(rngCFA2=$A$43)))=TRUE,SUMPRODUCT(--ISNUMBER(rngCFA2)*(budA2BP9)*(budA2SF="Salary")*(rngCFA2=$A$43)),0) -> 0 | AF43: =IF(ISNUMBER(SUMPRODUCT(--ISNUMBER(rngCFA2)*(budA2BP10)*(budA2SF="Salary")*(rngCFA2=$A$43)))=TRUE,SUMPRODUCT(--ISNUMBER(rngCFA2)*(budA2BP10)*(budA2SF="Salary")*(rngCFA2=$A$43)),0) -> 0 | AI43: 0
A44: =_xlfn.XLOOKUP(B44,MTDC[Description],MTDC[VALUE],"N/A",0) -> 50060 | B44: S&W Post Doctorate & Associates | D44: =IF(AND(B44="Make a Selection",OR(sFABC=1,sFABC=2,sFABC=3)),"",IF(sFABC=2,"Included",IF(sFABC=3,"Custom F&A Amt",IF(_xlfn.XLOOKUP(B44,MTDC[Description],MTDC[Include in MTDC],"N/A",0)="MTDC","Included","Excluded")))) -> Included | E44: =IF(ISNUMBER(SUMPRODUCT(--ISNUMBER(rngCFA2)*(budA2BP1)*(budA2SF="Salary")*(rngCFA2=$A$44)))=TRUE,SUMPRODUCT(--ISNUMBER(rngCFA2)*(budA2BP1)*(budA2SF="Salary")*(rngCFA2=$A$44)),0) -> 0 | H44: =IF(ISNUMBER(SUMPRODUCT(--ISNUMBER(rngCFA2)*(budA2BP2)*(budA2SF="Salary")*(rngCFA2=$A$44)))=TRUE,SUMPRODUCT(--ISNUMBER(rngCFA2)*(budA2BP2)*(budA2SF="Salary")*(rngCFA2=$A$44)),0) -> 0 | K44: =IF(ISNUMBER(SUMPRODUCT(--ISNUMBER(rngCFA2)*(budA2BP3)*(budA2SF="Salary")*(rngCFA2=$A$44)))=TRUE,SUMPRODUCT(--ISNUMBER(rngCFA2)*(budA2BP3)*(budA2SF="Salary")*(rngCFA2=$A$44)),0) -> 0 | N44: =IF(ISNUMBER(SUMPRODUCT(--ISNUMBER(rngCFA2)*(budA2BP4)*(budA2SF="Salary")*(rngCFA2=$A$44)))=TRUE,SUMPRODUCT(--ISNUMBER(rngCFA2)*(budA2BP4)*(budA2SF="Salary")*(rngCFA2=$A$44)),0) -> 0 | Q44: =IF(ISNUMBER(SUMPRODUCT(--ISNUMBER(rngCFA2)*(budA2BP5)*(budA2SF="Salary")*(rngCFA2=$A$44)))=TRUE,SUMPRODUCT(--ISNUMBER(rngCFA2)*(budA2BP5)*(budA2SF="Salary")*(rngCFA2=$A$44)),0) -> 0 | T44: =IF(ISNUMBER(SUMPRODUCT(--ISNUMBER(rngCFA2)*(budA2BP6)*(budA2SF="Salary")*(rngCFA2=$A$44)))=TRUE,SUMPRODUCT(--ISNUMBER(rngCFA2)*(budA2BP6)*(budA2SF="Salary")*(rngCFA2=$A$44)),0) -> 0 | W44: =IF(ISNUMBER(SUMPRODUCT(--ISNUMBER(rngCFA2)*(budA2BP7)*(budA2SF="Salary")*(rngCFA2=$A$44)))=TRUE,SUMPRODUCT(--ISNUMBER(rngCFA2)*(budA2BP7)*(budA2SF="Salary")*(rngCFA2=$A$44)),0) -> 0 | Z44: =IF(ISNUMBER(SUMPRODUCT(--ISNUMBER(rngCFA2)*(budA2BP8)*(budA2SF="Salary")*(rngCFA2=$A$44)))=TRUE,SUMPRODUCT(--ISNUMBER(rngCFA2)*(budA2BP8)*(budA2SF="Salary")*(rngCFA2=$A$44)),0) -> 0 | AC44: =IF(ISNUMBER(SUMPRODUCT(--ISNUMBER(rngCFA2)*(budA2BP9)*(budA2SF="Salary")*(rngCFA2=$A$44)))=TRUE,SUMPRODUCT(--ISNUMBER(rngCFA2)*(budA2BP9)*(budA2SF="Salary")*(rngCFA2=$A$44)),0) -> 0 | AF44: =IF(ISNUMBER(SUMPRODUCT(--ISNUMBER(rngCFA2)*(budA2BP10)*(budA2SF="Salary")*(rngCFA2=$A$44)))=TRUE,SUMPRODUCT(--ISNUMBER(rngCFA2)*(budA2BP10)*(budA2SF="Salary")*(rngCFA2=$A$44)),0) -> 0 | AI44: 0
A45: =_xlfn.XLOOKUP(B45,MTDC[Description],MTDC[VALUE],"N/A",0) -> 50070 | B45: S&W Housestaff | D45: =IF(AND(B45="Make a Selection",OR(sFABC=1,sFABC=2,sFABC=3)),"",IF(sFABC=2,"Included",IF(sFABC=3,"Custom F&A Amt",IF(_xlfn.XLOOKUP(B45,MTDC[Description],MTDC[Include in MTDC],"N/A",0)="MTDC","Included","Excluded")))) -> Included | E45: =IF(ISNUMBER(SUMPRODUCT(--ISNUMBER(rngCFA2)*(budA2BP1)*(budA2SF="Salary")*(rngCFA2=$A$45)))=TRUE,SUMPRODUCT(--ISNUMBER(rngCFA2)*(budA2BP1)*(budA2SF="Salary")*(rngCFA2=$A$45)),0) -> 0 | H45: =IF(ISNUMBER(SUMPRODUCT(--ISNUMBER(rngCFA2)*(budA2BP2)*(budA2SF="Salary")*(rngCFA2=$A$45)))=TRUE,SUMPRODUCT(--ISNUMBER(rngCFA2)*(budA2BP2)*(budA2SF="Salary")*(rngCFA2=$A$45)),0) -> 0 | K45: =IF(ISNUMBER(SUMPRODUCT(--ISNUMBER(rngCFA2)*(budA2BP3)*(budA2SF="Salary")*(rngCFA2=$A$45)))=TRUE,SUMPRODUCT(--ISNUMBER(rngCFA2)*(budA2BP3)*(budA2SF="Salary")*(rngCFA2=$A$45)),0) -> 0 | N45: =IF(ISNUMBER(SUMPRODUCT(--ISNUMBER(rngCFA2)*(budA2BP4)*(budA2SF="Salary")*(rngCFA2=$A$45)))=TRUE,SUMPRODUCT(--ISNUMBER(rngCFA2)*(budA2BP4)*(budA2SF="Salary")*(rngCFA2=$A$45)),0) -> 0 | Q45: =IF(ISNUMBER(SUMPRODUCT(--ISNUMBER(rngCFA2)*(budA2BP5)*(budA2SF="Salary")*(rngCFA2=$A$45)))=TRUE,SUMPRODUCT(--ISNUMBER(rngCFA2)*(budA2BP5)*(budA2SF="Salary")*(rngCFA2=$A$45)),0) -> 0 | T45: =IF(ISNUMBER(SUMPRODUCT(--ISNUMBER(rngCFA2)*(budA2BP6)*(budA2SF="Salary")*(rngCFA2=$A$45)))=TRUE,SUMPRODUCT(--ISNUMBER(rngCFA2)*(budA2BP6)*(budA2SF="Salary")*(rngCFA2=$A$45)),0) -> 0 | W45: =IF(ISNUMBER(SUMPRODUCT(--ISNUMBER(rngCFA2)*(budA2BP7)*(budA2SF="Salary")*(rngCFA2=$A$45)))=TRUE,SUMPRODUCT(--ISNUMBER(rngCFA2)*(budA2BP7)*(budA2SF="Salary")*(rngCFA2=$A$45)),0) -> 0 | Z45: =IF(ISNUMBER(SUMPRODUCT(--ISNUMBER(rngCFA2)*(budA2BP8)*(budA2SF="Salary")*(rngCFA2=$A$45)))=TRUE,SUMPRODUCT(--ISNUMBER(rngCFA2)*(budA2BP8)*(budA2SF="Salary")*(rngCFA2=$A$45)),0) -> 0 | AC45: =IF(ISNUMBER(SUMPRODUCT(--ISNUMBER(rngCFA2)*(budA2BP9)*(budA2SF="Salary")*(rngCFA2=$A$45)))=TRUE,SUMPRODUCT(--ISNUMBER(rngCFA2)*(budA2BP9)*(budA2SF="Salary")*(rngCFA2=$A$45)),0) -> 0 | AF45: =IF(ISNUMBER(SUMPRODUCT(--ISNUMBER(rngCFA2)*(budA2BP10)*(budA2SF="Salary")*(rngCFA2=$A$45)))=TRUE,SUMPRODUCT(--ISNUMBER(rngCFA2)*(budA2BP10)*(budA2SF="Salary")*(rngCFA2=$A$45)),0) -> 0 | AI45: 0
A46: =_xlfn.XLOOKUP(B46,MTDC[Description],MTDC[VALUE],"N/A",0) -> 50080 | B46: S&W Coadjutant NonInstructional | D46: =IF(AND(B46="Make a Selection",OR(sFABC=1,sFABC=2,sFABC=3)),"",IF(sFABC=2,"Included",IF(sFABC=3,"Custom F&A Amt",IF(_xlfn.XLOOKUP(B46,MTDC[Description],MTDC[Include in MTDC],"N/A",0)="MTDC","Included","Excluded")))) -> Included | E46: =IF(ISNUMBER(SUMPRODUCT(--ISNUMBER(rngCFA2)*(budA2BP1)*(budA2SF="Salary")*(rngCFA2=$A$46)))=TRUE,SUMPRODUCT(--ISNUMBER(rngCFA2)*(budA2BP1)*(budA2SF="Salary")*(rngCFA2=$A$46)),0) -> 0 | H46: =IF(ISNUMBER(SUMPRODUCT(--ISNUMBER(rngCFA2)*(budA2BP2)*(budA2SF="Salary")*(rngCFA2=$A$46)))=TRUE,SUMPRODUCT(--ISNUMBER(rngCFA2)*(budA2BP2)*(budA2SF="Salary")*(rngCFA2=$A$46)),0) -> 0 | K46: =IF(ISNUMBER(SUMPRODUCT(--ISNUMBER(rngCFA2)*(budA2BP3)*(budA2SF="Salary")*(rngCFA2=$A$46)))=TRUE,SUMPRODUCT(--ISNUMBER(rngCFA2)*(budA2BP3)*(budA2SF="Salary")*(rngCFA2=$A$46)),0) -> 0 | N46: =IF(ISNUMBER(SUMPRODUCT(--ISNUMBER(rngCFA2)*(budA2BP4)*(budA2SF="Salary")*(rngCFA2=$A$46)))=TRUE,SUMPRODUCT(--ISNUMBER(rngCFA2)*(budA2BP4)*(budA2SF="Salary")*(rngCFA2=$A$46)),0) -> 0 | Q46: =IF(ISNUMBER(SUMPRODUCT(--ISNUMBER(rngCFA2)*(budA2BP5)*(budA2SF="Salary")*(rngCFA2=$A$46)))=TRUE,SUMPRODUCT(--ISNUMBER(rngCFA2)*(budA2BP5)*(budA2SF="Salary")*(rngCFA2=$A$46)),0) -> 0 | T46: =IF(ISNUMBER(SUMPRODUCT(--ISNUMBER(rngCFA2)*(budA2BP6)*(budA2SF="Salary")*(rngCFA2=$A$46)))=TRUE,SUMPRODUCT(--ISNUMBER(rngCFA2)*(budA2BP6)*(budA2SF="Salary")*(rngCFA2=$A$46)),0) -> 0 | W46: =IF(ISNUMBER(SUMPRODUCT(--ISNUMBER(rngCFA2)*(budA2BP7)*(budA2SF="Salary")*(rngCFA2=$A$46)))=TRUE,SUMPRODUCT(--ISNUMBER(rngCFA2)*(budA2BP7)*(budA2SF="Salary")*(rngCFA2=$A$46)),0) -> 0 | Z46: =IF(ISNUMBER(SUMPRODUCT(--ISNUMBER(rngCFA2)*(budA2BP8)*(budA2SF="Salary")*(rngCFA2=$A$46)))=TRUE,SUMPRODUCT(--ISNUMBER(rngCFA2)*(budA2BP8)*(budA2SF="Salary")*(rngCFA2=$A$46)),0) -> 0 | AC46: =IF(ISNUMBER(SUMPRODUCT(--ISNUMBER(rngCFA2)*(budA2BP9)*(budA2SF="Salary")*(rngCFA2=$A$46)))=TRUE,SUMPRODUCT(--ISNUMBER(rngCFA2)*(budA2BP9)*(budA2SF="Salary")*(rngCFA2=$A$46)),0) -> 0 | AF46: =IF(ISNUMBER(SUMPRODUCT(--ISNUMBER(rngCFA2)*(budA2BP10)*(budA2SF="Salary")*(rngCFA2=$A$46)))=TRUE,SUMPRODUCT(--ISNUMBER(rngCFA2)*(budA2BP10)*(budA2SF="Salary")*(rngCFA2=$A$46)),0) -> 0 | AI46: 0
A47: =_xlfn.XLOOKUP(B47,MTDC[Description],MTDC[VALUE],"N/A",0) -> 50081 | B47: S&W Coadjutant PTL Instructional | D47: =IF(AND(B47="Make a Selection",OR(sFABC=1,sFABC=2,sFABC=3)),"",IF(sFABC=2,"Included",IF(sFABC=3,"Custom F&A Amt",IF(_xlfn.XLOOKUP(B47,MTDC[Description],MTDC[Include in MTDC],"N/A",0)="MTDC","Included","Excluded")))) -> Included | E47: =IF(ISNUMBER(SUMPRODUCT(--ISNUMBER(rngCFA2)*(budA2BP1)*(budA2SF="Salary")*(rngCFA2=$A$47)))=TRUE,SUMPRODUCT(--ISNUMBER(rngCFA2)*(budA2BP1)*(budA2SF="Salary")*(rngCFA2=$A$47)),0) -> 0 | H47: =IF(ISNUMBER(SUMPRODUCT(--ISNUMBER(rngCFA2)*(budA2BP2)*(budA2SF="Salary")*(rngCFA2=$A$47)))=TRUE,SUMPRODUCT(--ISNUMBER(rngCFA2)*(budA2BP2)*(budA2SF="Salary")*(rngCFA2=$A$47)),0) -> 0 | K47: =IF(ISNUMBER(SUMPRODUCT(--ISNUMBER(rngCFA2)*(budA2BP3)*(budA2SF="Salary")*(rngCFA2=$A$47)))=TRUE,SUMPRODUCT(--ISNUMBER(rngCFA2)*(budA2BP3)*(budA2SF="Salary")*(rngCFA2=$A$47)),0) -> 0 | N47: =IF(ISNUMBER(SUMPRODUCT(--ISNUMBER(rngCFA2)*(budA2BP4)*(budA2SF="Salary")*(rngCFA2=$A$47)))=TRUE,SUMPRODUCT(--ISNUMBER(rngCFA2)*(budA2BP4)*(budA2SF="Salary")*(rngCFA2=$A$47)),0) -> 0 | Q47: =IF(ISNUMBER(SUMPRODUCT(--ISNUMBER(rngCFA2)*(budA2BP5)*(budA2SF="Salary")*(rngCFA2=$A$47)))=TRUE,SUMPRODUCT(--ISNUMBER(rngCFA2)*(budA2BP5)*(budA2SF="Salary")*(rngCFA2=$A$47)),0) -> 0 | T47: =IF(ISNUMBER(SUMPRODUCT(--ISNUMBER(rngCFA2)*(budA2BP6)*(budA2SF="Salary")*(rngCFA2=$A$47)))=TRUE,SUMPRODUCT(--ISNUMBER(rngCFA2)*(budA2BP6)*(budA2SF="Salary")*(rngCFA2=$A$47)),0) -> 0 | W47: =IF(ISNUMBER(SUMPRODUCT(--ISNUMBER(rngCFA2)*(budA2BP7)*(budA2SF="Salary")*(rngCFA2=$A$47)))=TRUE,SUMPRODUCT(--ISNUMBER(rngCFA2)*(budA2BP7)*(budA2SF="Salary")*(rngCFA2=$A$47)),0) -> 0 | Z47: =IF(ISNUMBER(SUMPRODUCT(--ISNUMBER(rngCFA2)*(budA2BP8)*(budA2SF="Salary")*(rngCFA2=$A$47)))=TRUE,SUMPRODUCT(--ISNUMBER(rngCFA2)*(budA2BP8)*(budA2SF="Salary")*(rngCFA2=$A$47)),0) -> 0 | AC47: =IF(ISNUMBER(SUMPRODUCT(--ISNUMBER(rngCFA2)*(budA2BP9)*(budA2SF="Salary")*(rngCFA2=$A$47)))=TRUE,SUMPRODUCT(--ISNUMBER(rngCFA2)*(budA2BP9)*(budA2SF="Salary")*(rngCFA2=$A$47)),0) -> 0 | AF47: =IF(ISNUMBER(SUMPRODUCT(--ISNUMBER(rngCFA2)*(budA2BP10)*(budA2SF="Salary")*(rngCFA2=$A$47)))=TRUE,SUMPRODUCT(--ISNUMBER(rngCFA2)*(budA2BP10)*(budA2SF="Salary")*(rngCFA2=$A$47)),0) -> 0 | AI47: 0
A48: =_xlfn.XLOOKUP(B48,MTDC[Description],MTDC[VALUE],"N/A",0) -> 50090 | B48: S&W Student Employment | D48: =IF(AND(B48="Make a Selection",OR(sFABC=1,sFABC=2,sFABC=3)),"",IF(sFABC=2,"Included",IF(sFABC=3,"Custom F&A Amt",IF(_xlfn.XLOOKUP(B48,MTDC[Description],MTDC[Include in MTDC],"N/A",0)="MTDC","Included","Excluded")))) -> Included | E48: =IF(ISNUMBER(SUMPRODUCT(--ISNUMBER(rngCFA2)*(budA2BP1)*(budA2SF="Salary")*(rngCFA2=$A$48)))=TRUE,SUMPRODUCT(--ISNUMBER(rngCFA2)*(budA2BP1)*(budA2SF="Salary")*(rngCFA2=$A$48)),0) -> 0 | H48: =IF(ISNUMBER(SUMPRODUCT(--ISNUMBER(rngCFA2)*(budA2BP2)*(budA2SF="Salary")*(rngCFA2=$A$48)))=TRUE,SUMPRODUCT(--ISNUMBER(rngCFA2)*(budA2BP2)*(budA2SF="Salary")*(rngCFA2=$A$48)),0) -> 0 | K48: =IF(ISNUMBER(SUMPRODUCT(--ISNUMBER(rngCFA2)*(budA2BP3)*(budA2SF="Salary")*(rngCFA2=$A$48)))=TRUE,SUMPRODUCT(--ISNUMBER(rngCFA2)*(budA2BP3)*(budA2SF="Salary")*(rngCFA2=$A$48)),0) -> 0 | N48: =IF(ISNUMBER(SUMPRODUCT(--ISNUMBER(rngCFA2)*(budA2BP4)*(budA2SF="Salary")*(rngCFA2=$A$48)))=TRUE,SUMPRODUCT(--ISNUMBER(rngCFA2)*(budA2BP4)*(budA2SF="Salary")*(rngCFA2=$A$48)),0) -> 0 | Q48: =IF(ISNUMBER(SUMPRODUCT(--ISNUMBER(rngCFA2)*(budA2BP5)*(budA2SF="Salary")*(rngCFA2=$A$48)))=TRUE,SUMPRODUCT(--ISNUMBER(rngCFA2)*(budA2BP5)*(budA2SF="Salary")*(rngCFA2=$A$48)),0) -> 0 | T48: =IF(ISNUMBER(SUMPRODUCT(--ISNUMBER(rngCFA2)*(budA2BP6)*(budA2SF="Salary")*(rngCFA2=$A$48)))=TRUE,SUMPRODUCT(--ISNUMBER(rngCFA2)*(budA2BP6)*(budA2SF="Salary")*(rngCFA2=$A$48)),0) -> 0 | W48: =IF(ISNUMBER(SUMPRODUCT(--ISNUMBER(rngCFA2)*(budA2BP7)*(budA2SF="Salary")*(rngCFA2=$A$48)))=TRUE,SUMPRODUCT(--ISNUMBER(rngCFA2)*(budA2BP7)*(budA2SF="Salary")*(rngCFA2=$A$48)),0) -> 0 | Z48: =IF(ISNUMBER(SUMPRODUCT(--ISNUMBER(rngCFA2)*(budA2BP8)*(budA2SF="Salary")*(rngCFA2=$A$48)))=TRUE,SUMPRODUCT(--ISNUMBER(rngCFA2)*(budA2BP8)*(budA2SF="Salary")*(rngCFA2=$A$48)),0) -> 0 | AC48: =IF(ISNUMBER(SUMPRODUCT(--ISNUMBER(rngCFA2)*(budA2BP9)*(budA2SF="Salary")*(rngCFA2=$A$48)))=TRUE,SUMPRODUCT(--ISNUMBER(rngCFA2)*(budA2BP9)*(budA2SF="Salary")*(rngCFA2=$A$48)),0) -> 0 | AF48: =IF(ISNUMBER(SUMPRODUCT(--ISNUMBER(rngCFA2)*(budA2BP10)*(budA2SF="Salary")*(rngCFA2=$A$48)))=TRUE,SUMPRODUCT(--ISNUMBER(rngCFA2)*(budA2BP10)*(budA2SF="Salary")*(rngCFA2=$A$48)),0) -> 0 | AI48: 0
A49: =_xlfn.XLOOKUP(B49,MTDC[Description],MTDC[VALUE],"N/A",0) -> 50100 | B49: S&W Contracted | D49: =IF(AND(B49="Make a Selection",OR(sFABC=1,sFABC=2,sFABC=3)),"",IF(sFABC=2,"Included",IF(sFABC=3,"Custom F&A Amt",IF(_xlfn.XLOOKUP(B49,MTDC[Description],MTDC[Include in MTDC],"N/A",0)="MTDC","Included","Excluded")))) -> Included | E49: =IF(ISNUMBER(SUMPRODUCT(--ISNUMBER(rngCFA2)*(budA2BP1)*(budA2SF="Salary")*(rngCFA2=$A$49)))=TRUE,SUMPRODUCT(--ISNUMBER(rngCFA2)*(budA2BP1)*(budA2SF="Salary")*(rngCFA2=$A$49)),0) -> 0 | H49: =IF(ISNUMBER(SUMPRODUCT(--ISNUMBER(rngCFA2)*(budA2BP2)*(budA2SF="Salary")*(rngCFA2=$A$49)))=TRUE,SUMPRODUCT(--ISNUMBER(rngCFA2)*(budA2BP2)*(budA2SF="Salary")*(rngCFA2=$A$49)),0) -> 0 | K49: =IF(ISNUMBER(SUMPRODUCT(--ISNUMBER(rngCFA2)*(budA2BP3)*(budA2SF="Salary")*(rngCFA2=$A$49)))=TRUE,SUMPRODUCT(--ISNUMBER(rngCFA2)*(budA2BP3)*(budA2SF="Salary")*(rngCFA2=$A$49)),0) -> 0 | N49: =IF(ISNUMBER(SUMPRODUCT(--ISNUMBER(rngCFA2)*(budA2BP4)*(budA2SF="Salary")*(rngCFA2=$A$49)))=TRUE,SUMPRODUCT(--ISNUMBER(rngCFA2)*(budA2BP4)*(budA2SF="Salary")*(rngCFA2=$A$49)),0) -> 0 | Q49: =IF(ISNUMBER(SUMPRODUCT(--ISNUMBER(rngCFA2)*(budA2BP5)*(budA2SF="Salary")*(rngCFA2=$A$49)))=TRUE,SUMPRODUCT(--ISNUMBER(rngCFA2)*(budA2BP5)*(budA2SF="Salary")*(rngCFA2=$A$49)),0) -> 0 | T49: =IF(ISNUMBER(SUMPRODUCT(--ISNUMBER(rngCFA2)*(budA2BP6)*(budA2SF="Salary")*(rngCFA2=$A$49)))=TRUE,SUMPRODUCT(--ISNUMBER(rngCFA2)*(budA2BP6)*(budA2SF="Salary")*(rngCFA2=$A$49)),0) -> 0 | W49: =IF(ISNUMBER(SUMPRODUCT(--ISNUMBER(rngCFA2)*(budA2BP7)*(budA2SF="Salary")*(rngCFA2=$A$49)))=TRUE,SUMPRODUCT(--ISNUMBER(rngCFA2)*(budA2BP7)*(budA2SF="Salary")*(rngCFA2=$A$49)),0) -> 0 | Z49: =IF(ISNUMBER(SUMPRODUCT(--ISNUMBER(rngCFA2)*(budA2BP8)*(budA2SF="Salary")*(rngCFA2=$A$49)))=TRUE,SUMPRODUCT(--ISNUMBER(rngCFA2)*(budA2BP8)*(budA2SF="Salary")*(rngCFA2=$A$49)),0) -> 0 | AC49: =IF(ISNUMBER(SUMPRODUCT(--ISNUMBER(rngCFA2)*(budA2BP9)*(budA2SF="Salary")*(rngCFA2=$A$49)))=TRUE,SUMPRODUCT(--ISNUMBER(rngCFA2)*(budA2BP9)*(budA2SF="Salary")*(rngCFA2=$A$49)),0) -> 0 | AF49: =IF(ISNUMBER(SUMPRODUCT(--ISNUMBER(rngCFA2)*(budA2BP10)*(budA2SF="Salary")*(rngCFA2=$A$49)))=TRUE,SUMPRODUCT(--ISNUMBER(rngCFA2)*(budA2BP10)*(budA2SF="Salary")*(rngCFA2=$A$49)),0) -> 0 | AI49: 0
A50: =_xlfn.XLOOKUP(B50,MTDC[Description],MTDC[VALUE],"N/A",0) -> 50110 | B50: Student Aid Student Researcher Stipend | D50: =IF(AND(B50="Make a Selection",OR(sFABC=1,sFABC=2,sFABC=3)),"",IF(sFABC=2,"Included",IF(sFABC=3,"Custom F&A Amt",IF(_xlfn.XLOOKUP(B50,MTDC[Description],MTDC[Include in MTDC],"N/A",0)="MTDC","Included","Excluded")))) -> Included | E50: =IF(ISNUMBER(SUMPRODUCT(--ISNUMBER(rngCFA2)*(budA2BP1)*(budA2SF="Salary")*(rngCFA2=$A$50)))=TRUE,SUMPRODUCT(--ISNUMBER(rngCFA2)*(budA2BP1)*(budA2SF="Salary")*(rngCFA2=$A$50)),0) -> 0 | H50: =IF(ISNUMBER(SUMPRODUCT(--ISNUMBER(rngCFA2)*(budA2BP2)*(budA2SF="Salary")*(rngCFA2=$A$50)))=TRUE,SUMPRODUCT(--ISNUMBER(rngCFA2)*(budA2BP2)*(budA2SF="Salary")*(rngCFA2=$A$50)),0) -> 0 | K50: =IF(ISNUMBER(SUMPRODUCT(--ISNUMBER(rngCFA2)*(budA2BP3)*(budA2SF="Salary")*(rngCFA2=$A$50)))=TRUE,SUMPRODUCT(--ISNUMBER(rngCFA2)*(budA2BP3)*(budA2SF="Salary")*(rngCFA2=$A$50)),0) -> 0 | N50: =IF(ISNUMBER(SUMPRODUCT(--ISNUMBER(rngCFA2)*(budA2BP4)*(budA2SF="Salary")*(rngCFA2=$A$50)))=TRUE,SUMPRODUCT(--ISNUMBER(rngCFA2)*(budA2BP4)*(budA2SF="Salary")*(rngCFA2=$A$50)),0) -> 0 | Q50: =IF(ISNUMBER(SUMPRODUCT(--ISNUMBER(rngCFA2)*(budA2BP5)*(budA2SF="Salary")*(rngCFA2=$A$50)))=TRUE,SUMPRODUCT(--ISNUMBER(rngCFA2)*(budA2BP5)*(budA2SF="Salary")*(rngCFA2=$A$50)),0) -> 0 | T50: =IF(ISNUMBER(SUMPRODUCT(--ISNUMBER(rngCFA2)*(budA2BP6)*(budA2SF="Salary")*(rngCFA2=$A$50)))=TRUE,SUMPRODUCT(--ISNUMBER(rngCFA2)*(budA2BP6)*(budA2SF="Salary")*(rngCFA2=$A$50)),0) -> 0 | W50: =IF(ISNUMBER(SUMPRODUCT(--ISNUMBER(rngCFA2)*(budA2BP7)*(budA2SF="Salary")*(rngCFA2=$A$50)))=TRUE,SUMPRODUCT(--ISNUMBER(rngCFA2)*(budA2BP7)*(budA2SF="Salary")*(rngCFA2=$A$50)),0) -> 0 | Z50: =IF(ISNUMBER(SUMPRODUCT(--ISNUMBER(rngCFA2)*(budA2BP8)*(budA2SF="Salary")*(rngCFA2=$A$50)))=TRUE,SUMPRODUCT(--ISNUMBER(rngCFA2)*(budA2BP8)*(budA2SF="Salary")*(rngCFA2=$A$50)),0) -> 0 | AC50: =IF(ISNUMBER(SUMPRODUCT(--ISNUMBER(rngCFA2)*(budA2BP9)*(budA2SF="Salary")*(rngCFA2=$A$50)))=TRUE,SUMPRODUCT(--ISNUMBER(rngCFA2)*(budA2BP9)*(budA2SF="Salary")*(rngCFA2=$A$50)),0) -> 0 | AF50: =IF(ISNUMBER(SUMPRODUCT(--ISNUMBER(rngCFA2)*(budA2BP10)*(budA2SF="Salary")*(rngCFA2=$A$50)))=TRUE,SUMPRODUCT(--ISNUMBER(rngCFA2)*(budA2BP10)*(budA2SF="Salary")*(rngCFA2=$A$50)),0) -> 0 | AI50: 0
A51: =_xlfn.XLOOKUP(B51,MTDC[Description],MTDC[VALUE],"N/A",0) -> 50115 | B51: Student Aid Pre & Post Fellowship | D51: =IF(AND(B51="Make a Selection",OR(sFABC=1,sFABC=2,sFABC=3)),"",IF(sFABC=2,"Included",IF(sFABC=3,"Custom F&A Amt",IF(_xlfn.XLOOKUP(B51,MTDC[Description],MTDC[Include in MTDC],"N/A",0)="MTDC","Included","Excluded")))) -> Included | E51: =IF(ISNUMBER(SUMPRODUCT(--ISNUMBER(rngCFA2)*(budA2BP1)*(budA2SF="Salary")*(rngCFA2=$A$51)))=TRUE,SUMPRODUCT(--ISNUMBER(rngCFA2)*(budA2BP1)*(budA2SF="Salary")*(rngCFA2=$A$51)),0) -> 0 | H51: =IF(ISNUMBER(SUMPRODUCT(--ISNUMBER(rngCFA2)*(budA2BP2)*(budA2SF="Salary")*(rngCFA2=$A$51)))=TRUE,SUMPRODUCT(--ISNUMBER(rngCFA2)*(budA2BP2)*(budA2SF="Salary")*(rngCFA2=$A$51)),0) -> 0 | K51: =IF(ISNUMBER(SUMPRODUCT(--ISNUMBER(rngCFA2)*(budA2BP3)*(budA2SF="Salary")*(rngCFA2=$A$51)))=TRUE,SUMPRODUCT(--ISNUMBER(rngCFA2)*(budA2BP3)*(budA2SF="Salary")*(rngCFA2=$A$51)),0) -> 0 | N51: =IF(ISNUMBER(SUMPRODUCT(--ISNUMBER(rngCFA2)*(budA2BP4)*(budA2SF="Salary")*(rngCFA2=$A$51)))=TRUE,SUMPRODUCT(--ISNUMBER(rngCFA2)*(budA2BP4)*(budA2SF="Salary")*(rngCFA2=$A$51)),0) -> 0 | Q51: =IF(ISNUMBER(SUMPRODUCT(--ISNUMBER(rngCFA2)*(budA2BP5)*(budA2SF="Salary")*(rngCFA2=$A$51)))=TRUE,SUMPRODUCT(--ISNUMBER(rngCFA2)*(budA2BP5)*(budA2SF="Salary")*(rngCFA2=$A$51)),0) -> 0 | T51: =IF(ISNUMBER(SUMPRODUCT(--ISNUMBER(rngCFA2)*(budA2BP6)*(budA2SF="Salary")*(rngCFA2=$A$51)))=TRUE,SUMPRODUCT(--ISNUMBER(rngCFA2)*(budA2BP6)*(budA2SF="Salary")*(rngCFA2=$A$51)),0) -> 0 | W51: =IF(ISNUMBER(SUMPRODUCT(--ISNUMBER(rngCFA2)*(budA2BP7)*(budA2SF="Salary")*(rngCFA2=$A$51)))=TRUE,SUMPRODUCT(--ISNUMBER(rngCFA2)*(budA2BP7)*(budA2SF="Salary")*(rngCFA2=$A$51)),0) -> 0 | Z51: =IF(ISNUMBER(SUMPRODUCT(--ISNUMBER(rngCFA2)*(budA2BP8)*(budA2SF="Salary")*(rngCFA2=$A$51)))=TRUE,SUMPRODUCT(--ISNUMBER(rngCFA2)*(budA2BP8)*(budA2SF="Salary")*(rngCFA2=$A$51)),0) -> 0 | AC51: =IF(ISNUMBER(SUMPRODUCT(--ISNUMBER(rngCFA2)*(budA2BP9)*(budA2SF="Salary")*(rngCFA2=$A$51)))=TRUE,SUMPRODUCT(--ISNUMBER(rngCFA2)*(budA2BP9)*(budA2SF="Salary")*(rngCFA2=$A$51)),0) -> 0 | AF51: =IF(ISNUMBER(SUMPRODUCT(--ISNUMBER(rngCFA2)*(budA2BP10)*(budA2SF="Salary")*(rngCFA2=$A$51)))=TRUE,SUMPRODUCT(--ISNUMBER(rngCFA2)*(budA2BP10)*(budA2SF="Salary")*(rngCFA2=$A$51)),0) -> 0 | AI51: 0
A52: =_xlfn.XLOOKUP(B52,MTDC[Description],MTDC[VALUE],"N/A",0) -> 50120 | B52: S&W Hourly Employees | D52: =IF(AND(B52="Make a Selection",OR(sFABC=1,sFABC=2,sFABC=3)),"",IF(sFABC=2,"Included",IF(sFABC=3,"Custom F&A Amt",IF(_xlfn.XLOOKUP(B52,MTDC[Description],MTDC[Include in MTDC],"N/A",0)="MTDC","Included","Excluded")))) -> Included | E52: =IF(ISNUMBER(SUMPRODUCT(--ISNUMBER(rngCFA2)*(budA2BP1)*(budA2SF="Salary")*(rngCFA2=$A$52)))=TRUE,SUMPRODUCT(--ISNUMBER(rngCFA2)*(budA2BP1)*(budA2SF="Salary")*(rngCFA2=$A$52)),0) -> 0 | H52: =IF(ISNUMBER(SUMPRODUCT(--ISNUMBER(rngCFA2)*(budA2BP2)*(budA2SF="Salary")*(rngCFA2=$A$52)))=TRUE,SUMPRODUCT(--ISNUMBER(rngCFA2)*(budA2BP2)*(budA2SF="Salary")*(rngCFA2=$A$52)),0) -> 0 | K52: =IF(ISNUMBER(SUMPRODUCT(--ISNUMBER(rngCFA2)*(budA2BP3)*(budA2SF="Salary")*(rngCFA2=$A$52)))=TRUE,SUMPRODUCT(--ISNUMBER(rngCFA2)*(budA2BP3)*(budA2SF="Salary")*(rngCFA2=$A$52)),0) -> 0 | N52: =IF(ISNUMBER(SUMPRODUCT(--ISNUMBER(rngCFA2)*(budA2BP4)*(budA2SF="Salary")*(rngCFA2=$A$52)))=TRUE,SUMPRODUCT(--ISNUMBER(rngCFA2)*(budA2BP4)*(budA2SF="Salary")*(rngCFA2=$A$52)),0) -> 0 | Q52: =IF(ISNUMBER(SUMPRODUCT(--ISNUMBER(rngCFA2)*(budA2BP5)*(budA2SF="Salary")*(rngCFA2=$A$52)))=TRUE,SUMPRODUCT(--ISNUMBER(rngCFA2)*(budA2BP5)*(budA2SF="Salary")*(rngCFA2=$A$52)),0) -> 0 | T52: =IF(ISNUMBER(SUMPRODUCT(--ISNUMBER(rngCFA2)*(budA2BP6)*(budA2SF="Salary")*(rngCFA2=$A$52)))=TRUE,SUMPRODUCT(--ISNUMBER(rngCFA2)*(budA2BP6)*(budA2SF="Salary")*(rngCFA2=$A$52)),0) -> 0 | W52: =IF(ISNUMBER(SUMPRODUCT(--ISNUMBER(rngCFA2)*(budA2BP7)*(budA2SF="Salary")*(rngCFA2=$A$52)))=TRUE,SUMPRODUCT(--ISNUMBER(rngCFA2)*(budA2BP7)*(budA2SF="Salary")*(rngCFA2=$A$52)),0) -> 0 | Z52: =IF(ISNUMBER(SUMPRODUCT(--ISNUMBER(rngCFA2)*(budA2BP8)*(budA2SF="Salary")*(rngCFA2=$A$52)))=TRUE,SUMPRODUCT(--ISNUMBER(rngCFA2)*(budA2BP8)*(budA2SF="Salary")*(rngCFA2=$A$52)),0) -> 0 | AC52: =IF(ISNUMBER(SUMPRODUCT(--ISNUMBER(rngCFA2)*(budA2BP9)*(budA2SF="Salary")*(rngCFA2=$A$52)))=TRUE,SUMPRODUCT(--ISNUMBER(rngCFA2)*(budA2BP9)*(budA2SF="Salary")*(rngCFA2=$A$52)),0) -> 0 | AF52: =IF(ISNUMBER(SUMPRODUCT(--ISNUMBER(rngCFA2)*(budA2BP10)*(budA2SF="Salary")*(rngCFA2=$A$52)))=TRUE,SUMPRODUCT(--ISNUMBER(rngCFA2)*(budA2BP10)*(budA2SF="Salary")*(rngCFA2=$A$52)),0) -> 0 | AI52: 0
A53: =_xlfn.XLOOKUP(B53,MTDC[Description],MTDC[VALUE],"N/A",0) -> 51110 | B53: FB Staff Employees | D53: =IF(sFABC=2,"Included",IF(sFABC=3,"Custom F&A Amt",IF(_xlfn.XLOOKUP(B53,MTDC[Description],MTDC[Include in MTDC],"N/A",0)="MTDC","Included","Excluded"))) -> Included | E53: =SUMPRODUCT((budA2SF="Fringe")*(budA2BP1)) -> 0 | H53: =SUMPRODUCT((budA2SF="Fringe")*(budA2BP2)) -> 0 | K53: =SUMPRODUCT((budA2SF="Fringe")*(budA2BP3)) -> 0 | N53: =SUMPRODUCT((budA2SF="Fringe")*(budA2BP4)) -> 0 | Q53: =SUMPRODUCT((budA2SF="Fringe")*(budA2BP5)) -> 0 | T53: =SUMPRODUCT((budA2SF="Fringe")*(budA2BP6)) -> 0 | W53: =SUMPRODUCT((budA2SF="Fringe")*(budA2BP7)) -> 0 | Z53: =SUMPRODUCT((budA2SF="Fringe")*(budA2BP8)) -> 0 | AC53: =SUMPRODUCT((budA2SF="Fringe")*(budA2BP9)) -> 0 | AF53: =SUMPRODUCT((budA2SF="Fringe")*(budA2BP10)) -> 0 | AI53: =SUM(E53:AH53) -> 0
B55: Salary & Wages (Basic) | E55: =SUM(E39:G52) -> 0 | H55: =SUM(H39:J52) -> 0 | K55: =SUM(K39:M52) -> 0 | N55: =SUM(N39:P52) -> 0 | Q55: =SUM(Q39:S52) -> 0 | T55: =SUM(T39:V53) -> 0 | W55: =SUM(W39:Y52) -> 0 | Z55: =SUM(Z39:AB52) -> 0 | AC55: =SUM(AC39:AE52) -> 0 | AF55: =SUM(AF39:AH52) -> 0 | AI55: =SUM(E55:AH55) -> 0
B56: Fringe (Basic) | E56: =SUMPRODUCT((budA2SF="Fringe")*(budA2BP1)) -> 0 | H56: =SUMPRODUCT((budA2SF="Fringe")*(budA2BP2)) -> 0 | K56: =SUMPRODUCT((budA2SF="Fringe")*(budA2BP3)) -> 0 | N56: =SUMPRODUCT((budA2SF="Fringe")*(budA2BP4)) -> 0 | Q56: =SUMPRODUCT((budA2SF="Fringe")*(budA2BP5)) -> 0 | T56: =SUMPRODUCT((budA2SF="Fringe")*(budA2BP6)) -> 0 | W56: =SUMPRODUCT((budA2SF="Fringe")*(budA2BP7)) -> 0 | Z56: =SUMPRODUCT((budA2SF="Fringe")*(budA2BP8)) -> 0 | AC56: =SUMPRODUCT((budA2SF="Fringe")*(budA2BP9)) -> 0 | AF56: =SUMPRODUCT((budA2SF="Fringe")*(budA2BP10)) -> 0 | AI56: =SUM(E56:AH56) -> 0
B57: Total Salary & Wages (Basic) | E57: =SUM(E55:G56) -> 0 | H57: =SUM(H55:J56) -> 0 | K57: =SUM(K55:M56) -> 0 | N57: =SUM(N55:P56) -> 0 | Q57: =SUM(Q55:S56) -> 0 | T57: =SUM(T55:V56) -> 0 | W57: =SUM(W55:Y56) -> 0 | Z57: =SUM(Z55:AB56) -> 0 | AC57: =SUM(AC55:AE56) -> 0 | AF57: =SUM(AF55:AH56) -> 0 | AI57: =SUM(E57:AH57) -> 0
AO58: A3. SALARIES & WAGES
A59: =_xlfn.XLOOKUP(B59,MTDC[Description],MTDC[VALUE],"N/A",0) -> 50010 | B59: S&W Staff | D59: =IF(AND(B59="Make a Selection",OR(sFABC=1,sFABC=2,sFABC=3)),"",IF(sFABC=2,"Included",IF(sFABC=3,"Custom F&A Amt",IF(_xlfn.XLOOKUP(B59,MTDC[Description],MTDC[Include in MTDC],"N/A",0)="MTDC","Included","Excluded")))) -> Included | E59: =SUM(E14,E39) -> 0 | H59: =SUM(H14,H39) -> 0 | K59: =SUM(K14,K39) -> 0 | N59: =SUM(N14,N39) -> 0 | Q59: =SUM(Q14,Q39) -> 0 | T59: =SUM(T14,T39) -> 0 | W59: =SUM(W14,W39) -> 0 | Z59: =SUM(Z14,Z39) -> 0 | AC59: =SUM(AC14,AC39) -> 0 | AF59: =SUM(AF14,AF39) -> 0 | AI59: =SUM(E59:AH59) -> 0 | AM59: Included | AO59: =A59 -> 50010 | AP59: =B59 -> S&W Staff | AQ59: =IF(D59="Included","Inc.",IF(D59="Excluded","Exc.","")) -> Inc. | AR59: =E59 -> 0 | AS59: =H59 -> 0 | AT59: =K59 -> 0 | AU59: =N59 -> 0 | AV59: =Q59 -> 0 | AW59: =T59 -> 0 | AX59: =W59 -> 0 | AY59: =Z59 -> 0 | AZ59: =AC59 -> 0 | BA59: =AF59 -> 0 | BB59: =AI59 -> 0 | BC59: =IF(AL59="","",AL59) -> 
A60: =_xlfn.XLOOKUP(B60,MTDC[Description],MTDC[VALUE],"N/A",0) -> 50020 | B60: S&W Tenured Faculty | D60: =IF(AND(B60="Make a Selection",OR(sFABC=1,sFABC=2,sFABC=3)),"",IF(sFABC=2,"Included",IF(sFABC=3,"Custom F&A Amt",IF(_xlfn.XLOOKUP(B60,MTDC[Description],MTDC[Include in MTDC],"N/A",0)="MTDC","Included","Excluded")))) -> Included | E60: 0 | H60: 0 | K60: 0 | N60: 0 | Q60: 0 | T60: 0 | W60: 0 | Z60: 0 | AC60: 0 | AF60: 0 | AI60: =SUM(E60:AH60) -> 0 | AM60: Included | AO60: 50020 | AP60: S&W Tenured Faculty | AQ60: Inc. | AR60: 0 | AS60: 0 | AT60: 0 | AU60: 0 | AV60: 0 | AW60: 0 | AX60: 0 | AY60: 0 | AZ60: 0 | BA60: 0 | BB60: 0
A61: =_xlfn.XLOOKUP(B61,MTDC[Description],MTDC[VALUE],"N/A",0) -> 50030 | B61: S&W Tenure Track Faculty | D61: =IF(AND(B61="Make a Selection",OR(sFABC=1,sFABC=2,sFABC=3)),"",IF(sFABC=2,"Included",IF(sFABC=3,"Custom F&A Amt",IF(_xlfn.XLOOKUP(B61,MTDC[Description],MTDC[Include in MTDC],"N/A",0)="MTDC","Included","Excluded")))) -> Included | E61: 0 | H61: 0 | K61: 0 | N61: 0 | Q61: 0 | T61: 0 | W61: 0 | Z61: 0 | AC61: 0 | AF61: 0 | AI61: 0 | AM61: Included | AO61: 50030 | AP61: S&W Tenure Track Faculty | AQ61: Inc. | AR61: 0 | AS61: 0 | AT61: 0 | AU61: 0 | AV61: 0 | AW61: 0 | AX61: 0 | AY61: 0 | AZ61: 0 | BA61: 0 | BB61: 0
A62: =_xlfn.XLOOKUP(B62,MTDC[Description],MTDC[VALUE],"N/A",0) -> 50040 | B62: S&W NonTenured Faculty | D62: =IF(AND(B62="Make a Selection",OR(sFABC=1,sFABC=2,sFABC=3)),"",IF(sFABC=2,"Included",IF(sFABC=3,"Custom F&A Amt",IF(_xlfn.XLOOKUP(B62,MTDC[Description],MTDC[Include in MTDC],"N/A",0)="MTDC","Included","Excluded")))) -> Included | E62: 0 | H62: 0 | K62: 0 | N62: 0 | Q62: 0 | T62: 0 | W62: 0 | Z62: 0 | AC62: 0 | AF62: 0 | AI62: 0 | AM62: Included | AO62: 50040 | AP62: S&W NonTenured Faculty | AQ62: Inc. | AR62: 0 | AS62: 0 | AT62: 0 | AU62: 0 | AV62: 0 | AW62: 0 | AX62: 0 | AY62: 0 | AZ62: 0 | BA62: 0 | BB62: 0
A63: =_xlfn.XLOOKUP(B63,MTDC[Description],MTDC[VALUE],"N/A",0) -> 50050 | B63: S&W TA & GA | D63: =IF(AND(B63="Make a Selection",OR(sFABC=1,sFABC=2,sFABC=3)),"",IF(sFABC=2,"Included",IF(sFABC=3,"Custom F&A Amt",IF(_xlfn.XLOOKUP(B63,MTDC[Description],MTDC[Include in MTDC],"N/A",0)="MTDC","Included","Excluded")))) -> Included | E63: 0 | H63: 0 | K63: 0 | N63: 0 | Q63: 0 | T63: 0 | W63: 0 | Z63: 0 | AC63: 0 | AF63: 0 | AI63: 0 | AM63: Included | AO63: 50050 | AP63: S&W TA & GA | AQ63: Inc. | AR63: 0 | AS63: 0 | AT63: 0 | AU63: 0 | AV63: 0 | AW63: 0 | AX63: 0 | AY63: 0 | AZ63: 0 | BA63: 0 | BB63: 0
A64: =_xlfn.XLOOKUP(B64,MTDC[Description],MTDC[VALUE],"N/A",0) -> 50060 | B64: S&W Post Doctorate & Associates | D64: =IF(AND(B64="Make a Selection",OR(sFABC=1,sFABC=2,sFABC=3)),"",IF(sFABC=2,"Included",IF(sFABC=3,"Custom F&A Amt",IF(_xlfn.XLOOKUP(B64,MTDC[Description],MTDC[Include in MTDC],"N/A",0)="MTDC","Included","Excluded")))) -> Included | E64: 0 | H64: 0 | K64: 0 | N64: 0 | Q64: 0 | T64: 0 | W64: 0 | Z64: 0 | AC64: 0 | AF64: 0 | AI64: 0 | AM64: Included | AO64: 50060 | AP64: S&W Post Doctorate & Associates | AQ64: Inc. | AR64: 0 | AS64: 0 | AT64: 0 | AU64: 0 | AV64: 0 | AW64: 0 | AX64: 0 | AY64: 0 | AZ64: 0 | BA64: 0 | BB64: 0
A65: =_xlfn.XLOOKUP(B65,MTDC[Description],MTDC[VALUE],"N/A",0) -> 50070 | B65: S&W Housestaff | D65: =IF(AND(B65="Make a Selection",OR(sFABC=1,sFABC=2,sFABC=3)),"",IF(sFABC=2,"Included",IF(sFABC=3,"Custom F&A Amt",IF(_xlfn.XLOOKUP(B65,MTDC[Description],MTDC[Include in MTDC],"N/A",0)="MTDC","Included","Excluded")))) -> Included | E65: 0 | H65: 0 | K65: 0 | N65: 0 | Q65: 0 | T65: 0 | W65: 0 | Z65: 0 | AC65: 0 | AF65: 0 | AI65: 0 | AM65: Included | AO65: 50070 | AP65: S&W Housestaff | AQ65: Inc. | AR65: 0 | AS65: 0 | AT65: 0 | AU65: 0 | AV65: 0 | AW65: 0 | AX65: 0 | AY65: 0 | AZ65: 0 | BA65: 0 | BB65: 0
A66: =_xlfn.XLOOKUP(B66,MTDC[Description],MTDC[VALUE],"N/A",0) -> 50080 | B66: S&W Coadjutant NonInstructional | D66: =IF(AND(B66="Make a Selection",OR(sFABC=1,sFABC=2,sFABC=3)),"",IF(sFABC=2,"Included",IF(sFABC=3,"Custom F&A Amt",IF(_xlfn.XLOOKUP(B66,MTDC[Description],MTDC[Include in MTDC],"N/A",0)="MTDC","Included","Excluded")))) -> Included | E66: 0 | H66: 0 | K66: 0 | N66: 0 | Q66: 0 | T66: 0 | W66: 0 | Z66: 0 | AC66: 0 | AF66: 0 | AI66: 0 | AM66: Included | AO66: 50080 | AP66: S&W Coadjutant NonInstructional | AQ66: Inc. | AR66: 0 | AS66: 0 | AT66: 0 | AU66: 0 | AV66: 0 | AW66: 0 | AX66: 0 | AY66: 0 | AZ66: 0 | BA66: 0 | BB66: 0
A67: =_xlfn.XLOOKUP(B67,MTDC[Description],MTDC[VALUE],"N/A",0) -> 50081 | B67: S&W Coadjutant PTL Instructional | D67: =IF(AND(B67="Make a Selection",OR(sFABC=1,sFABC=2,sFABC=3)),"",IF(sFABC=2,"Included",IF(sFABC=3,"Custom F&A Amt",IF(_xlfn.XLOOKUP(B67,MTDC[Description],MTDC[Include in MTDC],"N/A",0)="MTDC","Included","Excluded")))) -> Included | E67: 0 | H67: 0 | K67: 0 | N67: 0 | Q67: 0 | T67: 0 | W67: 0 | Z67: 0 | AC67: 0 | AF67: 0 | AI67: 0 | AM67: Included | AO67: 50081 | AP67: S&W Coadjutant PTL Instructional | AQ67: Inc. | AR67: 0 | AS67: 0 | AT67: 0 | AU67: 0 | AV67: 0 | AW67: 0 | AX67: 0 | AY67: 0 | AZ67: 0 | BA67: 0 | BB67: 0
A68: =_xlfn.XLOOKUP(B68,MTDC[Description],MTDC[VALUE],"N/A",0) -> 50090 | B68: S&W Student Employment | D68: =IF(AND(B68="Make a Selection",OR(sFABC=1,sFABC=2,sFABC=3)),"",IF(sFABC=2,"Included",IF(sFABC=3,"Custom F&A Amt",IF(_xlfn.XLOOKUP(B68,MTDC[Description],MTDC[Include in MTDC],"N/A",0)="MTDC","Included","Excluded")))) -> Included | E68: 0 | H68: 0 | K68: 0 | N68: 0 | Q68: 0 | T68: 0 | W68: 0 | Z68: 0 | AC68: 0 | AF68: 0 | AI68: 0 | AM68: Included | AO68: 50090 | AP68: S&W Student Employment | AQ68: Inc. | AR68: 0 | AS68: 0 | AT68: 0 | AU68: 0 | AV68: 0 | AW68: 0 | AX68: 0 | AY68: 0 | AZ68: 0 | BA68: 0 | BB68: 0
A69: =_xlfn.XLOOKUP(B69,MTDC[Description],MTDC[VALUE],"N/A",0) -> 50100 | B69: S&W Contracted | D69: =IF(AND(B69="Make a Selection",OR(sFABC=1,sFABC=2,sFABC=3)),"",IF(sFABC=2,"Included",IF(sFABC=3,"Custom F&A Amt",IF(_xlfn.XLOOKUP(B69,MTDC[Description],MTDC[Include in MTDC],"N/A",0)="MTDC","Included","Excluded")))) -> Included | E69: 0 | H69: 0 | K69: 0 | N69: 0 | Q69: 0 | T69: 0 | W69: 0 | Z69: 0 | AC69: 0 | AF69: 0 | AI69: 0 | AM69: Included | AO69: 50100 | AP69: S&W Contracted | AQ69: Inc. | AR69: 0 | AS69: 0 | AT69: 0 | AU69: 0 | AV69: 0 | AW69: 0 | AX69: 0 | AY69: 0 | AZ69: 0 | BA69: 0 | BB69: 0
A70: =_xlfn.XLOOKUP(B70,MTDC[Description],MTDC[VALUE],"N/A",0) -> 50110 | B70: Student Aid Student Researcher Stipend | D70: =IF(AND(B70="Make a Selection",OR(sFABC=1,sFABC=2,sFABC=3)),"",IF(sFABC=2,"Included",IF(sFABC=3,"Custom F&A Amt",IF(_xlfn.XLOOKUP(B70,MTDC[Description],MTDC[Include in MTDC],"N/A",0)="MTDC","Included","Excluded")))) -> Included | E70: 0 | H70: 0 | K70: 0 | N70: 0 | Q70: 0 | T70: 0 | W70: 0 | Z70: 0 | AC70: 0 | AF70: 0 | AI70: 0 | AM70: Included | AO70: 50110 | AP70: Student Aid Student Researcher Stipend | AQ70: Inc. | AR70: 0 | AS70: 0 | AT70: 0 | AU70: 0 | AV70: 0 | AW70: 0 | AX70: 0 | AY70: 0 | AZ70: 0 | BA70: 0 | BB70: 0
A71: =_xlfn.XLOOKUP(B71,MTDC[Description],MTDC[VALUE],"N/A",0) -> 50115 | B71: Student Aid Pre & Post Fellowship | D71: =IF(AND(B71="Make a Selection",OR(sFABC=1,sFABC=2,sFABC=3)),"",IF(sFABC=2,"Included",IF(sFABC=3,"Custom F&A Amt",IF(_xlfn.XLOOKUP(B71,MTDC[Description],MTDC[Include in MTDC],"N/A",0)="MTDC","Included","Excluded")))) -> Included | E71: 0 | H71: 0 | K71: 0 | N71: 0 | Q71: 0 | T71: 0 | W71: 0 | Z71: 0 | AC71: 0 | AF71: 0 | AI71: 0 | AM71: Included | AO71: 50115 | AP71: Student Aid Pre & Post Fellowship | AQ71: Inc. | AR71: 0 | AS71: 0 | AT71: 0 | AU71: 0 | AV71: 0 | AW71: 0 | AX71: 0 | AY71: 0 | AZ71: 0 | BA71: 0 | BB71: 0
A72: =_xlfn.XLOOKUP(B72,MTDC[Description],MTDC[VALUE],"N/A",0) -> 50120 | B72: S&W Hourly Employees | D72: =IF(AND(B72="Make a Selection",OR(sFABC=1,sFABC=2,sFABC=3)),"",IF(sFABC=2,"Included",IF(sFABC=3,"Custom F&A Amt",IF(_xlfn.XLOOKUP(B72,MTDC[Description],MTDC[Include in MTDC],"N/A",0)="MTDC","Included","Excluded")))) -> Included | E72: 0 | H72: 0 | K72: 0 | N72: 0 | Q72: 0 | T72: 0 | W72: 0 | Z72: 0 | AC72: 0 | AF72: 0 | AI72: 0 | AM72: Included | AO72: 50120 | AP72: S&W Hourly Employees | AQ72: Inc. | AR72: 0 | AS72: 0 | AT72: 0 | AU72: 0 | AV72: 0 | AW72: 0 | AX72: 0 | AY72: 0 | AZ72: 0 | BA72: 0 | BB72: 0
A73: =_xlfn.XLOOKUP(B73,MTDC[Description],MTDC[VALUE],"N/A",0) -> 51110 | B73: FB Staff Employees | D73: =IF(sFABC=2,"Included",IF(sFABC=3,"Custom F&A Amt",IF(_xlfn.XLOOKUP(B73,MTDC[Description],MTDC[Include in MTDC],"N/A",0)="MTDC","Included","Excluded"))) -> Included | E73: 0 | H73: 0 | K73: 0 | N73: 0 | Q73: 0 | T73: 0 | W73: 0 | Z73: 0 | AC73: 0 | AF73: 0 | AI73: 0 | AM73: Included | AP73: Fringe Benefits (Total) | AQ73: Inc. | AR73: 0 | AS73: 0 | AT73: 0 | AU73: 0 | AV73: 0 | AW73: 0 | AX73: 0 | AY73: 0 | AZ73: 0 | BA73: 0 | BB73: 0
A75: A3. TOTAL SALARY & WAGES | C75: Salary & Wages (Total) | E75: =SUM(E30,E55) -> 0 | H75: =SUM(H30,H55) -> 0 | K75: =SUM(K30,K55) -> 0 | N75: =SUM(N30,N55) -> 0 | Q75: =SUM(Q30,Q55) -> 0 | T75: =SUM(T30,T55) -> 0 | W75: =SUM(W30,W55) -> 0 | Z75: =SUM(Z30,Z55) -> 0 | AC75: =SUM(AC30,AC55) -> 0 | AF75: =SUM(AF30,AF55) -> 0 | AI75: =SUM(E75:AH75) -> 0
C76: Fringe (Total) | E76: =SUM(E31,E56) -> 0 | H76: =SUM(H31,H56) -> 0 | K76: =SUM(K31,K56) -> 0 | N76: =SUM(N31,N56) -> 0 | Q76: =SUM(Q31,Q56) -> 0 | T76: =SUM(T31,T56) -> 0 | W76: =SUM(W31,W56) -> 0 | Z76: =SUM(Z31,Z56) -> 0 | AC76: =SUM(AC31,AC56) -> 0 | AF76: =SUM(AF31,AF56) -> 0 | AI76: =SUM(E76:AH76) -> 0
C77: Salary & Wages (Total) | E77: =SUM(E75:G76) -> 0 | H77: =SUM(H75:J76) -> 0 | K77: =SUM(K75:M76) -> 0 | N77: =SUM(N75:P76) -> 0 | Q77: =SUM(Q75:S76) -> 0 | T77: =SUM(T75:V76) -> 0 | W77: =SUM(W75:Y76) -> 0 | Z77: =SUM(Z75:AB76) -> 0 | AC77: =SUM(AC75:AE76) -> 0 | AF77: =SUM(AF75:AH76) -> 0 | AI77: =SUM(E77:AH77) -> 0 | AM77: Included
A79: CONSULTANTS WORKSHEET
A80: Enter Consultant's Name | E80: 0 | H80: 0 | K80: 0 | N80: 0 | Q80: 0 | T80: 0 | W80: 0 | Z80: 0 | AC80: 0 | AF80: 0 | AI80: =SUM(E80:AH80) -> 0
A82: (Appears in Section F of the template) | C82: Total Consultants | E82: =SUM(E80:G81) -> 0 | H82: =SUM(H80:J81) -> 0 | K82: =SUM(K80:M81) -> 0 | N82: =SUM(N80:P81) -> 0 | Q82: =SUM(Q80:S81) -> 0 | T82: =SUM(T80:V81) -> 0 | W82: =SUM(W80:Y81) -> 0 | Z82: =SUM(Z80:AB81) -> 0 | AC82: =SUM(AC80:AE81) -> 0 | AF82: =SUM(AF80:AH81) -> 0 | AI82: =SUM(E82:AH82) -> 0
A84: SUBCONTRACTS WORKSHEET
A85: Enter Subcontractor's Name | D85: Direct | E85: 0 | H85: 0 | K85: 0 | N85: 0 | Q85: 0 | T85: 0 | W85: 0 | Z85: 0 | AC85: 0 | AF85: 0 | AI85: =SUM(E85:AH85) -> 0
A86: Yes | B86: Apply Indirect Costs on First $25K | D86: Indirect | E86: 0 | H86: 0 | K86: 0 | N86: 0 | Q86: 0 | T86: 0 | W86: 0 | Z86: 0 | AC86: 0 | AF86: 0 | AI86: =SUM(E86:AH86) -> 0
D87: Subtotal | E87: =SUM(E85:G86) -> 0 | H87: =SUM(H85:J86) -> 0 | K87: =SUM(K85:M86) -> 0 | N87: =SUM(N85:P86) -> 0 | Q87: =SUM(Q85:S86) -> 0 | T87: =SUM(T85:V86) -> 0 | W87: =SUM(W85:Y86) -> 0 | Z87: =SUM(Z85:AB86) -> 0 | AC87: =SUM(AC85:AE86) -> 0 | AF87: =SUM(AF85:AH86) -> 0 | AI87: 0
D88: LTE25K | E88: =IF(A86="No",0,IF(SUM(E87)<25001,E87,25000)) -> 0 | H88: =IF(A86="No",0,IF(SUM(E87:J87)<25001,H87,25000-SUM(E88))) -> 0 | K88: =IF(A86="No",0,IF(SUM(E87:M87)<25001,K87,25000-SUM(E88:J88))) -> 0 | N88: =IF(A86="No",0,IF(SUM(E87:P87)<25001,N87,25000-SUM(E88:M88))) -> 0 | Q88: =IF(A86="No",0,IF(SUM(E87:S87)<25001,Q87,25000-SUM(E88:P88))) -> 0 | T88: =IF(A86="No",0,IF(SUM(E87:V87)<25001,T87,25000-SUM(E88:S88))) -> 0 | W88: =IF(A86="No",0,IF(SUM(E87:Y87)<25001,W87,25000-SUM(E88:V88))) -> 0 | Z88: =IF(A86="No",0,IF(SUM(E87:AB87)<25001,Z87,25000-SUM(E88:Y88))) -> 0 | AC88: =IF(A86="No",0,IF(SUM(E87:AE87)<25001,AC87,25000-SUM(E88:AB88))) -> 0 | AF88: =IF(A86="No",0,IF(SUM(E87:AH87)<25001,AF87,25000-SUM(E88:AE88))) -> 0 | AI88: =SUM(E88:AH88) -> 0
D89: GT25K | E89: =IF(A86="No",E87,IF(SUM(E87)<25001,0,E87-E88)) -> 0 | H89: =IF(A86="No",H87,IF(SUM(E87:J87)<25001,0,H87-H88)) -> 0 | K89: =IF(A86="No",K87,IF(SUM(E87:M87)<25001,0,K87-K88)) -> 0 | N89: =IF(A86="No",N87,IF(SUM(E87:P87)<25001,0,N87-N88)) -> 0 | Q89: =IF(A86="No",Q87,IF(SUM(E87:S87)<25001,0,Q87-Q88)) -> 0 | T89: =IF(A86="No",T87,IF(SUM(E87:V87)<25001,0,T87-T88)) -> 0 | W89: =IF(A86="No",W87,IF(SUM(B87:Y87)<25001,0,W87-W88)) -> 0 | Z89: =IF(A86="No",Z87,IF(SUM(E87:AB87)<25001,0,Z87-Z88)) -> 0 | AC89: =IF(A86="No",AC87,IF(SUM(E87:AE87)<25001,0,AC87-AC88)) -> 0 | AF89: =IF(SUM(E87:AH87)<25001,0,AF87-AF88) -> 0 | AI89: =SUM(E89:AH89) -> 0
C91: Total Subcontracts <= to 25,000 | E91: =SUMPRODUCT((rngSUBCat="LTE25K")*rngSUBBP1) -> 0 | H91: =SUMPRODUCT((rngSUBCat="LTE25K")*rngSUBBP2) -> 0 | K91: =SUMPRODUCT((rngSUBCat="LTE25K")*rngSUBBP3) -> 0 | N91: =SUMPRODUCT((rngSUBCat="LTE25K")*rngSUBBP4) -> 0 | Q91: =SUMPRODUCT((rngSUBCat="LTE25K")*rngSUBBP5) -> 0 | T91: =SUMPRODUCT((rngSUBCat="LTE25K")*rngSUBBP6) -> 0 | W91: =SUMPRODUCT((rngSUBCat="LTE25K")*rngSUBBP7) -> 0 | Z91: =SUMPRODUCT((rngSUBCat="LTE25K")*rngSUBBP8) -> 0 | AC91: =SUMPRODUCT((rngSUBCat="LTE25K")*rngSUBBP9) -> 0 | AF91: =SUMPRODUCT((rngSUBCat="LTE25K")*rngSUBBP10) -> 0 | AI91: =SUM(E91:AH91) -> 0
A92: (Appears in Section F of the template) | C92: Total Subcontracts > 25,000 | E92: =SUMPRODUCT((rngSUBCat="GT25K")*rngSUBBP1) -> 0 | H92: =SUMPRODUCT((rngSUBCat="GT25K")*rngSUBBP2) -> 0 | K92: =SUMPRODUCT((rngSUBCat="GT25K")*rngSUBBP3) -> 0 | N92: =SUMPRODUCT((rngSUBCat="GT25K")*rngSUBBP4) -> 0 | Q92: =SUMPRODUCT((rngSUBCat="GT25K")*rngSUBBP5) -> 0 | T92: =SUMPRODUCT((rngSUBCat="GT25K")*rngSUBBP6) -> 0 | W92: =SUMPRODUCT((rngSUBCat="GT25K")*rngSUBBP7) -> 0 | Z92: =SUMPRODUCT((rngSUBCat="GT25K")*rngSUBBP8) -> 0 | AC92: =SUMPRODUCT((rngSUBCat="GT25K")*rngSUBBP9) -> 0 | AF92: =SUMPRODUCT((rngSUBCat="GT25K")*rngSUBBP10) -> 0 | AI92: 0
C93: Total Subcontracts | E93: =SUM(E91:G92) -> 0 | H93: =SUM(H91:J92) -> 0 | K93: =SUM(K91:M92) -> 0 | N93: =SUM(N91:P92) -> 0 | Q93: =SUM(Q91:S92) -> 0 | T93: =SUM(T91:V92) -> 0 | W93: =SUM(W91:Y92) -> 0 | Z93: =SUM(Z91:AB92) -> 0 | AC93: =SUM(AC91:AE92) -> 0 | AF93: =SUM(AF91:AH92) -> 0 | AI93: =SUM(E93:AH93) -> 0
A95: B. FRINGE BENEFITS (NON-SALARY) | AO95: =bOLB -> B. FRINGE BENEFITS (NON-SALARY) | AQ95: =IF(D97="Included","Inc.",IF(D97="Excluded","Exc.","")) -> Exc. | BC95: =IF(AL97="","",AL97) -> 
A96: =_xlfn.XLOOKUP(B96,MTDC[Description],MTDC[VALUE],"N/A",0) -> 61030 | B96: Tuition Remission TA & GA Fees | D96: =IF(AND(B96="Make a Selection",OR(sFABC=1,sFABC=2,sFABC=3)),"",IF(sFABC=2,"Included",IF(sFABC=3,"Custom F&A Amt",IF(_xlfn.XLOOKUP(B96,MTDC[Description],MTDC[Include in MTDC],"N/A",0)="MTDC","Included","Excluded")))) -> Included | E96: 0 | H96: 0 | K96: 0 | N96: 0 | Q96: 0 | T96: 0 | W96: 0 | Z96: 0 | AC96: 0 | AF96: 0 | AI96: =SUM(E96:AH96) -> 0 | AM96: =D96 -> Included | AO96: =A96 -> 61030 | AP96: Tuition Remission TA & GA Fees | AQ96: =IF(D96="Included","Inc.",IF(D96="Excluded","Exc.","")) -> Inc. | AR96: =E96 -> 0 | AS96: =H96 -> 0 | AT96: =K96 -> 0 | AU96: =N96 -> 0 | AV96: =Q96 -> 0 | AW96: =T96 -> 0 | AX96: =W96 -> 0 | AY96: =Z96 -> 0 | AZ96: =AC96 -> 0 | BA96: =AF96 -> 0 | BB96: =AI96 -> 0 | BC96: =IF(AL96="","",AL96) -> 
A97: =_xlfn.XLOOKUP(B97,MTDC[Description],MTDC[VALUE],"N/A",0) -> 61060 | B97: Tuition Remission Other | D97: =IF(AND(B97="Make a Selection",OR(sFABC=1,sFABC=2,sFABC=3)),"",IF(sFABC=2,"Included",IF(sFABC=3,"Custom F&A Amt",IF(_xlfn.XLOOKUP(B97,MTDC[Description],MTDC[Include in MTDC],"N/A",0)="MTDC","Included","Excluded")))) -> Excluded | E97: 0 | H97: 0 | K97: 0 | N97: 0 | Q97: 0 | T97: 0 | W97: 0 | Z97: 0 | AC97: 0 | AF97: 0 | AI97: =SUM(E97:AH97) -> 0 | AM97: =D97 -> Excluded | AO97: 61060 | AP97: Tuition Remission Other | AQ97: =IF(D97="Included","Inc.",IF(D97="Excluded","Exc.","")) -> Exc. | AR97: =E97 -> 0 | AS97: =H97 -> 0 | AT97: =K97 -> 0 | AU97: =N97 -> 0 | AV97: =Q97 -> 0 | AW97: =T97 -> 0 | AX97: =W97 -> 0 | AY97: =Z97 -> 0 | AZ97: =AC97 -> 0 | BA97: =AF97 -> 0 | BB97: =AI97 -> 0 | BC97: =IF(AL97="","",AL97) -> 
A98: =_xlfn.XLOOKUP(B98,MTDC[Description],MTDC[VALUE],"N/A",0) -> N/A | B98: Make a selection | D98: =IF(AND(B98="Make a Selection",OR(sFABC=1,sFABC=2,sFABC=3)),"",IF(sFABC=2,"Included",IF(sFABC=3,"Custom F&A Amt",IF(_xlfn.XLOOKUP(B98,MTDC[Description],MTDC[Include in MTDC],"N/A",0)="MTDC","Included","Excluded")))) ->  | E98: 0 | H98: 0 | K98: 0 | N98: 0 | Q98: 0 | T98: 0 | W98: 0 | Z98: 0 | AC98: 0 | AF98: 0 | AI98: =SUM(E98:AH98) -> 0 | AO98: N/A | AP98: Make a selection | AQ98: =IF(D98="Included","Inc.",IF(D98="Excluded","Exc.","")) ->  | AR98: =E98 -> 0 | AS98: =H98 -> 0 | AT98: =K98 -> 0 | AU98: =N98 -> 0 | AV98: =Q98 -> 0 | AW98: =T98 -> 0 | AX98: =W98 -> 0 | AY98: =Z98 -> 0 | AZ98: =AC98 -> 0 | BA98: =AF98 -> 0 | BB98: =AI98 -> 0 | BC98: =IF(AL98="","",AL98) -> 
AQ99: =IF(D100="Included","Inc.",IF(D100="Excluded","Exc.","")) ->  | BC99: =IF(AL99="","",AL99) -> 
B100: Total Fringe Benefits | E100: =SUM(E96:G99) -> 0 | H100: =SUM(H96:J99) -> 0 | K100: =SUM(K96:M99) -> 0 | N100: =SUM(N96:P99) -> 0 | Q100: =SUM(Q96:S99) -> 0 | T100: =SUM(T96:V99) -> 0 | W100: =SUM(W96:Y99) -> 0 | Z100: =SUM(Z96:AB99) -> 0 | AC100: =SUM(AC96:AE99) -> 0 | AF100: =SUM(AF96:AH99) -> 0 | AI100: =SUM(E100:AH100) -> 0 | AM100: Sec B
A102: C. OTHER POST-EMPLOYMENT BENEFITS | AO102: =bOLC -> C. OTHER POST-EMPLOYMENT BENEFITS | AQ102: =IF(D104="Included","Inc.",IF(D104="Excluded","Exc.","")) ->  | BC102: =IF(AL101="","",AL101) -> 
A103: =_xlfn.XLOOKUP(B103,MTDC[Description],MTDC[VALUE],"N/A",0) -> 51300 | B103: OPEB Expenses | D103: =IF(AND(B103="Make a Selection",OR(sFABC=1,sFABC=2,sFABC=3)),"",IF(sFABC=2,"Included",IF(sFABC=3,"Custom F&A Amt",IF(_xlfn.XLOOKUP(B103,MTDC[Description],MTDC[Include in MTDC],"N/A",0)="MTDC","Included","Excluded")))) -> Included | E103: 0 | H103: 0 | K103: 0 | N103: 0 | Q103: 0 | T103: 0 | W103: 0 | Z103: 0 | AC103: 0 | AF103: 0 | AI103: =SUM(E103:AH103) -> 0 | AM103: =D103 -> Included | AO103: =A103 -> 51300 | AP103: =B103 -> OPEB Expenses | AQ103: =IF(D103="Included","Inc.",IF(D103="Excluded","Exc.","")) -> Inc. | AR103: =E103 -> 0 | AS103: =H103 -> 0 | AT103: =K103 -> 0 | AU103: =N103 -> 0 | AV103: =Q103 -> 0 | AW103: =T103 -> 0 | AX103: =W103 -> 0 | AY103: =Z103 -> 0 | AZ103: =AC103 -> 0 | BA103: =AF103 -> 0 | BB103: =AI103 -> 0 | BC103: =IF(AL103="","",AL103) -> 
AQ104: =IF(D105="Included","Inc.",IF(D105="Excluded","Exc.","")) ->  | BC104: =IF(AL105="","",AL105) -> 
B105: Total Supplies and Materials | E105: =SUM(E103:G104) -> 0 | H105: =SUM(H103:J104) -> 0 | K105: =SUM(K103:M104) -> 0 | N105: =SUM(N103:P104) -> 0 | Q105: =SUM(Q103:S104) -> 0 | T105: =SUM(T103:V104) -> 0 | W105: =SUM(W103:Y104) -> 0 | Z105: =SUM(Z103:AB104) -> 0 | AC105: =SUM(AC103:AE104) -> 0 | AF105: =SUM(AF103:AH104) -> 0 | AI105: =SUM(E105:AH105) -> 0 | AM105: Sec C
A107: D. SUPPLIES & MATERIALS | AO107: =bOLD -> D. SUPPLIES & MATERIALS | AQ107: =IF(D109="Included","Inc.",IF(D109="Excluded","Exc.","")) -> Inc. | BC107: =IF(AL109="","",AL109) -> 
A108: =_xlfn.XLOOKUP(B108,MTDC[Description],MTDC[VALUE],"N/A",0) -> 52610 | B108: Medical Supplies Laboratory | D108: =IF(AND(B108="Make a Selection",OR(sFABC=1,sFABC=2,sFABC=3)),"",IF(sFABC=2,"Included",IF(sFABC=3,"Custom F&A Amt",IF(_xlfn.XLOOKUP(B108,MTDC[Description],MTDC[Include in MTDC],"N/A",0)="MTDC","Included","Excluded")))) -> Included | E108: 0 | H108: 0 | K108: 0 | N108: 0 | Q108: 0 | T108: 0 | W108: 0 | Z108: 0 | AC108: 0 | AF108: 0 | AI108: =SUM(E108:AH108) -> 0 | AM108: =D108 -> Included | AO108: =A108 -> 52610 | AP108: Medical Supplies Laboratory | AQ108: =IF(D108="Included","Inc.",IF(D108="Excluded","Exc.","")) -> Inc. | AR108: =E108 -> 0 | AS108: =H108 -> 0 | AT108: =K108 -> 0 | AU108: =N108 -> 0 | AV108: =Q108 -> 0 | AW108: =T108 -> 0 | AX108: =W108 -> 0 | AY108: =Z108 -> 0 | AZ108: =AC108 -> 0 | BA108: =AF108 -> 0 | BB108: =AI108 -> 0 | BC108: =IF(AL108="","",AL108) -> 
A109: =_xlfn.XLOOKUP(B109,MTDC[Description],MTDC[VALUE],"N/A",0) -> 52970 | B109: Office Supplies Postage & Shipping | D109: =IF(AND(B109="Make a Selection",OR(sFABC=1,sFABC=2,sFABC=3)),"",IF(sFABC=2,"Included",IF(sFABC=3,"Custom F&A Amt",IF(_xlfn.XLOOKUP(B109,MTDC[Description],MTDC[Include in MTDC],"N/A",0)="MTDC","Included","Excluded")))) -> Included | E109: 0 | H109: 0 | K109: 0 | N109: 0 | Q109: 0 | T109: 0 | W109: 0 | Z109: 0 | AC109: 0 | AF109: 0 | AI109: 0 | AM109: Included | AO109: 52970 | AP109: Office Supplies Postage & Shipping | AQ109: Inc. | AR109: 0 | AS109: 0 | AT109: 0 | AU109: 0 | AV109: 0 | AW109: 0 | AX109: 0 | AY109: 0 | AZ109: 0 | BA109: 0 | BB109: 0
A110: =_xlfn.XLOOKUP(B110,MTDC[Description],MTDC[VALUE],"N/A",0) -> 53077 | B110: Other Supplies Labs & Research Animals | D110: =IF(AND(B110="Make a Selection",OR(sFABC=1,sFABC=2,sFABC=3)),"",IF(sFABC=2,"Included",IF(sFABC=3,"Custom F&A Amt",IF(_xlfn.XLOOKUP(B110,MTDC[Description],MTDC[Include in MTDC],"N/A",0)="MTDC","Included","Excluded")))) -> Included | E110: 0 | H110: 0 | K110: 0 | N110: 0 | Q110: 0 | T110: 0 | W110: 0 | Z110: 0 | AC110: 0 | AF110: 0 | AI110: =SUM(E110:AH110) -> 0 | AM110: Included | AO110: 53077 | AP110: Other Supplies Labs & Research Animals | AQ110: Inc. | AR110: 0 | AS110: 0 | AT110: 0 | AU110: 0 | AV110: 0 | AW110: 0 | AX110: 0 | AY110: 0 | AZ110: 0 | BA110: 0 | BB110: 0
A111: =_xlfn.XLOOKUP(B111,MTDC[Description],MTDC[VALUE],"N/A",0) -> 53100 | B111: Other Supplies Projects | D111: =IF(AND(B111="Make a Selection",OR(sFABC=1,sFABC=2,sFABC=3)),"",IF(sFABC=2,"Included",IF(sFABC=3,"Custom F&A Amt",IF(_xlfn.XLOOKUP(B111,MTDC[Description],MTDC[Include in MTDC],"N/A",0)="MTDC","Included","Excluded")))) -> Included | E111: 0 | H111: 0 | K111: 0 | N111: 0 | Q111: 0 | T111: 0 | W111: 0 | Z111: 0 | AC111: 0 | AF111: 0 | AI111: 0 | AM111: Included | AO111: 53100 | AP111: Other Supplies Projects | AQ111: Inc. | AR111: 0 | AS111: 0 | AT111: 0 | AU111: 0 | AV111: 0 | AW111: 0 | AX111: 0 | AY111: 0 | AZ111: 0 | BA111: 0 | BB111: 0
A112: =_xlfn.XLOOKUP(B112,MTDC[Description],MTDC[VALUE],"N/A",0) -> 53102 | B112: Other Supplies Research Chemicals | D112: =IF(AND(B112="Make a Selection",OR(sFABC=1,sFABC=2,sFABC=3)),"",IF(sFABC=2,"Included",IF(sFABC=3,"Custom F&A Amt",IF(_xlfn.XLOOKUP(B112,MTDC[Description],MTDC[Include in MTDC],"N/A",0)="MTDC","Included","Excluded")))) -> Included | E112: 0 | H112: 0 | K112: 0 | N112: 0 | Q112: 0 | T112: 0 | W112: 0 | Z112: 0 | AC112: 0 | AF112: 0 | AI112: 0 | AM112: Included | AO112: 53102 | AP112: Other Supplies Research Chemicals | AQ112: Inc. | AR112: 0 | AS112: 0 | AT112: 0 | AU112: 0 | AV112: 0 | AW112: 0 | AX112: 0 | AY112: 0 | AZ112: 0 | BA112: 0 | BB112: 0
A113: =_xlfn.XLOOKUP(B113,MTDC[Description],MTDC[VALUE],"N/A",0) -> 53050 | B113: Other Supplies General | D113: =IF(AND(B113="Make a Selection",OR(sFABC=1,sFABC=2,sFABC=3)),"",IF(sFABC=2,"Included",IF(sFABC=3,"Custom F&A Amt",IF(_xlfn.XLOOKUP(B113,MTDC[Description],MTDC[Include in MTDC],"N/A",0)="MTDC","Included","Excluded")))) -> Included | E113: 0 | H113: 0 | K113: 0 | N113: 0 | Q113: 0 | T113: 0 | W113: 0 | Z113: 0 | AC113: 0 | AF113: 0 | AI113: 0 | AM113: Included | AO113: 53050 | AP113: Other Supplies General | AQ113: Inc. | AR113: 0 | AS113: 0 | AT113: 0 | AU113: 0 | AV113: 0 | AW113: 0 | AX113: 0 | AY113: 0 | AZ113: 0 | BA113: 0 | BB113: 0
A114: =_xlfn.XLOOKUP(B114,MTDC[Description],MTDC[VALUE],"N/A",0) -> N/A | B114: Make a selection | D114: =IF(AND(B114="Make a Selection",OR(sFABC=1,sFABC=2,sFABC=3)),"",IF(sFABC=2,"Included",IF(sFABC=3,"Custom F&A Amt",IF(_xlfn.XLOOKUP(B114,MTDC[Description],MTDC[Include in MTDC],"N/A",0)="MTDC","Included","Excluded")))) ->  | E114: 0 | H114: 0 | K114: 0 | N114: 0 | Q114: 0 | T114: 0 | W114: 0 | Z114: 0 | AC114: 0 | AF114: 0 | AI114: 0 | AO114: N/A | AP114: Make a selection | AR114: 0 | AS114: 0 | AT114: 0 | AU114: 0 | AV114: 0 | AW114: 0 | AX114: 0 | AY114: 0 | AZ114: 0 | BA114: 0 | BB114: 0
AQ115: =IF(D116="Included","Inc.",IF(D116="Excluded","Exc.","")) ->  | BC115: =IF(AL115="","",AL115) -> 
B116: Total Supplies and Materials | E116: =SUM(E108:G115) -> 0 | H116: =SUM(H108:J115) -> 0 | K116: =SUM(K108:M115) -> 0 | N116: =SUM(N108:P115) -> 0 | Q116: =SUM(Q108:S115) -> 0 | T116: =SUM(T108:V115) -> 0 | W116: =SUM(W108:Y115) -> 0 | Z116: =SUM(Z108:AB115) -> 0 | AC116: =SUM(AC108:AE115) -> 0 | AF116: =SUM(AF108:AH115) -> 0 | AI116: =SUM(E116:AH116) -> 0 | AM116: Sec D
A118: E. SERVICES | AO118: =bOLE -> E. SERVICES | AQ118: =IF(D120="Included","Inc.",IF(D120="Excluded","Exc.","")) -> Inc. | BC118: =IF(AL119="","",AL119) -> 
A119: =_xlfn.XLOOKUP(B119,MTDC[Description],MTDC[VALUE],"N/A",0) -> 54130 | B119: Services Honoraria | D119: =IF(AND(B119="Make a Selection",OR(sFABC=1,sFABC=2,sFABC=3)),"",IF(sFABC=2,"Included",IF(sFABC=3,"Custom F&A Amt",IF(_xlfn.XLOOKUP(B119,MTDC[Description],MTDC[Include in MTDC],"N/A",0)="MTDC","Included","Excluded")))) -> Included | E119: 0 | H119: 0 | K119: 0 | N119: 0 | Q119: 0 | T119: 0 | W119: 0 | Z119: 0 | AC119: 0 | AF119: 0 | AI119: =SUM(E119:AH119) -> 0 | AM119: =D119 -> Included | AO119: =A119 -> 54130 | AP119: Services Honoraria | AQ119: =IF(D119="Included","Inc.",IF(D119="Excluded","Exc.","")) -> Inc. | AR119: =E119 -> 0 | AS119: =H119 -> 0 | AT119: =K119 -> 0 | AU119: =N119 -> 0 | AV119: =Q119 -> 0 | AW119: =T119 -> 0 | AX119: =W119 -> 0 | AY119: =Z119 -> 0 | AZ119: =AC119 -> 0 | BA119: =AF119 -> 0 | BB119: =AI119 -> 0 | BC119: =IF(AL119="","",AL119) -> 
A120: =_xlfn.XLOOKUP(B120,MTDC[Description],MTDC[VALUE],"N/A",0) -> 54160 | B120: Services Human Subjects | D120: =IF(AND(B120="Make a Selection",OR(sFABC=1,sFABC=2,sFABC=3)),"",IF(sFABC=2,"Included",IF(sFABC=3,"Custom F&A Amt",IF(_xlfn.XLOOKUP(B120,MTDC[Description],MTDC[Include in MTDC],"N/A",0)="MTDC","Included","Excluded")))) -> Included | E120: 0 | H120: 0 | K120: 0 | N120: 0 | Q120: 0 | T120: 0 | W120: 0 | Z120: 0 | AC120: 0 | AF120: 0 | AI120: =SUM(E120:AH120) -> 0 | AM120: Included | AO120: 54160 | AP120: Services Human Subjects | AQ120: Inc. | AR120: 0 | AS120: 0 | AT120: 0 | AU120: 0 | AV120: 0 | AW120: 0 | AX120: 0 | AY120: 0 | AZ120: 0 | BA120: 0 | BB120: 0
A121: =_xlfn.XLOOKUP(B121,MTDC[Description],MTDC[VALUE],"N/A",0) -> 54180 | B121: Services Laboratory External | D121: =IF(AND(B121="Make a Selection",OR(sFABC=1,sFABC=2,sFABC=3)),"",IF(sFABC=2,"Included",IF(sFABC=3,"Custom F&A Amt",IF(_xlfn.XLOOKUP(B121,MTDC[Description],MTDC[Include in MTDC],"N/A",0)="MTDC","Included","Excluded")))) -> Included | E121: 0 | H121: 0 | K121: 0 | N121: 0 | Q121: 0 | T121: 0 | W121: 0 | Z121: 0 | AC121: 0 | AF121: 0 | AI121: 0 | AM121: Included | AO121: 54180 | AP121: Services Laboratory External | AQ121: Inc. | AR121: 0 | AS121: 0 | AT121: 0 | AU121: 0 | AV121: 0 | AW121: 0 | AX121: 0 | AY121: 0 | AZ121: 0 | BA121: 0 | BB121: 0
A122: =_xlfn.XLOOKUP(B122,MTDC[Description],MTDC[VALUE],"N/A",0) -> 54190 | B122: Services Laboratory Internal | D122: =IF(AND(B122="Make a Selection",OR(sFABC=1,sFABC=2,sFABC=3)),"",IF(sFABC=2,"Included",IF(sFABC=3,"Custom F&A Amt",IF(_xlfn.XLOOKUP(B122,MTDC[Description],MTDC[Include in MTDC],"N/A",0)="MTDC","Included","Excluded")))) -> Included | E122: 0 | H122: 0 | K122: 0 | N122: 0 | Q122: 0 | T122: 0 | W122: 0 | Z122: 0 | AC122: 0 | AF122: 0 | AI122: 0 | AM122: Included | AO122: 54190 | AP122: Services Laboratory Internal | AQ122: Inc. | AR122: 0 | AS122: 0 | AT122: 0 | AU122: 0 | AV122: 0 | AW122: 0 | AX122: 0 | AY122: 0 | AZ122: 0 | BA122: 0 | BB122: 0
A123: =_xlfn.XLOOKUP(B123,MTDC[Description],MTDC[VALUE],"N/A",0) -> 54230 | B123: Services Medical | D123: =IF(AND(B123="Make a Selection",OR(sFABC=1,sFABC=2,sFABC=3)),"",IF(sFABC=2,"Included",IF(sFABC=3,"Custom F&A Amt",IF(_xlfn.XLOOKUP(B123,MTDC[Description],MTDC[Include in MTDC],"N/A",0)="MTDC","Included","Excluded")))) -> Excluded | E123: 0 | H123: 0 | K123: 0 | N123: 0 | Q123: 0 | T123: 0 | W123: 0 | Z123: 0 | AC123: 0 | AF123: 0 | AI123: 0 | AM123: Excluded | AO123: 54230 | AP123: Services Medical | AQ123: Exc. | AR123: 0 | AS123: 0 | AT123: 0 | AU123: 0 | AV123: 0 | AW123: 0 | AX123: 0 | AY123: 0 | AZ123: 0 | BA123: 0 | BB123: 0
A124: =_xlfn.XLOOKUP(B124,MTDC[Description],MTDC[VALUE],"N/A",0) -> 54490 | B124: Services Other | D124: =IF(AND(B124="Make a Selection",OR(sFABC=1,sFABC=2,sFABC=3)),"",IF(sFABC=2,"Included",IF(sFABC=3,"Custom F&A Amt",IF(_xlfn.XLOOKUP(B124,MTDC[Description],MTDC[Include in MTDC],"N/A",0)="MTDC","Included","Excluded")))) -> Included | E124: 0 | H124: 0 | K124: 0 | N124: 0 | Q124: 0 | T124: 0 | W124: 0 | Z124: 0 | AC124: 0 | AF124: 0 | AI124: 0 | AM124: Included | AO124: 54490 | AP124: Services Other | AQ124: Inc. | AR124: 0 | AS124: 0 | AT124: 0 | AU124: 0 | AV124: 0 | AW124: 0 | AX124: 0 | AY124: 0 | AZ124: 0 | BA124: 0 | BB124: 0
A125: =_xlfn.XLOOKUP(B125,MTDC[Description],MTDC[VALUE],"N/A",0) -> N/A | B125: Make a selection | D125: =IF(AND(B125="Make a Selection",OR(sFABC=1,sFABC=2,sFABC=3)),"",IF(sFABC=2,"Included",IF(sFABC=3,"Custom F&A Amt",IF(_xlfn.XLOOKUP(B125,MTDC[Description],MTDC[Include in MTDC],"N/A",0)="MTDC","Included","Excluded")))) ->  | E125: 0 | H125: 0 | K125: 0 | N125: 0 | Q125: 0 | T125: 0 | W125: 0 | Z125: 0 | AC125: 0 | AF125: 0 | AI125: 0 | AO125: N/A | AP125: Make a selection | AR125: 0 | AS125: 0 | AT125: 0 | AU125: 0 | AV125: 0 | AW125: 0 | AX125: 0 | AY125: 0 | AZ125: 0 | BA125: 0 | BB125: 0
AQ126: =IF(D127="Included","Inc.",IF(D127="Excluded","Exc.","")) ->  | BC126: =IF(AL127="","",AL127) -> 
B127: Total Services | E127: =SUM(E119:G126) -> 0 | H127: =SUM(H119:J126) -> 0 | K127: =SUM(K119:M126) -> 0 | N127: =SUM(N119:P126) -> 0 | Q127: =SUM(Q119:S126) -> 0 | T127: =SUM(T119:V126) -> 0 | W127: =SUM(W119:Y126) -> 0 | Z127: =SUM(Z119:AB126) -> 0 | AC127: =SUM(AC119:AE126) -> 0 | AF127: =SUM(AF119:AH126) -> 0 | AI127: =SUM(E127:AH127) -> 0 | AM127: Sec E
A129: F. PROFESSIONAL SERVICES | AO129: =bOLF -> F. PROFESSIONAL SERVICES | AQ129: =IF(D131="Included","Inc.",IF(D131="Excluded","Exc.","")) -> Inc. | BC129: =IF(AL131="","",AL131) -> 
A130: =_xlfn.XLOOKUP(B130,MTDC[Description],MTDC[VALUE],"N/A",0) -> 55080 | B130: Professional Service Consultants | D130: =IF(AND(B130="Make a Selection",OR(sFABC=1,sFABC=2,sFABC=3)),"",IF(sFABC=2,"Included",IF(sFABC=3,"Custom F&A Amt",IF(_xlfn.XLOOKUP(B130,MTDC[Description],MTDC[Include in MTDC],"N/A",0)="MTDC","Included","Excluded")))) -> Included | E130: =budCONBP1 -> 0 | H130: =budCONBP2 -> 0 | K130: =budCONBP3 -> 0 | N130: =budCONBP4 -> 0 | Q130: =budCONBP5 -> 0 | T130: =budCONBP6 -> 0 | W130: =budCONBP7 -> 0 | Z130: =budCONBP8 -> 0 | AC130: =budCONBP9 -> 0 | AF130: =budCONBP10 -> 0 | AI130: =budCONTOT -> 0 | AM130: =D130 -> Included | AO130: =A130 -> 55080 | AP130: Professional Service Consultants | AQ130: =IF(D130="Included","Inc.",IF(D130="Excluded","Exc.","")) -> Inc. | AR130: =E130 -> 0 | AS130: =H130 -> 0 | AT130: =K130 -> 0 | AU130: =N130 -> 0 | AV130: =Q130 -> 0 | AW130: =T130 -> 0 | AX130: =W130 -> 0 | AY130: =Z130 -> 0 | AZ130: =AC130 -> 0 | BA130: =AF130 -> 0 | BB130: =AI130 -> 0 | BC130: =IF(AL130="","",AL130) -> 
A131: =_xlfn.XLOOKUP(B131,MTDC[Description],MTDC[VALUE],"N/A",0) -> 55250 | B131: Professional Service Publication | D131: =IF(AND(B131="Make a Selection",OR(sFABC=1,sFABC=2,sFABC=3)),"",IF(sFABC=2,"Included",IF(sFABC=3,"Custom F&A Amt",IF(_xlfn.XLOOKUP(B131,MTDC[Description],MTDC[Include in MTDC],"N/A",0)="MTDC","Included","Excluded")))) -> Included | E131: 0 | H131: 0 | K131: 0 | N131: 0 | Q131: 0 | T131: 0 | W131: 0 | Z131: 0 | AC131: 0 | AF131: 0 | AI131: =SUM(E131:AH131) -> 0 | AM131: Included | AO131: 55250 | AP131: Professional Service Publication | AQ131: =IF(D131="Included","Inc.",IF(D131="Excluded","Exc.","")) -> Inc. | AR131: =E131 -> 0 | AS131: =H131 -> 0 | AT131: =K131 -> 0 | AU131: =N131 -> 0 | AV131: =Q131 -> 0 | AW131: =T131 -> 0 | AX131: =W131 -> 0 | AY131: =Z131 -> 0 | AZ131: =AC131 -> 0 | BA131: =AF131 -> 0 | BB131: =AI131 -> 0 | BC131: =IF(AL131="","",AL131) -> 
A132: =_xlfn.XLOOKUP(B132,MTDC[Description],MTDC[VALUE],"N/A",0) -> 55270 | B132: Professional Service Subaward Expenditures | D132: =IF(AND(B132="Make a Selection",OR(sFABC=1,sFABC=2,sFABC=3)),"",IF(sFABC=2,"Included",IF(sFABC=3,"Custom F&A Amt",IF(_xlfn.XLOOKUP(B132,MTDC[Description],MTDC[Include in MTDC],"N/A",0)="MTDC","Included","Excluded")))) -> Included | E132: =budLTE25KBP1 -> 0 | H132: =budLTE25KBP2 -> 0 | K132: =budLTE25KBP3 -> 0 | N132: =budLTE25KBP4 -> 0 | Q132: =budLTE25KBP5 -> 0 | T132: =budLTE25KBP6 -> 0 | W132: =budLTE25KBP7 -> 0 | Z132: =budLTE25KBP8 -> 0 | AC132: =budLTE25KBP9 -> 0 | AF132: =budLTE25KBP10 -> 0 | AI132: =budLTE25KTOT -> 0 | AM132: Included | AO132: 55270 | AP132: Professional Service Subaward Expenditures | AQ132: =IF(D132="Included","Inc.",IF(D132="Excluded","Exc.","")) -> Inc. | AR132: =E132 -> 0 | AS132: =H132 -> 0 | AT132: =K132 -> 0 | AU132: =N132 -> 0 | AV132: =Q132 -> 0 | AW132: =T132 -> 0 | AX132: =W132 -> 0 | AY132: =Z132 -> 0 | AZ132: =AC132 -> 0 | BA132: =AF132 -> 0 | BB132: =AI132 -> 0 | BC132: =IF(AL132="","",AL132) -> 
A133: =_xlfn.XLOOKUP(B133,MTDC[Description],MTDC[VALUE],"N/A",0) -> 55280 | B133: Professional Service Subaward Expenditures $25K+ | D133: =IF(AND(B133="Make a Selection",OR(sFABC=1,sFABC=2,sFABC=3)),"",IF(sFABC=2,"Included",IF(sFABC=3,"Custom F&A Amt",IF(_xlfn.XLOOKUP(B133,MTDC[Description],MTDC[Include in MTDC],"N/A",0)="MTDC","Included","Excluded")))) -> Excluded | E133: =budGT25KBP1 -> 0 | H133: =budGT25KBP2 -> 0 | K133: =budGT25KBP3 -> 0 | N133: =budGT25KBP4 -> 0 | Q133: =budGT25KBP5 -> 0 | T133: =budGT25KBP6 -> 0 | W133: =budGT25KBP7 -> 0 | Z133: =budGT25KBP8 -> 0 | AC133: =budGT25KBP9 -> 0 | AF133: =budGT25KBP10 -> 0 | AI133: =budGT25KTOT -> 0 | AM133: Excluded | AO133: 55280 | AP133: Professional Service Subaward Expenditures $25K+ | AQ133: =IF(D133="Included","Inc.",IF(D133="Excluded","Exc.","")) -> Exc. | AR133: =E133 -> 0 | AS133: =H133 -> 0 | AT133: =K133 -> 0 | AU133: =N133 -> 0 | AV133: =Q133 -> 0 | AW133: =T133 -> 0 | AX133: =W133 -> 0 | AY133: =Z133 -> 0 | AZ133: =AC133 -> 0 | BA133: =AF133 -> 0 | BB133: =AI133 -> 0 | BC133: =IF(AL133="","",AL133) -> 
A134: =_xlfn.XLOOKUP(B134,MTDC[Description],MTDC[VALUE],"N/A",0) -> N/A | B134: Make a selection | D134: =IF(AND(B134="Make a Selection",OR(sFABC=1,sFABC=2,sFABC=3)),"",IF(sFABC=2,"Included",IF(sFABC=3,"Custom F&A Amt",IF(_xlfn.XLOOKUP(B134,MTDC[Description],MTDC[Include in MTDC],"N/A",0)="MTDC","Included","Excluded")))) ->  | E134: 0 | H134: 0 | K134: 0 | N134: 0 | Q134: 0 | T134: 0 | W134: 0 | Z134: 0 | AC134: 0 | AF134: 0 | AI134: =SUM(E134:AH134) -> 0 | AO134: N/A | AP134: Make a selection | AQ134: =IF(D134="Included","Inc.",IF(D134="Excluded","Exc.","")) ->  | AR134: =E134 -> 0 | AS134: =H134 -> 0 | AT134: =K134 -> 0 | AU134: =N134 -> 0 | AV134: =Q134 -> 0 | AW134: =T134 -> 0 | AX134: =W134 -> 0 | AY134: =Z134 -> 0 | AZ134: =AC134 -> 0 | BA134: =AF134 -> 0 | BB134: =AI134 -> 0 | BC134: =IF(AL134="","",AL134) -> 
AQ135: =IF(D136="Included","Inc.",IF(D136="Excluded","Exc.","")) ->  | BC135: =IF(AL136="","",AL136) -> 
B136: Total Professional Services | E136: =SUM(E130:G135) -> 0 | H136: =SUM(H130:J135) -> 0 | K136: =SUM(K130:M135) -> 0 | N136: =SUM(N130:P135) -> 0 | Q136: =SUM(Q130:S135) -> 0 | T136: =SUM(T130:V135) -> 0 | W136: =SUM(W130:Y135) -> 0 | Z136: =SUM(Z130:AB135) -> 0 | AC136: =SUM(AC130:AE135) -> 0 | AF136: =SUM(AF130:AH135) -> 0 | AI136: =SUM(E136:AH136) -> 0 | AM136: Sec F
A138: G. TRAVEL & BUSINESS EXPENSES | AO138: =bOLG -> G. TRAVEL & BUSINESS EXPENSES | AQ138: =IF(D140="Included","Inc.",IF(D140="Excluded","Exc.","")) -> Inc. | BC138: =IF(AL140="","",AL140) -> 
A139: =_xlfn.XLOOKUP(B139,MTDC[Description],MTDC[VALUE],"N/A",0) -> 57050 | B139: Other Travel Domestic | D139: =IF(AND(B139="Make a Selection",OR(sFABC=1,sFABC=2,sFABC=3)),"",IF(sFABC=2,"Included",IF(sFABC=3,"Custom F&A Amt",IF(_xlfn.XLOOKUP(B139,MTDC[Description],MTDC[Include in MTDC],"N/A",0)="MTDC","Included","Excluded")))) -> Included | E139: 0 | H139: 0 | K139: 0 | N139: 0 | Q139: 0 | T139: 0 | W139: 0 | Z139: 0 | AC139: 0 | AF139: 0 | AI139: =SUM(E139:AH139) -> 0 | AM139: =D139 -> Included | AO139: =A139 -> 57050 | AP139: Other Travel Domestic | AQ139: =IF(D139="Included","Inc.",IF(D139="Excluded","Exc.","")) -> Inc. | AR139: =E139 -> 0 | AS139: =H139 -> 0 | AT139: =K139 -> 0 | AU139: =N139 -> 0 | AV139: =Q139 -> 0 | AW139: =T139 -> 0 | AX139: =W139 -> 0 | AY139: =Z139 -> 0 | AZ139: =AC139 -> 0 | BA139: =AF139 -> 0 | BB139: =AI139 -> 0 | BC139: =IF(AL139="","",AL139) -> 
A140: =_xlfn.XLOOKUP(B140,MTDC[Description],MTDC[VALUE],"N/A",0) -> 57060 | B140: Other Travel Foreign | D140: =IF(AND(B140="Make a Selection",OR(sFABC=1,sFABC=2,sFABC=3)),"",IF(sFABC=2,"Included",IF(sFABC=3,"Custom F&A Amt",IF(_xlfn.XLOOKUP(B140,MTDC[Description],MTDC[Include in MTDC],"N/A",0)="MTDC","Included","Excluded")))) -> Included | E140: 0 | H140: 0 | K140: 0 | N140: 0 | Q140: 0 | T140: 0 | W140: 0 | Z140: 0 | AC140: 0 | AF140: 0 | AI140: 0 | AM140: Included | AO140: 57060 | AP140: Other Travel Foreign | AQ140: =IF(D140="Included","Inc.",IF(D140="Excluded","Exc.","")) -> Inc. | AR140: =E140 -> 0 | AS140: =H140 -> 0 | AT140: =K140 -> 0 | AU140: =N140 -> 0 | AV140: =Q140 -> 0 | AW140: =T140 -> 0 | AX140: =W140 -> 0 | AY140: =Z140 -> 0 | AZ140: =AC140 -> 0 | BA140: =AF140 -> 0 | BB140: =AI140 -> 0 | BC140: =IF(AL140="","",AL140) -> 
A141: =_xlfn.XLOOKUP(B141,MTDC[Description],MTDC[VALUE],"N/A",0) -> N/A | B141: Make a selection | D141: =IF(AND(B141="Make a Selection",OR(sFABC=1,sFABC=2,sFABC=3)),"",IF(sFABC=2,"Included",IF(sFABC=3,"Custom F&A Amt",IF(_xlfn.XLOOKUP(B141,MTDC[Description],MTDC[Include in MTDC],"N/A",0)="MTDC","Included","Excluded")))) ->  | E141: 0 | H141: 0 | K141: 0 | N141: 0 | Q141: 0 | T141: 0 | W141: 0 | Z141: 0 | AC141: 0 | AF141: 0 | AI141: =SUM(E141:AH141) -> 0 | AO141: N/A | AP141: Make a selection | AQ141: =IF(D141="Included","Inc.",IF(D141="Excluded","Exc.","")) ->  | AR141: =E141 -> 0 | AS141: =H141 -> 0 | AT141: =K141 -> 0 | AU141: =N141 -> 0 | AV141: =Q141 -> 0 | AW141: =T141 -> 0 | AX141: =W141 -> 0 | AY141: =Z141 -> 0 | AZ141: =AC141 -> 0 | BA141: =AF141 -> 0 | BB141: =AI141 -> 0 | BC141: =IF(AL141="","",AL141) -> 
AQ142: =IF(D143="Included","Inc.",IF(D143="Excluded","Exc.","")) ->  | BC142: =IF(AL143="","",AL143) -> 
B143: Total Travel and Business Expense | E143: =SUM(E139:G142) -> 0 | H143: =SUM(H139:J142) -> 0 | K143: =SUM(K139:M142) -> 0 | N143: =SUM(N139:P142) -> 0 | Q143: =SUM(Q139:S142) -> 0 | T143: =SUM(T139:V142) -> 0 | W143: =SUM(W139:Y142) -> 0 | Z143: =SUM(Z139:AB142) -> 0 | AC143: =SUM(AC139:AE142) -> 0 | AF143: =SUM(AF139:AH142) -> 0 | AI143: =SUM(E143:AH143) -> 0 | AM143: Sec G
A145: H. SCHOLARSHIPS & FELLOWSHIPS | AO145: =bOLH -> H. SCHOLARSHIPS & FELLOWSHIPS | AQ145: =IF(D147="Included","Inc.",IF(D147="Excluded","Exc.","")) ->  | BC145: =IF(AL147="","",AL147) -> 
A146: =_xlfn.XLOOKUP(B146,MTDC[Description],MTDC[VALUE],"N/A",0) -> 57500 | B146: Student Aid EOF Direct Payments to Students Non NRA Only | D146: =IF(AND(B146="Make a Selection",OR(sFABC=1,sFABC=2,sFABC=3)),"",IF(sFABC=2,"Included",IF(sFABC=3,"Custom F&A Amt",IF(_xlfn.XLOOKUP(B146,MTDC[Description],MTDC[Include in MTDC],"N/A",0)="MTDC","Included","Excluded")))) -> Excluded | E146: 0 | H146: 0 | K146: 0 | N146: 0 | Q146: 0 | T146: 0 | W146: 0 | Z146: 0 | AC146: 0 | AF146: 0 | AI146: =SUM(E146:AH146) -> 0 | AM146: =D146 -> Excluded | AO146: =A146 -> 57500 | AP146: =B146 -> Student Aid EOF Direct Payments to Students Non NRA Only | AQ146: =IF(D146="Included","Inc.",IF(D146="Excluded","Exc.","")) -> Exc. | AR146: =E146 -> 0 | AS146: =H146 -> 0 | AT146: =K146 -> 0 | AU146: =N146 -> 0 | AV146: =Q146 -> 0 | AW146: =T146 -> 0 | AX146: =W146 -> 0 | AY146: =Z146 -> 0 | AZ146: =AC146 -> 0 | BA146: =AF146 -> 0 | BB146: =AI146 -> 0 | BC146: =IF(AL146="","",AL146) -> 
A147: =_xlfn.XLOOKUP(B147,MTDC[Description],MTDC[VALUE],"N/A",0) -> N/A | B147: Make a selection | D147: =IF(AND(B147="Make a Selection",OR(sFABC=1,sFABC=2,sFABC=3)),"",IF(sFABC=2,"Included",IF(sFABC=3,"Custom F&A Amt",IF(_xlfn.XLOOKUP(B147,MTDC[Description],MTDC[Include in MTDC],"N/A",0)="MTDC","Included","Excluded")))) ->  | E147: 0 | H147: 0 | K147: 0 | N147: 0 | Q147: 0 | T147: 0 | W147: 0 | Z147: 0 | AC147: 0 | AF147: 0 | AI147: =SUM(E147:AH147) -> 0 | AO147: =A147 -> N/A | AP147: =B147 -> Make a selection | AQ147: =IF(D147="Included","Inc.",IF(D147="Excluded","Exc.","")) ->  | AR147: =E147 -> 0 | AS147: =H147 -> 0 | AT147: =K147 -> 0 | AU147: =N147 -> 0 | AV147: =Q147 -> 0 | AW147: =T147 -> 0 | AX147: =W147 -> 0 | AY147: =Z147 -> 0 | AZ147: =AC147 -> 0 | BA147: =AF147 -> 0 | BB147: =AI147 -> 0 | BC147: =IF(AL147="","",AL147) -> 
AQ148: =IF(D149="Included","Inc.",IF(D149="Excluded","Exc.","")) ->  | BC148: =IF(AL149="","",AL149) -> 
B149: Total Scholarships & Fellowships | E149: =SUM(E146:G148) -> 0 | H149: =SUM(H146:J148) -> 0 | K149: =SUM(K146:M148) -> 0 | N149: =SUM(N146:P148) -> 0 | Q149: =SUM(Q146:S148) -> 0 | T149: =SUM(T146:V148) -> 0 | W149: =SUM(W146:Y148) -> 0 | Z149: =SUM(Z146:AB148) -> 0 | AC149: =SUM(AC146:AE148) -> 0 | AF149: =SUM(AF146:AH148) -> 0 | AI149: =SUM(E149:AH149) -> 0 | AM149: Sec H
A151: I. COMPUTERS & EQUIPMENT | AO151: =bOLI -> I. COMPUTERS & EQUIPMENT | AQ151: =IF(D153="Included","Inc.",IF(D153="Excluded","Exc.","")) -> Inc. | BC151: =IF(AL153="","",AL153) -> 
A152: =_xlfn.XLOOKUP(B152,MTDC[Description],MTDC[VALUE],"N/A",0) -> 58020 | B152: Computer Software | D152: =IF(AND(B152="Make a Selection",OR(sFABC=1,sFABC=2,sFABC=3)),"",IF(sFABC=2,"Included",IF(sFABC=3,"Custom F&A Amt",IF(_xlfn.XLOOKUP(B152,MTDC[Description],MTDC[Include in MTDC],"N/A",0)="MTDC","Included","Excluded")))) -> Included | E152: 0 | H152: 0 | K152: 0 | N152: 0 | Q152: 0 | T152: 0 | W152: 0 | Z152: 0 | AC152: 0 | AF152: 0 | AI152: =SUM(E152:AH152) -> 0 | AM152: =D152 -> Included | AO152: =A152 -> 58020 | AP152: Computer Software | AQ152: =IF(D152="Included","Inc.",IF(D152="Excluded","Exc.","")) -> Inc. | AR152: =E152 -> 0 | AS152: =H152 -> 0 | AT152: =K152 -> 0 | AU152: =N152 -> 0 | AV152: =Q152 -> 0 | AW152: =T152 -> 0 | AX152: =W152 -> 0 | AY152: =Z152 -> 0 | AZ152: =AC152 -> 0 | BA152: =AF152 -> 0 | BB152: =AI152 -> 0 | BC152: =IF(AL152="","",AL152) -> 
A153: =_xlfn.XLOOKUP(B153,MTDC[Description],MTDC[VALUE],"N/A",0) -> 58090 | B153: Equipment NonCapitalized | D153: =IF(AND(B153="Make a Selection",OR(sFABC=1,sFABC=2,sFABC=3)),"",IF(sFABC=2,"Included",IF(sFABC=3,"Custom F&A Amt",IF(_xlfn.XLOOKUP(B153,MTDC[Description],MTDC[Include in MTDC],"N/A",0)="MTDC","Included","Excluded")))) -> Included | E153: 0 | H153: 0 | K153: 0 | N153: 0 | Q153: 0 | T153: 0 | W153: 0 | Z153: 0 | AC153: 0 | AF153: 0 | AI153: 0 | AM153: Included | AO153: 58090 | AP153: Equipment NonCapitalized | AQ153: =IF(D153="Included","Inc.",IF(D153="Excluded","Exc.","")) -> Inc. | AR153: =E153 -> 0 | AS153: =H153 -> 0 | AT153: =K153 -> 0 | AU153: =N153 -> 0 | AV153: =Q153 -> 0 | AW153: =T153 -> 0 | AX153: =W153 -> 0 | AY153: =Z153 -> 0 | AZ153: =AC153 -> 0 | BA153: =AF153 -> 0 | BB153: =AI153 -> 0 | BC153: =IF(AL153="","",AL153) -> 
A154: =_xlfn.XLOOKUP(B154,MTDC[Description],MTDC[VALUE],"N/A",0) -> N/A | B154: Make a selection | D154: =IF(AND(B154="Make a Selection",OR(sFABC=1,sFABC=2,sFABC=3)),"",IF(sFABC=2,"Included",IF(sFABC=3,"Custom F&A Amt",IF(_xlfn.XLOOKUP(B154,MTDC[Description],MTDC[Include in MTDC],"N/A",0)="MTDC","Included","Excluded")))) ->  | E154: 0 | H154: 0 | K154: 0 | N154: 0 | Q154: 0 | T154: 0 | W154: 0 | Z154: 0 | AC154: 0 | AF154: 0 | AI154: =SUM(E154:AH154) -> 0 | AO154: N/A | AP154: Make a selection | AQ154: =IF(D154="Included","Inc.",IF(D154="Excluded","Exc.","")) ->  | AR154: =E154 -> 0 | AS154: =H154 -> 0 | AT154: =K154 -> 0 | AU154: =N154 -> 0 | AV154: =Q154 -> 0 | AW154: =T154 -> 0 | AX154: =W154 -> 0 | AY154: =Z154 -> 0 | AZ154: =AC154 -> 0 | BA154: =AF154 -> 0 | BB154: =AI154 -> 0 | BC154: =IF(AL154="","",AL154) -> 
AQ155: =IF(D156="Included","Inc.",IF(D156="Excluded","Exc.","")) ->  | BC155: =IF(AL156="","",AL156) -> 
B156: Total Computers and Equipment | E156: =SUM(E152:G155) -> 0 | H156: =SUM(H152:J155) -> 0 | K156: =SUM(K152:M155) -> 0 | N156: =SUM(N152:P155) -> 0 | Q156: =SUM(Q152:S155) -> 0 | T156: =SUM(T152:V155) -> 0 | W156: =SUM(W152:Y155) -> 0 | Z156: =SUM(Z152:AB155) -> 0 | AC156: =SUM(AC152:AE155) -> 0 | AF156: =SUM(AF152:AH155) -> 0 | AI156: =SUM(E156:AH156) -> 0 | AM156: Sec I
A158: J. UTILITIES | AO158: =bOLJ -> J. UTILITIES | AQ158: =IF(D160="Included","Inc.",IF(D160="Excluded","Exc.","")) ->  | BC158: =IF(AL160="","",AL160) -> 
A159: =_xlfn.XLOOKUP(B159,MTDC[Description],MTDC[VALUE],"N/A",0) -> N/A | B159: Make a selection | D159: =IF(AND(B159="Make a Selection",OR(sFABC=1,sFABC=2,sFABC=3)),"",IF(sFABC=2,"Included",IF(sFABC=3,"Custom F&A Amt",IF(_xlfn.XLOOKUP(B159,MTDC[Description],MTDC[Include in MTDC],"N/A",0)="MTDC","Included","Excluded")))) ->  | E159: 0 | H159: 0 | K159: 0 | N159: 0 | Q159: 0 | T159: 0 | W159: 0 | Z159: 0 | AC159: 0 | AF159: 0 | AI159: =SUM(E159:AH159) -> 0 | AM159: =D159 ->  | AO159: =A159 -> N/A | AP159: =B159 -> Make a selection | AQ159: =IF(D159="Included","Inc.",IF(D159="Excluded","Exc.","")) ->  | AR159: =E159 -> 0 | AS159: =H159 -> 0 | AT159: =K159 -> 0 | AU159: =N159 -> 0 | AV159: =Q159 -> 0 | AW159: =T159 -> 0 | AX159: =W159 -> 0 | AY159: =Z159 -> 0 | AZ159: =AC159 -> 0 | BA159: =AF159 -> 0 | BB159: =AI159 -> 0 | BC159: =IF(AL159="","",AL159) -> 
AQ160: =IF(D161="Included","Inc.",IF(D161="Excluded","Exc.","")) ->  | BC160: =IF(AL161="","",AL161) -> 
B161: Total Utilities | E161: =SUM(E159:G160) -> 0 | H161: =SUM(H159:J160) -> 0 | K161: =SUM(K159:M160) -> 0 | N161: =SUM(N159:P160) -> 0 | Q161: =SUM(Q159:S160) -> 0 | T161: =SUM(T159:V160) -> 0 | W161: =SUM(W159:Y160) -> 0 | Z161: =SUM(Z159:AB160) -> 0 | AC161: =SUM(AC159:AE160) -> 0 | AF161: =SUM(AF159:AH160) -> 0 | AI161: =SUM(E161:AH161) -> 0 | AM161: Sec J
A163: K. REPAIRS & MAINTENANCE | AO163: =bOLK -> K. REPAIRS & MAINTENANCE | AQ163: =IF(D165="Included","Inc.",IF(D165="Excluded","Exc.","")) ->  | BC163: =IF(AL165="","",AL165) -> 
A164: =_xlfn.XLOOKUP(B164,MTDC[Description],MTDC[VALUE],"N/A",0) -> 59560 | B164: R&M Equipment | D164: =IF(AND(B164="Make a Selection",OR(sFABC=1,sFABC=2,sFABC=3)),"",IF(sFABC=2,"Included",IF(sFABC=3,"Custom F&A Amt",IF(_xlfn.XLOOKUP(B164,MTDC[Description],MTDC[Include in MTDC],"N/A",0)="MTDC","Included","Excluded")))) -> Included | E164: 0 | H164: 0 | K164: 0 | N164: 0 | Q164: 0 | T164: 0 | W164: 0 | Z164: 0 | AC164: 0 | AF164: 0 | AI164: =SUM(E164:AH164) -> 0 | AM164: =D164 -> Included | AO164: =A164 -> 59560 | AP164: =B164 -> R&M Equipment | AQ164: =IF(D164="Included","Inc.",IF(D164="Excluded","Exc.","")) -> Inc. | AR164: =E164 -> 0 | AS164: =H164 -> 0 | AT164: =K164 -> 0 | AU164: =N164 -> 0 | AV164: =Q164 -> 0 | AW164: =T164 -> 0 | AX164: =W164 -> 0 | AY164: =Z164 -> 0 | AZ164: =AC164 -> 0 | BA164: =AF164 -> 0 | BB164: =AI164 -> 0 | BC164: =IF(AL164="","",AL164) -> 
A165: =_xlfn.XLOOKUP(B165,MTDC[Description],MTDC[VALUE],"N/A",0) -> N/A | B165: Make a selection | D165: =IF(AND(B165="Make a Selection",OR(sFABC=1,sFABC=2,sFABC=3)),"",IF(sFABC=2,"Included",IF(sFABC=3,"Custom F&A Amt",IF(_xlfn.XLOOKUP(B165,MTDC[Description],MTDC[Include in MTDC],"N/A",0)="MTDC","Included","Excluded")))) ->  | E165: 0 | H165: 0 | K165: 0 | N165: 0 | Q165: 0 | T165: 0 | W165: 0 | Z165: 0 | AC165: 0 | AF165: 0 | AI165: 0 | AO165: =A165 -> N/A | AP165: =B165 -> Make a selection | AQ165: =IF(D165="Included","Inc.",IF(D165="Excluded","Exc.","")) ->  | AR165: =E165 -> 0 | AS165: =H165 -> 0 | AT165: =K165 -> 0 | AU165: =N165 -> 0 | AV165: =Q165 -> 0 | AW165: =T165 -> 0 | AX165: =W165 -> 0 | AY165: =Z165 -> 0 | AZ165: =AC165 -> 0 | BA165: =AF165 -> 0 | BB165: =AI165 -> 0 | BC165: =IF(AL165="","",AL165) -> 
AQ166: =IF(D167="Included","Inc.",IF(D167="Excluded","Exc.","")) ->  | BC166: =IF(AL167="","",AL167) -> 
B167: Total Repairs and Maintenance | E167: =SUM(E164:G166) -> 0 | H167: =SUM(H164:J166) -> 0 | K167: =SUM(K164:M166) -> 0 | N167: =SUM(N164:P166) -> 0 | Q167: =SUM(Q164:S166) -> 0 | T167: =SUM(T164:V166) -> 0 | W167: =SUM(W164:Y166) -> 0 | Z167: =SUM(Z164:AB166) -> 0 | AC167: =SUM(AC164:AE166) -> 0 | AF167: =SUM(AF164:AH166) -> 0 | AI167: =SUM(E167:AH167) -> 0 | AM167: Sec K
A169: L. OTHER OPERATING EXPENSES | AO169: =bOLL -> L. OTHER OPERATING EXPENSES | AQ169: =IF(D171="Included","Inc.",IF(D171="Excluded","Exc.","")) -> Exc. | BC169: =IF(AL171="","",AL171) -> 
A170: =_xlfn.XLOOKUP(B170,MTDC[Description],MTDC[VALUE],"N/A",0) -> 60090 | B170: Telecom Voice & Data Fees | D170: =IF(AND(B170="Make a Selection",OR(sFABC=1,sFABC=2,sFABC=3)),"",IF(sFABC=2,"Included",IF(sFABC=3,"Custom F&A Amt",IF(_xlfn.XLOOKUP(B170,MTDC[Description],MTDC[Include in MTDC],"N/A",0)="MTDC","Included","Excluded")))) -> Included | E170: 0 | H170: 0 | K170: 0 | N170: 0 | Q170: 0 | T170: 0 | W170: 0 | Z170: 0 | AC170: 0 | AF170: 0 | AI170: =SUM(E170:AH170) -> 0 | AM170: =D170 -> Included | AO170: =A170 -> 60090 | AP170: =B170 -> Telecom Voice & Data Fees | AQ170: =IF(D170="Included","Inc.",IF(D170="Excluded","Exc.","")) -> Inc. | AR170: =E170 -> 0 | AS170: =H170 -> 0 | AT170: =K170 -> 0 | AU170: =N170 -> 0 | AV170: =Q170 -> 0 | AW170: =T170 -> 0 | AX170: =W170 -> 0 | AY170: =Z170 -> 0 | AZ170: =AC170 -> 0 | BA170: =AF170 -> 0 | BB170: =AI170 -> 0 | BC170: =IF(AL170="","",AL170) -> 
A171: =_xlfn.XLOOKUP(B171,MTDC[Description],MTDC[VALUE],"N/A",0) -> 60510 | B171: Rent Buildings & Grounds | D171: =IF(AND(B171="Make a Selection",OR(sFABC=1,sFABC=2,sFABC=3)),"",IF(sFABC=2,"Included",IF(sFABC=3,"Custom F&A Amt",IF(_xlfn.XLOOKUP(B171,MTDC[Description],MTDC[Include in MTDC],"N/A",0)="MTDC","Included","Excluded")))) -> Excluded | E171: 0 | H171: 0 | K171: 0 | N171: 0 | Q171: 0 | T171: 0 | W171: 0 | Z171: 0 | AC171: 0 | AF171: 0 | AI171: =SUM(E171:AH171) -> 0 | AM171: Excluded | AO171: 60510 | AP171: Rent Buildings & Grounds | AQ171: Exc. | AR171: 0 | AS171: 0 | AT171: 0 | AU171: 0 | AV171: 0 | AW171: 0 | AX171: 0 | AY171: 0 | AZ171: 0 | BA171: 0 | BB171: 0
A172: =_xlfn.XLOOKUP(B172,MTDC[Description],MTDC[VALUE],"N/A",0) -> 60600 | B172: Rent Other | D172: =IF(AND(B172="Make a Selection",OR(sFABC=1,sFABC=2,sFABC=3)),"",IF(sFABC=2,"Included",IF(sFABC=3,"Custom F&A Amt",IF(_xlfn.XLOOKUP(B172,MTDC[Description],MTDC[Include in MTDC],"N/A",0)="MTDC","Included","Excluded")))) -> Included | E172: 0 | H172: 0 | K172: 0 | N172: 0 | Q172: 0 | T172: 0 | W172: 0 | Z172: 0 | AC172: 0 | AF172: 0 | AI172: =SUM(E172:AH172) -> 0 | AM172: Included | AO172: 60600 | AP172: Rent Other | AQ172: Inc. | AR172: 0 | AS172: 0 | AT172: 0 | AU172: 0 | AV172: 0 | AW172: 0 | AX172: 0 | AY172: 0 | AZ172: 0 | BA172: 0 | BB172: 0
A173: =_xlfn.XLOOKUP(B173,MTDC[Description],MTDC[VALUE],"N/A",0) -> 61510 | B173: Participant Support Travel | D173: =IF(AND(B173="Make a Selection",OR(sFABC=1,sFABC=2,sFABC=3)),"",IF(sFABC=2,"Included",IF(sFABC=3,"Custom F&A Amt",IF(_xlfn.XLOOKUP(B173,MTDC[Description],MTDC[Include in MTDC],"N/A",0)="MTDC","Included","Excluded")))) -> Excluded | E173: 0 | H173: 0 | K173: 0 | N173: 0 | Q173: 0 | T173: 0 | W173: 0 | Z173: 0 | AC173: 0 | AF173: 0 | AI173: 0 | AM173: Excluded | AO173: 61510 | AP173: Participant Support Travel | AQ173: Exc. | AR173: 0 | AS173: 0 | AT173: 0 | AU173: 0 | AV173: 0 | AW173: 0 | AX173: 0 | AY173: 0 | AZ173: 0 | BA173: 0 | BB173: 0
A174: =_xlfn.XLOOKUP(B174,MTDC[Description],MTDC[VALUE],"N/A",0) -> 61520 | B174: Participant Support Stipends | D174: =IF(AND(B174="Make a Selection",OR(sFABC=1,sFABC=2,sFABC=3)),"",IF(sFABC=2,"Included",IF(sFABC=3,"Custom F&A Amt",IF(_xlfn.XLOOKUP(B174,MTDC[Description],MTDC[Include in MTDC],"N/A",0)="MTDC","Included","Excluded")))) -> Excluded | E174: 0 | H174: 0 | K174: 0 | N174: 0 | Q174: 0 | T174: 0 | W174: 0 | Z174: 0 | AC174: 0 | AF174: 0 | AI174: 0 | AM174: Excluded | AO174: 61520 | AP174: Participant Support Stipends | AQ174: Exc. | AR174: 0 | AS174: 0 | AT174: 0 | AU174: 0 | AV174: 0 | AW174: 0 | AX174: 0 | AY174: 0 | AZ174: 0 | BA174: 0 | BB174: 0
A175: =_xlfn.XLOOKUP(B175,MTDC[Description],MTDC[VALUE],"N/A",0) -> 61530 | B175: Participant Support Tuition & Fee | D175: =IF(AND(B175="Make a Selection",OR(sFABC=1,sFABC=2,sFABC=3)),"",IF(sFABC=2,"Included",IF(sFABC=3,"Custom F&A Amt",IF(_xlfn.XLOOKUP(B175,MTDC[Description],MTDC[Include in MTDC],"N/A",0)="MTDC","Included","Excluded")))) -> Excluded | E175: 0 | H175: 0 | K175: 0 | N175: 0 | Q175: 0 | T175: 0 | W175: 0 | Z175: 0 | AC175: 0 | AF175: 0 | AI175: 0 | AM175: Excluded | AO175: 61530 | AP175: Participant Support Tuition & Fee | AQ175: Exc. | AR175: 0 | AS175: 0 | AT175: 0 | AU175: 0 | AV175: 0 | AW175: 0 | AX175: 0 | AY175: 0 | AZ175: 0 | BA175: 0 | BB175: 0
A176: =_xlfn.XLOOKUP(B176,MTDC[Description],MTDC[VALUE],"N/A",0) -> 61550 | B176: Participant Support Housing | D176: =IF(AND(B176="Make a Selection",OR(sFABC=1,sFABC=2,sFABC=3)),"",IF(sFABC=2,"Included",IF(sFABC=3,"Custom F&A Amt",IF(_xlfn.XLOOKUP(B176,MTDC[Description],MTDC[Include in MTDC],"N/A",0)="MTDC","Included","Excluded")))) -> Excluded | E176: 0 | H176: 0 | K176: 0 | N176: 0 | Q176: 0 | T176: 0 | W176: 0 | Z176: 0 | AC176: 0 | AF176: 0 | AI176: 0 | AM176: Excluded | AO176: 61550 | AP176: Participant Support Housing | AQ176: Exc. | AR176: 0 | AS176: 0 | AT176: 0 | AU176: 0 | AV176: 0 | AW176: 0 | AX176: 0 | AY176: 0 | AZ176: 0 | BA176: 0 | BB176: 0
A177: =_xlfn.XLOOKUP(B177,MTDC[Description],MTDC[VALUE],"N/A",0) -> 61570 | B177: Participant Support Other | D177: =IF(AND(B177="Make a Selection",OR(sFABC=1,sFABC=2,sFABC=3)),"",IF(sFABC=2,"Included",IF(sFABC=3,"Custom F&A Amt",IF(_xlfn.XLOOKUP(B177,MTDC[Description],MTDC[Include in MTDC],"N/A",0)="MTDC","Included","Excluded")))) -> Excluded | E177: 0 | H177: 0 | K177: 0 | N177: 0 | Q177: 0 | T177: 0 | W177: 0 | Z177: 0 | AC177: 0 | AF177: 0 | AI177: 0 | AM177: Excluded | AO177: 61570 | AP177: Participant Support Other | AQ177: Exc. | AR177: 0 | AS177: 0 | AT177: 0 | AU177: 0 | AV177: 0 | AW177: 0 | AX177: 0 | AY177: 0 | AZ177: 0 | BA177: 0 | BB177: 0
A178: =_xlfn.XLOOKUP(B178,MTDC[Description],MTDC[VALUE],"N/A",0) -> 62020 | B178: Training Grant Stipends | D178: =IF(AND(B178="Make a Selection",OR(sFABC=1,sFABC=2,sFABC=3)),"",IF(sFABC=2,"Included",IF(sFABC=3,"Custom F&A Amt",IF(_xlfn.XLOOKUP(B178,MTDC[Description],MTDC[Include in MTDC],"N/A",0)="MTDC","Included","Excluded")))) -> Included | E178: 0 | H178: 0 | K178: 0 | N178: 0 | Q178: 0 | T178: 0 | W178: 0 | Z178: 0 | AC178: 0 | AF178: 0 | AI178: 0 | AM178: Included | AO178: 62020 | AP178: Training Grant Stipends | AQ178: Inc. | AR178: 0 | AS178: 0 | AT178: 0 | AU178: 0 | AV178: 0 | AW178: 0 | AX178: 0 | AY178: 0 | AZ178: 0 | BA178: 0 | BB178: 0
A179: =_xlfn.XLOOKUP(B179,MTDC[Description],MTDC[VALUE],"N/A",0) -> 62510 | B179: Insurance Other | D179: =IF(AND(B179="Make a Selection",OR(sFABC=1,sFABC=2,sFABC=3)),"",IF(sFABC=2,"Included",IF(sFABC=3,"Custom F&A Amt",IF(_xlfn.XLOOKUP(B179,MTDC[Description],MTDC[Include in MTDC],"N/A",0)="MTDC","Included","Excluded")))) -> Included | E179: 0 | H179: 0 | K179: 0 | N179: 0 | Q179: 0 | T179: 0 | W179: 0 | Z179: 0 | AC179: 0 | AF179: 0 | AI179: 0 | AM179: Included | AO179: 62510 | AP179: Insurance Other | AQ179: Inc. | AR179: 0 | AS179: 0 | AT179: 0 | AU179: 0 | AV179: 0 | AW179: 0 | AX179: 0 | AY179: 0 | AZ179: 0 | BA179: 0 | BB179: 0
A180: =_xlfn.XLOOKUP(B180,MTDC[Description],MTDC[VALUE],"N/A",0) -> 62520 | B180: Insurance Post Doctorate Premiums | D180: =IF(AND(B180="Make a Selection",OR(sFABC=1,sFABC=2,sFABC=3)),"",IF(sFABC=2,"Included",IF(sFABC=3,"Custom F&A Amt",IF(_xlfn.XLOOKUP(B180,MTDC[Description],MTDC[Include in MTDC],"N/A",0)="MTDC","Included","Excluded")))) -> Included | E180: 0 | H180: 0 | K180: 0 | N180: 0 | Q180: 0 | T180: 0 | W180: 0 | Z180: 0 | AC180: 0 | AF180: 0 | AI180: 0 | AM180: Included | AO180: 62520 | AP180: Insurance Post Doctorate Premiums | AQ180: Inc. | AR180: 0 | AS180: 0 | AT180: 0 | AU180: 0 | AV180: 0 | AW180: 0 | AX180: 0 | AY180: 0 | AZ180: 0 | BA180: 0 | BB180: 0
A181: =_xlfn.XLOOKUP(B181,MTDC[Description],MTDC[VALUE],"N/A",0) -> 67045 | B181: Capital Purchase Equipment Laboratory | D181: =IF(AND(B181="Make a Selection",OR(sFABC=1,sFABC=2,sFABC=3)),"",IF(sFABC=2,"Included",IF(sFABC=3,"Custom F&A Amt",IF(_xlfn.XLOOKUP(B181,MTDC[Description],MTDC[Include in MTDC],"N/A",0)="MTDC","Included","Excluded")))) -> Excluded | E181: 0 | H181: 0 | K181: 0 | N181: 0 | Q181: 0 | T181: 0 | W181: 0 | Z181: 0 | AC181: 0 | AF181: 0 | AI181: 0 | AM181: Excluded | AO181: 67045 | AP181: Capital Purchase Equipment Laboratory | AQ181: Exc. | AR181: 0 | AS181: 0 | AT181: 0 | AU181: 0 | AV181: 0 | AW181: 0 | AX181: 0 | AY181: 0 | AZ181: 0 | BA181: 0 | BB181: 0
A182: =_xlfn.XLOOKUP(B182,MTDC[Description],MTDC[VALUE],"N/A",0) -> N/A | B182: Make a selection | D182: =IF(AND(B182="Make a Selection",OR(sFABC=1,sFABC=2,sFABC=3)),"",IF(sFABC=2,"Included",IF(sFABC=3,"Custom F&A Amt",IF(_xlfn.XLOOKUP(B182,MTDC[Description],MTDC[Include in MTDC],"N/A",0)="MTDC","Included","Excluded")))) ->  | E182: 0 | H182: 0 | K182: 0 | N182: 0 | Q182: 0 | T182: 0 | W182: 0 | Z182: 0 | AC182: 0 | AF182: 0 | AI182: 0 | AO182: N/A | AP182: Make a selection | AR182: 0 | AS182: 0 | AT182: 0 | AU182: 0 | AV182: 0 | AW182: 0 | AX182: 0 | AY182: 0 | AZ182: 0 | BA182: 0 | BB182: 0
AQ183: =IF(D184="Included","Inc.",IF(D184="Excluded","Exc.","")) ->  | BC183: =IF(AL184="","",AL184) -> 
B184: Total Other Operating Expenses | E184: =SUM(E170:G183) -> 0 | H184: =ROUND(SUM(H170:J183),0) -> 0 | K184: =ROUND(SUM(K170:M183),0) -> 0 | N184: =ROUND(SUM(N170:P183),0) -> 0 | Q184: =ROUND(SUM(Q170:S183),0) -> 0 | T184: =ROUND(SUM(T170:V183),0) -> 0 | W184: =ROUND(SUM(W170:Y183),0) -> 0 | Z184: =ROUND(SUM(Z170:AB183),0) -> 0 | AC184: =ROUND(SUM(AC170:AE183),0) -> 0 | AF184: =ROUND(SUM(AF170:AH183),0) -> 0 | AI184: =SUM(E184:AH184) -> 0 | AM184: Sec L
A186: M. ADDITIONAL PROJECT EXPENSES | AO186: =bOLM -> M. ADDITIONAL PROJECT EXPENSES | AQ186: =IF(D188="Included","Inc.",IF(D188="Excluded","Exc.","")) ->  | BC186: =IF(AL188="","",AL188) -> 
A187: =_xlfn.XLOOKUP(B187,MTDC[Description],MTDC[VALUE],"N/A",0) -> N/A | B187: Enter Description | D187: Excluded | E187: 0 | H187: 0 | K187: 0 | N187: 0 | Q187: 0 | T187: 0 | W187: 0 | Z187: 0 | AC187: 0 | AF187: 0 | AI187: =SUM(E187:AH187) -> 0 | AO187: =A187 -> N/A | AP187: =B187 -> Enter Description | AQ187: =IF(D187="Included","Inc.",IF(D187="Excluded","Exc.","")) -> Exc. | AR187: =E187 -> 0 | AS187: =H187 -> 0 | AT187: =K187 -> 0 | AU187: =N187 -> 0 | AV187: =Q187 -> 0 | AW187: =T187 -> 0 | AX187: =W187 -> 0 | AY187: =Z187 -> 0 | AZ187: =AC187 -> 0 | BA187: =AF187 -> 0 | BB187: =AI187 -> 0 | BC187: =IF(AL187="","",AL187) -> 
AQ188: =IF(D189="Included","Inc.",IF(D189="Excluded","Exc.","")) ->  | BC188: =IF(AL188="","",AL188) -> 
B189: Total Additional Project Expenses | E189: =SUM(E187:G188) -> 0 | H189: =SUM(H187:J188) -> 0 | K189: =SUM(K187:M188) -> 0 | N189: =SUM(N187:P188) -> 0 | Q189: =SUM(Q187:S188) -> 0 | T189: =SUM(T187:V188) -> 0 | W189: =SUM(W187:Y188) -> 0 | Z189: =SUM(Z187:AB188) -> 0 | AC189: =SUM(AC187:AE188) -> 0 | AF189: =SUM(AF187:AH188) -> 0 | AI189: =SUM(E189:AH189) -> 0
AO190: TOTALS | AQ190: =IF(D192="Included","Inc.",IF(D192="Excluded","Exc.","")) ->  | BC190: =IF(AL191="","",AL191) -> 
A191: N. TOTAL DIRECT COSTS (B-L) | E191: =SUM(budSECA3BP1,budSECBBP1,budSECCBP1,budSECDBP1,budSECEBP1,budSECFBP1,budSECGBP1,budSECHBP1,budSECIBP1,budSECJBP1,budSECKBP1,budSECLBP1) -> 0 | H191: =SUM(budSECA3BP2,budSECBBP2,budSECCBP2,budSECDBP2,budSECEBP2,budSECFBP2,budSECGBP2,budSECHBP2,budSECIBP2,budSECJBP2,budSECKBP2,budSECLBP2) -> 0 | K191: =SUM(budSECA3BP3,budSECBBP3,budSECCBP3,budSECDBP3,budSECEBP3,budSECFBP3,budSECGBP3,budSECHBP3,budSECIBP3,budSECJBP3,budSECKBP3,budSECLBP3) -> 0 | N191: =SUM(budSECA3BP4,budSECBBP4,budSECCBP4,budSECDBP4,budSECEBP4,budSECFBP4,budSECGBP4,budSECHBP4,budSECIBP4,budSECJBP4,budSECKBP4,budSECLBP4) -> 0 | Q191: =SUM(budSECA3BP5,budSECBBP5,budSECCBP5,budSECDBP5,budSECEBP5,budSECFBP5,budSECGBP5,budSECHBP5,budSECIBP5,budSECJBP5,budSECKBP5,budSECLBP5) -> 0 | T191: =SUM(budSECA3BP6,budSECBBP6,budSECCBP6,budSECDBP6,budSECEBP6,budSECFBP6,budSECGBP6,budSECHBP6,budSECIBP6,budSECJBP6,budSECKBP6,budSECLBP6) -> 0 | W191: =SUM(budSECA3BP7,budSECBBP7,budSECCBP7,budSECDBP7,budSECEBP7,budSECFBP7,budSECGBP7,budSECHBP7,budSECIBP7,budSECJBP7,budSECKBP7,budSECLBP7) -> 0 | Z191: =SUM(budSECA3BP8,budSECBBP8,budSECCBP8,budSECDBP8,budSECEBP8,budSECFBP8,budSECGBP8,budSECHBP8,budSECIBP8,budSECJBP8,budSECKBP8,budSECLBP8) -> 0 | AC191: =SUM(budSECA3BP9,budSECBBP9,budSECCBP9,budSECDBP9,budSECEBP9,budSECFBP9,budSECGBP9,budSECHBP9,budSECIBP9,budSECJBP9,budSECKBP9,budSECLBP9) -> 0 | AF191: =SUM(budSECA3BP10,budSECBBP10,budSECCBP10,budSECDBP10,budSECEBP10,budSECFBP10,budSECGBP10,budSECHBP10,budSECIBP10,budSECJBP10,budSECKBP10,budSECLBP10) -> 0 | AI191: =SUM(budSECA3TOT,budSECBTOT,budSECCTOT,budSECDTOT,budSECETOT,budSECFTOT,budSECGTOT,budSECHTOT,budSECITOT,budSECJTOT,budSECKTOT,budSECLTOT) -> 0 | AM191: Total | AO191: Total Direct Cost | AR191: =budTOTDCBP1 -> 0 | AS191: =budTOTDCBP2 -> 0 | AT191: =budTOTDCBP3 -> 0 | AU191: =budTOTDCBP4 -> 0 | AV191: =budTOTDCBP5 -> 0 | AW191: =budTOTDCBP6 -> 0 | AX191: =budTOTDCBP7 -> 0 | AY191: =budTOTDCBP8 -> 0 | AZ191: =budTOTDCBP9 -> 0 | BA191: =budTOTDCBP10 -> 0 | BB191: =budTOTDC -> 0
A192: O. TOTAL INDIRECT COSTS (R) | E192: =IF(sFABC=3,budNSFARABP1,SUM(budFAC1BP1,budFAC2BP1)) -> 0 | H192: =IF(sFABC=3,budNSFARABP2,SUM(budFAC1BP2,budFAC2BP2)) -> 0 | K192: =IF(sFABC=3,budNSFARABP3,SUM(budFAC1BP3,budFAC2BP3)) -> 0 | N192: =IF(sFABC=3,budNSFARABP4,SUM(budFAC1BP4,budFAC2BP4)) -> 0 | Q192: =IF(sFABC=3,budNSFARABP5,SUM(budFAC1BP5,budFAC2BP5)) -> 0 | T192: =IF(sFABC=3,budNSFARABP6,SUM(budFAC1BP6,budFAC2BP6)) -> 0 | W192: =IF(sFABC=3,budNSFARABP7,SUM(budFAC1BP7,budFAC2BP7)) -> 0 | Z192: =IF(sFABC=3,budNSFARABP8,SUM(budFAC1BP8,budFAC2BP8)) -> 0 | AC192: =IF(sFABC=3,budNSFARABP9,SUM(budFAC1BP9,budFAC2BP9)) -> 0 | AF192: =IF(sFABC=3,budNSFARABP10,SUM(budFAC1BP10,budFAC2BP10)) -> 0 | AI192: =SUM(E192:AH192) -> 0 | AM192: Total | AO192: Total Indirect Cost | AR192: =budTOTIDCBP1 -> 0 | AS192: =H192 -> 0 | AT192: =K192 -> 0 | AU192: =N192 -> 0 | AV192: =Q192 -> 0 | AW192: =T192 -> 0 | AX192: . | AY192: =Z192 -> 0 | AZ192: =AC192 -> 0 | BA192: =AF192 -> 0 | BB192: =budTOTIDC -> 0
A193: P. TOTAL ADDTIONAL PROJ. EXP. | E193: =budSECMBP1 -> 0 | H193: =budSECMBP2 -> 0 | K193: =budSECMBP3 -> 0 | N193: =budSECMBP4 -> 0 | Q193: =budSECMBP5 -> 0 | T193: =budSECMBP6 -> 0 | W193: =budSECMBP7 -> 0 | Z193: =budSECMBP8 -> 0 | AC193: =budSECMBP9 -> 0 | AF193: =budSECMBP10 -> 0 | AI193: =SUM(E193:AH193) -> 0 | AM193: Total | AO193: Total Addiitonal Project Exp. | AR193: =budTOTAPEBP1 -> 0 | AS193: =budTOTAPEBP2 -> 0 | AT193: =budTOTAPEBP3 -> 0 | AU193: =budTOTAPEBP4 -> 0 | AV193: =budTOTAPEBP5 -> 0 | AW193: =budTOTAPEBP6 -> 0 | AX193: =budTOTAPEBP7 -> 0 | AY193: =budTOTAPEBP8 -> 0 | AZ193: =budTOTAPEBP9 -> 0 | BA193: =budTOTAPEBP10 -> 0 | BB193: =budTOTAPE -> 0
A194: Q. TOTAL PROJECT COSTS (N-P) | E194: =IF(OR(ISNUMBER(budTOTDCBP1)=FALSE,ISNUMBER(budTOTIDCBP1)=FALSE),0,SUM(budTOTDCBP1,budTOTIDCBP1,budTOTAPEBP1)) -> 0 | H194: =IF(OR(ISNUMBER(budTOTDCBP2)=FALSE,ISNUMBER(budTOTIDCBP2)=FALSE),0,SUM(budTOTDCBP2,budTOTIDCBP2,budTOTAPEBP2)) -> 0 | K194: =IF(OR(ISNUMBER(budTOTDCBP3)=FALSE,ISNUMBER(budTOTIDCBP3)=FALSE),0,SUM(budTOTDCBP3,budTOTIDCBP3,budTOTAPEBP3)) -> 0 | N194: =IF(OR(ISNUMBER(budTOTDCBP4)=FALSE,ISNUMBER(budTOTIDCBP4)=FALSE),0,SUM(budTOTDCBP4,budTOTIDCBP4,budTOTAPEBP4)) -> 0 | Q194: =IF(OR(ISNUMBER(budTOTDCBP5)=FALSE,ISNUMBER(budTOTIDCBP5)=FALSE),0,SUM(budTOTDCBP5,budTOTIDCBP5,budTOTAPEBP5)) -> 0 | T194: =IF(OR(ISNUMBER(budTOTDCBP6)=FALSE,ISNUMBER(budTOTIDCBP6)=FALSE),0,SUM(budTOTDCBP6,budTOTIDCBP6,budTOTAPEBP6)) -> 0 | W194: =IF(OR(ISNUMBER(budTOTDCBP7)=FALSE,ISNUMBER(budTOTIDCBP7)=FALSE),0,SUM(budTOTDCBP7,budTOTIDCBP7,budTOTAPEBP7)) -> 0 | Z194: =IF(OR(ISNUMBER(budTOTDCBP8)=FALSE,ISNUMBER(budTOTIDCBP8)=FALSE),0,SUM(budTOTDCBP8,budTOTIDCBP8,budTOTAPEBP8)) -> 0 | AC194: =IF(OR(ISNUMBER(budTOTDCBP9)=FALSE,ISNUMBER(budTOTIDCBP9)=FALSE),0,SUM(budTOTDCBP9,budTOTIDCBP9,budTOTAPEBP9)) -> 0 | AF194: =IF(OR(ISNUMBER(budTOTDCBP10)=FALSE,ISNUMBER(budTOTIDCBP10)=FALSE),0,SUM(budTOTDCBP10,budTOTIDCBP10,budTOTAPEBP10)) -> 0 | AI194: =SUM(E194:AH194) -> 0 | AM194: Total | AO194: Total Cost | AR194: =budTOTCBP1 -> 0 | AS194: =H194 -> 0 | AT194: =K194 -> 0 | AU194: =N194 -> 0 | AV194: =Q194 -> 0 | AW194: =T194 -> 0 | AX194: =W194 -> 0 | AY194: =Z194 -> 0 | AZ194: =AC194 -> 0 | BA194: =AF194 -> 0 | BB194: =budTOTC -> 0
AO195: NOTES
A196: Include subaward IDC? | B196: Enter the Direct Cost Cap for each budget period | N196: 0 | Q196: 0 | T196: 0 | W196: 0 | Z196: 0 | AC196: 0 | AF196: 0
A197: No | B197: Remainder allocable to Direct Costs | E197: =IF(rngSubIDC="Yes",E196-budTOTDCBP1,E196-budTOTDCBP1+SUMPRODUCT((rngSUBCat = "Indirect")*(rngSUBBP1))) -> 0 | H197: =IF(rngSubIDC="Yes",H196-budTOTDCBP2,H196-budTOTDCBP2+SUMPRODUCT((rngSUBCat = "Indirect")*(rngSUBBP2))) -> 0 | K197: =IF(rngSubIDC="Yes",K196-budTOTDCBP3,K196-budTOTDCBP3+SUMPRODUCT((rngSUBCat = "Indirect")*(rngSUBBP3))) -> 0 | N197: =IF(rngSubIDC="Yes",N196-budTOTDCBP4,N196-budTOTDCBP4+SUMPRODUCT((rngSUBCat = "Indirect")*(rngSUBBP4))) -> 0 | Q197: =IF(rngSubIDC="Yes",Q196-budTOTDCBP5,Q196-budTOTDCBP5+SUMPRODUCT((rngSUBCat = "Indirect")*(rngSUBBP5))) -> 0 | T197: =IF(rngSubIDC="Yes",T196-budTOTDCBP6,T196-budTOTDCBP6+SUMPRODUCT((rngSUBCat = "Indirect")*(rngSUBBP6))) -> 0 | W197: =IF(rngSubIDC="Yes",W196-budTOTDCBP7,W196-budTOTDCBP7+SUMPRODUCT((rngSUBCat = "Indirect")*(rngSUBBP7))) -> 0 | Z197: =IF(rngSubIDC="Yes",Z196-budTOTDCBP8,Z196-budTOTDCBP8+SUMPRODUCT((rngSUBCat = "Indirect")*(rngSUBBP8))) -> 0 | AC197: =IF(rngSubIDC="Yes",AC196-budTOTDCBP9,AC196-budTOTDCBP9+SUMPRODUCT((rngSUBCat = "Indirect")*(rngSUBBP9))) -> 0 | AF197: =IF(rngSubIDC="Yes",AF196-budTOTDCBP10,AF196-budTOTDCBP10+SUMPRODUCT((rngSUBCat = "Indirect")*(rngSUBBP10))) -> 0 | AI197: =SUM(E197:AH197) -> 0
B198: Enter the Total Cost Cap for each budget period | N198: 0 | Q198: 0 | T198: 0 | W198: 0 | Z198: 0 | AC198: 0 | AF198: 0
B199: Remainder allocable to Total Costs | E199: =E198-budTOTCBP1 -> 0 | H199: =H198-budTOTCBP2 -> 0 | K199: =K198-budTOTCBP3 -> 0 | N199: =N198-budTOTCBP4 -> 0 | Q199: =Q198-budTOTCBP5 -> 0 | T199: =T198-budTOTCBP6 -> 0 | W199: =W198-budTOTCBP7 -> 0 | Z199: =Z198-budTOTCBP8 -> 0 | AC199: =AC198-budTOTCBP9 -> 0 | AF199: =AF198-budTOTCBP10 -> 0 | AI199: =SUM(E199:AH199) -> 0
A201: =IF(sFABC=1,"R. FACILITIES & ADMINISTRATIVE (F&A) COST BASE (MTDC)",IF(sFABC=2,"R. FACILITIES & ADMINISTRATIVE (F&A) COST BASE (TDC)","R. FACILITIES & ADMINISTRATIVE (F&A) COST BASE (CUSTOM)")) -> R. FACILITIES & ADMINISTRATIVE (F&A) COST BASE (MTDC)
B202: F&A Cost Base 1 | E202: =IF(OR(sFABC=3,AND(OR(sFABC=1,sFABC=2),ISNUMBER(budDM1BP1)=FALSE,ISNUMBER(budDM2BP1)=FALSE)),"N/A",IF(AND(OR(sFABC=1,sFABC=2),ISNUMBER(budDM1BP1)=FALSE,ISNUMBER(budDM2BP1)=TRUE),SUMPRODUCT((rngIncExc="Included")*(rngIncExcBP1)*(budDM1BP1/SUM(budDM1BP1,budDM2BP1))),IF(AND(OR(sFABC=1,sFABC=2),ISNUMBER(budDM1BP1)=TRUE,ISNUMBER(budDM2BP1)=FALSE),SUMPRODUCT((rngIncExc="Included")*(rngIncExcBP1)*(budDM1BP1/budDM1BP1)),SUMPRODUCT((rngIncExc="Included")*(rngIncExcBP1)*(budDM1BP1/SUM(budDM1BP1,budDM2BP1)))))) -> N/A | H202: =IF(OR(sFABC=3,AND(OR(sFABC=1,sFABC=2),ISNUMBER(budDM1BP2)=FALSE,ISNUMBER(budDM2BP2)=FALSE)),"N/A",IF(AND(OR(sFABC=1,sFABC=2),ISNUMBER(budDM1BP2)=FALSE,ISNUMBER(budDM2BP2)=TRUE),SUMPRODUCT((rngIncExc="Included")*(rngIncExcBP2)*(budDM1BP2/SUM(budDM1BP2,budDM2BP2))),IF(AND(OR(sFABC=1,sFABC=2),ISNUMBER(budDM1BP2)=TRUE,ISNUMBER(budDM2BP2)=FALSE),SUMPRODUCT((rngIncExc="Included")*(rngIncExcBP2)*(budDM1BP2/budDM1BP2)),SUMPRODUCT((rngIncExc="Included")*(rngIncExcBP2)*(budDM1BP2/SUM(budDM1BP2,budDM2BP2)))))) -> N/A | K202: =IF(OR(sFABC=3,AND(OR(sFABC=1,sFABC=2),ISNUMBER(budDM1BP3)=FALSE,ISNUMBER(budDM2BP3)=FALSE)),"N/A",IF(AND(OR(sFABC=1,sFABC=2),ISNUMBER(budDM1BP3)=FALSE,ISNUMBER(budDM2BP3)=TRUE),SUMPRODUCT((rngIncExc="Included")*(rngIncExcBP3)*(budDM1BP3/SUM(budDM1BP3,budDM2BP3))),IF(AND(OR(sFABC=1,sFABC=2),ISNUMBER(budDM1BP3)=TRUE,ISNUMBER(budDM2BP3)=FALSE),SUMPRODUCT((rngIncExc="Included")*(rngIncExcBP3)*(budDM1BP3/budDM1BP3)),SUMPRODUCT((rngIncExc="Included")*(rngIncExcBP3)*(budDM1BP3/SUM(budDM1BP3,budDM2BP3)))))) -> N/A | N202: =IF(OR(sFABC=3,AND(OR(sFABC=1,sFABC=2),ISNUMBER(budDM1BP4)=FALSE,ISNUMBER(budDM2BP4)=FALSE)),"N/A",IF(AND(OR(sFABC=1,sFABC=2),ISNUMBER(budDM1BP4)=FALSE,ISNUMBER(budDM2BP4)=TRUE),SUMPRODUCT((rngIncExc="Included")*(rngIncExcBP4)*(budDM1BP4/SUM(budDM1BP4,budDM2BP4))),IF(AND(OR(sFABC=1,sFABC=2),ISNUMBER(budDM1BP4)=TRUE,ISNUMBER(budDM2BP4)=FALSE),SUMPRODUCT((rngIncExc="Included")*(rngIncExcBP4)*(budDM1BP4/budDM1BP4)),SUMPRODUCT((rngIncExc="Included")*(rngIncExcBP4)*(budDM1BP4/SUM(budDM1BP4,budDM2BP4)))))) -> N/A | Q202: =IF(OR(sFABC=3,AND(OR(sFABC=1,sFABC=2),ISNUMBER(budDM1BP5)=FALSE,ISNUMBER(budDM2BP5)=FALSE)),"N/A",IF(AND(OR(sFABC=1,sFABC=2),ISNUMBER(budDM1BP5)=FALSE,ISNUMBER(budDM2BP5)=TRUE),SUMPRODUCT((rngIncExc="Included")*(rngIncExcBP5)*(budDM1BP5/SUM(budDM1BP5,budDM2BP5))),IF(AND(OR(sFABC=1,sFABC=2),ISNUMBER(budDM1BP5)=TRUE,ISNUMBER(budDM2BP5)=FALSE),SUMPRODUCT((rngIncExc="Included")*(rngIncExcBP5)*(budDM1BP5/budDM1BP5)),SUMPRODUCT((rngIncExc="Included")*(rngIncExcBP5)*(budDM1BP5/SUM(budDM1BP5,budDM2BP5)))))) -> N/A | T202: =IF(OR(sFABC=3,AND(OR(sFABC=1,sFABC=2),ISNUMBER(budDM1BP6)=FALSE,ISNUMBER(budDM2BP6)=FALSE)),"N/A",IF(AND(OR(sFABC=1,sFABC=2),ISNUMBER(budDM1BP6)=FALSE,ISNUMBER(budDM2BP6)=TRUE),SUMPRODUCT((rngIncExc="Included")*(rngIncExcBP6)*(budDM1BP6/SUM(budDM1BP6,budDM2BP6))),IF(AND(OR(sFABC=1,sFABC=2),ISNUMBER(budDM1BP6)=TRUE,ISNUMBER(budDM2BP6)=FALSE),SUMPRODUCT((rngIncExc="Included")*(rngIncExcBP6)*(budDM1BP6/budDM1BP6)),SUMPRODUCT((rngIncExc="Included")*(rngIncExcBP6)*(budDM1BP6/SUM(budDM1BP6,budDM2BP6)))))) -> N/A | W202: =IF(OR(sFABC=3,AND(OR(sFABC=1,sFABC=2),ISNUMBER(budDM1BP7)=FALSE,ISNUMBER(budDM2BP7)=FALSE)),"N/A",IF(AND(OR(sFABC=1,sFABC=2),ISNUMBER(budDM1BP7)=FALSE,ISNUMBER(budDM2BP7)=TRUE),SUMPRODUCT((rngIncExc="Included")*(rngIncExcBP7)*(budDM1BP7/SUM(budDM1BP7,budDM2BP7))),IF(AND(OR(sFABC=1,sFABC=2),ISNUMBER(budDM1BP7)=TRUE,ISNUMBER(budDM2BP7)=FALSE),SUMPRODUCT((rngIncExc="Included")*(rngIncExcBP7)*(budDM1BP7/budDM1BP7)),SUMPRODUCT((rngIncExc="Included")*(rngIncExcBP7)*(budDM1BP7/SUM(budDM1BP7,budDM2BP7)))))) -> N/A | Z202: =IF(OR(sFABC=3,AND(OR(sFABC=1,sFABC=2),ISNUMBER(budDM1BP8)=FALSE,ISNUMBER(budDM2BP8)=FALSE)),"N/A",IF(AND(OR(sFABC=1,sFABC=2),ISNUMBER(budDM1BP8)=FALSE,ISNUMBER(budDM2BP8)=TRUE),SUMPRODUCT((rngIncExc="Included")*(rngIncExcBP8)*(budDM1BP8/SUM(budDM1BP8,budDM2BP8))),IF(AND(OR(sFABC=1,sFABC=2),ISNUMBER(budDM1BP8)=TRUE,ISNUMBER(budDM2BP8)=FALSE),SUMPRODUCT((rngIncExc="Included")*(rngIncExcBP8)*(budDM1BP8/budDM1BP8)),SUMPRODUCT((rngIncExc="Included")*(rngIncExcBP8)*(budDM1BP8/SUM(budDM1BP8,budDM2BP8)))))) -> N/A | AC202: =IF(OR(sFABC=3,AND(OR(sFABC=1,sFABC=2),ISNUMBER(budDM1BP9)=FALSE,ISNUMBER(budDM2BP9)=FALSE)),"N/A",IF(AND(OR(sFABC=1,sFABC=2),ISNUMBER(budDM1BP9)=FALSE,ISNUMBER(budDM2BP9)=TRUE),SUMPRODUCT((rngIncExc="Included")*(rngIncExcBP9)*(budDM1BP9/SUM(budDM1BP9,budDM2BP9))),IF(AND(OR(sFABC=1,sFABC=2),ISNUMBER(budDM1BP9)=TRUE,ISNUMBER(budDM2BP9)=FALSE),SUMPRODUCT((rngIncExc="Included")*(rngIncExcBP9)*(budDM1BP9/budDM1BP9)),SUMPRODUCT((rngIncExc="Included")*(rngIncExcBP9)*(budDM1BP9/SUM(budDM1BP9,budDM2BP9)))))) -> N/A | AF202: =IF(OR(sFABC=3,AND(OR(sFABC=1,sFABC=2),ISNUMBER(budDM1BP10)=FALSE,ISNUMBER(budDM2BP10)=FALSE)),"N/A",IF(AND(OR(sFABC=1,sFABC=2),ISNUMBER(budDM1BP10)=FALSE,ISNUMBER(budDM2BP10)=TRUE),SUMPRODUCT((rngIncExc="Included")*(rngIncExcBP10)*(budDM1BP10/SUM(budDM1BP10,budDM2BP10))),IF(AND(OR(sFABC=1,sFABC=2),ISNUMBER(budDM1BP10)=TRUE,ISNUMBER(budDM2BP10)=FALSE),SUMPRODUCT((rngIncExc="Included")*(rngIncExcBP10)*(budDM1BP10/budDM1BP10)),SUMPRODUCT((rngIncExc="Included")*(rngIncExcBP10)*(budDM1BP10/SUM(budDM1BP10,budDM2BP10)))))) -> N/A | AI202: =SUM(E202:AH202) -> 0
B203: F&A Rate 1 | E203: =IF(OR(ISNUMBER(wsBP1)=FALSE,ISNUMBER(weBP1)=FALSE,ISNUMBER(wsfyBP1)=FALSE,ISNUMBER(wefyBP1)=FALSE,ISNUMBER(wsFA1BP1)=FALSE,sFABC=3),"N/A",wsFA1BP1) -> N/A | H203: =IF(OR(ISNUMBER(wsBP2)=FALSE,ISNUMBER(weBP2)=FALSE,ISNUMBER(wsfyBP2)=FALSE,ISNUMBER(wefyBP2)=FALSE,ISNUMBER(wsFA1BP2)=FALSE,sFABC=3),"N/A",wsFA1BP2) -> N/A | K203: =IF(OR(ISNUMBER(wsBP3)=FALSE,ISNUMBER(weBP3)=FALSE,ISNUMBER(wsfyBP3)=FALSE,ISNUMBER(wefyBP3)=FALSE,ISNUMBER(wsFA1BP3)=FALSE,sFABC=3),"N/A",wsFA1BP3) -> N/A | N203: =IF(OR(ISNUMBER(wsBP4)=FALSE,ISNUMBER(weBP4)=FALSE,ISNUMBER(wsfyBP4)=FALSE,ISNUMBER(wefyBP4)=FALSE,ISNUMBER(wsFA1BP4)=FALSE,sFABC=3),"N/A",wsFA1BP4) -> N/A | Q203: =IF(OR(ISNUMBER(wsBP5)=FALSE,ISNUMBER(weBP5)=FALSE,ISNUMBER(wsfyBP5)=FALSE,ISNUMBER(wefyBP5)=FALSE,ISNUMBER(wsFA1BP5)=FALSE,sFABC=3),"N/A",wsFA1BP5) -> N/A | T203: =IF(OR(ISNUMBER(wsBP6)=FALSE,ISNUMBER(weBP6)=FALSE,ISNUMBER(wsfyBP6)=FALSE,ISNUMBER(wefyBP6)=FALSE,ISNUMBER(wsFA1BP6)=FALSE,sFABC=3),"N/A",wsFA1BP6) -> N/A | W203: =IF(OR(ISNUMBER(wsBP7)=FALSE,ISNUMBER(weBP7)=FALSE,ISNUMBER(wsfyBP7)=FALSE,ISNUMBER(wefyBP7)=FALSE,ISNUMBER(wsFA1BP7)=FALSE,sFABC=3),"N/A",wsFA1BP7) -> N/A | Z203: =IF(OR(ISNUMBER(wsBP8)=FALSE,ISNUMBER(weBP8)=FALSE,ISNUMBER(wsfyBP8)=FALSE,ISNUMBER(wefyBP8)=FALSE,ISNUMBER(wsFA1BP8)=FALSE,sFABC=3),"N/A",wsFA1BP8) -> N/A | AC203: =IF(OR(ISNUMBER(wsBP9)=FALSE,ISNUMBER(weBP9)=FALSE,ISNUMBER(wsfyBP9)=FALSE,ISNUMBER(wefyBP9)=FALSE,ISNUMBER(wsFA1BP9)=FALSE,sFABC=3),"N/A",wsFA1BP9) -> N/A | AF203: =IF(OR(ISNUMBER(wsBP10)=FALSE,ISNUMBER(weBP10)=FALSE,ISNUMBER(wsfyBP10)=FALSE,ISNUMBER(wefyBP10)=FALSE,ISNUMBER(wsFA1BP10)=FALSE,sFABC=3),"N/A",wsFA1BP10) -> N/A
B204: =IF(sDAYMO=1,"Months @ F&A Rate 1","Days @F&A Rate 1") -> Months @ F&A Rate 1 | E204: =IF(OR(ISNUMBER(wsBP1)=FALSE,ISNUMBER(weBP1)=FALSE,ISNUMBER(wsfyBP1)=FALSE,ISNUMBER(wefyBP1)=FALSE,ISNUMBER(wsFA1BP1)=FALSE,ISNUMBER(wsDMFY1BP1)=FALSE,sFABC=3),"N/A",wsDMFY1BP1) -> N/A | H204: =IF(OR(ISNUMBER(wsBP2)=FALSE,ISNUMBER(weBP2)=FALSE,ISNUMBER(wsfyBP2)=FALSE,ISNUMBER(wefyBP2)=FALSE,ISNUMBER(wsFA1BP2)=FALSE,ISNUMBER(wsDMFY1BP2)=FALSE,sFABC=3),"N/A",wsDMFY1BP2) -> N/A | K204: =IF(OR(ISNUMBER(wsBP3)=FALSE,ISNUMBER(weBP3)=FALSE,ISNUMBER(wsfyBP3)=FALSE,ISNUMBER(wefyBP3)=FALSE,ISNUMBER(wsFA1BP3)=FALSE,ISNUMBER(wsDMFY1BP3)=FALSE,sFABC=3),"N/A",wsDMFY1BP3) -> N/A | N204: =IF(OR(ISNUMBER(wsBP4)=FALSE,ISNUMBER(weBP4)=FALSE,ISNUMBER(wsfyBP4)=FALSE,ISNUMBER(wefyBP4)=FALSE,ISNUMBER(wsFA1BP4)=FALSE,ISNUMBER(wsDMFY1BP4)=FALSE,sFABC=3),"N/A",wsDMFY1BP4) -> N/A | Q204: =IF(OR(ISNUMBER(wsBP5)=FALSE,ISNUMBER(weBP5)=FALSE,ISNUMBER(wsfyBP5)=FALSE,ISNUMBER(wefyBP5)=FALSE,ISNUMBER(wsFA1BP5)=FALSE,ISNUMBER(wsDMFY1BP5)=FALSE,sFABC=3),"N/A",wsDMFY1BP5) -> N/A | T204: =IF(OR(ISNUMBER(wsBP6)=FALSE,ISNUMBER(weBP6)=FALSE,ISNUMBER(wsfyBP6)=FALSE,ISNUMBER(wefyBP6)=FALSE,ISNUMBER(wsFA1BP6)=FALSE,ISNUMBER(wsDMFY1BP6)=FALSE,sFABC=3),"N/A",wsDMFY1BP6) -> N/A | W204: =IF(OR(ISNUMBER(wsBP7)=FALSE,ISNUMBER(weBP7)=FALSE,ISNUMBER(wsfyBP7)=FALSE,ISNUMBER(wefyBP7)=FALSE,ISNUMBER(wsFA1BP7)=FALSE,ISNUMBER(wsDMFY1BP7)=FALSE,sFABC=3),"N/A",wsDMFY1BP7) -> N/A | Z204: =IF(OR(ISNUMBER(wsBP8)=FALSE,ISNUMBER(weBP8)=FALSE,ISNUMBER(wsfyBP8)=FALSE,ISNUMBER(wefyBP8)=FALSE,ISNUMBER(wsFA1BP8)=FALSE,ISNUMBER(wsDMFY1BP8)=FALSE,sFABC=3),"N/A",wsDMFY1BP8) -> N/A | AC204: =IF(OR(ISNUMBER(wsBP9)=FALSE,ISNUMBER(weBP9)=FALSE,ISNUMBER(wsfyBP9)=FALSE,ISNUMBER(wefyBP9)=FALSE,ISNUMBER(wsFA1BP9)=FALSE,ISNUMBER(wsDMFY1BP9)=FALSE,sFABC=3),"N/A",wsDMFY1BP9) -> N/A | AF204: =IF(OR(ISNUMBER(wsBP10)=FALSE,ISNUMBER(weBP10)=FALSE,ISNUMBER(wsfyBP10)=FALSE,ISNUMBER(wefyBP10)=FALSE,ISNUMBER(wsFA1BP10)=FALSE,ISNUMBER(wsDMFY1BP10)=FALSE,sFABC=3),"N/A",wsDMFY1BP10) -> N/A
B205: F&A Costs 1 | E205: =IF(OR(ISNUMBER(budFAB1BP1)=FALSE,ISNUMBER(budDM1BP1)=FALSE),0,budFAB1BP1*budFA1BP1) -> 0 | H205: =IF(OR(ISNUMBER(budFAB1BP2)=FALSE,ISNUMBER(budDM1BP2)=FALSE),0,budFAB1BP2*budFA1BP2) -> 0 | K205: =IF(OR(ISNUMBER(budFAB1BP3)=FALSE,ISNUMBER(budDM1BP3)=FALSE),0,budFAB1BP3*budFA1BP3) -> 0 | N205: =IF(OR(ISNUMBER(budFAB1BP4)=FALSE,ISNUMBER(budDM1BP4)=FALSE),0,budFAB1BP4*budFA1BP4) -> 0 | Q205: =IF(OR(ISNUMBER(budFAB1BP5)=FALSE,ISNUMBER(budDM1BP5)=FALSE),0,budFAB1BP5*budFA1BP5) -> 0 | T205: =IF(OR(ISNUMBER(budFAB1BP6)=FALSE,ISNUMBER(budDM1BP6)=FALSE),0,budFAB1BP6*budFA1BP6) -> 0 | W205: =IF(OR(ISNUMBER(budFAB1BP7)=FALSE,ISNUMBER(budDM1BP7)=FALSE),0,budFAB1BP7*budFA1BP7) -> 0 | Z205: =IF(OR(ISNUMBER(budFAB1BP8)=FALSE,ISNUMBER(budDM1BP8)=FALSE),0,budFAB1BP8*budFA1BP8) -> 0 | AC205: =IF(OR(ISNUMBER(budFAB1BP9)=FALSE,ISNUMBER(budDM1BP9)=FALSE),0,budFAB1BP9*budFA1BP9) -> 0 | AF205: =IF(OR(ISNUMBER(budFAB1BP10)=FALSE,ISNUMBER(budDM1BP10)=FALSE),0,budFAB1BP10*budFA1BP10) -> 0 | AI205: =SUM(E205:AH205) -> 0
B207: F&A Cost Base 2 | E207: =IF(OR(sFARC=6,sFABC=3,AND(OR(sFABC=1,sFABC=2),ISNUMBER(budDM1BP1)=FALSE,ISNUMBER(budDM2BP1)=FALSE),AND(OR(sFABC=1,sFABC=2),ISNUMBER(budDM1BP1)=FALSE,ISNUMBER(budDM2BP1)=TRUE)),"N/A",IF(AND(OR(sFABC=1,sFABC=2),ISNUMBER(budDM1BP1)=TRUE,ISNUMBER(budDM2BP1)=FALSE),0,SUMPRODUCT((rngIncExc="Included")*(rngIncExcBP1)*(budDM2BP1/SUM(budDM1BP1,budDM2BP1))))) -> N/A | H207: =IF(OR(sFARC=6,sFABC=3,AND(OR(sFABC=1,sFABC=2),ISNUMBER(budDM1BP2)=FALSE,ISNUMBER(budDM2BP2)=FALSE),AND(OR(sFABC=1,sFABC=2),ISNUMBER(budDM1BP2)=FALSE,ISNUMBER(budDM2BP2)=TRUE)),"N/A",IF(AND(OR(sFABC=1,sFABC=2),ISNUMBER(budDM1BP2)=TRUE,ISNUMBER(budDM2BP2)=FALSE),0,SUMPRODUCT((rngIncExc="Included")*(rngIncExcBP2)*(budDM2BP2/SUM(budDM1BP2,budDM2BP2))))) -> N/A | K207: =IF(OR(sFARC=6,sFABC=3,AND(OR(sFABC=1,sFABC=2),ISNUMBER(budDM1BP3)=FALSE,ISNUMBER(budDM2BP3)=FALSE),AND(OR(sFABC=1,sFABC=2),ISNUMBER(budDM1BP3)=FALSE,ISNUMBER(budDM2BP3)=TRUE)),"N/A",IF(AND(OR(sFABC=1,sFABC=2),ISNUMBER(budDM1BP3)=TRUE,ISNUMBER(budDM2BP3)=FALSE),0,SUMPRODUCT((rngIncExc="Included")*(rngIncExcBP3)*(budDM2BP3/SUM(budDM1BP3,budDM2BP3))))) -> N/A | N207: =IF(OR(sFARC=6,sFABC=3,AND(OR(sFABC=1,sFABC=2),ISNUMBER(budDM1BP4)=FALSE,ISNUMBER(budDM2BP4)=FALSE),AND(OR(sFABC=1,sFABC=2),ISNUMBER(budDM1BP4)=FALSE,ISNUMBER(budDM2BP4)=TRUE)),"N/A",IF(AND(OR(sFABC=1,sFABC=2),ISNUMBER(budDM1BP4)=TRUE,ISNUMBER(budDM2BP4)=FALSE),0,SUMPRODUCT((rngIncExc="Included")*(rngIncExcBP4)*(budDM2BP4/SUM(budDM1BP4,budDM2BP4))))) -> N/A | Q207: =IF(OR(sFARC=6,sFABC=3,AND(OR(sFABC=1,sFABC=2),ISNUMBER(budDM1BP5)=FALSE,ISNUMBER(budDM2BP5)=FALSE),AND(OR(sFABC=1,sFABC=2),ISNUMBER(budDM1BP5)=FALSE,ISNUMBER(budDM2BP5)=TRUE)),"N/A",IF(AND(OR(sFABC=1,sFABC=2),ISNUMBER(budDM1BP5)=TRUE,ISNUMBER(budDM2BP5)=FALSE),0,SUMPRODUCT((rngIncExc="Included")*(rngIncExcBP5)*(budDM2BP5/SUM(budDM1BP5,budDM2BP5))))) -> N/A | T207: =IF(OR(sFARC=6,sFABC=3,AND(OR(sFABC=1,sFABC=2),ISNUMBER(budDM1BP6)=FALSE,ISNUMBER(budDM2BP6)=FALSE),AND(OR(sFABC=1,sFABC=2),ISNUMBER(budDM1BP6)=FALSE,ISNUMBER(budDM2BP6)=TRUE)),"N/A",IF(AND(OR(sFABC=1,sFABC=2),ISNUMBER(budDM1BP6)=TRUE,ISNUMBER(budDM2BP6)=FALSE),0,SUMPRODUCT((rngIncExc="Included")*(rngIncExcBP6)*(budDM2BP6/SUM(budDM1BP6,budDM2BP6))))) -> N/A | W207: =IF(OR(sFARC=6,sFABC=3,AND(OR(sFABC=1,sFABC=2),ISNUMBER(budDM1BP7)=FALSE,ISNUMBER(budDM2BP7)=FALSE),AND(OR(sFABC=1,sFABC=2),ISNUMBER(budDM1BP7)=FALSE,ISNUMBER(budDM2BP7)=TRUE)),"N/A",IF(AND(OR(sFABC=1,sFABC=2),ISNUMBER(budDM1BP7)=TRUE,ISNUMBER(budDM2BP7)=FALSE),0,SUMPRODUCT((rngIncExc="Included")*(rngIncExcBP7)*(budDM2BP7/SUM(budDM1BP7,budDM2BP7))))) -> N/A | Z207: =IF(OR(sFARC=6,sFABC=3,AND(OR(sFABC=1,sFABC=2),ISNUMBER(budDM1BP8)=FALSE,ISNUMBER(budDM2BP8)=FALSE),AND(OR(sFABC=1,sFABC=2),ISNUMBER(budDM1BP8)=FALSE,ISNUMBER(budDM2BP8)=TRUE)),"N/A",IF(AND(OR(sFABC=1,sFABC=2),ISNUMBER(budDM1BP8)=TRUE,ISNUMBER(budDM2BP8)=FALSE),0,SUMPRODUCT((rngIncExc="Included")*(rngIncExcBP8)*(budDM2BP8/SUM(budDM1BP8,budDM2BP8))))) -> N/A | AC207: =IF(OR(sFARC=6,sFABC=3,AND(OR(sFABC=1,sFABC=2),ISNUMBER(budDM1BP9)=FALSE,ISNUMBER(budDM2BP9)=FALSE),AND(OR(sFABC=1,sFABC=2),ISNUMBER(budDM1BP9)=FALSE,ISNUMBER(budDM2BP9)=TRUE)),"N/A",IF(AND(OR(sFABC=1,sFABC=2),ISNUMBER(budDM1BP9)=TRUE,ISNUMBER(budDM2BP9)=FALSE),0,SUMPRODUCT((rngIncExc="Included")*(rngIncExcBP9)*(budDM2BP9/SUM(budDM1BP9,budDM2BP9))))) -> N/A | AF207: =IF(OR(sFARC=6,sFABC=3,AND(OR(sFABC=1,sFABC=2),ISNUMBER(budDM1BP9)=FALSE,ISNUMBER(budDM2BP9)=FALSE),AND(OR(sFABC=1,sFABC=2),ISNUMBER(budDM1BP9)=FALSE,ISNUMBER(budDM2BP9)=TRUE)),"N/A",IF(AND(OR(sFABC=1,sFABC=2),ISNUMBER(budDM1BP9)=TRUE,ISNUMBER(budDM2BP9)=FALSE),0,SUMPRODUCT((rngIncExc="Included")*(rngIncExcBP9)*(budDM2BP9/SUM(budDM1BP9,budDM2BP9))))) -> N/A | AI207: =SUM(E207:AH207) -> 0
B208: F&A Rate 2 (if different than above) | E208: =IF(OR(ISNUMBER(wsBP1)=FALSE,ISNUMBER(weBP1)=FALSE,ISNUMBER(wsfyBP1)=FALSE,ISNUMBER(wefyBP1)=FALSE,ISNUMBER(wsFA1BP1)=FALSE,wsFA2BP1=wsFA1BP1,ISNUMBER(wsFA2BP1)=FALSE,sFARC=3,sFABC=3),"N/A",wsFA2BP1) -> N/A | H208: =IF(OR(ISNUMBER(wsBP2)=FALSE,ISNUMBER(weBP2)=FALSE,ISNUMBER(wsfyBP2)=FALSE,ISNUMBER(wefyBP2)=FALSE,ISNUMBER(wsFA1BP2)=FALSE,wsFA2BP2=wsFA1BP2,ISNUMBER(wsFA2BP2)=FALSE,sFARC=3,sFABC=3),"N/A",wsFA2BP2) -> N/A | K208: =IF(OR(ISNUMBER(wsBP3)=FALSE,ISNUMBER(weBP3)=FALSE,ISNUMBER(wsfyBP3)=FALSE,ISNUMBER(wefyBP3)=FALSE,ISNUMBER(wsFA1BP3)=FALSE,wsFA2BP3=wsFA1BP3,ISNUMBER(wsFA2BP3)=FALSE,sFARC=3,sFABC=3),"N/A",wsFA2BP3) -> N/A | N208: =IF(OR(ISNUMBER(wsBP4)=FALSE,ISNUMBER(weBP4)=FALSE,ISNUMBER(wsfyBP4)=FALSE,ISNUMBER(wefyBP4)=FALSE,ISNUMBER(wsFA1BP4)=FALSE,wsFA2BP4=wsFA1BP4,ISNUMBER(wsFA2BP4)=FALSE,sFARC=3,sFABC=3),"N/A",wsFA2BP4) -> N/A | Q208: =IF(OR(ISNUMBER(wsBP5)=FALSE,ISNUMBER(weBP5)=FALSE,ISNUMBER(wsfyBP5)=FALSE,ISNUMBER(wefyBP5)=FALSE,ISNUMBER(wsFA1BP5)=FALSE,wsFA2BP1=wsFA1BP5,ISNUMBER(wsFA2BP5)=FALSE,sFARC=3,sFABC=3),"N/A",wsFA2BP5) -> N/A | T208: =IF(OR(ISNUMBER(wsBP6)=FALSE,ISNUMBER(weBP6)=FALSE,ISNUMBER(wsfyBP6)=FALSE,ISNUMBER(wefyBP6)=FALSE,ISNUMBER(wsFA1BP6)=FALSE,wsFA2BP6=wsFA1BP6,ISNUMBER(wsFA2BP6)=FALSE,sFARC=3,sFABC=3),"N/A",wsFA2BP6) -> N/A | W208: =IF(OR(ISNUMBER(wsBP7)=FALSE,ISNUMBER(weBP7)=FALSE,ISNUMBER(wsfyBP7)=FALSE,ISNUMBER(wefyBP7)=FALSE,ISNUMBER(wsFA1BP7)=FALSE,wsFA2BP7=wsFA1BP7,ISNUMBER(wsFA2BP7)=FALSE,sFARC=3,sFABC=3),"N/A",wsFA2BP7) -> N/A | Z208: =IF(OR(ISNUMBER(wsBP8)=FALSE,ISNUMBER(weBP8)=FALSE,ISNUMBER(wsfyBP8)=FALSE,ISNUMBER(wefyBP8)=FALSE,ISNUMBER(wsFA1BP8)=FALSE,wsFA2BP8=wsFA1BP8,ISNUMBER(wsFA2BP8)=FALSE,sFARC=3,sFABC=3),"N/A",wsFA2BP8) -> N/A | AC208: =IF(OR(ISNUMBER(wsBP9)=FALSE,ISNUMBER(weBP9)=FALSE,ISNUMBER(wsfyBP9)=FALSE,ISNUMBER(wefyBP9)=FALSE,ISNUMBER(wsFA1BP9)=FALSE,wsFA2BP9=wsFA1BP9,ISNUMBER(wsFA2BP9)=FALSE,sFARC=3,sFABC=3),"N/A",wsFA2BP9) -> N/A | AF208: =IF(OR(ISNUMBER(wsBP10)=FALSE,ISNUMBER(weBP10)=FALSE,ISNUMBER(wsfyBP10)=FALSE,ISNUMBER(wefyBP10)=FALSE,ISNUMBER(wsFA1BP10)=FALSE,wsFA2BP10=wsFA1BP10,ISNUMBER(wsFA2BP10)=FALSE,sFARC=3,sFABC=3),"N/A",wsFA2BP10) -> N/A
B209: =IF(sDAYMO=1,"Months @ F&A Rate 2","Days @F&A Rate 2") -> Months @ F&A Rate 2 | E209: =IF(OR(ISNUMBER(wsBP1)=FALSE,ISNUMBER(weBP1)=FALSE,ISNUMBER(wsfyBP1)=FALSE,ISNUMBER(wefyBP1)=FALSE,ISNUMBER(wsFA1BP1)=FALSE,wsFA2BP1=wsFA1BP1,ISNUMBER(wsFA2BP1)=FALSE,ISNUMBER(wsDMFY2BP1)=FALSE,sFARC=3,sFABC=3),"N/A",wsDMFY2BP1) -> N/A | H209: =IF(OR(ISNUMBER(wsBP2)=FALSE,ISNUMBER(weBP2)=FALSE,ISNUMBER(wsfyBP2)=FALSE,ISNUMBER(wefyBP2)=FALSE,ISNUMBER(wsFA1BP2)=FALSE,wsFA2BP2=wsFA1BP2,ISNUMBER(wsFA2BP2)=FALSE,ISNUMBER(wsDMFY2BP2)=FALSE,sFARC=3,sFABC=3),"N/A",wsDMFY2BP2) -> N/A | K209: =IF(OR(ISNUMBER(wsBP3)=FALSE,ISNUMBER(weBP3)=FALSE,ISNUMBER(wsfyBP3)=FALSE,ISNUMBER(wefyBP3)=FALSE,ISNUMBER(wsFA1BP3)=FALSE,wsFA2BP3=wsFA1BP3,ISNUMBER(wsFA2BP3)=FALSE,ISNUMBER(wsDMFY2BP3)=FALSE,sFARC=3,sFABC=3),"N/A",wsDMFY2BP3) -> N/A | N209: =IF(OR(ISNUMBER(wsBP4)=FALSE,ISNUMBER(weBP4)=FALSE,ISNUMBER(wsfyBP4)=FALSE,ISNUMBER(wefyBP4)=FALSE,ISNUMBER(wsFA1BP4)=FALSE,wsFA2BP4=wsFA1BP4,ISNUMBER(wsFA2BP4)=FALSE,ISNUMBER(wsDMFY2BP4)=FALSE,sFARC=3,sFABC=3),"N/A",wsDMFY2BP4) -> N/A | Q209: =IF(OR(ISNUMBER(wsBP5)=FALSE,ISNUMBER(weBP5)=FALSE,ISNUMBER(wsfyBP5)=FALSE,ISNUMBER(wefyBP5)=FALSE,ISNUMBER(wsFA1BP5)=FALSE,wsFA2BP5=wsFA1BP5,ISNUMBER(wsFA2BP5)=FALSE,ISNUMBER(wsDMFY2BP5)=FALSE,sFARC=3,sFABC=3),"N/A",wsDMFY2BP5) -> N/A | T209: =IF(OR(ISNUMBER(wsBP6)=FALSE,ISNUMBER(weBP6)=FALSE,ISNUMBER(wsfyBP6)=FALSE,ISNUMBER(wefyBP6)=FALSE,ISNUMBER(wsFA1BP6)=FALSE,wsFA2BP6=wsFA1BP6,ISNUMBER(wsFA2BP6)=FALSE,ISNUMBER(wsDMFY2BP6)=FALSE,sFARC=3,sFABC=3),"N/A",wsDMFY2BP6) -> N/A | W209: =IF(OR(ISNUMBER(wsBP7)=FALSE,ISNUMBER(weBP7)=FALSE,ISNUMBER(wsfyBP7)=FALSE,ISNUMBER(wefyBP7)=FALSE,ISNUMBER(wsFA1BP7)=FALSE,wsFA2BP7=wsFA1BP7,ISNUMBER(wsFA2BP7)=FALSE,ISNUMBER(wsDMFY2BP7)=FALSE,sFARC=3,sFABC=3),"N/A",wsDMFY2BP7) -> N/A | Z209: =IF(OR(ISNUMBER(wsBP8)=FALSE,ISNUMBER(weBP8)=FALSE,ISNUMBER(wsfyBP8)=FALSE,ISNUMBER(wefyBP8)=FALSE,ISNUMBER(wsFA1BP8)=FALSE,wsFA2BP8=wsFA1BP8,ISNUMBER(wsFA2BP8)=FALSE,ISNUMBER(wsDMFY2BP8)=FALSE,sFARC=3,sFABC=3),"N/A",wsDMFY2BP8) -> N/A | AC209: =IF(OR(ISNUMBER(wsBP9)=FALSE,ISNUMBER(weBP9)=FALSE,ISNUMBER(wsfyBP9)=FALSE,ISNUMBER(wefyBP9)=FALSE,ISNUMBER(wsFA1BP9)=FALSE,wsFA2BP9=wsFA1BP9,ISNUMBER(wsFA2BP9)=FALSE,ISNUMBER(wsDMFY2BP9)=FALSE,sFARC=3,sFABC=3),"N/A",wsDMFY2BP9) -> N/A | AF209: =IF(OR(ISNUMBER(wsBP2)=FALSE,ISNUMBER(weBP2)=FALSE,ISNUMBER(wsfyBP2)=FALSE,ISNUMBER(wefyBP2)=FALSE,ISNUMBER(wsFA1BP2)=FALSE,wsFA2BP10=wsFA1BP10,ISNUMBER(wsFA2BP10)=FALSE,ISNUMBER(wsDMFY2BP10)=FALSE,sFARC=3,sFABC=3),"N/A",wsDMFY2BP10) -> N/A
B210: F&A Costs 2 | E210: =IF(OR(ISNUMBER(budFA2BP1)=FALSE,ISNUMBER(budDM2BP1)=FALSE),0,budFAB2BP1*budFA2BP1) -> 0 | H210: =IF(OR(ISNUMBER(budFA2BP2)=FALSE,ISNUMBER(budDM2BP2)=FALSE),0,budFAB2BP2*budFA2BP2) -> 0 | K210: =IF(OR(ISNUMBER(budFA2BP3)=FALSE,ISNUMBER(budDM2BP3)=FALSE),0,budFAB2BP3*budFA2BP3) -> 0 | N210: =IF(OR(ISNUMBER(budFA2BP4)=FALSE,ISNUMBER(budDM2BP4)=FALSE),0,budFAB2BP4*budFA2BP4) -> 0 | Q210: =IF(OR(ISNUMBER(budFA2BP5)=FALSE,ISNUMBER(budDM2BP5)=FALSE),0,budFAB2BP5*budFA2BP5) -> 0 | T210: =IF(OR(ISNUMBER(budFA2BP6)=FALSE,ISNUMBER(budDM2BP6)=FALSE),0,budFAB2BP6*budFA2BP6) -> 0 | W210: =IF(OR(ISNUMBER(budFA2BP7)=FALSE,ISNUMBER(budDM2BP7)=FALSE),0,budFAB2BP7*budFA2BP7) -> 0 | Z210: =IF(OR(ISNUMBER(budFA2BP8)=FALSE,ISNUMBER(budDM2BP8)=FALSE),0,budFAB2BP8*budFA2BP8) -> 0 | AC210: =IF(OR(ISNUMBER(budFA2BP9)=FALSE,ISNUMBER(budDM2BP9)=FALSE),0,budFAB2BP9*budFA2BP9) -> 0 | AF210: =IF(OR(ISNUMBER(budFA2BP10)=FALSE,ISNUMBER(budDM2BP10)=FALSE),0,budFAB2BP10*budFA2BP10) -> 0 | AI210: =SUM(E210:AH210) -> 0
A212: S. NOTES

Sheet Budget-Cost Sharing (hidden)
A1: BUDGET - COST SHARING
AO2: =wsFP -> FPxxxxxxxx | AP2: =wsDirectSPon -> Enter Direct Sponsor Name | AR2: =IF(sFABCCS=3,budNSFARABP1CS,_xlfn.CONCAT(wsFA1BPCS1," | ",wsFA2BP1)) -> N/A | N/A | AS2: =IF(sFABCCS=3,budNSFARABP2CS,_xlfn.CONCAT(wsFA1BPCS2," | ",wsFA2BP2)) -> N/A | N/A | AT2: =IF(sFABCCS=3,budNSFARABP3CS,_xlfn.CONCAT(wsFA1BPCS3," | ",wsFA2BP3)) -> N/A | N/A | AU2: =IF(sFABCCS=3,budNSFARABP4CS,_xlfn.CONCAT(wsFA1BPCS4," | ",wsFA2BP4)) -> N/A | N/A | AV2: =IF(sFABCCS=3,budNSFARABP5CS,_xlfn.CONCAT(wsFA1BPCS5," | ",wsFA2BP5)) -> N/A | N/A | AW2: =IF(sFABCCS=3,budNSFARABP6CS,_xlfn.CONCAT(wsFA1BPCS6," | ",wsFA2BP6)) -> N/A | N/A | AX2: =IF(sFABCCS=3,budNSFARABP7CS,_xlfn.CONCAT(wsFA1BPCS7," | ",wsFA2BP7)) -> N/A | N/A | AY2: =IF(sFABCCS=3,budNSFARABP8CS,_xlfn.CONCAT(wsFA1BPCS8," | ",wsFA2BP8)) -> N/A | N/A | AZ2: =IF(sFABCCS=3,budNSFARABP9CS,_xlfn.CONCAT(wsFA1BPCS9," | ",wsFA2BP9)) -> N/A | N/A | BA2: =IF(sFABCCS=3,budNSFARABP10CS,_xlfn.CONCAT(wsFA1BPCS10," | ",wsFA2BP10)) -> N/A | N/A | BB2: =IF(sFABCCS=3,"F&A Amount","F&A Rate") -> F&A Rate
E3: 0 | H3: 0 | K3: 0 | N3: 0 | Q3: 0 | T3: 0 | W3: 0 | Z3: 0 | AC3: 0 | AF3: 0 | AO3: =_xlfn.CONCAT(wsAWD," | ",wsAMR) -> AWDxxxxxxxx | AMRxxxxxxxx | AP3: =wsPrimeSpon -> Enter Prime Sponsor Name (if applicable) | AR3: =wsBP1 -> Enter Date | AS3: =wsBP2 -> Enter Date | AT3: =wsBP3 -> Enter Date | AU3: =wsBP4 -> Enter Date | AV3: =wsBP5 -> Enter Date | AW3: =wsBP6 -> Enter Date | AX3: =wsBP7 -> Enter Date | AY3: =wsBP8 -> Enter Date | AZ3: =wsBP9 -> Enter Date | BA3: =wsBP10 -> Enter Date | BB3: Start Date
A4: =IF(COUNTIF(rngCFCSA1,"Yes")+COUNTIF(rngCFCSA2,"Yes")>0,"BUDGET PREPARED USING CUSTOM FRINGE RATES",IF(sFBRCCS=1,"BUDGET PREPARED WITH SFEDERAL FRINGE BENEFIT RATES","BUDGET PREPARED WITH NON-FEDERAL FRINGE BENEFIT RATES")) -> BUDGET PREPARED WITH NON-FEDERAL FRINGE BENEFIT RATES | AO4: =_xlfn.CONCAT("Oracle Award: ",wsOracleAward) -> Oracle Award: xxxxxx | AP4: =wsPDPI -> Enter PD/PI Name | AR4: =weBP1 -> Enter Date | AS4: =weBP2 -> Enter Date | AT4: =weBP3 -> Enter Date | AU4: =weBP4 -> Enter Date | AV4: =weBP5 -> Enter Date | AW4: =weBP6 -> Enter Date | AX4: =weBP7 -> Enter Date | AY4: =weBP8 -> Enter Date | AZ4: =weBP9 -> Enter Date | BA4: =weBP10 -> Enter Date | BB4: End Date | BC4: COST SHARING
D5: Included in F&A Base | E5: Budget Period 1 | H5: Budget Period 2 | K5: Budget Period 3 | N5: Budget Period 4 | Q5: Budget Period 5 | T5: Budget Period 6 | W5: Budget Period 7 | Z5: Budget Period 8 | AC5: Budget Period 9 | AF5: Budget Period 10 | AI5: Total | AL5: NOTES | AM5: NOTES | AO5: =_xlfn.CONCAT("Oracle Project: ",wsOracleProject) -> Oracle Project: xxxxxx | AP5: =wsTitle -> Enter Project Title | AR5: =wsfyBP1 -> N/A | AS5: =wsfyBP2 -> N/A | AT5: =wsfyBP3 -> N/A | AU5: =wsfyBP4 -> N/A | AV5: =wsfyBP5 -> N/A | AW5: =wsfyBP6 -> N/A | AX5: =wsfyBP7 -> N/A | AY5: =wsfyBP8 -> N/A | AZ5: =wsfyBP9 -> N/A | BA5: =wsfyBP10 -> N/A | BB5: Begin FY | BC5: BUDGET
E6: =IF(ISNUMBER(wsBP1)=TRUE,wsBP1,"N/A") -> N/A | F6: =IF(ISNUMBER(weBP1)=TRUE,weBP1,"N/A") -> N/A | G6: =IF(OR(ISNUMBER(wsBP1)=TRUE,ISNUMBER(weBP1)=TRUE),wsfyBP1,"N/A") -> N/A | H6: =IF(ISNUMBER(wsBP2)=TRUE,wsBP2,"N/A") -> N/A | I6: =IF(ISNUMBER(weBP2)=TRUE,weBP2,"N/A") -> N/A | J6: =IF(AND(ISNUMBER(wsBP2),ISNUMBER(weBP2))=TRUE,wsfyBP2,"N/A") -> N/A | K6: =IF(ISNUMBER(wsBP3),wsBP3,"N/A") -> N/A | L6: =IF(ISNUMBER(weBP3),weBP3,"N/A") -> N/A | M6: =IF(AND(ISNUMBER(wsBP3),ISNUMBER(weBP3))=TRUE,wsfyBP3,"N/A") -> N/A | N6: =IF(ISNUMBER(wsBP4),wsBP4,"N/A") -> N/A | O6: =IF(ISNUMBER(weBP4),weBP4,"N/A") -> N/A | P6: =IF(AND(ISNUMBER(wsBP4),ISNUMBER(weBP4))=TRUE,wsfyBP4,"N/A") -> N/A | Q6: =IF(ISNUMBER(wsBP5),wsBP5,"N/A") -> N/A | R6: =IF(ISNUMBER(weBP5),weBP5,"N/A") -> N/A | S6: =IF(AND(ISNUMBER(wsBP5),ISNUMBER(weBP5))=TRUE,wsfyBP5,"N/A") -> N/A | T6: =IF(ISNUMBER(wsBP6),wsBP6,"N/A") -> N/A | U6: =IF(ISNUMBER(weBP6),weBP6,"N/A") -> N/A | V6: =IF(AND(ISNUMBER(wsBP6),ISNUMBER(weBP6))=TRUE,wsfyBP6,"N/A") -> N/A | W6: =IF(ISNUMBER(wsBP7),wsBP7,"N/A") -> N/A | X6: =IF(ISNUMBER(weBP7),weBP7,"N/A") -> N/A | Y6: =IF(AND(ISNUMBER(wsBP7),ISNUMBER(weBP7))=TRUE,wsfyBP7,"N/A") -> N/A | Z6: =IF(ISNUMBER(wsBP8),wsBP8,"N/A") -> N/A | AA6: =IF(ISNUMBER(weBP8),weBP8,"N/A") -> N/A | AB6: =IF(AND(ISNUMBER(wsBP8),ISNUMBER(weBP8))=TRUE,wsfyBP8,"N/A") -> N/A | AC6: =IF(ISNUMBER(wsBP9),wsBP9,"N/A") -> N/A | AD6: =IF(ISNUMBER(weBP9),weBP9,"N/A") -> N/A | AE6: =IF(AND(ISNUMBER(wsBP9),ISNUMBER(weBP9))=TRUE,wsfyBP9,"N/A") -> N/A | AF6: =IF(ISNUMBER(wsBP10),wsBP10,"N/A") -> N/A | AG6: =IF(ISNUMBER(weBP10),weBP10,"N/A") -> N/A | AH6: =IF(AND(ISNUMBER(wsBP10),ISNUMBER(weBP10))=TRUE,wsfyBP10,"N/A") -> N/A | AO6: =_xlfn.CONCAT(IF(sOOCCS=1,"On Campus", "Off Campus")," | ",IF(sFABCCS=1,"MTDC",IF(sFABCCS=2,"TDC","Cust. F&A Amt."))) -> On Campus | MTDC | AP6: =IF(sFARCCS=1,"Research",IF(sFARCCS=2,"Instruction",IF(sFARCCS=3,"Other Sponsored Programs",IF(sFARCCS=4,"Special Instruction (Off-Campus only)",IF(sFARCCS=5,"Industry Sponsored Clinical Trials","Custom F&A Rate"))))) -> Research
A7: A1. SALARIES & WAGES (ADVANCED) | AO7: Account Code | AP7: Description | AQ7: F&A Base | AR7: Budget Period 1 | AS7: Budget Period 2 | AT7: Budget Period 3 | AU7: Budget Period 4 | AV7: Budget Period 5 | AW7: Budget Period 6 | AX7: Budget Period 7 | AY7: Budget Period 8 | AZ7: Budget Period 9 | BA7: Budget Period 10 | BB7: Total | BC7: Notes
D8: Base Salary | E8: % Effort | F8: PM | G8: COLA | H8: % Effort | I8: PM | J8: COLA | K8: % Effort | L8: PM | M8: COLA | N8: % Effort | O8: PM | P8: COLA | Q8: % Effort | R8: PM | S8: COLA | T8: % Effort | U8: PM | V8: COLA | W8: % Effort | X8: PM | Y8: COLA | Z8: % Effort | AA8: PM | AB8: COLA | AC8: % Effort | AD8: PM | AE8: COLA | AF8: % Effort | AG8: PM | AH8: COLA
A9: =_xlfn.XLOOKUP(B9,MTDC[Description],MTDC[VALUE],"N/A",0) -> N/A | B9: Make a selection | D9: 0 | E9: 0 | F9: =IF(OR(ISNUMBER(E9)=FALSE,B12="Make a Selection"),0,_xlfn.XLOOKUP(B12,rngecAT,rngecMonths,"N/A",0)*E9) -> 0 | G9: 0 | H9: 0 | I9: =IF(OR(ISNUMBER(H9)=FALSE,B12="Make a Selection"),0,_xlfn.XLOOKUP(B12,rngecAT,rngecMonths,"N/A",0)*H9) -> 0 | J9: 0 | K9: 0 | L9: =IF(OR(ISNUMBER(K9)=FALSE,B12="Make a Selection"),0,_xlfn.XLOOKUP(B12,rngecAT,rngecMonths,"N/A",0)*K9) -> 0 | M9: 0 | N9: 0 | O9: =IF(OR(ISNUMBER(N9)=FALSE,B12="Make a Selection"),0,_xlfn.XLOOKUP(B12,rngecAT,rngecMonths,"N/A",0)*N9) -> 0 | P9: 0 | Q9: 0 | R9: =IF(OR(ISNUMBER(Q9)=FALSE,B12="Make a Selection"),0,_xlfn.XLOOKUP(B12,rngecAT,rngecMonths,"N/A",0)*Q9) -> 0 | S9: 0 | T9: 0 | U9: =IF(OR(ISNUMBER(T9)=FALSE,B12="Make a Selection"),0,_xlfn.XLOOKUP(B12,rngecAT,rngecMonths,"N/A",0)*T9) -> 0 | V9: 0 | W9: 0 | X9: =IF(OR(ISNUMBER(W9)=FALSE,B12="Make a Selection"),0,_xlfn.XLOOKUP(B12,rngecAT,rngecMonths,"N/A",0)*W9) -> 0 | Y9: 0 | Z9: 0 | AA9: =IF(OR(ISNUMBER(Z9)=FALSE,B12="Make a Selection"),0,_xlfn.XLOOKUP(B12,rngecAT,rngecMonths,"N/A",0)*Z9) -> 0 | AB9: 0 | AC9: 0 | AD9: =IF(OR(ISNUMBER(AC9)=FALSE,B12="Make a Selection"),0,_xlfn.XLOOKUP(B12,rngecAT,rngecMonths,"N/A",0)*AC9) -> 0 | AE9: 0 | AF9: 0 | AG9: =IF(OR(ISNUMBER(AF9)=FALSE,B12="Make a Selection"),0,_xlfn.XLOOKUP(B12,rngecAT,rngecMonths,"N/A",0)*AF9) -> 0 | AH9: 0
A10: =A9 -> N/A | B10: Enter Staff Name | D10: Salary | E10: =IF(OR(ISNUMBER(D9)=FALSE,ISNUMBER(E9)=FALSE,ISNUMBER(G9)=FALSE,$B$9="Make a Selection",B12="Make a Selection",ISNUMBER(wsBP1)=FALSE,ISNUMBER(weBP1)=FALSE,ISNUMBER(wsfyBP1)=FALSE),0,$D$9*F9/_xlfn.XLOOKUP(B12,rngecAT,rngecTerm,"N/A",0)*(1+G9)) -> 0 | H10: =IF(OR(ISNUMBER(D9)=FALSE,ISNUMBER(E9)=FALSE,ISNUMBER(G9)=FALSE,ISNUMBER(H9)=FALSE,ISNUMBER(J9)=FALSE,B9="Make a Selection",B12="Make a Selection",ISNUMBER(wsBP2)=FALSE,ISNUMBER(weBP2)=FALSE,ISNUMBER(wsfyBP2)=FALSE),0,D9*I9/_xlfn.XLOOKUP(B12,rngecAT,rngecTerm,"N/A",0)*(1+G9)*(1+J9)) -> 0 | K10: =IF(OR(ISNUMBER(D9)=FALSE,ISNUMBER(E9)=FALSE,ISNUMBER(G9)=FALSE,ISNUMBER(H9)=FALSE,ISNUMBER(J9)=FALSE,ISNUMBER(K9)=FALSE,ISNUMBER(M9)=FALSE,B9="Make a Selection",B12="Make a Selection",ISNUMBER(wsBP3)=FALSE,ISNUMBER(weBP3)=FALSE,ISNUMBER(wsfyBP3)=FALSE),0,D9*L9/_xlfn.XLOOKUP(B12,rngecAT,rngecTerm,"N/A",0)*(1+G9)*(1+J9)*(1+M9)) -> 0 | N10: =IF(OR(ISNUMBER(D9)=FALSE,ISNUMBER(E9)=FALSE,ISNUMBER(G9)=FALSE,ISNUMBER(H9)=FALSE,ISNUMBER(J9)=FALSE,ISNUMBER(K9)=FALSE,ISNUMBER(M9)=FALSE,ISNUMBER(N9)=FALSE,ISNUMBER(P9)=FALSE,B9="Make a Selection",B12="Make a Selection",ISNUMBER(wsBP4)=FALSE,ISNUMBER(weBP4)=FALSE,ISNUMBER(wsfyBP4)=FALSE),0,D9*O9/_xlfn.XLOOKUP(B12,rngecAT,rngecTerm,"N/A",0)*(1+G9)*(1+J9)*(1+M9)*(1+P9)) -> 0 | Q10: =IF(OR(ISNUMBER(D9)=FALSE,ISNUMBER(E9)=FALSE,ISNUMBER(G9)=FALSE,ISNUMBER(H9)=FALSE,ISNUMBER(J9)=FALSE,ISNUMBER(K9)=FALSE,ISNUMBER(M9)=FALSE,ISNUMBER(N9)=FALSE,ISNUMBER(P9)=FALSE,ISNUMBER(Q9)=FALSE,ISNUMBER(S9)=FALSE,B9="Make a Selection",B12="Make a Selection",ISNUMBER(wsBP5)=FALSE,ISNUMBER(weBP5)=FALSE,ISNUMBER(wsfyBP5)=FALSE),0,D9*R9/_xlfn.XLOOKUP(B12,rngecAT,rngecTerm,"N/A",0)*(1+G9)*(1+J9)*(1+M9)*(1+P9)*(1+S9)) -> 0 | T10: =IF(OR(ISNUMBER(D9)=FALSE,ISNUMBER(E9)=FALSE,ISNUMBER(G9)=FALSE,ISNUMBER(H9)=FALSE,ISNUMBER(J9)=FALSE,ISNUMBER(K9)=FALSE,ISNUMBER(M9)=FALSE,ISNUMBER(N9)=FALSE,ISNUMBER(P9)=FALSE,ISNUMBER(Q9)=FALSE,ISNUMBER(S9)=FALSE,ISNUMBER(T9)=FALSE,ISNUMBER(V9)=FALSE,B9="Make a Selection",B12="Make a Selection",ISNUMBER(wsBP6)=FALSE,ISNUMBER(weBP6)=FALSE,ISNUMBER(wsfyBP6)=FALSE),0,D9*U9/_xlfn.XLOOKUP(B12,rngecAT,rngecTerm,"N/A",0)*(1+G9)*(1+J9)*(1+M9)*(1+P9)*(1+S9)*(1+V9)) -> 0 | W10: =IF(OR(ISNUMBER(D9)=FALSE,ISNUMBER(E9)=FALSE,ISNUMBER(G9)=FALSE,ISNUMBER(H9)=FALSE,ISNUMBER(J9)=FALSE,ISNUMBER(K9)=FALSE,ISNUMBER(M9)=FALSE,ISNUMBER(N9)=FALSE,ISNUMBER(P9)=FALSE,ISNUMBER(Q9)=FALSE,ISNUMBER(S9)=FALSE,ISNUMBER(T9)=FALSE,ISNUMBER(V9)=FALSE,ISNUMBER(W9)=FALSE,ISNUMBER(Y9)=FALSE,B9="Make a Selection",B12="Make Selection",ISNUMBER(wsBP7)=FALSE,ISNUMBER(weBP7)=FALSE,ISNUMBER(wsfyBP7)=FALSE),0,D9*X9/_xlfn.XLOOKUP(B12,rngecAT,rngecTerm,"N/A",0)*(1+G9)*(1+J9)*(1+M9)*(1+P9)*(1+S9)*(1+V9)*(1+Y9)) -> 0 | Z10: =IF(OR(ISNUMBER(D9)=FALSE,ISNUMBER(E9)=FALSE,ISNUMBER(G9)=FALSE,ISNUMBER(H9)=FALSE,ISNUMBER(J9)=FALSE,ISNUMBER(K9)=FALSE,ISNUMBER(M9)=FALSE,ISNUMBER(N9)=FALSE,ISNUMBER(P9)=FALSE,ISNUMBER(Q9)=FALSE,ISNUMBER(S9)=FALSE,ISNUMBER(T9)=FALSE,ISNUMBER(V9)=FALSE,ISNUMBER(W9)=FALSE,ISNUMBER(Y9)=FALSE,ISNUMBER(Z9)=FALSE,ISNUMBER(AB9)=FALSE,B9="Make a Selection",B12="Make a Selection",ISNUMBER(wsBP8)=FALSE,ISNUMBER(weBP8)=FALSE,ISNUMBER(wsfyBP8)=FALSE),0,D9*AA9/_xlfn.XLOOKUP(B12,rngecAT,rngecTerm,"N/A",0)*(1+G9)*(1+J9)*(1+M9)*(1+P9)*(1+S9)*(1+V9)*(1+Y9)*(1+AB9)) -> 0 | AC10: =IF(OR(ISNUMBER(D9)=FALSE,ISNUMBER(E9)=FALSE,ISNUMBER(G9)=FALSE,ISNUMBER(H9)=FALSE,ISNUMBER(J9)=FALSE,ISNUMBER(K9)=FALSE,ISNUMBER(M9)=FALSE,ISNUMBER(N9)=FALSE,ISNUMBER(P9)=FALSE,ISNUMBER(Q9)=FALSE,ISNUMBER(S9)=FALSE,ISNUMBER(T9)=FALSE,ISNUMBER(V9)=FALSE,ISNUMBER(W9)=FALSE,ISNUMBER(Y9)=FALSE,ISNUMBER(Z9)=FALSE,ISNUMBER(AB9)=FALSE,ISNUMBER(Z9)=FALSE,ISNUMBER(AC9)=FALSE,B9="Make a Selection",B12="Make a Selection",ISNUMBER(wsBP9)=FALSE,ISNUMBER(weBP9)=FALSE,ISNUMBER(wsfyBP9)=FALSE),0,D9*AD9/_xlfn.XLOOKUP(B12,rngecAT,rngecTerm,"N/A",0)*(1+G9)*(1+J9)*(1+M9)*(1+P9)*(1+S9)*(1+V9)*(1+Y9)*(1+AB9)*(1+AE9)) -> 0 | AF10: =IF(OR(ISNUMBER(D9)=FALSE,ISNUMBER(E9)=FALSE,ISNUMBER(G9)=FALSE,ISNUMBER(H9)=FALSE,ISNUMBER(J9)=FALSE,ISNUMBER(K9)=FALSE,ISNUMBER(M9)=FALSE,ISNUMBER(N9)=FALSE,ISNUMBER(P9)=FALSE,ISNUMBER(Q9)=FALSE,ISNUMBER(S9)=FALSE,ISNUMBER(T9)=FALSE,ISNUMBER(V9)=FALSE,ISNUMBER(W9)=FALSE,ISNUMBER(Y9)=FALSE,ISNUMBER(Z9)=FALSE,ISNUMBER(AB9)=FALSE,ISNUMBER(Z9)=FALSE,ISNUMBER(AC9)=FALSE,ISNUMBER(AF9)=FALSE,ISNUMBER(AH9)=FALSE,B9="Make a Selection",B12="Make a Selection",ISNUMBER(wsBP10)=FALSE,ISNUMBER(weBP10)=FALSE,ISNUMBER(wsfyBP10)=FALSE),0,D9*AG9/_xlfn.XLOOKUP(B12,rngecAT,rngecTerm,"N/A",0)*(1+G9)*(1+J9)*(1+M9)*(1+P9)*(1+S9)*(1+V9)*(1+Y9)*(1+AB9)*(1+AE9)*(1+AH9)) -> 0 | AI10: =SUM(E10:AH10) -> 0
A11: No | B11: Custom Fringe @ | C11: 0 | D11: Fringe | E11: =IF(OR(B9="Make a Selection",B12="Make a Selection",ISNUMBER(E10)=FALSE,,ISNUMBER(C11)=FALSE,ISNUMBER(wsBP1)=FALSE,ISNUMBER(weBP1)=FALSE,ISNUMBER(wsfyBP1)=FALSE),0,IF(A11="Yes",E10*C11,IF(sFBRCCS=1,E10*_xlfn.XLOOKUP(bpFYCS1,rngFFRfy,(_xlfn.XLOOKUP(A10,rngFFRc,rngFFR,"N/A",0)),"N/A",0),E10*_xlfn.XLOOKUP(bpFYCS1,rngnFFRfy,(_xlfn.XLOOKUP(A10,rngnFFRc,rngnFFR,"N/A",0)),"N/A",0)))) -> 0 | H11: =IF(OR(B9="Make a Selection",B12="Make a Selection",ISNUMBER(H10)=FALSE,ISNUMBER(C11)=FALSE,ISNUMBER(wsBP2)=FALSE,ISNUMBER(weBP2)=FALSE,ISNUMBER(wsfyBP2)=FALSE),0,IF(A11="Yes",H10*C11,IF(sFBRCCS=1,H10*_xlfn.XLOOKUP(bpFYCS2,rngFFRfy,(_xlfn.XLOOKUP(A10,rngFFRc,rngFFR,"N/A",0)),"N/A",0),H10*_xlfn.XLOOKUP(bpFYCS2,rngnFFRfy,(_xlfn.XLOOKUP(A10,rngnFFRc,rngnFFR,"N/A",0)),"N/A",0)))) -> 0 | K11: =IF(OR(B9="Make a Selection",B12="Make a Selection",ISNUMBER(K10)=FALSE,ISNUMBER(C11)=FALSE,ISNUMBER(wsBP3)=FALSE,ISNUMBER(weBP3)=FALSE,ISNUMBER(wsfyBP3)=FALSE),0,IF(A11="Yes",K10*C11,IF(sFBRCCS=1,K10*_xlfn.XLOOKUP(bpFYCS3,rngFFRfy,(_xlfn.XLOOKUP(A10,rngFFRc,rngFFR,"N/A",0)),"N/A",0),K10*_xlfn.XLOOKUP(bpFYCS3,rngnFFRfy,(_xlfn.XLOOKUP(A10,rngnFFRc,rngnFFR,"N/A",0)),"N/A",0)))) -> 0 | N11: =IF(OR(B9="Make a Selection",B12="Make a Selection",ISNUMBER(N10)=FALSE,ISNUMBER(C11)=FALSE,ISNUMBER(wsBP4)=FALSE,ISNUMBER(weBP4)=FALSE,ISNUMBER(wsfyBP4)=FALSE),0,IF(A11="Yes",N10*C11,IF(sFBRCCS=1,N10*_xlfn.XLOOKUP(bpFYCS4,rngFFRfy,(_xlfn.XLOOKUP(A10,rngFFRc,rngFFR,"N/A",0)),"N/A",0),N10*_xlfn.XLOOKUP(bpFYCS4,rngnFFRfy,(_xlfn.XLOOKUP(A10,rngnFFRc,rngnFFR,"N/A",0)),"N/A",0)))) -> 0 | Q11: =IF(OR(B9="Make a Selection",B12="Make a Selection",ISNUMBER(Q10)=FALSE,ISNUMBER(C11)=FALSE,ISNUMBER(wsBP5)=FALSE,ISNUMBER(weBP5)=FALSE,ISNUMBER(wsfyBP5)=FALSE),0,IF(A11="Yes",Q10*C11,IF(sFBRCCS=1,Q10*_xlfn.XLOOKUP(bpFYCS5,rngFFRfy,(_xlfn.XLOOKUP(A10,rngFFRc,rngFFR,"N/A",0)),"N/A",0),Q10*_xlfn.XLOOKUP(bpFYCS5,rngnFFRfy,(_xlfn.XLOOKUP(A10,rngnFFRc,rngnFFR,"N/A",0)),"N/A",0)))) -> 0 | T11: =IF(OR(B9="Make a Selection",B12="Make a Selection",ISNUMBER(T10)=FALSE,ISNUMBER(C11)=FALSE,ISNUMBER(wsBP6)=FALSE,ISNUMBER(weBP6)=FALSE,ISNUMBER(wsfyBP6)=FALSE),0,IF(A11="Yes",T10*C11,IF(sFBRCCS=1,T10*_xlfn.XLOOKUP(bpFYCS6,rngFFRfy,(_xlfn.XLOOKUP(A10,rngFFRc,rngFFR,"N/A",0)),"N/A",0),T10*_xlfn.XLOOKUP(bpFYCS6,rngnFFRfy,(_xlfn.XLOOKUP(A10,rngnFFRc,rngnFFR,"N/A",0)),"N/A",0)))) -> 0 | W11: =IF(OR(B9="Make a Selection",B12="Make a Selection",ISNUMBER(W10)=FALSE,ISNUMBER(C11)=FALSE,ISNUMBER(wsBP7)=FALSE,ISNUMBER(weBP7)=FALSE,ISNUMBER(wsfyBP7)=FALSE),0,IF(A11="Yes",W10*C11,IF(sFBRCCS=1,W10*_xlfn.XLOOKUP(bpFYCS7,rngFFRfy,(_xlfn.XLOOKUP(A10,rngFFRc,rngFFR,"N/A",0)),"N/A",0),W10*_xlfn.XLOOKUP(bpFYCS7,rngnFFRfy,(_xlfn.XLOOKUP(A10,rngnFFRc,rngnFFR,"N/A",0)),"N/A",0)))) -> 0 | Z11: =IF(OR(B9="Make a Selection",B12="Make a Selection",ISNUMBER(Z10)=FALSE,ISNUMBER(C11)=FALSE,ISNUMBER(wsBP8)=FALSE,ISNUMBER(weBP8)=FALSE,ISNUMBER(wsfyBP8)=FALSE),0,IF(A11="Yes",Z10*C11,IF(sFBRCCS=1,Z10*_xlfn.XLOOKUP(bpFYCS8,rngFFRfy,(_xlfn.XLOOKUP(A10,rngFFRc,rngFFR,"N/A",0)),"N/A",0),Z10*_xlfn.XLOOKUP(bpFYCS8,rngnFFRfy,(_xlfn.XLOOKUP(A10,rngnFFRc,rngnFFR,"N/A",0)),"N/A",0)))) -> 0 | AC11: =IF(OR(B9="Make a Selection",B12="Make a Selection",ISNUMBER(AC10)=FALSE,ISNUMBER(C11)=FALSE,ISNUMBER(wsBP9)=FALSE,ISNUMBER(weBP9)=FALSE,ISNUMBER(wsfyBP9)=FALSE),0,IF(A11="Yes",AC10*C11,IF(sFBRCCS=1,AC10*_xlfn.XLOOKUP(bpFYCS9,rngFFRfy,(_xlfn.XLOOKUP(A10,rngFFRc,rngFFR,"N/A",0)),"N/A",0),AC10*_xlfn.XLOOKUP(bpFYCS9,rngnFFRfy,(_xlfn.XLOOKUP(A10,rngnFFRc,rngnFFR,"N/A",0)),"N/A",0)))) -> 0 | AF11: =IF(OR(B9="Make a Selection",B12="Make a Selection",ISNUMBER(AF10)=FALSE,ISNUMBER(C11)=FALSE,ISNUMBER(wsBP10)=FALSE,ISNUMBER(weBP10)=FALSE,ISNUMBER(wsfyBP10)=FALSE),0,IF(A11="Yes",AF10*C11,IF(sFBRCCS=1,AF10*_xlfn.XLOOKUP(bpFYCS10,rngFFRfy,(_xlfn.XLOOKUP(A10,rngFFRc,rngFFR,"N/A",0)),"N/A",0),AF10*_xlfn.XLOOKUP(bpFYCS10,rngnFFRfy,(_xlfn.XLOOKUP(A10,rngnFFRc,rngnFFR,"N/A",0)),"N/A",0)))) -> 0 | AI11: =SUM(E11:AH11) -> 0
B12: Make a Selection | D12: Subtotal | E12: =IF(OR(ISNUMBER(E10)=FALSE,ISNUMBER(E11)=FALSE),0,SUM(E10:G11)) -> 0 | H12: =IF(OR(ISNUMBER(H10)=FALSE,ISNUMBER(H11)=FALSE),0,SUM(H10:J11)) -> 0 | K12: =IF(OR(ISNUMBER(K10)=FALSE,ISNUMBER(K11)=FALSE),0,SUM(K10:M11)) -> 0 | N12: =IF(OR(ISNUMBER(N10)=FALSE,ISNUMBER(N11)=FALSE),0,SUM(N10:P11)) -> 0 | Q12: =IF(OR(ISNUMBER(Q10)=FALSE,ISNUMBER(Q11)=FALSE),0,SUM(Q10:S11)) -> 0 | T12: =IF(OR(ISNUMBER(T10)=FALSE,ISNUMBER(T11)=FALSE),0,SUM(T10:V11)) -> 0 | W12: =IF(OR(ISNUMBER(W10)=FALSE,ISNUMBER(W11)=FALSE),0,SUM(W10:Y11)) -> 0 | Z12: =IF(OR(ISNUMBER(Z10)=FALSE,ISNUMBER(Z11)=FALSE),0,SUM(Z10:AB11)) -> 0 | AC12: =IF(OR(ISNUMBER(AC10)=FALSE,ISNUMBER(AC11)=FALSE),0,SUM(AC10:AE11)) -> 0 | AF12: =IF(OR(ISNUMBER(AF10)=FALSE,ISNUMBER(AF11)=FALSE),0,SUM(AF10:AH11)) -> 0 | AI12: 0
A14: =_xlfn.XLOOKUP(B14,MTDC[Description],MTDC[VALUE],"N/A",0) -> 50010 | B14: S&W Staff | D14: =IF(AND(B14="Make a Selection",OR(sFABCCS=1,sFABCCS=2,sFABCCS=3)),"",IF(sFABCCS=2,"Included",IF(sFABCCS=3,"Custom F&A Amt",IF(_xlfn.XLOOKUP(B14,MTDC[Description],MTDC[Include in MTDC],"N/A",0)="MTDC","Included","Excluded")))) -> Included | E14: =IF(ISNUMBER(SUMPRODUCT(--ISNUMBER(rngCFCSA1)*(budA1CSBP1)*(budA1CSSF="Salary")*(rngCFCSA1=$A$14)))=TRUE,SUMPRODUCT(--ISNUMBER(rngCFCSA1)*(budA1CSBP1)*(budA1CSSF="Salary")*(rngCFCSA1=$A$14)),0) -> 0 | H14: =IF(ISNUMBER(SUMPRODUCT(--ISNUMBER(rngCFCSA1)*(budA1CSBP2)*(budA1CSSF="Salary")*(rngCFCSA1=$A$14)))=TRUE,SUMPRODUCT(--ISNUMBER(rngCFCSA1)*(budA1CSBP2)*(budA1CSSF="Salary")*(rngCFCSA1=$A$14)),0) -> 0 | K14: =IF(ISNUMBER(SUMPRODUCT(--ISNUMBER(rngCFCSA1)*(budA1CSBP3)*(budA1CSSF="Salary")*(rngCFCSA1=$A$14)))=TRUE,SUMPRODUCT(--ISNUMBER(rngCFCSA1)*(budA1CSBP3)*(budA1CSSF="Salary")*(rngCFCSA1=$A$14)),0) -> 0 | N14: =IF(ISNUMBER(SUMPRODUCT(--ISNUMBER(rngCFCSA1)*(budA1CSBP4)*(budA1CSSF="Salary")*(rngCFCSA1=$A$14)))=TRUE,SUMPRODUCT(--ISNUMBER(rngCFCSA1)*(budA1CSBP4)*(budA1CSSF="Salary")*(rngCFCSA1=$A$14)),0) -> 0 | Q14: =IF(ISNUMBER(SUMPRODUCT(--ISNUMBER(rngCFCSA1)*(budA1CSBP5)*(budA1CSSF="Salary")*(rngCFCSA1=$A$14)))=TRUE,SUMPRODUCT(--ISNUMBER(rngCFCSA1)*(budA1CSBP5)*(budA1CSSF="Salary")*(rngCFCSA1=$A$14)),0) -> 0 | T14: =IF(ISNUMBER(SUMPRODUCT(--ISNUMBER(rngCFCSA1)*(budA1CSBP6)*(budA1CSSF="Salary")*(rngCFCSA1=$A$14)))=TRUE,SUMPRODUCT(--ISNUMBER(rngCFCSA1)*(budA1CSBP6)*(budA1CSSF="Salary")*(rngCFCSA1=$A$14)),0) -> 0 | W14: =IF(ISNUMBER(SUMPRODUCT(--ISNUMBER(rngCFCSA1)*(budA1CSBP7)*(budA1CSSF="Salary")*(rngCFCSA1=$A$14)))=TRUE,SUMPRODUCT(--ISNUMBER(rngCFCSA1)*(budA1CSBP7)*(budA1CSSF="Salary")*(rngCFCSA1=$A$14)),0) -> 0 | Z14: =IF(ISNUMBER(SUMPRODUCT(--ISNUMBER(rngCFCSA1)*(budA1CSBP8)*(budA1CSSF="Salary")*(rngCFCSA1=$A$14)))=TRUE,SUMPRODUCT(--ISNUMBER(rngCFCSA1)*(budA1CSBP8)*(budA1CSSF="Salary")*(rngCFCSA1=$A$14)),0) -> 0 | AC14: =IF(ISNUMBER(SUMPRODUCT(--ISNUMBER(rngCFCSA1)*(budA1CSBP9)*(budA1CSSF="Salary")*(rngCFCSA1=$A$14)))=TRUE,SUMPRODUCT(--ISNUMBER(rngCFCSA1)*(budA1CSBP9)*(budA1CSSF="Salary")*(rngCFCSA1=$A$14)),0) -> 0 | AF14: =IF(ISNUMBER(SUMPRODUCT(--ISNUMBER(rngCFCSA1)*(budA1CSBP10)*(budA1CSSF="Salary")*(rngCFCSA1=$A$14)))=TRUE,SUMPRODUCT(--ISNUMBER(rngCFCSA1)*(budA1CSBP10)*(budA1CSSF="Salary")*(rngCFCSA1=$A$14)),0) -> 0 | AI14: =SUM(E14:AH14) -> 0
A15: =_xlfn.XLOOKUP(B15,MTDC[Description],MTDC[VALUE],"N/A",0) -> 50020 | B15: S&W Tenured Faculty | D15: =IF(AND(B15="Make a Selection",OR(sFABCCS=1,sFABCCS=2,sFABCCS=3)),"",IF(sFABCCS=2,"Included",IF(sFABCCS=3,"Custom F&A Amt",IF(_xlfn.XLOOKUP(B15,MTDC[Description],MTDC[Include in MTDC],"N/A",0)="MTDC","Included","Excluded")))) -> Included | E15: =IF(ISNUMBER(SUMPRODUCT(--ISNUMBER(rngCFCSA1)*(budA1CSBP1)*(budA1CSSF="Salary")*(rngCFCSA1=$A$15)))=TRUE,SUMPRODUCT(--ISNUMBER(rngCFCSA1)*(budA1CSBP1)*(budA1CSSF="Salary")*(rngCFCSA1=$A$15)),0) -> 0 | H15: =IF(ISNUMBER(SUMPRODUCT(--ISNUMBER(rngCFCSA1)*(budA1CSBP2)*(budA1CSSF="Salary")*(rngCFCSA1=$A$15)))=TRUE,SUMPRODUCT(--ISNUMBER(rngCFCSA1)*(budA1CSBP2)*(budA1CSSF="Salary")*(rngCFCSA1=$A$15)),0) -> 0 | K15: =IF(ISNUMBER(SUMPRODUCT(--ISNUMBER(rngCFCSA1)*(budA1CSBP3)*(budA1CSSF="Salary")*(rngCFCSA1=$A$15)))=TRUE,SUMPRODUCT(--ISNUMBER(rngCFCSA1)*(budA1CSBP3)*(budA1CSSF="Salary")*(rngCFCSA1=$A$15)),0) -> 0 | N15: =IF(ISNUMBER(SUMPRODUCT(--ISNUMBER(rngCFCSA1)*(budA1CSBP4)*(budA1CSSF="Salary")*(rngCFCSA1=$A$15)))=TRUE,SUMPRODUCT(--ISNUMBER(rngCFCSA1)*(budA1CSBP4)*(budA1CSSF="Salary")*(rngCFCSA1=$A$15)),0) -> 0 | Q15: =IF(ISNUMBER(SUMPRODUCT(--ISNUMBER(rngCFCSA1)*(budA1CSBP5)*(budA1CSSF="Salary")*(rngCFCSA1=$A$15)))=TRUE,SUMPRODUCT(--ISNUMBER(rngCFCSA1)*(budA1CSBP5)*(budA1CSSF="Salary")*(rngCFCSA1=$A$15)),0) -> 0 | T15: =IF(ISNUMBER(SUMPRODUCT(--ISNUMBER(rngCFCSA1)*(budA1CSBP6)*(budA1CSSF="Salary")*(rngCFCSA1=$A$15)))=TRUE,SUMPRODUCT(--ISNUMBER(rngCFCSA1)*(budA1CSBP6)*(budA1CSSF="Salary")*(rngCFCSA1=$A$15)),0) -> 0 | W15: =IF(ISNUMBER(SUMPRODUCT(--ISNUMBER(rngCFCSA1)*(budA1CSBP7)*(budA1CSSF="Salary")*(rngCFCSA1=$A$15)))=TRUE,SUMPRODUCT(--ISNUMBER(rngCFCSA1)*(budA1CSBP7)*(budA1CSSF="Salary")*(rngCFCSA1=$A$15)),0) -> 0 | Z15: =IF(ISNUMBER(SUMPRODUCT(--ISNUMBER(rngCFCSA1)*(budA1CSBP8)*(budA1CSSF="Salary")*(rngCFCSA1=$A$15)))=TRUE,SUMPRODUCT(--ISNUMBER(rngCFCSA1)*(budA1CSBP8)*(budA1CSSF="Salary")*(rngCFCSA1=$A$15)),0) -> 0 | AC15: =IF(ISNUMBER(SUMPRODUCT(--ISNUMBER(rngCFCSA1)*(budA1CSBP9)*(budA1CSSF="Salary")*(rngCFCSA1=$A$15)))=TRUE,SUMPRODUCT(--ISNUMBER(rngCFCSA1)*(budA1CSBP9)*(budA1CSSF="Salary")*(rngCFCSA1=$A$15)),0) -> 0 | AF15: =IF(ISNUMBER(SUMPRODUCT(--ISNUMBER(rngCFCSA1)*(budA1CSBP10)*(budA1CSSF="Salary")*(rngCFCSA1=$A$15)))=TRUE,SUMPRODUCT(--ISNUMBER(rngCFCSA1)*(budA1CSBP10)*(budA1CSSF="Salary")*(rngCFCSA1=$A$15)),0) -> 0 | AI15: =SUM(E15:AH15) -> 0
A16: =_xlfn.XLOOKUP(B16,MTDC[Description],MTDC[VALUE],"N/A",0) -> 50030 | B16: S&W Tenure Track Faculty | D16: =IF(AND(B16="Make a Selection",OR(sFABCCS=1,sFABCCS=2,sFABCCS=3)),"",IF(sFABCCS=2,"Included",IF(sFABCCS=3,"Custom F&A Amt",IF(_xlfn.XLOOKUP(B16,MTDC[Description],MTDC[Include in MTDC],"N/A",0)="MTDC","Included","Excluded")))) -> Included | E16: =IF(ISNUMBER(SUMPRODUCT(--ISNUMBER(rngCFCSA1)*(budA1CSBP1)*(budA1CSSF="Salary")*(rngCFCSA1=$A$16)))=TRUE,SUMPRODUCT(--ISNUMBER(rngCFCSA1)*(budA1CSBP1)*(budA1CSSF="Salary")*(rngCFCSA1=$A$16)),0) -> 0 | H16: =IF(ISNUMBER(SUMPRODUCT(--ISNUMBER(rngCFCSA1)*(budA1CSBP2)*(budA1CSSF="Salary")*(rngCFCSA1=$A$16)))=TRUE,SUMPRODUCT(--ISNUMBER(rngCFCSA1)*(budA1CSBP2)*(budA1CSSF="Salary")*(rngCFCSA1=$A$16)),0) -> 0 | K16: =IF(ISNUMBER(SUMPRODUCT(--ISNUMBER(rngCFCSA1)*(budA1CSBP3)*(budA1CSSF="Salary")*(rngCFCSA1=$A$16)))=TRUE,SUMPRODUCT(--ISNUMBER(rngCFCSA1)*(budA1CSBP3)*(budA1CSSF="Salary")*(rngCFCSA1=$A$16)),0) -> 0 | N16: =IF(ISNUMBER(SUMPRODUCT(--ISNUMBER(rngCFCSA1)*(budA1CSBP4)*(budA1CSSF="Salary")*(rngCFCSA1=$A$16)))=TRUE,SUMPRODUCT(--ISNUMBER(rngCFCSA1)*(budA1CSBP4)*(budA1CSSF="Salary")*(rngCFCSA1=$A$16)),0) -> 0 | Q16: =IF(ISNUMBER(SUMPRODUCT(--ISNUMBER(rngCFCSA1)*(budA1CSBP5)*(budA1CSSF="Salary")*(rngCFCSA1=$A$16)))=TRUE,SUMPRODUCT(--ISNUMBER(rngCFCSA1)*(budA1CSBP5)*(budA1CSSF="Salary")*(rngCFCSA1=$A$16)),0) -> 0 | T16: =IF(ISNUMBER(SUMPRODUCT(--ISNUMBER(rngCFCSA1)*(budA1CSBP6)*(budA1CSSF="Salary")*(rngCFCSA1=$A$16)))=TRUE,SUMPRODUCT(--ISNUMBER(rngCFCSA1)*(budA1CSBP6)*(budA1CSSF="Salary")*(rngCFCSA1=$A$16)),0) -> 0 | W16: =IF(ISNUMBER(SUMPRODUCT(--ISNUMBER(rngCFCSA1)*(budA1CSBP7)*(budA1CSSF="Salary")*(rngCFCSA1=$A$16)))=TRUE,SUMPRODUCT(--ISNUMBER(rngCFCSA1)*(budA1CSBP7)*(budA1CSSF="Salary")*(rngCFCSA1=$A$16)),0) -> 0 | Z16: =IF(ISNUMBER(SUMPRODUCT(--ISNUMBER(rngCFCSA1)*(budA1CSBP8)*(budA1CSSF="Salary")*(rngCFCSA1=$A$16)))=TRUE,SUMPRODUCT(--ISNUMBER(rngCFCSA1)*(budA1CSBP8)*(budA1CSSF="Salary")*(rngCFCSA1=$A$16)),0) -> 0 | AC16: =IF(ISNUMBER(SUMPRODUCT(--ISNUMBER(rngCFCSA1)*(budA1CSBP9)*(budA1CSSF="Salary")*(rngCFCSA1=$A$16)))=TRUE,SUMPRODUCT(--ISNUMBER(rngCFCSA1)*(budA1CSBP9)*(budA1CSSF="Salary")*(rngCFCSA1=$A$16)),0) -> 0 | AF16: =IF(ISNUMBER(SUMPRODUCT(--ISNUMBER(rngCFCSA1)*(budA1CSBP10)*(budA1CSSF="Salary")*(rngCFCSA1=$A$16)))=TRUE,SUMPRODUCT(--ISNUMBER(rngCFCSA1)*(budA1CSBP10)*(budA1CSSF="Salary")*(rngCFCSA1=$A$16)),0) -> 0 | AI16: 0
A17: =_xlfn.XLOOKUP(B17,MTDC[Description],MTDC[VALUE],"N/A",0) -> 50040 | B17: S&W NonTenured Faculty | D17: =IF(AND(B17="Make a Selection",OR(sFABCCS=1,sFABCCS=2,sFABCCS=3)),"",IF(sFABCCS=2,"Included",IF(sFABCCS=3,"Custom F&A Amt",IF(_xlfn.XLOOKUP(B17,MTDC[Description],MTDC[Include in MTDC],"N/A",0)="MTDC","Included","Excluded")))) -> Included | E17: =IF(ISNUMBER(SUMPRODUCT(--ISNUMBER(rngCFCSA1)*(budA1CSBP1)*(budA1CSSF="Salary")*(rngCFCSA1=$A$17)))=TRUE,SUMPRODUCT(--ISNUMBER(rngCFCSA1)*(budA1CSBP1)*(budA1CSSF="Salary")*(rngCFCSA1=$A$17)),0) -> 0 | H17: =IF(ISNUMBER(SUMPRODUCT(--ISNUMBER(rngCFCSA1)*(budA1CSBP2)*(budA1CSSF="Salary")*(rngCFCSA1=$A$17)))=TRUE,SUMPRODUCT(--ISNUMBER(rngCFCSA1)*(budA1CSBP2)*(budA1CSSF="Salary")*(rngCFCSA1=$A$17)),0) -> 0 | K17: =IF(ISNUMBER(SUMPRODUCT(--ISNUMBER(rngCFCSA1)*(budA1CSBP3)*(budA1CSSF="Salary")*(rngCFCSA1=$A$17)))=TRUE,SUMPRODUCT(--ISNUMBER(rngCFCSA1)*(budA1CSBP3)*(budA1CSSF="Salary")*(rngCFCSA1=$A$17)),0) -> 0 | N17: =IF(ISNUMBER(SUMPRODUCT(--ISNUMBER(rngCFCSA1)*(budA1CSBP4)*(budA1CSSF="Salary")*(rngCFCSA1=$A$17)))=TRUE,SUMPRODUCT(--ISNUMBER(rngCFCSA1)*(budA1CSBP4)*(budA1CSSF="Salary")*(rngCFCSA1=$A$17)),0) -> 0 | Q17: =IF(ISNUMBER(SUMPRODUCT(--ISNUMBER(rngCFCSA1)*(budA1CSBP5)*(budA1CSSF="Salary")*(rngCFCSA1=$A$17)))=TRUE,SUMPRODUCT(--ISNUMBER(rngCFCSA1)*(budA1CSBP5)*(budA1CSSF="Salary")*(rngCFCSA1=$A$17)),0) -> 0 | T17: =IF(ISNUMBER(SUMPRODUCT(--ISNUMBER(rngCFCSA1)*(budA1CSBP6)*(budA1CSSF="Salary")*(rngCFCSA1=$A$17)))=TRUE,SUMPRODUCT(--ISNUMBER(rngCFCSA1)*(budA1CSBP6)*(budA1CSSF="Salary")*(rngCFCSA1=$A$17)),0) -> 0 | W17: =IF(ISNUMBER(SUMPRODUCT(--ISNUMBER(rngCFCSA1)*(budA1CSBP7)*(budA1CSSF="Salary")*(rngCFCSA1=$A$17)))=TRUE,SUMPRODUCT(--ISNUMBER(rngCFCSA1)*(budA1CSBP7)*(budA1CSSF="Salary")*(rngCFCSA1=$A$17)),0) -> 0 | Z17: =IF(ISNUMBER(SUMPRODUCT(--ISNUMBER(rngCFCSA1)*(budA1CSBP8)*(budA1CSSF="Salary")*(rngCFCSA1=$A$17)))=TRUE,SUMPRODUCT(--ISNUMBER(rngCFCSA1)*(budA1CSBP8)*(budA1CSSF="Salary")*(rngCFCSA1=$A$17)),0) -> 0 | AC17: =IF(ISNUMBER(SUMPRODUCT(--ISNUMBER(rngCFCSA1)*(budA1CSBP9)*(budA1CSSF="Salary")*(rngCFCSA1=$A$17)))=TRUE,SUMPRODUCT(--ISNUMBER(rngCFCSA1)*(budA1CSBP9)*(budA1CSSF="Salary")*(rngCFCSA1=$A$17)),0) -> 0 | AF17: =IF(ISNUMBER(SUMPRODUCT(--ISNUMBER(rngCFCSA1)*(budA1CSBP10)*(budA1CSSF="Salary")*(rngCFCSA1=$A$17)))=TRUE,SUMPRODUCT(--ISNUMBER(rngCFCSA1)*(budA1CSBP10)*(budA1CSSF="Salary")*(rngCFCSA1=$A$17)),0) -> 0 | AI17: 0
A18: =_xlfn.XLOOKUP(B18,MTDC[Description],MTDC[VALUE],"N/A",0) -> 50050 | B18: S&W TA & GA | D18: =IF(AND(B18="Make a Selection",OR(sFABCCS=1,sFABCCS=2,sFABCCS=3)),"",IF(sFABCCS=2,"Included",IF(sFABCCS=3,"Custom F&A Amt",IF(_xlfn.XLOOKUP(B18,MTDC[Description],MTDC[Include in MTDC],"N/A",0)="MTDC","Included","Excluded")))) -> Included | E18: =IF(ISNUMBER(SUMPRODUCT(--ISNUMBER(rngCFCSA1)*(budA1CSBP1)*(budA1CSSF="Salary")*(rngCFCSA1=$A$18)))=TRUE,SUMPRODUCT(--ISNUMBER(rngCFCSA1)*(budA1CSBP1)*(budA1CSSF="Salary")*(rngCFCSA1=$A$18)),0) -> 0 | H18: =IF(ISNUMBER(SUMPRODUCT(--ISNUMBER(rngCFCSA1)*(budA1CSBP2)*(budA1CSSF="Salary")*(rngCFCSA1=$A$18)))=TRUE,SUMPRODUCT(--ISNUMBER(rngCFCSA1)*(budA1CSBP2)*(budA1CSSF="Salary")*(rngCFCSA1=$A$18)),0) -> 0 | K18: =IF(ISNUMBER(SUMPRODUCT(--ISNUMBER(rngCFCSA1)*(budA1CSBP3)*(budA1CSSF="Salary")*(rngCFCSA1=$A$18)))=TRUE,SUMPRODUCT(--ISNUMBER(rngCFCSA1)*(budA1CSBP3)*(budA1CSSF="Salary")*(rngCFCSA1=$A$18)),0) -> 0 | N18: =IF(ISNUMBER(SUMPRODUCT(--ISNUMBER(rngCFCSA1)*(budA1CSBP4)*(budA1CSSF="Salary")*(rngCFCSA1=$A$18)))=TRUE,SUMPRODUCT(--ISNUMBER(rngCFCSA1)*(budA1CSBP4)*(budA1CSSF="Salary")*(rngCFCSA1=$A$18)),0) -> 0 | Q18: =IF(ISNUMBER(SUMPRODUCT(--ISNUMBER(rngCFCSA1)*(budA1CSBP5)*(budA1CSSF="Salary")*(rngCFCSA1=$A$18)))=TRUE,SUMPRODUCT(--ISNUMBER(rngCFCSA1)*(budA1CSBP5)*(budA1CSSF="Salary")*(rngCFCSA1=$A$18)),0) -> 0 | T18: =IF(ISNUMBER(SUMPRODUCT(--ISNUMBER(rngCFCSA1)*(budA1CSBP6)*(budA1CSSF="Salary")*(rngCFCSA1=$A$18)))=TRUE,SUMPRODUCT(--ISNUMBER(rngCFCSA1)*(budA1CSBP6)*(budA1CSSF="Salary")*(rngCFCSA1=$A$18)),0) -> 0 | W18: =IF(ISNUMBER(SUMPRODUCT(--ISNUMBER(rngCFCSA1)*(budA1CSBP7)*(budA1CSSF="Salary")*(rngCFCSA1=$A$18)))=TRUE,SUMPRODUCT(--ISNUMBER(rngCFCSA1)*(budA1CSBP7)*(budA1CSSF="Salary")*(rngCFCSA1=$A$18)),0) -> 0 | Z18: =IF(ISNUMBER(SUMPRODUCT(--ISNUMBER(rngCFCSA1)*(budA1CSBP8)*(budA1CSSF="Salary")*(rngCFCSA1=$A$18)))=TRUE,SUMPRODUCT(--ISNUMBER(rngCFCSA1)*(budA1CSBP8)*(budA1CSSF="Salary")*(rngCFCSA1=$A$18)),0) -> 0 | AC18: =IF(ISNUMBER(SUMPRODUCT(--ISNUMBER(rngCFCSA1)*(budA1CSBP9)*(budA1CSSF="Salary")*(rngCFCSA1=$A$18)))=TRUE,SUMPRODUCT(--ISNUMBER(rngCFCSA1)*(budA1CSBP9)*(budA1CSSF="Salary")*(rngCFCSA1=$A$18)),0) -> 0 | AF18: =IF(ISNUMBER(SUMPRODUCT(--ISNUMBER(rngCFCSA1)*(budA1CSBP10)*(budA1CSSF="Salary")*(rngCFCSA1=$A$18)))=TRUE,SUMPRODUCT(--ISNUMBER(rngCFCSA1)*(budA1CSBP10)*(budA1CSSF="Salary")*(rngCFCSA1=$A$18)),0) -> 0 | AI18: 0
A19: =_xlfn.XLOOKUP(B19,MTDC[Description],MTDC[VALUE],"N/A",0) -> 50060 | B19: S&W Post Doctorate & Associates | D19: =IF(AND(B19="Make a Selection",OR(sFABCCS=1,sFABCCS=2,sFABCCS=3)),"",IF(sFABCCS=2,"Included",IF(sFABCCS=3,"Custom F&A Amt",IF(_xlfn.XLOOKUP(B19,MTDC[Description],MTDC[Include in MTDC],"N/A",0)="MTDC","Included","Excluded")))) -> Included | E19: =IF(ISNUMBER(SUMPRODUCT(--ISNUMBER(rngCFCSA1)*(budA1CSBP1)*(budA1CSSF="Salary")*(rngCFCSA1=$A$19)))=TRUE,SUMPRODUCT(--ISNUMBER(rngCFCSA1)*(budA1CSBP1)*(budA1CSSF="Salary")*(rngCFCSA1=$A$19)),0) -> 0 | H19: =IF(ISNUMBER(SUMPRODUCT(--ISNUMBER(rngCFCSA1)*(budA1CSBP2)*(budA1CSSF="Salary")*(rngCFCSA1=$A$19)))=TRUE,SUMPRODUCT(--ISNUMBER(rngCFCSA1)*(budA1CSBP2)*(budA1CSSF="Salary")*(rngCFCSA1=$A$19)),0) -> 0 | K19: =IF(ISNUMBER(SUMPRODUCT(--ISNUMBER(rngCFCSA1)*(budA1CSBP3)*(budA1CSSF="Salary")*(rngCFCSA1=$A$19)))=TRUE,SUMPRODUCT(--ISNUMBER(rngCFCSA1)*(budA1CSBP3)*(budA1CSSF="Salary")*(rngCFCSA1=$A$19)),0) -> 0 | N19: =IF(ISNUMBER(SUMPRODUCT(--ISNUMBER(rngCFCSA1)*(budA1CSBP4)*(budA1CSSF="Salary")*(rngCFCSA1=$A$19)))=TRUE,SUMPRODUCT(--ISNUMBER(rngCFCSA1)*(budA1CSBP4)*(budA1CSSF="Salary")*(rngCFCSA1=$A$19)),0) -> 0 | Q19: =IF(ISNUMBER(SUMPRODUCT(--ISNUMBER(rngCFCSA1)*(budA1CSBP5)*(budA1CSSF="Salary")*(rngCFCSA1=$A$19)))=TRUE,SUMPRODUCT(--ISNUMBER(rngCFCSA1)*(budA1CSBP5)*(budA1CSSF="Salary")*(rngCFCSA1=$A$19)),0) -> 0 | T19: =IF(ISNUMBER(SUMPRODUCT(--ISNUMBER(rngCFCSA1)*(budA1CSBP6)*(budA1CSSF="Salary")*(rngCFCSA1=$A$19)))=TRUE,SUMPRODUCT(--ISNUMBER(rngCFCSA1)*(budA1CSBP6)*(budA1CSSF="Salary")*(rngCFCSA1=$A$19)),0) -> 0 | W19: =IF(ISNUMBER(SUMPRODUCT(--ISNUMBER(rngCFCSA1)*(budA1CSBP7)*(budA1CSSF="Salary")*(rngCFCSA1=$A$19)))=TRUE,SUMPRODUCT(--ISNUMBER(rngCFCSA1)*(budA1CSBP7)*(budA1CSSF="Salary")*(rngCFCSA1=$A$19)),0) -> 0 | Z19: =IF(ISNUMBER(SUMPRODUCT(--ISNUMBER(rngCFCSA1)*(budA1CSBP8)*(budA1CSSF="Salary")*(rngCFCSA1=$A$19)))=TRUE,SUMPRODUCT(--ISNUMBER(rngCFCSA1)*(budA1CSBP8)*(budA1CSSF="Salary")*(rngCFCSA1=$A$19)),0) -> 0 | AC19: =IF(ISNUMBER(SUMPRODUCT(--ISNUMBER(rngCFCSA1)*(budA1CSBP9)*(budA1CSSF="Salary")*(rngCFCSA1=$A$19)))=TRUE,SUMPRODUCT(--ISNUMBER(rngCFCSA1)*(budA1CSBP9)*(budA1CSSF="Salary")*(rngCFCSA1=$A$19)),0) -> 0 | AF19: =IF(ISNUMBER(SUMPRODUCT(--ISNUMBER(rngCFCSA1)*(budA1CSBP10)*(budA1CSSF="Salary")*(rngCFCSA1=$A$19)))=TRUE,SUMPRODUCT(--ISNUMBER(rngCFCSA1)*(budA1CSBP10)*(budA1CSSF="Salary")*(rngCFCSA1=$A$19)),0) -> 0 | AI19: 0
A20: =_xlfn.XLOOKUP(B20,MTDC[Description],MTDC[VALUE],"N/A",0) -> 50070 | B20: S&W Housestaff | D20: =IF(AND(B20="Make a Selection",OR(sFABCCS=1,sFABCCS=2,sFABCCS=3)),"",IF(sFABCCS=2,"Included",IF(sFABCCS=3,"Custom F&A Amt",IF(_xlfn.XLOOKUP(B20,MTDC[Description],MTDC[Include in MTDC],"N/A",0)="MTDC","Included","Excluded")))) -> Included | E20: =IF(ISNUMBER(SUMPRODUCT(--ISNUMBER(rngCFCSA1)*(budA1CSBP1)*(budA1CSSF="Salary")*(rngCFCSA1=$A$20)))=TRUE,SUMPRODUCT(--ISNUMBER(rngCFCSA1)*(budA1CSBP1)*(budA1CSSF="Salary")*(rngCFCSA1=$A$20)),0) -> 0 | H20: =IF(ISNUMBER(SUMPRODUCT(--ISNUMBER(rngCFCSA1)*(budA1CSBP2)*(budA1CSSF="Salary")*(rngCFCSA1=$A$20)))=TRUE,SUMPRODUCT(--ISNUMBER(rngCFCSA1)*(budA1CSBP2)*(budA1CSSF="Salary")*(rngCFCSA1=$A$20)),0) -> 0 | K20: =IF(ISNUMBER(SUMPRODUCT(--ISNUMBER(rngCFCSA1)*(budA1CSBP3)*(budA1CSSF="Salary")*(rngCFCSA1=$A$20)))=TRUE,SUMPRODUCT(--ISNUMBER(rngCFCSA1)*(budA1CSBP3)*(budA1CSSF="Salary")*(rngCFCSA1=$A$20)),0) -> 0 | N20: =IF(ISNUMBER(SUMPRODUCT(--ISNUMBER(rngCFCSA1)*(budA1CSBP4)*(budA1CSSF="Salary")*(rngCFCSA1=$A$20)))=TRUE,SUMPRODUCT(--ISNUMBER(rngCFCSA1)*(budA1CSBP4)*(budA1CSSF="Salary")*(rngCFCSA1=$A$20)),0) -> 0 | Q20: =IF(ISNUMBER(SUMPRODUCT(--ISNUMBER(rngCFCSA1)*(budA1CSBP5)*(budA1CSSF="Salary")*(rngCFCSA1=$A$20)))=TRUE,SUMPRODUCT(--ISNUMBER(rngCFCSA1)*(budA1CSBP5)*(budA1CSSF="Salary")*(rngCFCSA1=$A$20)),0) -> 0 | T20: =IF(ISNUMBER(SUMPRODUCT(--ISNUMBER(rngCFCSA1)*(budA1CSBP6)*(budA1CSSF="Salary")*(rngCFCSA1=$A$20)))=TRUE,SUMPRODUCT(--ISNUMBER(rngCFCSA1)*(budA1CSBP6)*(budA1CSSF="Salary")*(rngCFCSA1=$A$20)),0) -> 0 | W20: =IF(ISNUMBER(SUMPRODUCT(--ISNUMBER(rngCFCSA1)*(budA1CSBP7)*(budA1CSSF="Salary")*(rngCFCSA1=$A$20)))=TRUE,SUMPRODUCT(--ISNUMBER(rngCFCSA1)*(budA1CSBP7)*(budA1CSSF="Salary")*(rngCFCSA1=$A$20)),0) -> 0 | Z20: =IF(ISNUMBER(SUMPRODUCT(--ISNUMBER(rngCFCSA1)*(budA1CSBP8)*(budA1CSSF="Salary")*(rngCFCSA1=$A$20)))=TRUE,SUMPRODUCT(--ISNUMBER(rngCFCSA1)*(budA1CSBP8)*(budA1CSSF="Salary")*(rngCFCSA1=$A$20)),0) -> 0 | AC20: =IF(ISNUMBER(SUMPRODUCT(--ISNUMBER(rngCFCSA1)*(budA1CSBP9)*(budA1CSSF="Salary")*(rngCFCSA1=$A$20)))=TRUE,SUMPRODUCT(--ISNUMBER(rngCFCSA1)*(budA1CSBP9)*(budA1CSSF="Salary")*(rngCFCSA1=$A$20)),0) -> 0 | AF20: =IF(ISNUMBER(SUMPRODUCT(--ISNUMBER(rngCFCSA1)*(budA1CSBP10)*(budA1CSSF="Salary")*(rngCFCSA1=$A$20)))=TRUE,SUMPRODUCT(--ISNUMBER(rngCFCSA1)*(budA1CSBP10)*(budA1CSSF="Salary")*(rngCFCSA1=$A$20)),0) -> 0 | AI20: 0
A21: =_xlfn.XLOOKUP(B21,MTDC[Description],MTDC[VALUE],"N/A",0) -> 50080 | B21: S&W Coadjutant NonInstructional | D21: =IF(AND(B21="Make a Selection",OR(sFABCCS=1,sFABCCS=2,sFABCCS=3)),"",IF(sFABCCS=2,"Included",IF(sFABCCS=3,"Custom F&A Amt",IF(_xlfn.XLOOKUP(B21,MTDC[Description],MTDC[Include in MTDC],"N/A",0)="MTDC","Included","Excluded")))) -> Included | E21: =IF(ISNUMBER(SUMPRODUCT(--ISNUMBER(rngCFCSA1)*(budA1CSBP1)*(budA1CSSF="Salary")*(rngCFCSA1=$A$21)))=TRUE,SUMPRODUCT(--ISNUMBER(rngCFCSA1)*(budA1CSBP1)*(budA1CSSF="Salary")*(rngCFCSA1=$A$21)),0) -> 0 | H21: =IF(ISNUMBER(SUMPRODUCT(--ISNUMBER(rngCFCSA1)*(budA1CSBP2)*(budA1CSSF="Salary")*(rngCFCSA1=$A$21)))=TRUE,SUMPRODUCT(--ISNUMBER(rngCFCSA1)*(budA1CSBP2)*(budA1CSSF="Salary")*(rngCFCSA1=$A$21)),0) -> 0 | K21: =IF(ISNUMBER(SUMPRODUCT(--ISNUMBER(rngCFCSA1)*(budA1CSBP3)*(budA1CSSF="Salary")*(rngCFCSA1=$A$21)))=TRUE,SUMPRODUCT(--ISNUMBER(rngCFCSA1)*(budA1CSBP3)*(budA1CSSF="Salary")*(rngCFCSA1=$A$21)),0) -> 0 | N21: =IF(ISNUMBER(SUMPRODUCT(--ISNUMBER(rngCFCSA1)*(budA1CSBP4)*(budA1CSSF="Salary")*(rngCFCSA1=$A$21)))=TRUE,SUMPRODUCT(--ISNUMBER(rngCFCSA1)*(budA1CSBP4)*(budA1CSSF="Salary")*(rngCFCSA1=$A$21)),0) -> 0 | Q21: =IF(ISNUMBER(SUMPRODUCT(--ISNUMBER(rngCFCSA1)*(budA1CSBP5)*(budA1CSSF="Salary")*(rngCFCSA1=$A$21)))=TRUE,SUMPRODUCT(--ISNUMBER(rngCFCSA1)*(budA1CSBP5)*(budA1CSSF="Salary")*(rngCFCSA1=$A$21)),0) -> 0 | T21: =IF(ISNUMBER(SUMPRODUCT(--ISNUMBER(rngCFCSA1)*(budA1CSBP6)*(budA1CSSF="Salary")*(rngCFCSA1=$A$21)))=TRUE,SUMPRODUCT(--ISNUMBER(rngCFCSA1)*(budA1CSBP6)*(budA1CSSF="Salary")*(rngCFCSA1=$A$21)),0) -> 0 | W21: =IF(ISNUMBER(SUMPRODUCT(--ISNUMBER(rngCFCSA1)*(budA1CSBP7)*(budA1CSSF="Salary")*(rngCFCSA1=$A$21)))=TRUE,SUMPRODUCT(--ISNUMBER(rngCFCSA1)*(budA1CSBP7)*(budA1CSSF="Salary")*(rngCFCSA1=$A$21)),0) -> 0 | Z21: =IF(ISNUMBER(SUMPRODUCT(--ISNUMBER(rngCFCSA1)*(budA1CSBP8)*(budA1CSSF="Salary")*(rngCFCSA1=$A$21)))=TRUE,SUMPRODUCT(--ISNUMBER(rngCFCSA1)*(budA1CSBP8)*(budA1CSSF="Salary")*(rngCFCSA1=$A$21)),0) -> 0 | AC21: =IF(ISNUMBER(SUMPRODUCT(--ISNUMBER(rngCFCSA1)*(budA1CSBP9)*(budA1CSSF="Salary")*(rngCFCSA1=$A$21)))=TRUE,SUMPRODUCT(--ISNUMBER(rngCFCSA1)*(budA1CSBP9)*(budA1CSSF="Salary")*(rngCFCSA1=$A$21)),0) -> 0 | AF21: =IF(ISNUMBER(SUMPRODUCT(--ISNUMBER(rngCFCSA1)*(budA1CSBP10)*(budA1CSSF="Salary")*(rngCFCSA1=$A$21)))=TRUE,SUMPRODUCT(--ISNUMBER(rngCFCSA1)*(budA1CSBP10)*(budA1CSSF="Salary")*(rngCFCSA1=$A$21)),0) -> 0 | AI21: 0
A22: =_xlfn.XLOOKUP(B22,MTDC[Description],MTDC[VALUE],"N/A",0) -> 50081 | B22: S&W Coadjutant PTL Instructional | D22: =IF(AND(B22="Make a Selection",OR(sFABCCS=1,sFABCCS=2,sFABCCS=3)),"",IF(sFABCCS=2,"Included",IF(sFABCCS=3,"Custom F&A Amt",IF(_xlfn.XLOOKUP(B22,MTDC[Description],MTDC[Include in MTDC],"N/A",0)="MTDC","Included","Excluded")))) -> Included | E22: =IF(ISNUMBER(SUMPRODUCT(--ISNUMBER(rngCFCSA1)*(budA1CSBP1)*(budA1CSSF="Salary")*(rngCFCSA1=$A$22)))=TRUE,SUMPRODUCT(--ISNUMBER(rngCFCSA1)*(budA1CSBP1)*(budA1CSSF="Salary")*(rngCFCSA1=$A$22)),0) -> 0 | H22: =IF(ISNUMBER(SUMPRODUCT(--ISNUMBER(rngCFCSA1)*(budA1CSBP2)*(budA1CSSF="Salary")*(rngCFCSA1=$A$22)))=TRUE,SUMPRODUCT(--ISNUMBER(rngCFCSA1)*(budA1CSBP2)*(budA1CSSF="Salary")*(rngCFCSA1=$A$22)),0) -> 0 | K22: =IF(ISNUMBER(SUMPRODUCT(--ISNUMBER(rngCFCSA1)*(budA1CSBP3)*(budA1CSSF="Salary")*(rngCFCSA1=$A$22)))=TRUE,SUMPRODUCT(--ISNUMBER(rngCFCSA1)*(budA1CSBP3)*(budA1CSSF="Salary")*(rngCFCSA1=$A$22)),0) -> 0 | N22: =IF(ISNUMBER(SUMPRODUCT(--ISNUMBER(rngCFCSA1)*(budA1CSBP4)*(budA1CSSF="Salary")*(rngCFCSA1=$A$22)))=TRUE,SUMPRODUCT(--ISNUMBER(rngCFCSA1)*(budA1CSBP4)*(budA1CSSF="Salary")*(rngCFCSA1=$A$22)),0) -> 0 | Q22: =IF(ISNUMBER(SUMPRODUCT(--ISNUMBER(rngCFCSA1)*(budA1CSBP5)*(budA1CSSF="Salary")*(rngCFCSA1=$A$22)))=TRUE,SUMPRODUCT(--ISNUMBER(rngCFCSA1)*(budA1CSBP5)*(budA1CSSF="Salary")*(rngCFCSA1=$A$22)),0) -> 0 | T22: =IF(ISNUMBER(SUMPRODUCT(--ISNUMBER(rngCFCSA1)*(budA1CSBP6)*(budA1CSSF="Salary")*(rngCFCSA1=$A$22)))=TRUE,SUMPRODUCT(--ISNUMBER(rngCFCSA1)*(budA1CSBP6)*(budA1CSSF="Salary")*(rngCFCSA1=$A$22)),0) -> 0 | W22: =IF(ISNUMBER(SUMPRODUCT(--ISNUMBER(rngCFCSA1)*(budA1CSBP7)*(budA1CSSF="Salary")*(rngCFCSA1=$A$22)))=TRUE,SUMPRODUCT(--ISNUMBER(rngCFCSA1)*(budA1CSBP7)*(budA1CSSF="Salary")*(rngCFCSA1=$A$22)),0) -> 0 | Z22: =IF(ISNUMBER(SUMPRODUCT(--ISNUMBER(rngCFCSA1)*(budA1CSBP8)*(budA1CSSF="Salary")*(rngCFCSA1=$A$22)))=TRUE,SUMPRODUCT(--ISNUMBER(rngCFCSA1)*(budA1CSBP8)*(budA1CSSF="Salary")*(rngCFCSA1=$A$22)),0) -> 0 | AC22: =IF(ISNUMBER(SUMPRODUCT(--ISNUMBER(rngCFCSA1)*(budA1CSBP9)*(budA1CSSF="Salary")*(rngCFCSA1=$A$22)))=TRUE,SUMPRODUCT(--ISNUMBER(rngCFCSA1)*(budA1CSBP9)*(budA1CSSF="Salary")*(rngCFCSA1=$A$22)),0) -> 0 | AF22: =IF(ISNUMBER(SUMPRODUCT(--ISNUMBER(rngCFCSA1)*(budA1CSBP10)*(budA1CSSF="Salary")*(rngCFCSA1=$A$22)))=TRUE,SUMPRODUCT(--ISNUMBER(rngCFCSA1)*(budA1CSBP10)*(budA1CSSF="Salary")*(rngCFCSA1=$A$22)),0) -> 0 | AI22: 0
A23: =_xlfn.XLOOKUP(B23,MTDC[Description],MTDC[VALUE],"N/A",0) -> 50090 | B23: S&W Student Employment | D23: =IF(AND(B23="Make a Selection",OR(sFABCCS=1,sFABCCS=2,sFABCCS=3)),"",IF(sFABCCS=2,"Included",IF(sFABCCS=3,"Custom F&A Amt",IF(_xlfn.XLOOKUP(B23,MTDC[Description],MTDC[Include in MTDC],"N/A",0)="MTDC","Included","Excluded")))) -> Included | E23: =IF(ISNUMBER(SUMPRODUCT(--ISNUMBER(rngCFCSA1)*(budA1CSBP1)*(budA1CSSF="Salary")*(rngCFCSA1=$A$23)))=TRUE,SUMPRODUCT(--ISNUMBER(rngCFCSA1)*(budA1CSBP1)*(budA1CSSF="Salary")*(rngCFCSA1=$A$23)),0) -> 0 | H23: =IF(ISNUMBER(SUMPRODUCT(--ISNUMBER(rngCFCSA1)*(budA1CSBP2)*(budA1CSSF="Salary")*(rngCFCSA1=$A$23)))=TRUE,SUMPRODUCT(--ISNUMBER(rngCFCSA1)*(budA1CSBP2)*(budA1CSSF="Salary")*(rngCFCSA1=$A$23)),0) -> 0 | K23: =IF(ISNUMBER(SUMPRODUCT(--ISNUMBER(rngCFCSA1)*(budA1CSBP3)*(budA1CSSF="Salary")*(rngCFCSA1=$A$23)))=TRUE,SUMPRODUCT(--ISNUMBER(rngCFCSA1)*(budA1CSBP3)*(budA1CSSF="Salary")*(rngCFCSA1=$A$23)),0) -> 0 | N23: =IF(ISNUMBER(SUMPRODUCT(--ISNUMBER(rngCFCSA1)*(budA1CSBP4)*(budA1CSSF="Salary")*(rngCFCSA1=$A$23)))=TRUE,SUMPRODUCT(--ISNUMBER(rngCFCSA1)*(budA1CSBP4)*(budA1CSSF="Salary")*(rngCFCSA1=$A$23)),0) -> 0 | Q23: =IF(ISNUMBER(SUMPRODUCT(--ISNUMBER(rngCFCSA1)*(budA1CSBP5)*(budA1CSSF="Salary")*(rngCFCSA1=$A$23)))=TRUE,SUMPRODUCT(--ISNUMBER(rngCFCSA1)*(budA1CSBP5)*(budA1CSSF="Salary")*(rngCFCSA1=$A$23)),0) -> 0 | T23: =IF(ISNUMBER(SUMPRODUCT(--ISNUMBER(rngCFCSA1)*(budA1CSBP6)*(budA1CSSF="Salary")*(rngCFCSA1=$A$23)))=TRUE,SUMPRODUCT(--ISNUMBER(rngCFCSA1)*(budA1CSBP6)*(budA1CSSF="Salary")*(rngCFCSA1=$A$23)),0) -> 0 | W23: =IF(ISNUMBER(SUMPRODUCT(--ISNUMBER(rngCFCSA1)*(budA1CSBP7)*(budA1CSSF="Salary")*(rngCFCSA1=$A$23)))=TRUE,SUMPRODUCT(--ISNUMBER(rngCFCSA1)*(budA1CSBP7)*(budA1CSSF="Salary")*(rngCFCSA1=$A$23)),0) -> 0 | Z23: =IF(ISNUMBER(SUMPRODUCT(--ISNUMBER(rngCFCSA1)*(budA1CSBP8)*(budA1CSSF="Salary")*(rngCFCSA1=$A$23)))=TRUE,SUMPRODUCT(--ISNUMBER(rngCFCSA1)*(budA1CSBP8)*(budA1CSSF="Salary")*(rngCFCSA1=$A$23)),0) -> 0 | AC23: =IF(ISNUMBER(SUMPRODUCT(--ISNUMBER(rngCFCSA1)*(budA1CSBP9)*(budA1CSSF="Salary")*(rngCFCSA1=$A$23)))=TRUE,SUMPRODUCT(--ISNUMBER(rngCFCSA1)*(budA1CSBP9)*(budA1CSSF="Salary")*(rngCFCSA1=$A$23)),0) -> 0 | AF23: =IF(ISNUMBER(SUMPRODUCT(--ISNUMBER(rngCFCSA1)*(budA1CSBP10)*(budA1CSSF="Salary")*(rngCFCSA1=$A$23)))=TRUE,SUMPRODUCT(--ISNUMBER(rngCFCSA1)*(budA1CSBP10)*(budA1CSSF="Salary")*(rngCFCSA1=$A$23)),0) -> 0 | AI23: 0
A24: =_xlfn.XLOOKUP(B24,MTDC[Description],MTDC[VALUE],"N/A",0) -> 50100 | B24: S&W Contracted | D24: =IF(AND(B24="Make a Selection",OR(sFABCCS=1,sFABCCS=2,sFABCCS=3)),"",IF(sFABCCS=2,"Included",IF(sFABCCS=3,"Custom F&A Amt",IF(_xlfn.XLOOKUP(B24,MTDC[Description],MTDC[Include in MTDC],"N/A",0)="MTDC","Included","Excluded")))) -> Included | E24: =IF(ISNUMBER(SUMPRODUCT(--ISNUMBER(rngCFCSA1)*(budA1CSBP1)*(budA1CSSF="Salary")*(rngCFCSA1=$A$24)))=TRUE,SUMPRODUCT(--ISNUMBER(rngCFCSA1)*(budA1CSBP1)*(budA1CSSF="Salary")*(rngCFCSA1=$A$24)),0) -> 0 | H24: =IF(ISNUMBER(SUMPRODUCT(--ISNUMBER(rngCFCSA1)*(budA1CSBP2)*(budA1CSSF="Salary")*(rngCFCSA1=$A$24)))=TRUE,SUMPRODUCT(--ISNUMBER(rngCFCSA1)*(budA1CSBP2)*(budA1CSSF="Salary")*(rngCFCSA1=$A$24)),0) -> 0 | K24: =IF(ISNUMBER(SUMPRODUCT(--ISNUMBER(rngCFCSA1)*(budA1CSBP3)*(budA1CSSF="Salary")*(rngCFCSA1=$A$24)))=TRUE,SUMPRODUCT(--ISNUMBER(rngCFCSA1)*(budA1CSBP3)*(budA1CSSF="Salary")*(rngCFCSA1=$A$24)),0) -> 0 | N24: =IF(ISNUMBER(SUMPRODUCT(--ISNUMBER(rngCFCSA1)*(budA1CSBP4)*(budA1CSSF="Salary")*(rngCFCSA1=$A$24)))=TRUE,SUMPRODUCT(--ISNUMBER(rngCFCSA1)*(budA1CSBP4)*(budA1CSSF="Salary")*(rngCFCSA1=$A$24)),0) -> 0 | Q24: =IF(ISNUMBER(SUMPRODUCT(--ISNUMBER(rngCFCSA1)*(budA1CSBP5)*(budA1CSSF="Salary")*(rngCFCSA1=$A$24)))=TRUE,SUMPRODUCT(--ISNUMBER(rngCFCSA1)*(budA1CSBP5)*(budA1CSSF="Salary")*(rngCFCSA1=$A$24)),0) -> 0 | T24: =IF(ISNUMBER(SUMPRODUCT(--ISNUMBER(rngCFCSA1)*(budA1CSBP6)*(budA1CSSF="Salary")*(rngCFCSA1=$A$24)))=TRUE,SUMPRODUCT(--ISNUMBER(rngCFCSA1)*(budA1CSBP6)*(budA1CSSF="Salary")*(rngCFCSA1=$A$24)),0) -> 0 | W24: =IF(ISNUMBER(SUMPRODUCT(--ISNUMBER(rngCFCSA1)*(budA1CSBP7)*(budA1CSSF="Salary")*(rngCFCSA1=$A$24)))=TRUE,SUMPRODUCT(--ISNUMBER(rngCFCSA1)*(budA1CSBP7)*(budA1CSSF="Salary")*(rngCFCSA1=$A$24)),0) -> 0 | Z24: =IF(ISNUMBER(SUMPRODUCT(--ISNUMBER(rngCFCSA1)*(budA1CSBP8)*(budA1CSSF="Salary")*(rngCFCSA1=$A$24)))=TRUE,SUMPRODUCT(--ISNUMBER(rngCFCSA1)*(budA1CSBP8)*(budA1CSSF="Salary")*(rngCFCSA1=$A$24)),0) -> 0 | AC24: =IF(ISNUMBER(SUMPRODUCT(--ISNUMBER(rngCFCSA1)*(budA1CSBP9)*(budA1CSSF="Salary")*(rngCFCSA1=$A$24)))=TRUE,SUMPRODUCT(--ISNUMBER(rngCFCSA1)*(budA1CSBP9)*(budA1CSSF="Salary")*(rngCFCSA1=$A$24)),0) -> 0 | AF24: =IF(ISNUMBER(SUMPRODUCT(--ISNUMBER(rngCFCSA1)*(budA1CSBP10)*(budA1CSSF="Salary")*(rngCFCSA1=$A$24)))=TRUE,SUMPRODUCT(--ISNUMBER(rngCFCSA1)*(budA1CSBP10)*(budA1CSSF="Salary")*(rngCFCSA1=$A$24)),0) -> 0 | AI24: 0
A25: =_xlfn.XLOOKUP(B25,MTDC[Description],MTDC[VALUE],"N/A",0) -> 50110 | B25: Student Aid Student Researcher Stipend | D25: =IF(AND(B25="Make a Selection",OR(sFABCCS=1,sFABCCS=2,sFABCCS=3)),"",IF(sFABCCS=2,"Included",IF(sFABCCS=3,"Custom F&A Amt",IF(_xlfn.XLOOKUP(B25,MTDC[Description],MTDC[Include in MTDC],"N/A",0)="MTDC","Included","Excluded")))) -> Included | E25: =IF(ISNUMBER(SUMPRODUCT(--ISNUMBER(rngCFCSA1)*(budA1CSBP1)*(budA1CSSF="Salary")*(rngCFCSA1=$A$25)))=TRUE,SUMPRODUCT(--ISNUMBER(rngCFCSA1)*(budA1CSBP1)*(budA1CSSF="Salary")*(rngCFCSA1=$A$25)),0) -> 0 | H25: =IF(ISNUMBER(SUMPRODUCT(--ISNUMBER(rngCFCSA1)*(budA1CSBP2)*(budA1CSSF="Salary")*(rngCFCSA1=$A$25)))=TRUE,SUMPRODUCT(--ISNUMBER(rngCFCSA1)*(budA1CSBP2)*(budA1CSSF="Salary")*(rngCFCSA1=$A$25)),0) -> 0 | K25: =IF(ISNUMBER(SUMPRODUCT(--ISNUMBER(rngCFCSA1)*(budA1CSBP3)*(budA1CSSF="Salary")*(rngCFCSA1=$A$25)))=TRUE,SUMPRODUCT(--ISNUMBER(rngCFCSA1)*(budA1CSBP3)*(budA1CSSF="Salary")*(rngCFCSA1=$A$25)),0) -> 0 | N25: =IF(ISNUMBER(SUMPRODUCT(--ISNUMBER(rngCFCSA1)*(budA1CSBP4)*(budA1CSSF="Salary")*(rngCFCSA1=$A$25)))=TRUE,SUMPRODUCT(--ISNUMBER(rngCFCSA1)*(budA1CSBP4)*(budA1CSSF="Salary")*(rngCFCSA1=$A$25)),0) -> 0 | Q25: =IF(ISNUMBER(SUMPRODUCT(--ISNUMBER(rngCFCSA1)*(budA1CSBP5)*(budA1CSSF="Salary")*(rngCFCSA1=$A$25)))=TRUE,SUMPRODUCT(--ISNUMBER(rngCFCSA1)*(budA1CSBP5)*(budA1CSSF="Salary")*(rngCFCSA1=$A$25)),0) -> 0 | T25: =IF(ISNUMBER(SUMPRODUCT(--ISNUMBER(rngCFCSA1)*(budA1CSBP6)*(budA1CSSF="Salary")*(rngCFCSA1=$A$25)))=TRUE,SUMPRODUCT(--ISNUMBER(rngCFCSA1)*(budA1CSBP6)*(budA1CSSF="Salary")*(rngCFCSA1=$A$25)),0) -> 0 | W25: =IF(ISNUMBER(SUMPRODUCT(--ISNUMBER(rngCFCSA1)*(budA1CSBP7)*(budA1CSSF="Salary")*(rngCFCSA1=$A$25)))=TRUE,SUMPRODUCT(--ISNUMBER(rngCFCSA1)*(budA1CSBP7)*(budA1CSSF="Salary")*(rngCFCSA1=$A$25)),0) -> 0 | Z25: =IF(ISNUMBER(SUMPRODUCT(--ISNUMBER(rngCFCSA1)*(budA1CSBP8)*(budA1CSSF="Salary")*(rngCFCSA1=$A$25)))=TRUE,SUMPRODUCT(--ISNUMBER(rngCFCSA1)*(budA1CSBP8)*(budA1CSSF="Salary")*(rngCFCSA1=$A$25)),0) -> 0 | AC25: =IF(ISNUMBER(SUMPRODUCT(--ISNUMBER(rngCFCSA1)*(budA1CSBP9)*(budA1CSSF="Salary")*(rngCFCSA1=$A$25)))=TRUE,SUMPRODUCT(--ISNUMBER(rngCFCSA1)*(budA1CSBP9)*(budA1CSSF="Salary")*(rngCFCSA1=$A$25)),0) -> 0 | AF25: =IF(ISNUMBER(SUMPRODUCT(--ISNUMBER(rngCFCSA1)*(budA1CSBP10)*(budA1CSSF="Salary")*(rngCFCSA1=$A$25)))=TRUE,SUMPRODUCT(--ISNUMBER(rngCFCSA1)*(budA1CSBP10)*(budA1CSSF="Salary")*(rngCFCSA1=$A$25)),0) -> 0 | AI25: 0
A26: =_xlfn.XLOOKUP(B26,MTDC[Description],MTDC[VALUE],"N/A",0) -> 50115 | B26: Student Aid Pre & Post Fellowship | D26: =IF(AND(B26="Make a Selection",OR(sFABCCS=1,sFABCCS=2,sFABCCS=3)),"",IF(sFABCCS=2,"Included",IF(sFABCCS=3,"Custom F&A Amt",IF(_xlfn.XLOOKUP(B26,MTDC[Description],MTDC[Include in MTDC],"N/A",0)="MTDC","Included","Excluded")))) -> Included | E26: =IF(ISNUMBER(SUMPRODUCT(--ISNUMBER(rngCFCSA1)*(budA1CSBP1)*(budA1CSSF="Salary")*(rngCFCSA1=$A$26)))=TRUE,SUMPRODUCT(--ISNUMBER(rngCFCSA1)*(budA1CSBP1)*(budA1CSSF="Salary")*(rngCFCSA1=$A$26)),0) -> 0 | H26: =IF(ISNUMBER(SUMPRODUCT(--ISNUMBER(rngCFCSA1)*(budA1CSBP2)*(budA1CSSF="Salary")*(rngCFCSA1=$A$26)))=TRUE,SUMPRODUCT(--ISNUMBER(rngCFCSA1)*(budA1CSBP2)*(budA1CSSF="Salary")*(rngCFCSA1=$A$26)),0) -> 0 | K26: =IF(ISNUMBER(SUMPRODUCT(--ISNUMBER(rngCFCSA1)*(budA1CSBP3)*(budA1CSSF="Salary")*(rngCFCSA1=$A$26)))=TRUE,SUMPRODUCT(--ISNUMBER(rngCFCSA1)*(budA1CSBP3)*(budA1CSSF="Salary")*(rngCFCSA1=$A$26)),0) -> 0 | N26: =IF(ISNUMBER(SUMPRODUCT(--ISNUMBER(rngCFCSA1)*(budA1CSBP4)*(budA1CSSF="Salary")*(rngCFCSA1=$A$26)))=TRUE,SUMPRODUCT(--ISNUMBER(rngCFCSA1)*(budA1CSBP4)*(budA1CSSF="Salary")*(rngCFCSA1=$A$26)),0) -> 0 | Q26: =IF(ISNUMBER(SUMPRODUCT(--ISNUMBER(rngCFCSA1)*(budA1CSBP5)*(budA1CSSF="Salary")*(rngCFCSA1=$A$26)))=TRUE,SUMPRODUCT(--ISNUMBER(rngCFCSA1)*(budA1CSBP5)*(budA1CSSF="Salary")*(rngCFCSA1=$A$26)),0) -> 0 | T26: =IF(ISNUMBER(SUMPRODUCT(--ISNUMBER(rngCFCSA1)*(budA1CSBP6)*(budA1CSSF="Salary")*(rngCFCSA1=$A$26)))=TRUE,SUMPRODUCT(--ISNUMBER(rngCFCSA1)*(budA1CSBP6)*(budA1CSSF="Salary")*(rngCFCSA1=$A$26)),0) -> 0 | W26: =IF(ISNUMBER(SUMPRODUCT(--ISNUMBER(rngCFCSA1)*(budA1CSBP7)*(budA1CSSF="Salary")*(rngCFCSA1=$A$26)))=TRUE,SUMPRODUCT(--ISNUMBER(rngCFCSA1)*(budA1CSBP7)*(budA1CSSF="Salary")*(rngCFCSA1=$A$26)),0) -> 0 | Z26: =IF(ISNUMBER(SUMPRODUCT(--ISNUMBER(rngCFCSA1)*(budA1CSBP8)*(budA1CSSF="Salary")*(rngCFCSA1=$A$26)))=TRUE,SUMPRODUCT(--ISNUMBER(rngCFCSA1)*(budA1CSBP8)*(budA1CSSF="Salary")*(rngCFCSA1=$A$26)),0) -> 0 | AC26: =IF(ISNUMBER(SUMPRODUCT(--ISNUMBER(rngCFCSA1)*(budA1CSBP9)*(budA1CSSF="Salary")*(rngCFCSA1=$A$26)))=TRUE,SUMPRODUCT(--ISNUMBER(rngCFCSA1)*(budA1CSBP9)*(budA1CSSF="Salary")*(rngCFCSA1=$A$26)),0) -> 0 | AF26: =IF(ISNUMBER(SUMPRODUCT(--ISNUMBER(rngCFCSA1)*(budA1CSBP10)*(budA1CSSF="Salary")*(rngCFCSA1=$A$26)))=TRUE,SUMPRODUCT(--ISNUMBER(rngCFCSA1)*(budA1CSBP10)*(budA1CSSF="Salary")*(rngCFCSA1=$A$26)),0) -> 0 | AI26: 0
A27: =_xlfn.XLOOKUP(B27,MTDC[Description],MTDC[VALUE],"N/A",0) -> 50120 | B27: S&W Hourly Employees | D27: =IF(AND(B27="Make a Selection",OR(sFABCCS=1,sFABCCS=2,sFABCCS=3)),"",IF(sFABCCS=2,"Included",IF(sFABCCS=3,"Custom F&A Amt",IF(_xlfn.XLOOKUP(B27,MTDC[Description],MTDC[Include in MTDC],"N/A",0)="MTDC","Included","Excluded")))) -> Included | E27: =IF(ISNUMBER(SUMPRODUCT(--ISNUMBER(rngCFCSA1)*(budA1CSBP1)*(budA1CSSF="Salary")*(rngCFCSA1=$A$27)))=TRUE,SUMPRODUCT(--ISNUMBER(rngCFCSA1)*(budA1CSBP1)*(budA1CSSF="Salary")*(rngCFCSA1=$A$27)),0) -> 0 | H27: =IF(ISNUMBER(SUMPRODUCT(--ISNUMBER(rngCFCSA1)*(budA1CSBP2)*(budA1CSSF="Salary")*(rngCFCSA1=$A$27)))=TRUE,SUMPRODUCT(--ISNUMBER(rngCFCSA1)*(budA1CSBP2)*(budA1CSSF="Salary")*(rngCFCSA1=$A$27)),0) -> 0 | K27: =IF(ISNUMBER(SUMPRODUCT(--ISNUMBER(rngCFCSA1)*(budA1CSBP3)*(budA1CSSF="Salary")*(rngCFCSA1=$A$27)))=TRUE,SUMPRODUCT(--ISNUMBER(rngCFCSA1)*(budA1CSBP3)*(budA1CSSF="Salary")*(rngCFCSA1=$A$27)),0) -> 0 | N27: =IF(ISNUMBER(SUMPRODUCT(--ISNUMBER(rngCFCSA1)*(budA1CSBP4)*(budA1CSSF="Salary")*(rngCFCSA1=$A$27)))=TRUE,SUMPRODUCT(--ISNUMBER(rngCFCSA1)*(budA1CSBP4)*(budA1CSSF="Salary")*(rngCFCSA1=$A$27)),0) -> 0 | Q27: =IF(ISNUMBER(SUMPRODUCT(--ISNUMBER(rngCFCSA1)*(budA1CSBP5)*(budA1CSSF="Salary")*(rngCFCSA1=$A$27)))=TRUE,SUMPRODUCT(--ISNUMBER(rngCFCSA1)*(budA1CSBP5)*(budA1CSSF="Salary")*(rngCFCSA1=$A$27)),0) -> 0 | T27: =IF(ISNUMBER(SUMPRODUCT(--ISNUMBER(rngCFCSA1)*(budA1CSBP6)*(budA1CSSF="Salary")*(rngCFCSA1=$A$27)))=TRUE,SUMPRODUCT(--ISNUMBER(rngCFCSA1)*(budA1CSBP6)*(budA1CSSF="Salary")*(rngCFCSA1=$A$27)),0) -> 0 | W27: =IF(ISNUMBER(SUMPRODUCT(--ISNUMBER(rngCFCSA1)*(budA1CSBP7)*(budA1CSSF="Salary")*(rngCFCSA1=$A$27)))=TRUE,SUMPRODUCT(--ISNUMBER(rngCFCSA1)*(budA1CSBP7)*(budA1CSSF="Salary")*(rngCFCSA1=$A$27)),0) -> 0 | Z27: =IF(ISNUMBER(SUMPRODUCT(--ISNUMBER(rngCFCSA1)*(budA1CSBP8)*(budA1CSSF="Salary")*(rngCFCSA1=$A$27)))=TRUE,SUMPRODUCT(--ISNUMBER(rngCFCSA1)*(budA1CSBP8)*(budA1CSSF="Salary")*(rngCFCSA1=$A$27)),0) -> 0 | AC27: =IF(ISNUMBER(SUMPRODUCT(--ISNUMBER(rngCFCSA1)*(budA1CSBP9)*(budA1CSSF="Salary")*(rngCFCSA1=$A$27)))=TRUE,SUMPRODUCT(--ISNUMBER(rngCFCSA1)*(budA1CSBP9)*(budA1CSSF="Salary")*(rngCFCSA1=$A$27)),0) -> 0 | AF27: =IF(ISNUMBER(SUMPRODUCT(--ISNUMBER(rngCFCSA1)*(budA1CSBP10)*(budA1CSSF="Salary")*(rngCFCSA1=$A$27)))=TRUE,SUMPRODUCT(--ISNUMBER(rngCFCSA1)*(budA1CSBP10)*(budA1CSSF="Salary")*(rngCFCSA1=$A$27)),0) -> 0 | AI27: 0
A28: =_xlfn.XLOOKUP(B28,MTDC[Description],MTDC[VALUE],"N/A",0) -> 51110 | B28: FB Staff Employees | D28: =IF(sFABCCS=2,"Included",IF(sFABCCS=3,"Custom F&A Amt",IF(_xlfn.XLOOKUP(B28,MTDC[Description],MTDC[Include in MTDC],"N/A",0)="MTDC","Included","Excluded"))) -> Included | E28: =SUMPRODUCT((budA1CSSF="Fringe")*(budA1CSBP1)) -> 0 | H28: =SUMPRODUCT((budA1CSSF="Fringe")*(budA1CSBP2)) -> 0 | K28: =SUMPRODUCT((budA1CSSF="Fringe")*(budA1CSBP3)) -> 0 | N28: =SUMPRODUCT((budA1CSSF="Fringe")*(budA1CSBP4)) -> 0 | Q28: =SUMPRODUCT((budA1CSSF="Fringe")*(budA1CSBP5)) -> 0 | T28: =SUMPRODUCT((budA1CSSF="Fringe")*(budA1CSBP6)) -> 0 | W28: =SUMPRODUCT((budA1CSSF="Fringe")*(budA1CSBP7)) -> 0 | Z28: =SUMPRODUCT((budA1CSSF="Fringe")*(budA1CSBP8)) -> 0 | AC28: =SUMPRODUCT((budA1CSSF="Fringe")*(budA1CSBP9)) -> 0 | AF28: =SUMPRODUCT((budA1CSSF="Fringe")*(budA1CSBP10)) -> 0 | AI28: =SUM(E28:AH28) -> 0
B30: Salary & Wages (Advanced) | E30: =SUM(E14:G27) -> 0 | H30: =SUM(H14:J27) -> 0 | K30: =SUM(K14:M27) -> 0 | N30: =SUM(N14:P27) -> 0 | Q30: =SUM(Q14:S27) -> 0 | T30: =SUM(T14:V27) -> 0 | W30: =SUM(W14:Y27) -> 0 | Z30: =SUM(Z14:AB27) -> 0 | AC30: =SUM(AC14:AE27) -> 0 | AF30: =SUM(AF14:AH27) -> 0 | AI30: =SUM(E30:AH30) -> 0
B31: Fringe (Advanced) | E31: =SUMPRODUCT(($D$10:$D$13="Fringe")*($E$10:$G$13)) -> 0 | H31: =SUMPRODUCT(($D$10:$D$13="Fringe")*($H$10:$J$13)) -> 0 | K31: =SUMPRODUCT(($D$10:$D$13="Fringe")*($K$10:$M$13)) -> 0 | N31: =SUMPRODUCT(($D$10:$D$13="Fringe")*($N$10:$P$13)) -> 0 | Q31: =SUMPRODUCT(($D$10:$D$13="Fringe")*($Q$10:$S$13)) -> 0 | T31: =SUMPRODUCT(($D$10:$D$13="Fringe")*($T$10:$V$13)) -> 0 | W31: =SUMPRODUCT(($D$10:$D$13="Fringe")*($W$10:$Y$13)) -> 0 | Z31: =SUMPRODUCT(($D$10:$D$13="Fringe")*($Z$10:$AB$13)) -> 0 | AC31: =SUMPRODUCT(($D$10:$D$13="Fringe")*($AC$10:$AE$13)) -> 0 | AF31: =SUMPRODUCT(($D$10:$D$13="Fringe")*($AF$10:$AH$13)) -> 0 | AI31: =SUM(E31:AH31) -> 0
B32: Total Salary & Wages (Advanced) | E32: =SUM(E30:G31) -> 0 | H32: =SUM(H30:J31) -> 0 | K32: =SUM(K30:M31) -> 0 | N32: =SUM(N30:P31) -> 0 | Q32: =SUM(Q30:S31) -> 0 | T32: =SUM(T30:V31) -> 0 | W32: =SUM(W30:Y31) -> 0 | Z32: =SUM(Z30:AB31) -> 0 | AC32: =SUM(AC30:AE31) -> 0 | AF32: =SUM(AF30:AH31) -> 0 | AI32: =SUM(E32:AH32) -> 0
A34: A2. SALARIES & WAGES (BASIC)
A35: =_xlfn.XLOOKUP(B35,MTDC[Description],MTDC[VALUE],"N/A",0) -> N/A | B35: Make a selection | D35: Salary | E35: 0 | H35: 0 | K35: 0 | N35: 0 | Q35: 0 | T35: 0 | W35: 0 | Z35: 0 | AC35: 0 | AF35: 0 | AI35: =SUM(E35:AH35) -> 0
B36: Enter Staff Name | D36: Fringe | E36: =IF(OR(B35="Make a Selection",ISNUMBER(E35)=FALSE,,ISNUMBER(C37)=FALSE,ISNUMBER(wsBP1)=FALSE,ISNUMBER(weBP1)=FALSE,ISNUMBER(wsfyBP1)=FALSE),0,IF(A37="Yes",E35*C37,IF(sFBRCCS=1,E35*_xlfn.XLOOKUP(bpFYCS1,rngFFRfy,(_xlfn.XLOOKUP(A35,rngFFRc,rngFFR,"N/A",0)),"N/A",0),E35*_xlfn.XLOOKUP(bpFYCS1,rngnFFRfy,(_xlfn.XLOOKUP(A35,rngnFFRc,rngnFFR,"N/A",0)),"N/A",0)))) -> 0 | H36: =IF(OR(B35="Make a Selection",ISNUMBER(H35)=FALSE,,ISNUMBER(C37)=FALSE,ISNUMBER(wsBP2)=FALSE,ISNUMBER(weBP2)=FALSE,ISNUMBER(wsfyBP2)=FALSE),0,IF(A37="Yes",H35*C37,IF(sFBRCCS=1,H35*_xlfn.XLOOKUP(bpFYCS2,rngFFRfy,(_xlfn.XLOOKUP(A35,rngFFRc,rngFFR,"N/A",0)),"N/A",0),H35*_xlfn.XLOOKUP(bpFYCS2,rngnFFRfy,(_xlfn.XLOOKUP(A35,rngnFFRc,rngnFFR,"N/A",0)),"N/A",0)))) -> 0 | K36: =IF(OR(B35="Make a Selection",ISNUMBER(K35)=FALSE,,ISNUMBER(C37)=FALSE,ISNUMBER(wsBP3)=FALSE,ISNUMBER(weBP3)=FALSE,ISNUMBER(wsfyBP3)=FALSE),0,IF(A37="Yes",K35*C37,IF(sFBRCCS=1,K35*_xlfn.XLOOKUP(bpFYCS3,rngFFRfy,(_xlfn.XLOOKUP(A35,rngFFRc,rngFFR,"N/A",0)),"N/A",0),K35*_xlfn.XLOOKUP(bpFYCS3,rngnFFRfy,(_xlfn.XLOOKUP(A35,rngnFFRc,rngnFFR,"N/A",0)),"N/A",0)))) -> 0 | N36: =IF(OR(B35="Make a Selection",ISNUMBER(N35)=FALSE,,ISNUMBER(C37)=FALSE,ISNUMBER(wsBP4)=FALSE,ISNUMBER(weBP4)=FALSE,ISNUMBER(wsfyBP4)=FALSE),0,IF(A37="Yes",N35*C37,IF(sFBRCCS=1,N35*_xlfn.XLOOKUP(bpFYCS4,rngFFRfy,(_xlfn.XLOOKUP(A35,rngFFRc,rngFFR,"N/A",0)),"N/A",0),N35*_xlfn.XLOOKUP(bpFYCS4,rngnFFRfy,(_xlfn.XLOOKUP(A35,rngnFFRc,rngnFFR,"N/A",0)),"N/A",0)))) -> 0 | Q36: =IF(OR(B35="Make a Selection",ISNUMBER(Q35)=FALSE,,ISNUMBER(C37)=FALSE,ISNUMBER(wsBP5)=FALSE,ISNUMBER(weBP5)=FALSE,ISNUMBER(wsfyBP5)=FALSE),0,IF(A37="Yes",Q35*C37,IF(sFBRCCS=1,Q35*_xlfn.XLOOKUP(bpFYCS5,rngFFRfy,(_xlfn.XLOOKUP(A35,rngFFRc,rngFFR,"N/A",0)),"N/A",0),Q35*_xlfn.XLOOKUP(bpFYCS5,rngnFFRfy,(_xlfn.XLOOKUP(A35,rngnFFRc,rngnFFR,"N/A",0)),"N/A",0)))) -> 0 | T36: =IF(OR(B35="Make a Selection",ISNUMBER(T35)=FALSE,,ISNUMBER(C37)=FALSE,ISNUMBER(wsBP6)=FALSE,ISNUMBER(weBP6)=FALSE,ISNUMBER(wsfyBP6)=FALSE),0,IF(A37="Yes",T35*C37,IF(sFBRCCS=1,T35*_xlfn.XLOOKUP(bpFYCS6,rngFFRfy,(_xlfn.XLOOKUP(A35,rngFFRc,rngFFR,"N/A",0)),"N/A",0),T35*_xlfn.XLOOKUP(bpFYCS6,rngnFFRfy,(_xlfn.XLOOKUP(A35,rngnFFRc,rngnFFR,"N/A",0)),"N/A",0)))) -> 0 | W36: =IF(OR(B35="Make a Selection",ISNUMBER(W35)=FALSE,,ISNUMBER(C37)=FALSE,ISNUMBER(wsBP7)=FALSE,ISNUMBER(weBP7)=FALSE,ISNUMBER(wsfyBP7)=FALSE),0,IF(A37="Yes",W35*C37,IF(sFBRCCS=1,W35*_xlfn.XLOOKUP(bpFYCS7,rngFFRfy,(_xlfn.XLOOKUP(A35,rngFFRc,rngFFR,"N/A",0)),"N/A",0),W35*_xlfn.XLOOKUP(bpFYCS7,rngnFFRfy,(_xlfn.XLOOKUP(A35,rngnFFRc,rngnFFR,"N/A",0)),"N/A",0)))) -> 0 | Z36: =IF(OR(B35="Make a Selection",ISNUMBER(Z35)=FALSE,,ISNUMBER(C37)=FALSE,ISNUMBER(wsBP8)=FALSE,ISNUMBER(weBP8)=FALSE,ISNUMBER(wsfyBP8)=FALSE),0,IF(A37="Yes",Z35*C37,IF(sFBRCCS=1,Z35*_xlfn.XLOOKUP(bpFYCS8,rngFFRfy,(_xlfn.XLOOKUP(A35,rngFFRc,rngFFR,"N/A",0)),"N/A",0),Z35*_xlfn.XLOOKUP(bpFYCS8,rngnFFRfy,(_xlfn.XLOOKUP(A35,rngnFFRc,rngnFFR,"N/A",0)),"N/A",0)))) -> 0 | AC36: =IF(OR(B35="Make a Selection",ISNUMBER(AC35)=FALSE,,ISNUMBER(C37)=FALSE,ISNUMBER(wsBP9)=FALSE,ISNUMBER(weBP9)=FALSE,ISNUMBER(wsfyBP9)=FALSE),0,IF(A37="Yes",AC35*C37,IF(sFBRCCS=1,AC35*_xlfn.XLOOKUP(bpFYCS9,rngFFRfy,(_xlfn.XLOOKUP(A35,rngFFRc,rngFFR,"N/A",0)),"N/A",0),AC35*_xlfn.XLOOKUP(bpFYCS9,rngnFFRfy,(_xlfn.XLOOKUP(A35,rngnFFRc,rngnFFR,"N/A",0)),"N/A",0)))) -> 0 | AF36: =IF(OR(B35="Make a Selection",ISNUMBER(AF35)=FALSE,,ISNUMBER(C37)=FALSE,ISNUMBER(wsBP10)=FALSE,ISNUMBER(weBP10)=FALSE,ISNUMBER(wsfyBP10)=FALSE),0,IF(A37="Yes",AF35*C37,IF(sFBRCCS=1,AF35*_xlfn.XLOOKUP(bpFYCS10,rngFFRfy,(_xlfn.XLOOKUP(A35,rngFFRc,rngFFR,"N/A",0)),"N/A",0),AF35*_xlfn.XLOOKUP(bpFYCS10,rngnFFRfy,(_xlfn.XLOOKUP(A35,rngnFFRc,rngnFFR,"N/A",0)),"N/A",0)))) -> 0 | AI36: 0
A37: No | B37: Custom Fringe @ | C37: 0 | D37: Subtotal | E37: =IF(ISNUMBER(E35)=FALSE,0,SUM(E35:G36)) -> 0 | H37: =IF(ISNUMBER(H35)=FALSE,0,SUM(H35:J36)) -> 0 | K37: =IF(ISNUMBER(K35)=FALSE,0,SUM(K35:M36)) -> 0 | N37: =IF(ISNUMBER(N35)=FALSE,0,SUM(N35:P36)) -> 0 | Q37: =IF(ISNUMBER(Q35)=FALSE,0,SUM(Q35:S36)) -> 0 | T37: =IF(ISNUMBER(T35)=FALSE,0,SUM(T35:V36)) -> 0 | W37: =IF(ISNUMBER(W35)=FALSE,0,SUM(W35:Y36)) -> 0 | Z37: =IF(ISNUMBER(Z35)=FALSE,0,SUM(Z35:AB36)) -> 0 | AC37: =IF(ISNUMBER(AC35)=FALSE,0,SUM(AC35:AE36)) -> 0 | AF37: =IF(ISNUMBER(AF35)=FALSE,0,SUM(AF35:AH36)) -> 0 | AI37: 0
A39: =_xlfn.XLOOKUP(B39,MTDC[Description],MTDC[VALUE],"N/A",0) -> 50010 | B39: S&W Staff | D39: =IF(AND(B39="Make a Selection",OR(sFABCCS=1,sFABCCS=2,sFABCCS=3)),"",IF(sFABCCS=2,"Included",IF(sFABCCS=3,"Custom F&A Amt",IF(_xlfn.XLOOKUP(B39,MTDC[Description],MTDC[Include in MTDC],"N/A",0)="MTDC","Included","Excluded")))) -> Included | E39: =IF(ISNUMBER(SUMPRODUCT(--ISNUMBER(rngCFCSA2)*(budA2CSBP1)*(budA2CSSF="Salary")*(rngCFCSA2=A39)))=TRUE,SUMPRODUCT(--ISNUMBER(rngCFCSA2)*(budA2CSBP1)*(budA2CSSF="Salary")*(rngCFCSA2=A39)),0) -> 0 | H39: =IF(ISNUMBER(SUMPRODUCT(--ISNUMBER(rngCFCSA2)*(budA2CSBP2)*(budA2CSSF="Salary")*(rngCFCSA2=D39)))=TRUE,SUMPRODUCT(--ISNUMBER(rngCFCSA2)*(budA2CSBP2)*(budA2CSSF="Salary")*(rngCFCSA2=D39)),0) -> 0 | K39: =IF(ISNUMBER(SUMPRODUCT(--ISNUMBER(rngCFCSA2)*(budA2CSBP3)*(budA2CSSF="Salary")*(rngCFCSA2=G39)))=TRUE,SUMPRODUCT(--ISNUMBER(rngCFCSA2)*(budA2CSBP3)*(budA2CSSF="Salary")*(rngCFCSA2=G39)),0) -> 0 | N39: =IF(ISNUMBER(SUMPRODUCT(--ISNUMBER(rngCFCSA2)*(budA2CSBP4)*(budA2CSSF="Salary")*(rngCFCSA2=J39)))=TRUE,SUMPRODUCT(--ISNUMBER(rngCFCSA2)*(budA2CSBP4)*(budA2CSSF="Salary")*(rngCFCSA2=J39)),0) -> 0 | Q39: =IF(ISNUMBER(SUMPRODUCT(--ISNUMBER(rngCFCSA2)*(budA2CSBP5)*(budA2CSSF="Salary")*(rngCFCSA2=M39)))=TRUE,SUMPRODUCT(--ISNUMBER(rngCFCSA2)*(budA2CSBP5)*(budA2CSSF="Salary")*(rngCFCSA2=M39)),0) -> 0 | T39: =IF(ISNUMBER(SUMPRODUCT(--ISNUMBER(rngCFCSA2)*(budA2CSBP6)*(budA2CSSF="Salary")*(rngCFCSA2=P39)))=TRUE,SUMPRODUCT(--ISNUMBER(rngCFCSA2)*(budA2CSBP6)*(budA2CSSF="Salary")*(rngCFCSA2=P39)),0) -> 0 | W39: =IF(ISNUMBER(SUMPRODUCT(--ISNUMBER(rngCFCSA2)*(budA2CSBP7)*(budA2CSSF="Salary")*(rngCFCSA2=S39)))=TRUE,SUMPRODUCT(--ISNUMBER(rngCFCSA2)*(budA2CSBP7)*(budA2CSSF="Salary")*(rngCFCSA2=S39)),0) -> 0 | Z39: =IF(ISNUMBER(SUMPRODUCT(--ISNUMBER(rngCFCSA2)*(budA2CSBP8)*(budA2CSSF="Salary")*(rngCFCSA2=V39)))=TRUE,SUMPRODUCT(--ISNUMBER(rngCFCSA2)*(budA2CSBP8)*(budA2CSSF="Salary")*(rngCFCSA2=V39)),0) -> 0 | AC39: =IF(ISNUMBER(SUMPRODUCT(--ISNUMBER(rngCFCSA2)*(budA2CSBP9)*(budA2CSSF="Salary")*(rngCFCSA2=Y39)))=TRUE,SUMPRODUCT(--ISNUMBER(rngCFCSA2)*(budA2CSBP9)*(budA2CSSF="Salary")*(rngCFCSA2=Y39)),0) -> 0 | AF39: =IF(ISNUMBER(SUMPRODUCT(--ISNUMBER(rngCFCSA2)*(budA2CSBP10)*(budA2CSSF="Salary")*(rngCFCSA2=AB39)))=TRUE,SUMPRODUCT(--ISNUMBER(rngCFCSA2)*(budA2CSBP10)*(budA2CSSF="Salary")*(rngCFCSA2=AB39)),0) -> 0 | AI39: =SUM(E39:AH39) -> 0
A40: =_xlfn.XLOOKUP(B40,MTDC[Description],MTDC[VALUE],"N/A",0) -> 50020 | B40: S&W Tenured Faculty | D40: =IF(AND(B40="Make a Selection",OR(sFABCCS=1,sFABCCS=2,sFABCCS=3)),"",IF(sFABCCS=2,"Included",IF(sFABCCS=3,"Custom F&A Amt",IF(_xlfn.XLOOKUP(B40,MTDC[Description],MTDC[Include in MTDC],"N/A",0)="MTDC","Included","Excluded")))) -> Included | E40: =IF(ISNUMBER(SUMPRODUCT(--ISNUMBER(rngCFCSA2)*(budA2CSBP1)*(budA2CSSF="Salary")*(rngCFCSA2=$A$40)))=TRUE,SUMPRODUCT(--ISNUMBER(rngCFCSA2)*(budA2CSBP1)*(budA2CSSF="Salary")*(rngCFCSA2=$A$40)),0) -> 0 | H40: =IF(ISNUMBER(SUMPRODUCT(--ISNUMBER(rngCFCSA2)*(budA2CSBP2)*(budA2CSSF="Salary")*(rngCFCSA2=$A$40)))=TRUE,SUMPRODUCT(--ISNUMBER(rngCFCSA2)*(budA2CSBP2)*(budA2CSSF="Salary")*(rngCFCSA2=$A$40)),0) -> 0 | K40: =IF(ISNUMBER(SUMPRODUCT(--ISNUMBER(rngCFCSA2)*(budA2CSBP3)*(budA2CSSF="Salary")*(rngCFCSA2=$A$40)))=TRUE,SUMPRODUCT(--ISNUMBER(rngCFCSA2)*(budA2CSBP3)*(budA2CSSF="Salary")*(rngCFCSA2=$A$40)),0) -> 0 | N40: =IF(ISNUMBER(SUMPRODUCT(--ISNUMBER(rngCFCSA2)*(budA2CSBP4)*(budA2CSSF="Salary")*(rngCFCSA2=$A$40)))=TRUE,SUMPRODUCT(--ISNUMBER(rngCFCSA2)*(budA2CSBP4)*(budA2CSSF="Salary")*(rngCFCSA2=$A$40)),0) -> 0 | Q40: =IF(ISNUMBER(SUMPRODUCT(--ISNUMBER(rngCFCSA2)*(budA2CSBP5)*(budA2CSSF="Salary")*(rngCFCSA2=$A$40)))=TRUE,SUMPRODUCT(--ISNUMBER(rngCFCSA2)*(budA2CSBP5)*(budA2CSSF="Salary")*(rngCFCSA2=$A$40)),0) -> 0 | T40: =IF(ISNUMBER(SUMPRODUCT(--ISNUMBER(rngCFCSA2)*(budA2CSBP6)*(budA2CSSF="Salary")*(rngCFCSA2=$A$40)))=TRUE,SUMPRODUCT(--ISNUMBER(rngCFCSA2)*(budA2CSBP6)*(budA2CSSF="Salary")*(rngCFCSA2=$A$40)),0) -> 0 | W40: =IF(ISNUMBER(SUMPRODUCT(--ISNUMBER(rngCFCSA2)*(budA2CSBP7)*(budA2CSSF="Salary")*(rngCFCSA2=$A$40)))=TRUE,SUMPRODUCT(--ISNUMBER(rngCFCSA2)*(budA2CSBP7)*(budA2CSSF="Salary")*(rngCFCSA2=$A$40)),0) -> 0 | Z40: =IF(ISNUMBER(SUMPRODUCT(--ISNUMBER(rngCFCSA2)*(budA2CSBP8)*(budA2CSSF="Salary")*(rngCFCSA2=$A$40)))=TRUE,SUMPRODUCT(--ISNUMBER(rngCFCSA2)*(budA2CSBP8)*(budA2CSSF="Salary")*(rngCFCSA2=$A$40)),0) -> 0 | AC40: =IF(ISNUMBER(SUMPRODUCT(--ISNUMBER(rngCFCSA2)*(budA2CSBP9)*(budA2CSSF="Salary")*(rngCFCSA2=$A$40)))=TRUE,SUMPRODUCT(--ISNUMBER(rngCFCSA2)*(budA2CSBP9)*(budA2CSSF="Salary")*(rngCFCSA2=$A$40)),0) -> 0 | AF40: =IF(ISNUMBER(SUMPRODUCT(--ISNUMBER(rngCFCSA2)*(budA2CSBP10)*(budA2CSSF="Salary")*(rngCFCSA2=$A$40)))=TRUE,SUMPRODUCT(--ISNUMBER(rngCFCSA2)*(budA2CSBP10)*(budA2CSSF="Salary")*(rngCFCSA2=$A$40)),0) -> 0 | AI40: 0
A41: =_xlfn.XLOOKUP(B41,MTDC[Description],MTDC[VALUE],"N/A",0) -> 50030 | B41: S&W Tenure Track Faculty | D41: =IF(AND(B41="Make a Selection",OR(sFABCCS=1,sFABCCS=2,sFABCCS=3)),"",IF(sFABCCS=2,"Included",IF(sFABCCS=3,"Custom F&A Amt",IF(_xlfn.XLOOKUP(B41,MTDC[Description],MTDC[Include in MTDC],"N/A",0)="MTDC","Included","Excluded")))) -> Included | E41: =IF(ISNUMBER(SUMPRODUCT(--ISNUMBER(rngCFCSA2)*(budA2CSBP1)*(budA2CSSF="Salary")*(rngCFCSA2=$A$41)))=TRUE,SUMPRODUCT(--ISNUMBER(rngCFCSA2)*(budA2CSBP1)*(budA2CSSF="Salary")*(rngCFCSA2=$A$41)),0) -> 0 | H41: =IF(ISNUMBER(SUMPRODUCT(--ISNUMBER(rngCFCSA2)*(budA2CSBP2)*(budA2CSSF="Salary")*(rngCFCSA2=$A$41)))=TRUE,SUMPRODUCT(--ISNUMBER(rngCFCSA2)*(budA2CSBP2)*(budA2CSSF="Salary")*(rngCFCSA2=$A$41)),0) -> 0 | K41: =IF(ISNUMBER(SUMPRODUCT(--ISNUMBER(rngCFCSA2)*(budA2CSBP3)*(budA2CSSF="Salary")*(rngCFCSA2=$A$41)))=TRUE,SUMPRODUCT(--ISNUMBER(rngCFCSA2)*(budA2CSBP3)*(budA2CSSF="Salary")*(rngCFCSA2=$A$41)),0) -> 0 | N41: =IF(ISNUMBER(SUMPRODUCT(--ISNUMBER(rngCFCSA2)*(budA2CSBP4)*(budA2CSSF="Salary")*(rngCFCSA2=$A$41)))=TRUE,SUMPRODUCT(--ISNUMBER(rngCFCSA2)*(budA2CSBP4)*(budA2CSSF="Salary")*(rngCFCSA2=$A$41)),0) -> 0 | Q41: =IF(ISNUMBER(SUMPRODUCT(--ISNUMBER(rngCFCSA2)*(budA2CSBP5)*(budA2CSSF="Salary")*(rngCFCSA2=$A$41)))=TRUE,SUMPRODUCT(--ISNUMBER(rngCFCSA2)*(budA2CSBP5)*(budA2CSSF="Salary")*(rngCFCSA2=$A$41)),0) -> 0 | T41: =IF(ISNUMBER(SUMPRODUCT(--ISNUMBER(rngCFCSA2)*(budA2CSBP6)*(budA2CSSF="Salary")*(rngCFCSA2=$A$41)))=TRUE,SUMPRODUCT(--ISNUMBER(rngCFCSA2)*(budA2CSBP6)*(budA2CSSF="Salary")*(rngCFCSA2=$A$41)),0) -> 0 | W41: =IF(ISNUMBER(SUMPRODUCT(--ISNUMBER(rngCFCSA2)*(budA2CSBP7)*(budA2CSSF="Salary")*(rngCFCSA2=$A$41)))=TRUE,SUMPRODUCT(--ISNUMBER(rngCFCSA2)*(budA2CSBP7)*(budA2CSSF="Salary")*(rngCFCSA2=$A$41)),0) -> 0 | Z41: =IF(ISNUMBER(SUMPRODUCT(--ISNUMBER(rngCFCSA2)*(budA2CSBP8)*(budA2CSSF="Salary")*(rngCFCSA2=$A$41)))=TRUE,SUMPRODUCT(--ISNUMBER(rngCFCSA2)*(budA2CSBP8)*(budA2CSSF="Salary")*(rngCFCSA2=$A$41)),0) -> 0 | AC41: =IF(ISNUMBER(SUMPRODUCT(--ISNUMBER(rngCFCSA2)*(budA2CSBP9)*(budA2CSSF="Salary")*(rngCFCSA2=$A$41)))=TRUE,SUMPRODUCT(--ISNUMBER(rngCFCSA2)*(budA2CSBP9)*(budA2CSSF="Salary")*(rngCFCSA2=$A$41)),0) -> 0 | AF41: =IF(ISNUMBER(SUMPRODUCT(--ISNUMBER(rngCFCSA2)*(budA2CSBP10)*(budA2CSSF="Salary")*(rngCFCSA2=$A$41)))=TRUE,SUMPRODUCT(--ISNUMBER(rngCFCSA2)*(budA2CSBP10)*(budA2CSSF="Salary")*(rngCFCSA2=$A$41)),0) -> 0 | AI41: 0
A42: =_xlfn.XLOOKUP(B42,MTDC[Description],MTDC[VALUE],"N/A",0) -> 50040 | B42: S&W NonTenured Faculty | D42: =IF(AND(B42="Make a Selection",OR(sFABCCS=1,sFABCCS=2,sFABCCS=3)),"",IF(sFABCCS=2,"Included",IF(sFABCCS=3,"Custom F&A Amt",IF(_xlfn.XLOOKUP(B42,MTDC[Description],MTDC[Include in MTDC],"N/A",0)="MTDC","Included","Excluded")))) -> Included | E42: =IF(ISNUMBER(SUMPRODUCT(--ISNUMBER(rngCFCSA2)*(budA2CSBP1)*(budA2CSSF="Salary")*(rngCFCSA2=$A$42)))=TRUE,SUMPRODUCT(--ISNUMBER(rngCFCSA2)*(budA2CSBP1)*(budA2CSSF="Salary")*(rngCFCSA2=$A$42)),0) -> 0 | H42: =IF(ISNUMBER(SUMPRODUCT(--ISNUMBER(rngCFCSA2)*(budA2CSBP2)*(budA2CSSF="Salary")*(rngCFCSA2=$A$42)))=TRUE,SUMPRODUCT(--ISNUMBER(rngCFCSA2)*(budA2CSBP2)*(budA2CSSF="Salary")*(rngCFCSA2=$A$42)),0) -> 0 | K42: =IF(ISNUMBER(SUMPRODUCT(--ISNUMBER(rngCFCSA2)*(budA2CSBP3)*(budA2CSSF="Salary")*(rngCFCSA2=$A$42)))=TRUE,SUMPRODUCT(--ISNUMBER(rngCFCSA2)*(budA2CSBP3)*(budA2CSSF="Salary")*(rngCFCSA2=$A$42)),0) -> 0 | N42: =IF(ISNUMBER(SUMPRODUCT(--ISNUMBER(rngCFCSA2)*(budA2CSBP4)*(budA2CSSF="Salary")*(rngCFCSA2=$A$42)))=TRUE,SUMPRODUCT(--ISNUMBER(rngCFCSA2)*(budA2CSBP4)*(budA2CSSF="Salary")*(rngCFCSA2=$A$42)),0) -> 0 | Q42: =IF(ISNUMBER(SUMPRODUCT(--ISNUMBER(rngCFCSA2)*(budA2CSBP5)*(budA2CSSF="Salary")*(rngCFCSA2=$A$42)))=TRUE,SUMPRODUCT(--ISNUMBER(rngCFCSA2)*(budA2CSBP5)*(budA2CSSF="Salary")*(rngCFCSA2=$A$42)),0) -> 0 | T42: =IF(ISNUMBER(SUMPRODUCT(--ISNUMBER(rngCFCSA2)*(budA2CSBP6)*(budA2CSSF="Salary")*(rngCFCSA2=$A$42)))=TRUE,SUMPRODUCT(--ISNUMBER(rngCFCSA2)*(budA2CSBP6)*(budA2CSSF="Salary")*(rngCFCSA2=$A$42)),0) -> 0 | W42: =IF(ISNUMBER(SUMPRODUCT(--ISNUMBER(rngCFCSA2)*(budA2CSBP7)*(budA2CSSF="Salary")*(rngCFCSA2=$A$42)))=TRUE,SUMPRODUCT(--ISNUMBER(rngCFCSA2)*(budA2CSBP7)*(budA2CSSF="Salary")*(rngCFCSA2=$A$42)),0) -> 0 | Z42: =IF(ISNUMBER(SUMPRODUCT(--ISNUMBER(rngCFCSA2)*(budA2CSBP8)*(budA2CSSF="Salary")*(rngCFCSA2=$A$42)))=TRUE,SUMPRODUCT(--ISNUMBER(rngCFCSA2)*(budA2CSBP8)*(budA2CSSF="Salary")*(rngCFCSA2=$A$42)),0) -> 0 | AC42: =IF(ISNUMBER(SUMPRODUCT(--ISNUMBER(rngCFCSA2)*(budA2CSBP9)*(budA2CSSF="Salary")*(rngCFCSA2=$A$42)))=TRUE,SUMPRODUCT(--ISNUMBER(rngCFCSA2)*(budA2CSBP9)*(budA2CSSF="Salary")*(rngCFCSA2=$A$42)),0) -> 0 | AF42: =IF(ISNUMBER(SUMPRODUCT(--ISNUMBER(rngCFCSA2)*(budA2CSBP10)*(budA2CSSF="Salary")*(rngCFCSA2=$A$42)))=TRUE,SUMPRODUCT(--ISNUMBER(rngCFCSA2)*(budA2CSBP10)*(budA2CSSF="Salary")*(rngCFCSA2=$A$42)),0) -> 0 | AI42: 0
A43: =_xlfn.XLOOKUP(B43,MTDC[Description],MTDC[VALUE],"N/A",0) -> 50050 | B43: S&W TA & GA | D43: =IF(AND(B43="Make a Selection",OR(sFABCCS=1,sFABCCS=2,sFABCCS=3)),"",IF(sFABCCS=2,"Included",IF(sFABCCS=3,"Custom F&A Amt",IF(_xlfn.XLOOKUP(B43,MTDC[Description],MTDC[Include in MTDC],"N/A",0)="MTDC","Included","Excluded")))) -> Included | E43: =IF(ISNUMBER(SUMPRODUCT(--ISNUMBER(rngCFCSA2)*(budA2CSBP1)*(budA2CSSF="Salary")*(rngCFCSA2=$A$43)))=TRUE,SUMPRODUCT(--ISNUMBER(rngCFCSA2)*(budA2CSBP1)*(budA2CSSF="Salary")*(rngCFCSA2=$A$43)),0) -> 0 | H43: =IF(ISNUMBER(SUMPRODUCT(--ISNUMBER(rngCFCSA2)*(budA2CSBP2)*(budA2CSSF="Salary")*(rngCFCSA2=$A$43)))=TRUE,SUMPRODUCT(--ISNUMBER(rngCFCSA2)*(budA2CSBP2)*(budA2CSSF="Salary")*(rngCFCSA2=$A$43)),0) -> 0 | K43: =IF(ISNUMBER(SUMPRODUCT(--ISNUMBER(rngCFCSA2)*(budA2CSBP3)*(budA2CSSF="Salary")*(rngCFCSA2=$A$43)))=TRUE,SUMPRODUCT(--ISNUMBER(rngCFCSA2)*(budA2CSBP3)*(budA2CSSF="Salary")*(rngCFCSA2=$A$43)),0) -> 0 | N43: =IF(ISNUMBER(SUMPRODUCT(--ISNUMBER(rngCFCSA2)*(budA2CSBP4)*(budA2CSSF="Salary")*(rngCFCSA2=$A$43)))=TRUE,SUMPRODUCT(--ISNUMBER(rngCFCSA2)*(budA2CSBP4)*(budA2CSSF="Salary")*(rngCFCSA2=$A$43)),0) -> 0 | Q43: =IF(ISNUMBER(SUMPRODUCT(--ISNUMBER(rngCFCSA2)*(budA2CSBP5)*(budA2CSSF="Salary")*(rngCFCSA2=$A$43)))=TRUE,SUMPRODUCT(--ISNUMBER(rngCFCSA2)*(budA2CSBP5)*(budA2CSSF="Salary")*(rngCFCSA2=$A$43)),0) -> 0 | T43: =IF(ISNUMBER(SUMPRODUCT(--ISNUMBER(rngCFCSA2)*(budA2CSBP6)*(budA2CSSF="Salary")*(rngCFCSA2=$A$43)))=TRUE,SUMPRODUCT(--ISNUMBER(rngCFCSA2)*(budA2CSBP6)*(budA2CSSF="Salary")*(rngCFCSA2=$A$43)),0) -> 0 | W43: =IF(ISNUMBER(SUMPRODUCT(--ISNUMBER(rngCFCSA2)*(budA2CSBP7)*(budA2CSSF="Salary")*(rngCFCSA2=$A$43)))=TRUE,SUMPRODUCT(--ISNUMBER(rngCFCSA2)*(budA2CSBP7)*(budA2CSSF="Salary")*(rngCFCSA2=$A$43)),0) -> 0 | Z43: =IF(ISNUMBER(SUMPRODUCT(--ISNUMBER(rngCFCSA2)*(budA2CSBP8)*(budA2CSSF="Salary")*(rngCFCSA2=$A$43)))=TRUE,SUMPRODUCT(--ISNUMBER(rngCFCSA2)*(budA2CSBP8)*(budA2CSSF="Salary")*(rngCFCSA2=$A$43)),0) -> 0 | AC43: =IF(ISNUMBER(SUMPRODUCT(--ISNUMBER(rngCFCSA2)*(budA2CSBP9)*(budA2CSSF="Salary")*(rngCFCSA2=$A$43)))=TRUE,SUMPRODUCT(--ISNUMBER(rngCFCSA2)*(budA2CSBP9)*(budA2CSSF="Salary")*(rngCFCSA2=$A$43)),0) -> 0 | AF43: =IF(ISNUMBER(SUMPRODUCT(--ISNUMBER(rngCFCSA2)*(budA2CSBP10)*(budA2CSSF="Salary")*(rngCFCSA2=$A$43)))=TRUE,SUMPRODUCT(--ISNUMBER(rngCFCSA2)*(budA2CSBP10)*(budA2CSSF="Salary")*(rngCFCSA2=$A$43)),0) -> 0 | AI43: 0
A44: =_xlfn.XLOOKUP(B44,MTDC[Description],MTDC[VALUE],"N/A",0) -> 50060 | B44: S&W Post Doctorate & Associates | D44: =IF(AND(B44="Make a Selection",OR(sFABCCS=1,sFABCCS=2,sFABCCS=3)),"",IF(sFABCCS=2,"Included",IF(sFABCCS=3,"Custom F&A Amt",IF(_xlfn.XLOOKUP(B44,MTDC[Description],MTDC[Include in MTDC],"N/A",0)="MTDC","Included","Excluded")))) -> Included | E44: =IF(ISNUMBER(SUMPRODUCT(--ISNUMBER(rngCFCSA2)*(budA2CSBP1)*(budA2CSSF="Salary")*(rngCFCSA2=$A$44)))=TRUE,SUMPRODUCT(--ISNUMBER(rngCFCSA2)*(budA2CSBP1)*(budA2CSSF="Salary")*(rngCFCSA2=$A$44)),0) -> 0 | H44: =IF(ISNUMBER(SUMPRODUCT(--ISNUMBER(rngCFCSA2)*(budA2CSBP2)*(budA2CSSF="Salary")*(rngCFCSA2=$A$44)))=TRUE,SUMPRODUCT(--ISNUMBER(rngCFCSA2)*(budA2CSBP2)*(budA2CSSF="Salary")*(rngCFCSA2=$A$44)),0) -> 0 | K44: =IF(ISNUMBER(SUMPRODUCT(--ISNUMBER(rngCFCSA2)*(budA2CSBP3)*(budA2CSSF="Salary")*(rngCFCSA2=$A$44)))=TRUE,SUMPRODUCT(--ISNUMBER(rngCFCSA2)*(budA2CSBP3)*(budA2CSSF="Salary")*(rngCFCSA2=$A$44)),0) -> 0 | N44: =IF(ISNUMBER(SUMPRODUCT(--ISNUMBER(rngCFCSA2)*(budA2CSBP4)*(budA2CSSF="Salary")*(rngCFCSA2=$A$44)))=TRUE,SUMPRODUCT(--ISNUMBER(rngCFCSA2)*(budA2CSBP4)*(budA2CSSF="Salary")*(rngCFCSA2=$A$44)),0) -> 0 | Q44: =IF(ISNUMBER(SUMPRODUCT(--ISNUMBER(rngCFCSA2)*(budA2CSBP5)*(budA2CSSF="Salary")*(rngCFCSA2=$A$44)))=TRUE,SUMPRODUCT(--ISNUMBER(rngCFCSA2)*(budA2CSBP5)*(budA2CSSF="Salary")*(rngCFCSA2=$A$44)),0) -> 0 | T44: =IF(ISNUMBER(SUMPRODUCT(--ISNUMBER(rngCFCSA2)*(budA2CSBP6)*(budA2CSSF="Salary")*(rngCFCSA2=$A$44)))=TRUE,SUMPRODUCT(--ISNUMBER(rngCFCSA2)*(budA2CSBP6)*(budA2CSSF="Salary")*(rngCFCSA2=$A$44)),0) -> 0 | W44: =IF(ISNUMBER(SUMPRODUCT(--ISNUMBER(rngCFCSA2)*(budA2CSBP7)*(budA2CSSF="Salary")*(rngCFCSA2=$A$44)))=TRUE,SUMPRODUCT(--ISNUMBER(rngCFCSA2)*(budA2CSBP7)*(budA2CSSF="Salary")*(rngCFCSA2=$A$44)),0) -> 0 | Z44: =IF(ISNUMBER(SUMPRODUCT(--ISNUMBER(rngCFCSA2)*(budA2CSBP8)*(budA2CSSF="Salary")*(rngCFCSA2=$A$44)))=TRUE,SUMPRODUCT(--ISNUMBER(rngCFCSA2)*(budA2CSBP8)*(budA2CSSF="Salary")*(rngCFCSA2=$A$44)),0) -> 0 | AC44: =IF(ISNUMBER(SUMPRODUCT(--ISNUMBER(rngCFCSA2)*(budA2CSBP9)*(budA2CSSF="Salary")*(rngCFCSA2=$A$44)))=TRUE,SUMPRODUCT(--ISNUMBER(rngCFCSA2)*(budA2CSBP9)*(budA2CSSF="Salary")*(rngCFCSA2=$A$44)),0) -> 0 | AF44: =IF(ISNUMBER(SUMPRODUCT(--ISNUMBER(rngCFCSA2)*(budA2CSBP10)*(budA2CSSF="Salary")*(rngCFCSA2=$A$44)))=TRUE,SUMPRODUCT(--ISNUMBER(rngCFCSA2)*(budA2CSBP10)*(budA2CSSF="Salary")*(rngCFCSA2=$A$44)),0) -> 0 | AI44: 0
A45: =_xlfn.XLOOKUP(B45,MTDC[Description],MTDC[VALUE],"N/A",0) -> 50070 | B45: S&W Housestaff | D45: =IF(AND(B45="Make a Selection",OR(sFABCCS=1,sFABCCS=2,sFABCCS=3)),"",IF(sFABCCS=2,"Included",IF(sFABCCS=3,"Custom F&A Amt",IF(_xlfn.XLOOKUP(B45,MTDC[Description],MTDC[Include in MTDC],"N/A",0)="MTDC","Included","Excluded")))) -> Included | E45: =IF(ISNUMBER(SUMPRODUCT(--ISNUMBER(rngCFCSA2)*(budA2CSBP1)*(budA2CSSF="Salary")*(rngCFCSA2=$A$45)))=TRUE,SUMPRODUCT(--ISNUMBER(rngCFCSA2)*(budA2CSBP1)*(budA2CSSF="Salary")*(rngCFCSA2=$A$45)),0) -> 0 | H45: =IF(ISNUMBER(SUMPRODUCT(--ISNUMBER(rngCFCSA2)*(budA2CSBP2)*(budA2CSSF="Salary")*(rngCFCSA2=$A$45)))=TRUE,SUMPRODUCT(--ISNUMBER(rngCFCSA2)*(budA2CSBP2)*(budA2CSSF="Salary")*(rngCFCSA2=$A$45)),0) -> 0 | K45: =IF(ISNUMBER(SUMPRODUCT(--ISNUMBER(rngCFCSA2)*(budA2CSBP3)*(budA2CSSF="Salary")*(rngCFCSA2=$A$45)))=TRUE,SUMPRODUCT(--ISNUMBER(rngCFCSA2)*(budA2CSBP3)*(budA2CSSF="Salary")*(rngCFCSA2=$A$45)),0) -> 0 | N45: =IF(ISNUMBER(SUMPRODUCT(--ISNUMBER(rngCFCSA2)*(budA2CSBP4)*(budA2CSSF="Salary")*(rngCFCSA2=$A$45)))=TRUE,SUMPRODUCT(--ISNUMBER(rngCFCSA2)*(budA2CSBP4)*(budA2CSSF="Salary")*(rngCFCSA2=$A$45)),0) -> 0 | Q45: =IF(ISNUMBER(SUMPRODUCT(--ISNUMBER(rngCFCSA2)*(budA2CSBP5)*(budA2CSSF="Salary")*(rngCFCSA2=$A$45)))=TRUE,SUMPRODUCT(--ISNUMBER(rngCFCSA2)*(budA2CSBP5)*(budA2CSSF="Salary")*(rngCFCSA2=$A$45)),0) -> 0 | T45: =IF(ISNUMBER(SUMPRODUCT(--ISNUMBER(rngCFCSA2)*(budA2CSBP6)*(budA2CSSF="Salary")*(rngCFCSA2=$A$45)))=TRUE,SUMPRODUCT(--ISNUMBER(rngCFCSA2)*(budA2CSBP6)*(budA2CSSF="Salary")*(rngCFCSA2=$A$45)),0) -> 0 | W45: =IF(ISNUMBER(SUMPRODUCT(--ISNUMBER(rngCFCSA2)*(budA2CSBP7)*(budA2CSSF="Salary")*(rngCFCSA2=$A$45)))=TRUE,SUMPRODUCT(--ISNUMBER(rngCFCSA2)*(budA2CSBP7)*(budA2CSSF="Salary")*(rngCFCSA2=$A$45)),0) -> 0 | Z45: =IF(ISNUMBER(SUMPRODUCT(--ISNUMBER(rngCFCSA2)*(budA2CSBP8)*(budA2CSSF="Salary")*(rngCFCSA2=$A$45)))=TRUE,SUMPRODUCT(--ISNUMBER(rngCFCSA2)*(budA2CSBP8)*(budA2CSSF="Salary")*(rngCFCSA2=$A$45)),0) -> 0 | AC45: =IF(ISNUMBER(SUMPRODUCT(--ISNUMBER(rngCFCSA2)*(budA2CSBP9)*(budA2CSSF="Salary")*(rngCFCSA2=$A$45)))=TRUE,SUMPRODUCT(--ISNUMBER(rngCFCSA2)*(budA2CSBP9)*(budA2CSSF="Salary")*(rngCFCSA2=$A$45)),0) -> 0 | AF45: =IF(ISNUMBER(SUMPRODUCT(--ISNUMBER(rngCFCSA2)*(budA2CSBP10)*(budA2CSSF="Salary")*(rngCFCSA2=$A$45)))=TRUE,SUMPRODUCT(--ISNUMBER(rngCFCSA2)*(budA2CSBP10)*(budA2CSSF="Salary")*(rngCFCSA2=$A$45)),0) -> 0 | AI45: 0
A46: =_xlfn.XLOOKUP(B46,MTDC[Description],MTDC[VALUE],"N/A",0) -> 50080 | B46: S&W Coadjutant NonInstructional | D46: =IF(AND(B46="Make a Selection",OR(sFABCCS=1,sFABCCS=2,sFABCCS=3)),"",IF(sFABCCS=2,"Included",IF(sFABCCS=3,"Custom F&A Amt",IF(_xlfn.XLOOKUP(B46,MTDC[Description],MTDC[Include in MTDC],"N/A",0)="MTDC","Included","Excluded")))) -> Included | E46: =IF(ISNUMBER(SUMPRODUCT(--ISNUMBER(rngCFCSA2)*(budA2CSBP1)*(budA2CSSF="Salary")*(rngCFCSA2=$A$46)))=TRUE,SUMPRODUCT(--ISNUMBER(rngCFCSA2)*(budA2CSBP1)*(budA2CSSF="Salary")*(rngCFCSA2=$A$46)),0) -> 0 | H46: =IF(ISNUMBER(SUMPRODUCT(--ISNUMBER(rngCFCSA2)*(budA2CSBP2)*(budA2CSSF="Salary")*(rngCFCSA2=$A$46)))=TRUE,SUMPRODUCT(--ISNUMBER(rngCFCSA2)*(budA2CSBP2)*(budA2CSSF="Salary")*(rngCFCSA2=$A$46)),0) -> 0 | K46: =IF(ISNUMBER(SUMPRODUCT(--ISNUMBER(rngCFCSA2)*(budA2CSBP3)*(budA2CSSF="Salary")*(rngCFCSA2=$A$46)))=TRUE,SUMPRODUCT(--ISNUMBER(rngCFCSA2)*(budA2CSBP3)*(budA2CSSF="Salary")*(rngCFCSA2=$A$46)),0) -> 0 | N46: =IF(ISNUMBER(SUMPRODUCT(--ISNUMBER(rngCFCSA2)*(budA2CSBP4)*(budA2CSSF="Salary")*(rngCFCSA2=$A$46)))=TRUE,SUMPRODUCT(--ISNUMBER(rngCFCSA2)*(budA2CSBP4)*(budA2CSSF="Salary")*(rngCFCSA2=$A$46)),0) -> 0 | Q46: =IF(ISNUMBER(SUMPRODUCT(--ISNUMBER(rngCFCSA2)*(budA2CSBP5)*(budA2CSSF="Salary")*(rngCFCSA2=$A$46)))=TRUE,SUMPRODUCT(--ISNUMBER(rngCFCSA2)*(budA2CSBP5)*(budA2CSSF="Salary")*(rngCFCSA2=$A$46)),0) -> 0 | T46: =IF(ISNUMBER(SUMPRODUCT(--ISNUMBER(rngCFCSA2)*(budA2CSBP6)*(budA2CSSF="Salary")*(rngCFCSA2=$A$46)))=TRUE,SUMPRODUCT(--ISNUMBER(rngCFCSA2)*(budA2CSBP6)*(budA2CSSF="Salary")*(rngCFCSA2=$A$46)),0) -> 0 | W46: =IF(ISNUMBER(SUMPRODUCT(--ISNUMBER(rngCFCSA2)*(budA2CSBP7)*(budA2CSSF="Salary")*(rngCFCSA2=$A$46)))=TRUE,SUMPRODUCT(--ISNUMBER(rngCFCSA2)*(budA2CSBP7)*(budA2CSSF="Salary")*(rngCFCSA2=$A$46)),0) -> 0 | Z46: =IF(ISNUMBER(SUMPRODUCT(--ISNUMBER(rngCFCSA2)*(budA2CSBP8)*(budA2CSSF="Salary")*(rngCFCSA2=$A$46)))=TRUE,SUMPRODUCT(--ISNUMBER(rngCFCSA2)*(budA2CSBP8)*(budA2CSSF="Salary")*(rngCFCSA2=$A$46)),0) -> 0 | AC46: =IF(ISNUMBER(SUMPRODUCT(--ISNUMBER(rngCFCSA2)*(budA2CSBP9)*(budA2CSSF="Salary")*(rngCFCSA2=$A$46)))=TRUE,SUMPRODUCT(--ISNUMBER(rngCFCSA2)*(budA2CSBP9)*(budA2CSSF="Salary")*(rngCFCSA2=$A$46)),0) -> 0 | AF46: =IF(ISNUMBER(SUMPRODUCT(--ISNUMBER(rngCFCSA2)*(budA2CSBP10)*(budA2CSSF="Salary")*(rngCFCSA2=$A$46)))=TRUE,SUMPRODUCT(--ISNUMBER(rngCFCSA2)*(budA2CSBP10)*(budA2CSSF="Salary")*(rngCFCSA2=$A$46)),0) -> 0 | AI46: 0
A47: =_xlfn.XLOOKUP(B47,MTDC[Description],MTDC[VALUE],"N/A",0) -> 50081 | B47: S&W Coadjutant PTL Instructional | D47: =IF(AND(B47="Make a Selection",OR(sFABCCS=1,sFABCCS=2,sFABCCS=3)),"",IF(sFABCCS=2,"Included",IF(sFABCCS=3,"Custom F&A Amt",IF(_xlfn.XLOOKUP(B47,MTDC[Description],MTDC[Include in MTDC],"N/A",0)="MTDC","Included","Excluded")))) -> Included | E47: =IF(ISNUMBER(SUMPRODUCT(--ISNUMBER(rngCFCSA2)*(budA2CSBP1)*(budA2CSSF="Salary")*(rngCFCSA2=$A$47)))=TRUE,SUMPRODUCT(--ISNUMBER(rngCFCSA2)*(budA2CSBP1)*(budA2CSSF="Salary")*(rngCFCSA2=$A$47)),0) -> 0 | H47: =IF(ISNUMBER(SUMPRODUCT(--ISNUMBER(rngCFCSA2)*(budA2CSBP2)*(budA2CSSF="Salary")*(rngCFCSA2=$A$47)))=TRUE,SUMPRODUCT(--ISNUMBER(rngCFCSA2)*(budA2CSBP2)*(budA2CSSF="Salary")*(rngCFCSA2=$A$47)),0) -> 0 | K47: =IF(ISNUMBER(SUMPRODUCT(--ISNUMBER(rngCFCSA2)*(budA2CSBP3)*(budA2CSSF="Salary")*(rngCFCSA2=$A$47)))=TRUE,SUMPRODUCT(--ISNUMBER(rngCFCSA2)*(budA2CSBP3)*(budA2CSSF="Salary")*(rngCFCSA2=$A$47)),0) -> 0 | N47: =IF(ISNUMBER(SUMPRODUCT(--ISNUMBER(rngCFCSA2)*(budA2CSBP4)*(budA2CSSF="Salary")*(rngCFCSA2=$A$47)))=TRUE,SUMPRODUCT(--ISNUMBER(rngCFCSA2)*(budA2CSBP4)*(budA2CSSF="Salary")*(rngCFCSA2=$A$47)),0) -> 0 | Q47: =IF(ISNUMBER(SUMPRODUCT(--ISNUMBER(rngCFCSA2)*(budA2CSBP5)*(budA2CSSF="Salary")*(rngCFCSA2=$A$47)))=TRUE,SUMPRODUCT(--ISNUMBER(rngCFCSA2)*(budA2CSBP5)*(budA2CSSF="Salary")*(rngCFCSA2=$A$47)),0) -> 0 | T47: =IF(ISNUMBER(SUMPRODUCT(--ISNUMBER(rngCFCSA2)*(budA2CSBP6)*(budA2CSSF="Salary")*(rngCFCSA2=$A$47)))=TRUE,SUMPRODUCT(--ISNUMBER(rngCFCSA2)*(budA2CSBP6)*(budA2CSSF="Salary")*(rngCFCSA2=$A$47)),0) -> 0 | W47: =IF(ISNUMBER(SUMPRODUCT(--ISNUMBER(rngCFCSA2)*(budA2CSBP7)*(budA2CSSF="Salary")*(rngCFCSA2=$A$47)))=TRUE,SUMPRODUCT(--ISNUMBER(rngCFCSA2)*(budA2CSBP7)*(budA2CSSF="Salary")*(rngCFCSA2=$A$47)),0) -> 0 | Z47: =IF(ISNUMBER(SUMPRODUCT(--ISNUMBER(rngCFCSA2)*(budA2CSBP8)*(budA2CSSF="Salary")*(rngCFCSA2=$A$47)))=TRUE,SUMPRODUCT(--ISNUMBER(rngCFCSA2)*(budA2CSBP8)*(budA2CSSF="Salary")*(rngCFCSA2=$A$47)),0) -> 0 | AC47: =IF(ISNUMBER(SUMPRODUCT(--ISNUMBER(rngCFCSA2)*(budA2CSBP9)*(budA2CSSF="Salary")*(rngCFCSA2=$A$47)))=TRUE,SUMPRODUCT(--ISNUMBER(rngCFCSA2)*(budA2CSBP9)*(budA2CSSF="Salary")*(rngCFCSA2=$A$47)),0) -> 0 | AF47: =IF(ISNUMBER(SUMPRODUCT(--ISNUMBER(rngCFCSA2)*(budA2CSBP10)*(budA2CSSF="Salary")*(rngCFCSA2=$A$47)))=TRUE,SUMPRODUCT(--ISNUMBER(rngCFCSA2)*(budA2CSBP10)*(budA2CSSF="Salary")*(rngCFCSA2=$A$47)),0) -> 0 | AI47: 0
A48: =_xlfn.XLOOKUP(B48,MTDC[Description],MTDC[VALUE],"N/A",0) -> 50090 | B48: S&W Student Employment | D48: =IF(AND(B48="Make a Selection",OR(sFABCCS=1,sFABCCS=2,sFABCCS=3)),"",IF(sFABCCS=2,"Included",IF(sFABCCS=3,"Custom F&A Amt",IF(_xlfn.XLOOKUP(B48,MTDC[Description],MTDC[Include in MTDC],"N/A",0)="MTDC","Included","Excluded")))) -> Included | E48: =IF(ISNUMBER(SUMPRODUCT(--ISNUMBER(rngCFCSA2)*(budA2CSBP1)*(budA2CSSF="Salary")*(rngCFCSA2=$A$48)))=TRUE,SUMPRODUCT(--ISNUMBER(rngCFCSA2)*(budA2CSBP1)*(budA2CSSF="Salary")*(rngCFCSA2=$A$48)),0) -> 0 | H48: =IF(ISNUMBER(SUMPRODUCT(--ISNUMBER(rngCFCSA2)*(budA2CSBP2)*(budA2CSSF="Salary")*(rngCFCSA2=$A$48)))=TRUE,SUMPRODUCT(--ISNUMBER(rngCFCSA2)*(budA2CSBP2)*(budA2CSSF="Salary")*(rngCFCSA2=$A$48)),0) -> 0 | K48: =IF(ISNUMBER(SUMPRODUCT(--ISNUMBER(rngCFCSA2)*(budA2CSBP3)*(budA2CSSF="Salary")*(rngCFCSA2=$A$48)))=TRUE,SUMPRODUCT(--ISNUMBER(rngCFCSA2)*(budA2CSBP3)*(budA2CSSF="Salary")*(rngCFCSA2=$A$48)),0) -> 0 | N48: =IF(ISNUMBER(SUMPRODUCT(--ISNUMBER(rngCFCSA2)*(budA2CSBP4)*(budA2CSSF="Salary")*(rngCFCSA2=$A$48)))=TRUE,SUMPRODUCT(--ISNUMBER(rngCFCSA2)*(budA2CSBP4)*(budA2CSSF="Salary")*(rngCFCSA2=$A$48)),0) -> 0 | Q48: =IF(ISNUMBER(SUMPRODUCT(--ISNUMBER(rngCFCSA2)*(budA2CSBP5)*(budA2CSSF="Salary")*(rngCFCSA2=$A$48)))=TRUE,SUMPRODUCT(--ISNUMBER(rngCFCSA2)*(budA2CSBP5)*(budA2CSSF="Salary")*(rngCFCSA2=$A$48)),0) -> 0 | T48: =IF(ISNUMBER(SUMPRODUCT(--ISNUMBER(rngCFCSA2)*(budA2CSBP6)*(budA2CSSF="Salary")*(rngCFCSA2=$A$48)))=TRUE,SUMPRODUCT(--ISNUMBER(rngCFCSA2)*(budA2CSBP6)*(budA2CSSF="Salary")*(rngCFCSA2=$A$48)),0) -> 0 | W48: =IF(ISNUMBER(SUMPRODUCT(--ISNUMBER(rngCFCSA2)*(budA2CSBP7)*(budA2CSSF="Salary")*(rngCFCSA2=$A$48)))=TRUE,SUMPRODUCT(--ISNUMBER(rngCFCSA2)*(budA2CSBP7)*(budA2CSSF="Salary")*(rngCFCSA2=$A$48)),0) -> 0 | Z48: =IF(ISNUMBER(SUMPRODUCT(--ISNUMBER(rngCFCSA2)*(budA2CSBP8)*(budA2CSSF="Salary")*(rngCFCSA2=$A$48)))=TRUE,SUMPRODUCT(--ISNUMBER(rngCFCSA2)*(budA2CSBP8)*(budA2CSSF="Salary")*(rngCFCSA2=$A$48)),0) -> 0 | AC48: =IF(ISNUMBER(SUMPRODUCT(--ISNUMBER(rngCFCSA2)*(budA2CSBP9)*(budA2CSSF="Salary")*(rngCFCSA2=$A$48)))=TRUE,SUMPRODUCT(--ISNUMBER(rngCFCSA2)*(budA2CSBP9)*(budA2CSSF="Salary")*(rngCFCSA2=$A$48)),0) -> 0 | AF48: =IF(ISNUMBER(SUMPRODUCT(--ISNUMBER(rngCFCSA2)*(budA2CSBP10)*(budA2CSSF="Salary")*(rngCFCSA2=$A$48)))=TRUE,SUMPRODUCT(--ISNUMBER(rngCFCSA2)*(budA2CSBP10)*(budA2CSSF="Salary")*(rngCFCSA2=$A$48)),0) -> 0 | AI48: 0
A49: =_xlfn.XLOOKUP(B49,MTDC[Description],MTDC[VALUE],"N/A",0) -> 50100 | B49: S&W Contracted | D49: =IF(AND(B49="Make a Selection",OR(sFABCCS=1,sFABCCS=2,sFABCCS=3)),"",IF(sFABCCS=2,"Included",IF(sFABCCS=3,"Custom F&A Amt",IF(_xlfn.XLOOKUP(B49,MTDC[Description],MTDC[Include in MTDC],"N/A",0)="MTDC","Included","Excluded")))) -> Included | E49: =IF(ISNUMBER(SUMPRODUCT(--ISNUMBER(rngCFCSA2)*(budA2CSBP1)*(budA2CSSF="Salary")*(rngCFCSA2=$A$49)))=TRUE,SUMPRODUCT(--ISNUMBER(rngCFCSA2)*(budA2CSBP1)*(budA2CSSF="Salary")*(rngCFCSA2=$A$49)),0) -> 0 | H49: =IF(ISNUMBER(SUMPRODUCT(--ISNUMBER(rngCFCSA2)*(budA2CSBP2)*(budA2CSSF="Salary")*(rngCFCSA2=$A$49)))=TRUE,SUMPRODUCT(--ISNUMBER(rngCFCSA2)*(budA2CSBP2)*(budA2CSSF="Salary")*(rngCFCSA2=$A$49)),0) -> 0 | K49: =IF(ISNUMBER(SUMPRODUCT(--ISNUMBER(rngCFCSA2)*(budA2CSBP3)*(budA2CSSF="Salary")*(rngCFCSA2=$A$49)))=TRUE,SUMPRODUCT(--ISNUMBER(rngCFCSA2)*(budA2CSBP3)*(budA2CSSF="Salary")*(rngCFCSA2=$A$49)),0) -> 0 | N49: =IF(ISNUMBER(SUMPRODUCT(--ISNUMBER(rngCFCSA2)*(budA2CSBP4)*(budA2CSSF="Salary")*(rngCFCSA2=$A$49)))=TRUE,SUMPRODUCT(--ISNUMBER(rngCFCSA2)*(budA2CSBP4)*(budA2CSSF="Salary")*(rngCFCSA2=$A$49)),0) -> 0 | Q49: =IF(ISNUMBER(SUMPRODUCT(--ISNUMBER(rngCFCSA2)*(budA2CSBP5)*(budA2CSSF="Salary")*(rngCFCSA2=$A$49)))=TRUE,SUMPRODUCT(--ISNUMBER(rngCFCSA2)*(budA2CSBP5)*(budA2CSSF="Salary")*(rngCFCSA2=$A$49)),0) -> 0 | T49: =IF(ISNUMBER(SUMPRODUCT(--ISNUMBER(rngCFCSA2)*(budA2CSBP6)*(budA2CSSF="Salary")*(rngCFCSA2=$A$49)))=TRUE,SUMPRODUCT(--ISNUMBER(rngCFCSA2)*(budA2CSBP6)*(budA2CSSF="Salary")*(rngCFCSA2=$A$49)),0) -> 0 | W49: =IF(ISNUMBER(SUMPRODUCT(--ISNUMBER(rngCFCSA2)*(budA2CSBP7)*(budA2CSSF="Salary")*(rngCFCSA2=$A$49)))=TRUE,SUMPRODUCT(--ISNUMBER(rngCFCSA2)*(budA2CSBP7)*(budA2CSSF="Salary")*(rngCFCSA2=$A$49)),0) -> 0 | Z49: =IF(ISNUMBER(SUMPRODUCT(--ISNUMBER(rngCFCSA2)*(budA2CSBP8)*(budA2CSSF="Salary")*(rngCFCSA2=$A$49)))=TRUE,SUMPRODUCT(--ISNUMBER(rngCFCSA2)*(budA2CSBP8)*(budA2CSSF="Salary")*(rngCFCSA2=$A$49)),0) -> 0 | AC49: =IF(ISNUMBER(SUMPRODUCT(--ISNUMBER(rngCFCSA2)*(budA2CSBP9)*(budA2CSSF="Salary")*(rngCFCSA2=$A$49)))=TRUE,SUMPRODUCT(--ISNUMBER(rngCFCSA2)*(budA2CSBP9)*(budA2CSSF="Salary")*(rngCFCSA2=$A$49)),0) -> 0 | AF49: =IF(ISNUMBER(SUMPRODUCT(--ISNUMBER(rngCFCSA2)*(budA2CSBP10)*(budA2CSSF="Salary")*(rngCFCSA2=$A$49)))=TRUE,SUMPRODUCT(--ISNUMBER(rngCFCSA2)*(budA2CSBP10)*(budA2CSSF="Salary")*(rngCFCSA2=$A$49)),0) -> 0 | AI49: 0
A50: =_xlfn.XLOOKUP(B50,MTDC[Description],MTDC[VALUE],"N/A",0) -> 50110 | B50: Student Aid Student Researcher Stipend | D50: =IF(AND(B50="Make a Selection",OR(sFABCCS=1,sFABCCS=2,sFABCCS=3)),"",IF(sFABCCS=2,"Included",IF(sFABCCS=3,"Custom F&A Amt",IF(_xlfn.XLOOKUP(B50,MTDC[Description],MTDC[Include in MTDC],"N/A",0)="MTDC","Included","Excluded")))) -> Included | E50: =IF(ISNUMBER(SUMPRODUCT(--ISNUMBER(rngCFCSA2)*(budA2CSBP1)*(budA2CSSF="Salary")*(rngCFCSA2=$A$50)))=TRUE,SUMPRODUCT(--ISNUMBER(rngCFCSA2)*(budA2CSBP1)*(budA2CSSF="Salary")*(rngCFCSA2=$A$50)),0) -> 0 | H50: =IF(ISNUMBER(SUMPRODUCT(--ISNUMBER(rngCFCSA2)*(budA2CSBP2)*(budA2CSSF="Salary")*(rngCFCSA2=$A$50)))=TRUE,SUMPRODUCT(--ISNUMBER(rngCFCSA2)*(budA2CSBP2)*(budA2CSSF="Salary")*(rngCFCSA2=$A$50)),0) -> 0 | K50: =IF(ISNUMBER(SUMPRODUCT(--ISNUMBER(rngCFCSA2)*(budA2CSBP3)*(budA2CSSF="Salary")*(rngCFCSA2=$A$50)))=TRUE,SUMPRODUCT(--ISNUMBER(rngCFCSA2)*(budA2CSBP3)*(budA2CSSF="Salary")*(rngCFCSA2=$A$50)),0) -> 0 | N50: =IF(ISNUMBER(SUMPRODUCT(--ISNUMBER(rngCFCSA2)*(budA2CSBP4)*(budA2CSSF="Salary")*(rngCFCSA2=$A$50)))=TRUE,SUMPRODUCT(--ISNUMBER(rngCFCSA2)*(budA2CSBP4)*(budA2CSSF="Salary")*(rngCFCSA2=$A$50)),0) -> 0 | Q50: =IF(ISNUMBER(SUMPRODUCT(--ISNUMBER(rngCFCSA2)*(budA2CSBP5)*(budA2CSSF="Salary")*(rngCFCSA2=$A$50)))=TRUE,SUMPRODUCT(--ISNUMBER(rngCFCSA2)*(budA2CSBP5)*(budA2CSSF="Salary")*(rngCFCSA2=$A$50)),0) -> 0 | T50: =IF(ISNUMBER(SUMPRODUCT(--ISNUMBER(rngCFCSA2)*(budA2CSBP6)*(budA2CSSF="Salary")*(rngCFCSA2=$A$50)))=TRUE,SUMPRODUCT(--ISNUMBER(rngCFCSA2)*(budA2CSBP6)*(budA2CSSF="Salary")*(rngCFCSA2=$A$50)),0) -> 0 | W50: =IF(ISNUMBER(SUMPRODUCT(--ISNUMBER(rngCFCSA2)*(budA2CSBP7)*(budA2CSSF="Salary")*(rngCFCSA2=$A$50)))=TRUE,SUMPRODUCT(--ISNUMBER(rngCFCSA2)*(budA2CSBP7)*(budA2CSSF="Salary")*(rngCFCSA2=$A$50)),0) -> 0 | Z50: =IF(ISNUMBER(SUMPRODUCT(--ISNUMBER(rngCFCSA2)*(budA2CSBP8)*(budA2CSSF="Salary")*(rngCFCSA2=$A$50)))=TRUE,SUMPRODUCT(--ISNUMBER(rngCFCSA2)*(budA2CSBP8)*(budA2CSSF="Salary")*(rngCFCSA2=$A$50)),0) -> 0 | AC50: =IF(ISNUMBER(SUMPRODUCT(--ISNUMBER(rngCFCSA2)*(budA2CSBP9)*(budA2CSSF="Salary")*(rngCFCSA2=$A$50)))=TRUE,SUMPRODUCT(--ISNUMBER(rngCFCSA2)*(budA2CSBP9)*(budA2CSSF="Salary")*(rngCFCSA2=$A$50)),0) -> 0 | AF50: =IF(ISNUMBER(SUMPRODUCT(--ISNUMBER(rngCFCSA2)*(budA2CSBP10)*(budA2CSSF="Salary")*(rngCFCSA2=$A$50)))=TRUE,SUMPRODUCT(--ISNUMBER(rngCFCSA2)*(budA2CSBP10)*(budA2CSSF="Salary")*(rngCFCSA2=$A$50)),0) -> 0 | AI50: 0
A51: =_xlfn.XLOOKUP(B51,MTDC[Description],MTDC[VALUE],"N/A",0) -> 50115 | B51: Student Aid Pre & Post Fellowship | D51: =IF(AND(B51="Make a Selection",OR(sFABCCS=1,sFABCCS=2,sFABCCS=3)),"",IF(sFABCCS=2,"Included",IF(sFABCCS=3,"Custom F&A Amt",IF(_xlfn.XLOOKUP(B51,MTDC[Description],MTDC[Include in MTDC],"N/A",0)="MTDC","Included","Excluded")))) -> Included | E51: =IF(ISNUMBER(SUMPRODUCT(--ISNUMBER(rngCFCSA2)*(budA2CSBP1)*(budA2CSSF="Salary")*(rngCFCSA2=$A$51)))=TRUE,SUMPRODUCT(--ISNUMBER(rngCFCSA2)*(budA2CSBP1)*(budA2CSSF="Salary")*(rngCFCSA2=$A$51)),0) -> 0 | H51: =IF(ISNUMBER(SUMPRODUCT(--ISNUMBER(rngCFCSA2)*(budA2CSBP2)*(budA2CSSF="Salary")*(rngCFCSA2=$A$51)))=TRUE,SUMPRODUCT(--ISNUMBER(rngCFCSA2)*(budA2CSBP2)*(budA2CSSF="Salary")*(rngCFCSA2=$A$51)),0) -> 0 | K51: =IF(ISNUMBER(SUMPRODUCT(--ISNUMBER(rngCFCSA2)*(budA2CSBP3)*(budA2CSSF="Salary")*(rngCFCSA2=$A$51)))=TRUE,SUMPRODUCT(--ISNUMBER(rngCFCSA2)*(budA2CSBP3)*(budA2CSSF="Salary")*(rngCFCSA2=$A$51)),0) -> 0 | N51: =IF(ISNUMBER(SUMPRODUCT(--ISNUMBER(rngCFCSA2)*(budA2CSBP4)*(budA2CSSF="Salary")*(rngCFCSA2=$A$51)))=TRUE,SUMPRODUCT(--ISNUMBER(rngCFCSA2)*(budA2CSBP4)*(budA2CSSF="Salary")*(rngCFCSA2=$A$51)),0) -> 0 | Q51: =IF(ISNUMBER(SUMPRODUCT(--ISNUMBER(rngCFCSA2)*(budA2CSBP5)*(budA2CSSF="Salary")*(rngCFCSA2=$A$51)))=TRUE,SUMPRODUCT(--ISNUMBER(rngCFCSA2)*(budA2CSBP5)*(budA2CSSF="Salary")*(rngCFCSA2=$A$51)),0) -> 0 | T51: =IF(ISNUMBER(SUMPRODUCT(--ISNUMBER(rngCFCSA2)*(budA2CSBP6)*(budA2CSSF="Salary")*(rngCFCSA2=$A$51)))=TRUE,SUMPRODUCT(--ISNUMBER(rngCFCSA2)*(budA2CSBP6)*(budA2CSSF="Salary")*(rngCFCSA2=$A$51)),0) -> 0 | W51: =IF(ISNUMBER(SUMPRODUCT(--ISNUMBER(rngCFCSA2)*(budA2CSBP7)*(budA2CSSF="Salary")*(rngCFCSA2=$A$51)))=TRUE,SUMPRODUCT(--ISNUMBER(rngCFCSA2)*(budA2CSBP7)*(budA2CSSF="Salary")*(rngCFCSA2=$A$51)),0) -> 0 | Z51: =IF(ISNUMBER(SUMPRODUCT(--ISNUMBER(rngCFCSA2)*(budA2CSBP8)*(budA2CSSF="Salary")*(rngCFCSA2=$A$51)))=TRUE,SUMPRODUCT(--ISNUMBER(rngCFCSA2)*(budA2CSBP8)*(budA2CSSF="Salary")*(rngCFCSA2=$A$51)),0) -> 0 | AC51: =IF(ISNUMBER(SUMPRODUCT(--ISNUMBER(rngCFCSA2)*(budA2CSBP9)*(budA2CSSF="Salary")*(rngCFCSA2=$A$51)))=TRUE,SUMPRODUCT(--ISNUMBER(rngCFCSA2)*(budA2CSBP9)*(budA2CSSF="Salary")*(rngCFCSA2=$A$51)),0) -> 0 | AF51: =IF(ISNUMBER(SUMPRODUCT(--ISNUMBER(rngCFCSA2)*(budA2CSBP10)*(budA2CSSF="Salary")*(rngCFCSA2=$A$51)))=TRUE,SUMPRODUCT(--ISNUMBER(rngCFCSA2)*(budA2CSBP10)*(budA2CSSF="Salary")*(rngCFCSA2=$A$51)),0) -> 0 | AI51: 0
A52: =_xlfn.XLOOKUP(B52,MTDC[Description],MTDC[VALUE],"N/A",0) -> 50120 | B52: S&W Hourly Employees | D52: =IF(AND(B52="Make a Selection",OR(sFABCCS=1,sFABCCS=2,sFABCCS=3)),"",IF(sFABCCS=2,"Included",IF(sFABCCS=3,"Custom F&A Amt",IF(_xlfn.XLOOKUP(B52,MTDC[Description],MTDC[Include in MTDC],"N/A",0)="MTDC","Included","Excluded")))) -> Included | E52: =IF(ISNUMBER(SUMPRODUCT(--ISNUMBER(rngCFCSA2)*(budA2CSBP1)*(budA2CSSF="Salary")*(rngCFCSA2=A52)))=TRUE,SUMPRODUCT(--ISNUMBER(rngCFCSA2)*(budA2CSBP1)*(budA2CSSF="Salary")*(rngCFCSA2=A52)),0) -> 0 | H52: =IF(ISNUMBER(SUMPRODUCT(--ISNUMBER(rngCFCSA2)*(budA2CSBP2)*(budA2CSSF="Salary")*(rngCFCSA2=D52)))=TRUE,SUMPRODUCT(--ISNUMBER(rngCFCSA2)*(budA2CSBP2)*(budA2CSSF="Salary")*(rngCFCSA2=D52)),0) -> 0 | K52: =IF(ISNUMBER(SUMPRODUCT(--ISNUMBER(rngCFCSA2)*(budA2CSBP3)*(budA2CSSF="Salary")*(rngCFCSA2=G52)))=TRUE,SUMPRODUCT(--ISNUMBER(rngCFCSA2)*(budA2CSBP3)*(budA2CSSF="Salary")*(rngCFCSA2=G52)),0) -> 0 | N52: =IF(ISNUMBER(SUMPRODUCT(--ISNUMBER(rngCFCSA2)*(budA2CSBP4)*(budA2CSSF="Salary")*(rngCFCSA2=J52)))=TRUE,SUMPRODUCT(--ISNUMBER(rngCFCSA2)*(budA2CSBP4)*(budA2CSSF="Salary")*(rngCFCSA2=J52)),0) -> 0 | Q52: =IF(ISNUMBER(SUMPRODUCT(--ISNUMBER(rngCFCSA2)*(budA2CSBP5)*(budA2CSSF="Salary")*(rngCFCSA2=M52)))=TRUE,SUMPRODUCT(--ISNUMBER(rngCFCSA2)*(budA2CSBP5)*(budA2CSSF="Salary")*(rngCFCSA2=M52)),0) -> 0 | T52: =IF(ISNUMBER(SUMPRODUCT(--ISNUMBER(rngCFCSA2)*(budA2CSBP6)*(budA2CSSF="Salary")*(rngCFCSA2=P52)))=TRUE,SUMPRODUCT(--ISNUMBER(rngCFCSA2)*(budA2CSBP6)*(budA2CSSF="Salary")*(rngCFCSA2=P52)),0) -> 0 | W52: =IF(ISNUMBER(SUMPRODUCT(--ISNUMBER(rngCFCSA2)*(budA2CSBP7)*(budA2CSSF="Salary")*(rngCFCSA2=S52)))=TRUE,SUMPRODUCT(--ISNUMBER(rngCFCSA2)*(budA2CSBP7)*(budA2CSSF="Salary")*(rngCFCSA2=S52)),0) -> 0 | Z52: =IF(ISNUMBER(SUMPRODUCT(--ISNUMBER(rngCFCSA2)*(budA2CSBP8)*(budA2CSSF="Salary")*(rngCFCSA2=V52)))=TRUE,SUMPRODUCT(--ISNUMBER(rngCFCSA2)*(budA2CSBP8)*(budA2CSSF="Salary")*(rngCFCSA2=V52)),0) -> 0 | AC52: =IF(ISNUMBER(SUMPRODUCT(--ISNUMBER(rngCFCSA2)*(budA2CSBP9)*(budA2CSSF="Salary")*(rngCFCSA2=Y52)))=TRUE,SUMPRODUCT(--ISNUMBER(rngCFCSA2)*(budA2CSBP9)*(budA2CSSF="Salary")*(rngCFCSA2=Y52)),0) -> 0 | AF52: =IF(ISNUMBER(SUMPRODUCT(--ISNUMBER(rngCFCSA2)*(budA2CSBP10)*(budA2CSSF="Salary")*(rngCFCSA2=AB52)))=TRUE,SUMPRODUCT(--ISNUMBER(rngCFCSA2)*(budA2CSBP10)*(budA2CSSF="Salary")*(rngCFCSA2=AB52)),0) -> 0 | AI52: 0
A53: =_xlfn.XLOOKUP(B53,MTDC[Description],MTDC[VALUE],"N/A",0) -> 51110 | B53: FB Staff Employees | D53: =IF(sFABCCS=2,"Included",IF(sFABCCS=3,"Custom F&A Amt",IF(_xlfn.XLOOKUP(B53,MTDC[Description],MTDC[Include in MTDC],"N/A",0)="MTDC","Included","Excluded"))) -> Included | E53: =SUMPRODUCT((budA2CSSF="Fringe")*(budA2CSBP1)) -> 0 | H53: =SUMPRODUCT((budA2CSSF="Fringe")*(budA2CSBP2)) -> 0 | K53: =SUMPRODUCT((budA2CSSF="Fringe")*(budA2CSBP3)) -> 0 | N53: =SUMPRODUCT((budA2CSSF="Fringe")*(budA2CSBP4)) -> 0 | Q53: =SUMPRODUCT((budA2CSSF="Fringe")*(budA2CSBP5)) -> 0 | T53: =SUMPRODUCT((budA2CSSF="Fringe")*(budA2CSBP6)) -> 0 | W53: =SUMPRODUCT((budA2CSSF="Fringe")*(budA2CSBP7)) -> 0 | Z53: =SUMPRODUCT((budA2CSSF="Fringe")*(budA2CSBP8)) -> 0 | AC53: =SUMPRODUCT((budA2CSSF="Fringe")*(budA2CSBP9)) -> 0 | AF53: =SUMPRODUCT((budA2CSSF="Fringe")*(budA2CSBP10)) -> 0 | AI53: =SUM(E53:AH53) -> 0
B55: Salary & Wages (Basic) | E55: =SUM(E39:G52) -> 0 | H55: =SUM(H39:J52) -> 0 | K55: =SUM(K39:M52) -> 0 | N55: =SUM(N39:P52) -> 0 | Q55: =SUM(Q39:S52) -> 0 | T55: =SUM(T39:V53) -> 0 | W55: =SUM(W39:Y52) -> 0 | Z55: =SUM(Z39:AB52) -> 0 | AC55: =SUM(AC39:AE52) -> 0 | AF55: =SUM(AF39:AH52) -> 0 | AI55: =SUM(E55:AH55) -> 0
B56: Fringe (Basic) | E56: =SUMPRODUCT(($D$35:$D$38="Fringe")*($E$35:$G$38)) -> 0 | H56: =SUMPRODUCT(($D$35:$D$38="Fringe")*($H$35:$J$38)) -> 0 | K56: =SUMPRODUCT(($D$35:$D$38="Fringe")*($K$35:$M$38)) -> 0 | N56: =SUMPRODUCT(($D$35:$D$38="Fringe")*($N$35:$P$38)) -> 0 | Q56: =SUMPRODUCT(($D$35:$D$38="Fringe")*($Q$35:$S$38)) -> 0 | T56: =SUMPRODUCT(($D$35:$D$38="Fringe")*($T$35:$V$38)) -> 0 | W56: =SUMPRODUCT(($D$35:$D$38="Fringe")*($W$35:$Y$38)) -> 0 | Z56: =SUMPRODUCT(($D$35:$D$38="Fringe")*($Z$35:$AB$38)) -> 0 | AC56: =SUMPRODUCT(($D$35:$D$38="Fringe")*($AC$35:$AE$38)) -> 0 | AF56: =SUMPRODUCT(($D$35:$D$38="Fringe")*($AF$35:$AH$38)) -> 0 | AI56: =SUM(E56:AH56) -> 0
B57: Total Salary & Wages (Basic) | E57: =SUM(E55:G56) -> 0 | H57: =SUM(H55:J56) -> 0 | K57: =SUM(K55:M56) -> 0 | N57: =SUM(N55:P56) -> 0 | Q57: =SUM(Q55:S56) -> 0 | T57: =SUM(T55:V56) -> 0 | W57: =SUM(W55:Y56) -> 0 | Z57: =SUM(Z55:AB56) -> 0 | AC57: =SUM(AC55:AE56) -> 0 | AF57: =SUM(AF55:AH56) -> 0 | AI57: =SUM(E57:AH57) -> 0
AO58: A3. SALARIES & WAGES | AQ58: =IF(D58="Included","Inc.",IF(D58="Excluded","Exc.","")) ->  | BC58: =IF(AL58="","",AL58) -> 
A59: =_xlfn.XLOOKUP(B59,MTDC[Description],MTDC[VALUE],"N/A",0) -> 50010 | B59: S&W Staff | D59: =IF(AND(B59="Make a Selection",OR(sFABCCS=1,sFABCCS=2,sFABCCS=3)),"",IF(sFABCCS=2,"Included",IF(sFABCCS=3,"Custom F&A Amt",IF(_xlfn.XLOOKUP(B59,MTDC[Description],MTDC[Include in MTDC],"N/A",0)="MTDC","Included","Excluded")))) -> Included | E59: =SUM(E14,E39) -> 0 | H59: =SUM(H14,H39) -> 0 | K59: =SUM(K14,K39) -> 0 | N59: =SUM(N14,N39) -> 0 | Q59: =SUM(Q14,Q39) -> 0 | T59: =SUM(T14,T39) -> 0 | W59: =SUM(W14,W39) -> 0 | Z59: =SUM(Z14,Z39) -> 0 | AC59: =SUM(AC14,AC39) -> 0 | AF59: =SUM(AF14,AF39) -> 0 | AI59: =SUM(E59:AH59) -> 0 | AM59: Included | AO59: =A59 -> 50010 | AP59: =B59 -> S&W Staff | AQ59: Inc. | AR59: =E59 -> 0 | AS59: =H59 -> 0 | AT59: =K59 -> 0 | AU59: =N59 -> 0 | AV59: =Q59 -> 0 | AW59: =T59 -> 0 | AX59: =W59 -> 0 | AY59: =Z59 -> 0 | AZ59: =AC59 -> 0 | BA59: =AF59 -> 0 | BB59: =AI59 -> 0
A60: =_xlfn.XLOOKUP(B60,MTDC[Description],MTDC[VALUE],"N/A",0) -> 50020 | B60: S&W Tenured Faculty | D60: =IF(AND(B60="Make a Selection",OR(sFABCCS=1,sFABCCS=2,sFABCCS=3)),"",IF(sFABCCS=2,"Included",IF(sFABCCS=3,"Custom F&A Amt",IF(_xlfn.XLOOKUP(B60,MTDC[Description],MTDC[Include in MTDC],"N/A",0)="MTDC","Included","Excluded")))) -> Included | E60: 0 | H60: 0 | K60: 0 | N60: 0 | Q60: 0 | T60: 0 | W60: 0 | Z60: 0 | AC60: 0 | AF60: 0 | AI60: =SUM(E60:AH60) -> 0 | AM60: Included | AO60: 50020 | AP60: S&W Tenured Faculty | AQ60: Inc. | AR60: 0 | AS60: 0 | AT60: 0 | AU60: 0 | AV60: 0 | AW60: 0 | AX60: 0 | AY60: 0 | AZ60: 0 | BA60: 0 | BB60: 0
A61: =_xlfn.XLOOKUP(B61,MTDC[Description],MTDC[VALUE],"N/A",0) -> 50030 | B61: S&W Tenure Track Faculty | D61: =IF(AND(B61="Make a Selection",OR(sFABCCS=1,sFABCCS=2,sFABCCS=3)),"",IF(sFABCCS=2,"Included",IF(sFABCCS=3,"Custom F&A Amt",IF(_xlfn.XLOOKUP(B61,MTDC[Description],MTDC[Include in MTDC],"N/A",0)="MTDC","Included","Excluded")))) -> Included | E61: 0 | H61: 0 | K61: 0 | N61: 0 | Q61: 0 | T61: 0 | W61: 0 | Z61: 0 | AC61: 0 | AF61: 0 | AI61: 0 | AM61: Included | AO61: 50030 | AP61: S&W Tenure Track Faculty | AQ61: Inc. | AR61: 0 | AS61: 0 | AT61: 0 | AU61: 0 | AV61: 0 | AW61: 0 | AX61: 0 | AY61: 0 | AZ61: 0 | BA61: 0 | BB61: 0
A62: =_xlfn.XLOOKUP(B62,MTDC[Description],MTDC[VALUE],"N/A",0) -> 50040 | B62: S&W NonTenured Faculty | D62: =IF(AND(B62="Make a Selection",OR(sFABCCS=1,sFABCCS=2,sFABCCS=3)),"",IF(sFABCCS=2,"Included",IF(sFABCCS=3,"Custom F&A Amt",IF(_xlfn.XLOOKUP(B62,MTDC[Description],MTDC[Include in MTDC],"N/A",0)="MTDC","Included","Excluded")))) -> Included | E62: 0 | H62: 0 | K62: 0 | N62: 0 | Q62: 0 | T62: 0 | W62: 0 | Z62: 0 | AC62: 0 | AF62: 0 | AI62: 0 | AM62: Included | AO62: 50040 | AP62: S&W NonTenured Faculty | AQ62: Inc. | AR62: 0 | AS62: 0 | AT62: 0 | AU62: 0 | AV62: 0 | AW62: 0 | AX62: 0 | AY62: 0 | AZ62: 0 | BA62: 0 | BB62: 0
A63: =_xlfn.XLOOKUP(B63,MTDC[Description],MTDC[VALUE],"N/A",0) -> 50050 | B63: S&W TA & GA | D63: =IF(AND(B63="Make a Selection",OR(sFABCCS=1,sFABCCS=2,sFABCCS=3)),"",IF(sFABCCS=2,"Included",IF(sFABCCS=3,"Custom F&A Amt",IF(_xlfn.XLOOKUP(B63,MTDC[Description],MTDC[Include in MTDC],"N/A",0)="MTDC","Included","Excluded")))) -> Included | E63: 0 | H63: 0 | K63: 0 | N63: 0 | Q63: 0 | T63: 0 | W63: 0 | Z63: 0 | AC63: 0 | AF63: 0 | AI63: 0 | AM63: Included | AO63: 50050 | AP63: S&W TA & GA | AQ63: Inc. | AR63: 0 | AS63: 0 | AT63: 0 | AU63: 0 | AV63: 0 | AW63: 0 | AX63: 0 | AY63: 0 | AZ63: 0 | BA63: 0 | BB63: 0
A64: =_xlfn.XLOOKUP(B64,MTDC[Description],MTDC[VALUE],"N/A",0) -> 50060 | B64: S&W Post Doctorate & Associates | D64: =IF(AND(B64="Make a Selection",OR(sFABCCS=1,sFABCCS=2,sFABCCS=3)),"",IF(sFABCCS=2,"Included",IF(sFABCCS=3,"Custom F&A Amt",IF(_xlfn.XLOOKUP(B64,MTDC[Description],MTDC[Include in MTDC],"N/A",0)="MTDC","Included","Excluded")))) -> Included | E64: 0 | H64: 0 | K64: 0 | N64: 0 | Q64: 0 | T64: 0 | W64: 0 | Z64: 0 | AC64: 0 | AF64: 0 | AI64: 0 | AM64: Included | AO64: 50060 | AP64: S&W Post Doctorate & Associates | AQ64: Inc. | AR64: 0 | AS64: 0 | AT64: 0 | AU64: 0 | AV64: 0 | AW64: 0 | AX64: 0 | AY64: 0 | AZ64: 0 | BA64: 0 | BB64: 0
A65: =_xlfn.XLOOKUP(B65,MTDC[Description],MTDC[VALUE],"N/A",0) -> 50070 | B65: S&W Housestaff | D65: =IF(AND(B65="Make a Selection",OR(sFABCCS=1,sFABCCS=2,sFABCCS=3)),"",IF(sFABCCS=2,"Included",IF(sFABCCS=3,"Custom F&A Amt",IF(_xlfn.XLOOKUP(B65,MTDC[Description],MTDC[Include in MTDC],"N/A",0)="MTDC","Included","Excluded")))) -> Included | E65: 0 | H65: 0 | K65: 0 | N65: 0 | Q65: 0 | T65: 0 | W65: 0 | Z65: 0 | AC65: 0 | AF65: 0 | AI65: 0 | AM65: Included | AO65: 50070 | AP65: S&W Housestaff | AQ65: Inc. | AR65: 0 | AS65: 0 | AT65: 0 | AU65: 0 | AV65: 0 | AW65: 0 | AX65: 0 | AY65: 0 | AZ65: 0 | BA65: 0 | BB65: 0
A66: =_xlfn.XLOOKUP(B66,MTDC[Description],MTDC[VALUE],"N/A",0) -> 50080 | B66: S&W Coadjutant NonInstructional | D66: =IF(AND(B66="Make a Selection",OR(sFABCCS=1,sFABCCS=2,sFABCCS=3)),"",IF(sFABCCS=2,"Included",IF(sFABCCS=3,"Custom F&A Amt",IF(_xlfn.XLOOKUP(B66,MTDC[Description],MTDC[Include in MTDC],"N/A",0)="MTDC","Included","Excluded")))) -> Included | E66: 0 | H66: 0 | K66: 0 | N66: 0 | Q66: 0 | T66: 0 | W66: 0 | Z66: 0 | AC66: 0 | AF66: 0 | AI66: 0 | AM66: Included | AO66: 50080 | AP66: S&W Coadjutant NonInstructional | AQ66: Inc. | AR66: 0 | AS66: 0 | AT66: 0 | AU66: 0 | AV66: 0 | AW66: 0 | AX66: 0 | AY66: 0 | AZ66: 0 | BA66: 0 | BB66: 0
A67: =_xlfn.XLOOKUP(B67,MTDC[Description],MTDC[VALUE],"N/A",0) -> 50081 | B67: S&W Coadjutant PTL Instructional | D67: =IF(AND(B67="Make a Selection",OR(sFABCCS=1,sFABCCS=2,sFABCCS=3)),"",IF(sFABCCS=2,"Included",IF(sFABCCS=3,"Custom F&A Amt",IF(_xlfn.XLOOKUP(B67,MTDC[Description],MTDC[Include in MTDC],"N/A",0)="MTDC","Included","Excluded")))) -> Included | E67: 0 | H67: 0 | K67: 0 | N67: 0 | Q67: 0 | T67: 0 | W67: 0 | Z67: 0 | AC67: 0 | AF67: 0 | AI67: 0 | AM67: Included | AO67: 50081 | AP67: S&W Coadjutant PTL Instructional | AQ67: Inc. | AR67: 0 | AS67: 0 | AT67: 0 | AU67: 0 | AV67: 0 | AW67: 0 | AX67: 0 | AY67: 0 | AZ67: 0 | BA67: 0 | BB67: 0
A68: =_xlfn.XLOOKUP(B68,MTDC[Description],MTDC[VALUE],"N/A",0) -> 50090 | B68: S&W Student Employment | D68: =IF(AND(B68="Make a Selection",OR(sFABCCS=1,sFABCCS=2,sFABCCS=3)),"",IF(sFABCCS=2,"Included",IF(sFABCCS=3,"Custom F&A Amt",IF(_xlfn.XLOOKUP(B68,MTDC[Description],MTDC[Include in MTDC],"N/A",0)="MTDC","Included","Excluded")))) -> Included | E68: 0 | H68: 0 | K68: 0 | N68: 0 | Q68: 0 | T68: 0 | W68: 0 | Z68: 0 | AC68: 0 | AF68: 0 | AI68: 0 | AM68: Included | AO68: 50090 | AP68: S&W Student Employment | AQ68: Inc. | AR68: 0 | AS68: 0 | AT68: 0 | AU68: 0 | AV68: 0 | AW68: 0 | AX68: 0 | AY68: 0 | AZ68: 0 | BA68: 0 | BB68: 0
A69: =_xlfn.XLOOKUP(B69,MTDC[Description],MTDC[VALUE],"N/A",0) -> 50100 | B69: S&W Contracted | D69: =IF(AND(B69="Make a Selection",OR(sFABCCS=1,sFABCCS=2,sFABCCS=3)),"",IF(sFABCCS=2,"Included",IF(sFABCCS=3,"Custom F&A Amt",IF(_xlfn.XLOOKUP(B69,MTDC[Description],MTDC[Include in MTDC],"N/A",0)="MTDC","Included","Excluded")))) -> Included | E69: 0 | H69: 0 | K69: 0 | N69: 0 | Q69: 0 | T69: 0 | W69: 0 | Z69: 0 | AC69: 0 | AF69: 0 | AI69: 0 | AM69: Included | AO69: 50100 | AP69: S&W Contracted | AQ69: Inc. | AR69: 0 | AS69: 0 | AT69: 0 | AU69: 0 | AV69: 0 | AW69: 0 | AX69: 0 | AY69: 0 | AZ69: 0 | BA69: 0 | BB69: 0
A70: =_xlfn.XLOOKUP(B70,MTDC[Description],MTDC[VALUE],"N/A",0) -> 50110 | B70: Student Aid Student Researcher Stipend | D70: =IF(AND(B70="Make a Selection",OR(sFABCCS=1,sFABCCS=2,sFABCCS=3)),"",IF(sFABCCS=2,"Included",IF(sFABCCS=3,"Custom F&A Amt",IF(_xlfn.XLOOKUP(B70,MTDC[Description],MTDC[Include in MTDC],"N/A",0)="MTDC","Included","Excluded")))) -> Included | E70: 0 | H70: 0 | K70: 0 | N70: 0 | Q70: 0 | T70: 0 | W70: 0 | Z70: 0 | AC70: 0 | AF70: 0 | AI70: 0 | AM70: Included | AO70: 50110 | AP70: Student Aid Student Researcher Stipend | AQ70: Inc. | AR70: 0 | AS70: 0 | AT70: 0 | AU70: 0 | AV70: 0 | AW70: 0 | AX70: 0 | AY70: 0 | AZ70: 0 | BA70: 0 | BB70: 0
A71: =_xlfn.XLOOKUP(B71,MTDC[Description],MTDC[VALUE],"N/A",0) -> 50115 | B71: Student Aid Pre & Post Fellowship | D71: =IF(AND(B71="Make a Selection",OR(sFABCCS=1,sFABCCS=2,sFABCCS=3)),"",IF(sFABCCS=2,"Included",IF(sFABCCS=3,"Custom F&A Amt",IF(_xlfn.XLOOKUP(B71,MTDC[Description],MTDC[Include in MTDC],"N/A",0)="MTDC","Included","Excluded")))) -> Included | E71: 0 | H71: 0 | K71: 0 | N71: 0 | Q71: 0 | T71: 0 | W71: 0 | Z71: 0 | AC71: 0 | AF71: 0 | AI71: 0 | AM71: Included | AO71: 50115 | AP71: Student Aid Pre & Post Fellowship | AQ71: Inc. | AR71: 0 | AS71: 0 | AT71: 0 | AU71: 0 | AV71: 0 | AW71: 0 | AX71: 0 | AY71: 0 | AZ71: 0 | BA71: 0 | BB71: 0
A72: =_xlfn.XLOOKUP(B72,MTDC[Description],MTDC[VALUE],"N/A",0) -> 50120 | B72: S&W Hourly Employees | D72: =IF(AND(B72="Make a Selection",OR(sFABCCS=1,sFABCCS=2,sFABCCS=3)),"",IF(sFABCCS=2,"Included",IF(sFABCCS=3,"Custom F&A Amt",IF(_xlfn.XLOOKUP(B72,MTDC[Description],MTDC[Include in MTDC],"N/A",0)="MTDC","Included","Excluded")))) -> Included | E72: 0 | H72: 0 | K72: 0 | N72: 0 | Q72: 0 | T72: 0 | W72: 0 | Z72: 0 | AC72: 0 | AF72: 0 | AI72: 0 | AM72: Included | AO72: 50120 | AP72: S&W Hourly Employees | AQ72: Inc. | AR72: 0 | AS72: 0 | AT72: 0 | AU72: 0 | AV72: 0 | AW72: 0 | AX72: 0 | AY72: 0 | AZ72: 0 | BA72: 0 | BB72: 0
A73: =_xlfn.XLOOKUP(B73,MTDC[Description],MTDC[VALUE],"N/A",0) -> 51110 | B73: FB Staff Employees | D73: =IF(sFABCCS=2,"Included",IF(sFABCCS=3,"Custom F&A Amt",IF(_xlfn.XLOOKUP(B73,MTDC[Description],MTDC[Include in MTDC],"N/A",0)="MTDC","Included","Excluded"))) -> Included | E73: 0 | H73: 0 | K73: 0 | N73: 0 | Q73: 0 | T73: 0 | W73: 0 | Z73: 0 | AC73: 0 | AF73: 0 | AI73: 0 | AM73: Included | AP73: Fringe Benefits (Total) | AQ73: Inc. | AR73: 0 | AS73: 0 | AT73: 0 | AU73: 0 | AV73: 0 | AW73: 0 | AX73: 0 | AY73: 0 | AZ73: 0 | BA73: 0 | BB73: 0
A75: A3. TOTAL SALARY & WAGES | C75: Salary & Wages (Total) | E75: =SUM(E30,E55) -> 0 | H75: =SUM(H30,H55) -> 0 | K75: =SUM(K30,K55) -> 0 | N75: =SUM(N30,N55) -> 0 | Q75: =SUM(Q30,Q55) -> 0 | T75: =SUM(T30,T55) -> 0 | W75: =SUM(W30,W55) -> 0 | Z75: =SUM(Z30,Z55) -> 0 | AC75: =SUM(AC30,AC55) -> 0 | AF75: =SUM(AF30,AF55) -> 0 | AI75: =SUM(E75:AH75) -> 0
C76: Fringe (Total) | E76: =SUM(E31,E56) -> 0 | H76: =SUM(H31,H56) -> 0 | K76: =SUM(K31,K56) -> 0 | N76: =SUM(N31,N56) -> 0 | Q76: =SUM(Q31,Q56) -> 0 | T76: =SUM(T31,T56) -> 0 | W76: =SUM(W31,W56) -> 0 | Z76: =SUM(Z31,Z56) -> 0 | AC76: =SUM(AC31,AC56) -> 0 | AF76: =SUM(AF31,AF56) -> 0 | AI76: =SUM(E76:AH76) -> 0
C77: Salary & Wages (Total) | E77: =SUM(E75:G76) -> 0 | H77: =SUM(H75:J76) -> 0 | K77: =SUM(K75:M76) -> 0 | N77: =SUM(N75:P76) -> 0 | Q77: =SUM(Q75:S76) -> 0 | T77: =SUM(T75:V76) -> 0 | W77: =SUM(W75:Y76) -> 0 | Z77: =SUM(Z75:AB76) -> 0 | AC77: =SUM(AC75:AE76) -> 0 | AF77: =SUM(AF75:AH76) -> 0 | AI77: =SUM(E77:AH77) -> 0 | AM77: Included
A79: B. FRINGE BENEFITS (NON-SALARY) | AO79: =bOLB -> B. FRINGE BENEFITS (NON-SALARY) | AQ79: =IF(D81="Included","Inc.",IF(D81="Excluded","Exc.","")) -> Exc. | BC79: =IF(AL81="","",AL81) -> 
A80: =_xlfn.XLOOKUP(B80,MTDC[Description],MTDC[VALUE],"N/A",0) -> 61030 | B80: Tuition Remission TA & GA Fees | D80: =IF(AND(B80="Make a Selection",OR(sFABCCS=1,sFABCCS=2,sFABCCS=3)),"",IF(sFABCCS=2,"Included",IF(sFABCCS=3,"Custom F&A Amt",IF(_xlfn.XLOOKUP(B80,MTDC[Description],MTDC[Include in MTDC],"N/A",0)="MTDC","Included","Excluded")))) -> Included | E80: 0 | H80: 0 | K80: 0 | N80: 0 | Q80: 0 | T80: 0 | W80: 0 | Z80: 0 | AC80: 0 | AF80: 0 | AI80: =SUM(E80:AH80) -> 0 | AM80: =D80 -> Included | AO80: =A80 -> 61030 | AP80: Tuition Remission TA & GA Fees | AQ80: =IF(D80="Included","Inc.",IF(D80="Excluded","Exc.","")) -> Inc. | AR80: =E80 -> 0 | AS80: =H80 -> 0 | AT80: =K80 -> 0 | AU80: =N80 -> 0 | AV80: =Q80 -> 0 | AW80: =T80 -> 0 | AX80: =W80 -> 0 | AY80: =Z80 -> 0 | AZ80: =AC80 -> 0 | BA80: =AF80 -> 0 | BB80: =AI80 -> 0 | BC80: =IF(AL80="","",AL80) -> 
A81: =_xlfn.XLOOKUP(B81,MTDC[Description],MTDC[VALUE],"N/A",0) -> 61060 | B81: Tuition Remission Other | D81: =IF(AND(B81="Make a Selection",OR(sFABCCS=1,sFABCCS=2,sFABCCS=3)),"",IF(sFABCCS=2,"Included",IF(sFABCCS=3,"Custom F&A Amt",IF(_xlfn.XLOOKUP(B81,MTDC[Description],MTDC[Include in MTDC],"N/A",0)="MTDC","Included","Excluded")))) -> Excluded | E81: 0 | H81: 0 | K81: 0 | N81: 0 | Q81: 0 | T81: 0 | W81: 0 | Z81: 0 | AC81: 0 | AF81: 0 | AI81: =SUM(E81:AH81) -> 0 | AM81: =D81 -> Excluded | AO81: 61060 | AP81: Tuition Remission Other | AQ81: =IF(D81="Included","Inc.",IF(D81="Excluded","Exc.","")) -> Exc. | AR81: =E81 -> 0 | AS81: =H81 -> 0 | AT81: =K81 -> 0 | AU81: =N81 -> 0 | AV81: =Q81 -> 0 | AW81: =T81 -> 0 | AX81: =W81 -> 0 | AY81: =Z81 -> 0 | AZ81: =AC81 -> 0 | BA81: =AF81 -> 0 | BB81: =AI81 -> 0 | BC81: =IF(AL81="","",AL81) -> 
A82: =_xlfn.XLOOKUP(B82,MTDC[Description],MTDC[VALUE],"N/A",0) -> N/A | B82: Make a selection | D82: =IF(AND(B82="Make a Selection",OR(sFABCCS=1,sFABCCS=2,sFABCCS=3)),"",IF(sFABCCS=2,"Included",IF(sFABCCS=3,"Custom F&A Amt",IF(_xlfn.XLOOKUP(B82,MTDC[Description],MTDC[Include in MTDC],"N/A",0)="MTDC","Included","Excluded")))) ->  | E82: 0 | H82: 0 | K82: 0 | N82: 0 | Q82: 0 | T82: 0 | W82: 0 | Z82: 0 | AC82: 0 | AF82: 0 | AI82: =SUM(E82:AH82) -> 0 | AO82: N/A | AP82: Make a selection | AQ82: =IF(D82="Included","Inc.",IF(D82="Excluded","Exc.","")) ->  | AR82: =E82 -> 0 | AS82: =H82 -> 0 | AT82: =K82 -> 0 | AU82: =N82 -> 0 | AV82: =Q82 -> 0 | AW82: =T82 -> 0 | AX82: =W82 -> 0 | AY82: =Z82 -> 0 | AZ82: =AC82 -> 0 | BA82: =AF82 -> 0 | BB82: =AI82 -> 0 | BC82: =IF(AL82="","",AL82) -> 
AQ83: =IF(D84="Included","Inc.",IF(D84="Excluded","Exc.","")) ->  | BC83: =IF(AL83="","",AL83) -> 
B84: Total Fringe Benefits | E84: =SUM(E80:G83) -> 0 | H84: =SUM(H80:J83) -> 0 | K84: =SUM(K80:M83) -> 0 | N84: =SUM(N80:P83) -> 0 | Q84: =SUM(Q80:S83) -> 0 | T84: =SUM(T80:V83) -> 0 | W84: =SUM(W80:Y83) -> 0 | Z84: =SUM(Z80:AB83) -> 0 | AC84: =SUM(AC80:AE83) -> 0 | AF84: =SUM(AF80:AH83) -> 0 | AI84: =SUM(E84:AH84) -> 0 | AM84: Sec B
A86: C. OTHER POST-EMPLOYMENT BENEFITS | AO86: =bOLC -> C. OTHER POST-EMPLOYMENT BENEFITS | AQ86: =IF(D87="Included","Inc.",IF(D87="Excluded","Exc.","")) -> Inc. | BC86: =IF(AL86="","",AL86) -> 
A87: =_xlfn.XLOOKUP(B87,MTDC[Description],MTDC[VALUE],"N/A",0) -> 51300 | B87: OPEB Expenses | D87: =IF(AND(B87="Make a Selection",OR(sFABCCS=1,sFABCCS=2,sFABCCS=3)),"",IF(sFABCCS=2,"Included",IF(sFABCCS=3,"Custom F&A Amt",IF(_xlfn.XLOOKUP(B87,MTDC[Description],MTDC[Include in MTDC],"N/A",0)="MTDC","Included","Excluded")))) -> Included | E87: 0 | H87: 0 | K87: 0 | N87: 0 | Q87: 0 | T87: 0 | W87: 0 | Z87: 0 | AC87: 0 | AF87: 0 | AI87: =SUM(E87:AH87) -> 0 | AM87: =D87 -> Included | AO87: =A87 -> 51300 | AP87: =B87 -> OPEB Expenses | AQ87: =IF(D87="Included","Inc.",IF(D87="Excluded","Exc.","")) -> Inc. | AR87: =E87 -> 0 | AS87: =H87 -> 0 | AT87: =K87 -> 0 | AU87: =N87 -> 0 | AV87: =Q87 -> 0 | AW87: =T87 -> 0 | AX87: =W87 -> 0 | AY87: =Z87 -> 0 | AZ87: =AC87 -> 0 | BA87: =AF87 -> 0 | BB87: =AI87 -> 0 | BC87: =IF(AL87="","",AL87) -> 
AQ88: =IF(D89="Included","Inc.",IF(D89="Excluded","Exc.","")) ->  | BC88: =IF(AL88="","",AL88) -> 
B89: Total Supplies and Materials | E89: =SUM(E87:G88) -> 0 | H89: =SUM(H87:J88) -> 0 | K89: =SUM(K87:M88) -> 0 | N89: =SUM(N87:P88) -> 0 | Q89: =SUM(Q87:S88) -> 0 | T89: =SUM(T87:V88) -> 0 | W89: =SUM(W87:Y88) -> 0 | Z89: =SUM(Z87:AB88) -> 0 | AC89: =SUM(AC87:AE88) -> 0 | AF89: =SUM(AF87:AH88) -> 0 | AI89: =SUM(E89:AH89) -> 0 | AM89: Sec C
A91: D. SUPPLIES & MATERIALS | AO91: =bOLD -> D. SUPPLIES & MATERIALS | AQ91: =IF(D93="Included","Inc.",IF(D93="Excluded","Exc.","")) -> Inc. | BC91: =IF(AL93="","",AL93) -> 
A92: =_xlfn.XLOOKUP(B92,MTDC[Description],MTDC[VALUE],"N/A",0) -> 52610 | B92: Medical Supplies Laboratory | D92: =IF(AND(B92="Make a Selection",OR(sFABCCS=1,sFABCCS=2,sFABCCS=3)),"",IF(sFABCCS=2,"Included",IF(sFABCCS=3,"Custom F&A Amt",IF(_xlfn.XLOOKUP(B92,MTDC[Description],MTDC[Include in MTDC],"N/A",0)="MTDC","Included","Excluded")))) -> Included | E92: 0 | H92: 0 | K92: 0 | N92: 0 | Q92: 0 | T92: 0 | W92: 0 | Z92: 0 | AC92: 0 | AF92: 0 | AI92: =SUM(E92:AH92) -> 0 | AM92: =D92 -> Included | AO92: =A92 -> 52610 | AP92: Medical Supplies Laboratory | AQ92: =IF(D92="Included","Inc.",IF(D92="Excluded","Exc.","")) -> Inc. | AR92: =E92 -> 0 | AS92: =H92 -> 0 | AT92: =K92 -> 0 | AU92: =N92 -> 0 | AV92: =Q92 -> 0 | AW92: =T92 -> 0 | AX92: =W92 -> 0 | AY92: =Z92 -> 0 | AZ92: =AC92 -> 0 | BA92: =AF92 -> 0 | BB92: =AI92 -> 0 | BC92: =IF(AL92="","",AL92) -> 
A93: =_xlfn.XLOOKUP(B93,MTDC[Description],MTDC[VALUE],"N/A",0) -> 52970 | B93: Office Supplies Postage & Shipping | D93: =IF(AND(B93="Make a Selection",OR(sFABCCS=1,sFABCCS=2,sFABCCS=3)),"",IF(sFABCCS=2,"Included",IF(sFABCCS=3,"Custom F&A Amt",IF(_xlfn.XLOOKUP(B93,MTDC[Description],MTDC[Include in MTDC],"N/A",0)="MTDC","Included","Excluded")))) -> Included | E93: 0 | H93: 0 | K93: 0 | N93: 0 | Q93: 0 | T93: 0 | W93: 0 | Z93: 0 | AC93: 0 | AF93: 0 | AI93: 0 | AM93: Included | AO93: 52970 | AP93: Office Supplies Postage & Shipping | AQ93: Inc. | AR93: 0 | AS93: 0 | AT93: 0 | AU93: 0 | AV93: 0 | AW93: 0 | AX93: 0 | AY93: 0 | AZ93: 0 | BA93: 0 | BB93: 0
